Workbook

Sheet Contents

Sheet QA
D3: Introduction
D4: My Experience - Making Mistakes; trying different things
D5: History of Models
D6: Example of Models
D8: Old Models - Nuclear
D9: FAST Model
D10: Monster Model
D11: Solar Model
D12: Tax Equity Model
D13: Port Model
D14: Biomas Model
D16: 3. You can use a power sector model as reference (Production curves and tax equity are common points we need folks to be familiar with so should serve as a good example)
D18: 6. After the intro session on Tuesday, you will circulate an evaluation test/homework exercise for the juniors to take on and send it back to you. We should give people only a few days to do so – suggest to have the deadline be COB Friday, Dec 23. We will use this test to assess skills, ensure they’re paying attention and compare with what we do at the end, in order to monitor learning throughout the course
D22: Objective for the course is to build a model from scratch. Ultimate taks to be mastered are: 1. building of CFADS, 2. setting of debt structure with multiple sources (loan + bonds) on a pari-passu basis, 3. calculating equity returns, 4 and preparing a model for syndication purposes - 5. running sensitivities on a set debt amount (no longer sizing for changes made to CFADS and investors play around with model).
D25: Power sector projects are a good example, given complexity added by production curves for sizing methodology and introduction of tax equity. MUFG’s credit policy on sizing debt for power is applying a grid of DSCRs based on different P-curves. For example, on a solar project, on each quarter we constrain P99 CFADS at a 1.00x and p50 at a 1.35x, and take the minimum resulting constrained CFADS.
C28: FALSE | D28: a. Structuring a project with evaluation of debt size from either P90, P50, or maximum debt to capital.
C29: FALSE | D29: b. Inclusion of DSRA changes in the DSCR for debt sculpting.
C30: FALSE | D30: c. Resolving circular references without copy and paste macros or the iteration button.
C31: FALSE | D31: d. Effective control pages where you can evaluate changes to inputs and properly include the inputs in relevant input sheets.
C32: FALSE | D32: e. Debt sculpting of multiple debt issues where cash flow is affected by interest expenses and income taxes.
C33: FALSE | D33: f. Computing debt repayment where the debt size is given, and sculpting is used to obtain a minimum DSCR with varying DSCR’s.
C34: FALSE | D34: g. Modelling development fees in the context of multiple investors.
C35: FALSE | D35: h. Creating data tables using VBA to resolve problems with data tables
C36: FALSE | D36: i. Developing timelines that can easily convert monthly to semi-annual or quarterly and creating semi-annual sums in monthly models without SUM(OFFSET).
C37: FALSE | D37: j. Incorporating options for DSRA funding with an L/C or with cash funding.
C38: FALSE | D38: k. Adding re-financing assumptions to a model where the debt size depends on taxes which are also affected by interest on the re-financing.
C39: FALSE | D39: l. Including actual data in models for the construction period and operating period.
C40: FALSE | D40: m. Developing alternative ways to model working capital requirements in the initial operating periods of a project.
C41: FALSE | D41: n. Evaluating different structures for equity investors including cash flow flips and incentives to developers.
C42: FALSE | D42: o. Modelling the effect of financing in different currencies including translation adjustments on the balance sheet.
C43: FALSE | D43: p. Modelling alternative cash sweep structures.
C44: FALSE | D44: q. Modelling mini-perms and different re-financing assumptions.
C45: FALSE | D45: r. Modelling equity bridge loans and the associated circular references along with options to include or not include interest during construction in the borrowing base.
C46: FALSE | D46: s. Valuation of projects with changing buyer target IRR’s and computation of holding period returns.
C47: FALSE | D47: t. Evaluation of NOL time limits on the calculation of income tax.
C48: FALSE | D48: u. Accumulation of projects into a portfolio or a fund
C49: FALSE | D49: v. Evaluation of defaults and the risks of senior and subordinated debt
C50: FALSE | D50: w. Computation of the LLCR with different debt issues using the prospective debt IRR
C55: High | D55: Enter 1 for High Impact
C56: Medium | D56: Enter 2 for Medium Impact
C57: Low | D57: enter 3 for Low Impact
C59: ="Matters arising from review of Financial Model Filename: “"&MID(CELL("filename",A54),FIND("[",CELL("filename",A54))+1,FIND("]", CELL("filename",A54))-FIND("[",CELL("filename",A54))-1)&" ”" -> Matters arising from review of Financial Model Filename: “Exercise for Class Semi-Filled.xlsm ”
C60: No | D60: Impact level | E60: Category | F60: Reference | G60: Issue/Question
C61: 1
C62: 2
C63: 3
C64: 4
C65: 5
C66: 6
C67: 7
C68: 8
C69: 9
C70: 10
C71: 11
C72: 12
C73: 13

Sheet Summary
A1: =RIGHT(CELL("filename",A1),LEN(CELL("filename",A1))- SEARCH("]",CELL("filename",A1))) -> Summary
B2: Modelling Exercise | M2: FALSE | N2: comments
E5: Key Dates | F5: Start | I5: Return Metrics
E6: Financial Close Date | F6: ='InputC - Operations'!J7 -> 2023-01-01 | I6: Equity IRR -- All Equity | J6: ='Taxes Waterfall Returns'!H102 -> 0.115223819
E7: Commercial Operation | F7: ='InputC - Operations'!J9 -> 2023-12-01
E8: Operations Period End | F8: ='InputC - Operations'!J11 -> 2058-12-01 | I8: Post-Tax Project IRR | J8: ='Taxes Waterfall Returns'!H87 -> 0.08113413751
I9: Pre-Tax Project IRR | J9: ='Taxes Waterfall Returns'!H96 -> 0.07879286706
E10: Key Metrics - Tariff & Financial Score
E11: PPA Rate (USD/MWH) | F11: ='InputC - Operations'!E33 -> 33 | I11: Debt Metrics
E12: PPA Inflation | F12: ='InputC - Operations'!E28 -> 2 | I12: DSCR Output from Sculpting | J12: ='Taxes Waterfall Returns'!H107 -> 0
I13: LLCR | J13: ='Taxes Waterfall Returns'!H120 -> 1.298326421
E14: Capacity (MWp) | F14: ='InputC - Operations'!E17 -> 132 | I14: PLCR | J14: ='Taxes Waterfall Returns'!H115 -> 1.81207687
F16: kWh/kWp | G16: Cap Fac | I16: Average Debt Life | J16: ='Taxes Waterfall Returns'!H126 -> 19.69108769
E17: Annual Yield - P50 | F17: ='InputC - Operations'!J22 -> 1980 | G17: =F17/8760 -> 0.2260273973
E18: Annual Yield - P90 | F18: ='InputC - Operations'!K22 -> 1726.25279 | G18: =F18/8760 -> 0.1970608208
F20: USD | G20: USD/kW
E21: EPC Cost | F21: ='Project Finance Semi-Annual'!I21 -> 118800000 | G21: ='InputC - Operations'!E52 -> 900
E22: Total Plant Cost | F22: ='Project Finance Semi-Annual'!I28 -> 122400000 | G22: =F32/F14/1000 -> 952.3211015
E25: Uses of Funds
E26: Total EPC Cost Incl. Contingency | F26: ='Project Finance Semi-Annual'!I70 -> 118800000
E27: ='Project Finance Semi-Annual'!D72 -> Interest During Construction - Senior | F27: ='Project Finance Semi-Annual'!I71 -> 3600000
E28: ='Project Finance Semi-Annual'!D73 -> Up-Front Fee | F28: ='Project Finance Semi-Annual'!I72 -> 2037325.049
E29: ='Project Finance Semi-Annual'!D74 -> Commitment Fee | F29: ='Project Finance Semi-Annual'!I73 -> 942308.7011
E30: ='Project Finance Semi-Annual'!D75 -> Interest During Construction - SHL | F30: ='Project Finance Semi-Annual'!I74 -> 326751.644
E31: ='Project Finance Semi-Annual'!D76 -> DSRA | F31: ='Project Finance Semi-Annual'!I75 -> 0
E32: Total | F32: =SUM(F26:F31) -> 125706385.4
E34: Sources of funds
E35: Senior Debt | F35: ='Project Finance Semi-Annual'!I80 -> 103029703.2 | G35: ='Project Finance Semi-Annual'!J80 -> 0.8126808337
E36: Equity | F36: ='Project Finance Semi-Annual'!I81 -> 23747869.15 | G36: ='Project Finance Semi-Annual'!J81 -> 0.1873191663
E37: Total Senior Debt | F37: =SUM(F35:F36) -> 126777572.3 | G37: =SUM(G35:G36) -> 1
E52: =TRANSPOSE('InputC-Financing'!J3:R3) -> Base Case
E53: P90 Debt Size Case
E54: P99 Debt Size Case
E55: Maximum Debt to Capital Case
E56: Stress Case for Credit
E57: P90 and No Inflation
E58: Higher EPC
E59: Lower PPA
E60: Shareholder Loan

Sheet InputC - Operations
E1: Project IRR
E2: Equity IRR
D3: Active Scenario | E3: 2 | J3: ='InputC-Financing'!J3 -> Base Case | K3: ='InputC-Financing'!K3 -> P90 Debt Size Case | L3: ='InputC-Financing'!L3 -> P99 Debt Size Case | M3: ='InputC-Financing'!M3 -> Maximum Debt to Capital Case | N3: ='InputC-Financing'!N3 -> Stress Case for Credit | O3: ='InputC-Financing'!O3 -> P90 and No Inflation | P3: ='InputC-Financing'!P3 -> Higher EPC | Q3: ='InputC-Financing'!Q3 -> Lower PPA | R3: ='InputC-Financing'!R3 -> Shareholder Loan
J4: 1 | K4: 2 | L4: 6 | M4: 3 | N4: 4 | O4: 5 | P4: 7 | Q4: 8 | R4: 9
B6: Model Timeline
D7: Financial Close Date | E7: =INDEX(J7:R7,case_active) -> 2023-01-01 | F7: Date | J7: 2023-01-01 | K7: 2023-01-01 | L7: 2023-01-01 | M7: 2023-01-01 | N7: 2023-01-01 | O7: 2023-01-01 | P7: 2023-01-01 | Q7: 2023-01-01 | R7: 2023-01-01
D8: Construction Period | E8: =INDEX(J8:R8,case_active) -> 11 | F8: Month | J8: 11 | K8: =J8 -> 11 | L8: 14 | M8: 16 | N8: 14 | O8: 14 | P8: 14 | Q8: 14 | R8: 14
D9: Commerical Operation Date | E9: =INDEX(J9:R9,case_active) -> 2023-12-01 | F9: Date | J9: =EDATE(J7,J8) -> 2023-12-01 | K9: =EDATE(K7,K8) -> 2023-12-01 | L9: 2024-03-01 | M9: 2024-05-01 | N9: 2024-03-01 | O9: 2024-03-01 | P9: 2024-03-01 | Q9: 2024-03-01 | R9: 2024-03-01
D10: Operating Life | E10: =INDEX(J10:R10,case_active) -> 35 | F10: Years | J10: 35 | K10: 35 | L10: 35 | M10: 30 | N10: 35 | O10: 35 | P10: 35 | Q10: 35 | R10: 35
D11: Period After Operating Life | E11: =INDEX(J11:R11,case_active) -> 2058-12-01 | F11: Date | J11: =EDATE(J9,J10*Months) -> 2058-12-01 | K11: 2058-12-01 | L11: 2059-03-01 | M11: 2054-05-01 | N11: 2059-03-01 | O11: 2059-03-01 | P11: 2059-03-01 | Q11: 2059-03-01 | R11: 2059-03-01
D13: Months in Period for Semi-Annual | E13: =INDEX(J13:R13,case_active) -> 6 | F13: Months | J13: 6 | K13: 6 | L13: 6 | M13: 6 | N13: 6 | O13: 6 | P13: 6 | Q13: 6 | R13: 6
D14: Months in Period pre-COD | E14: =INDEX(J14:R14,case_active) -> 1 | F14: Months | J14: 1 | K14: 1 | L14: 1 | M14: 1 | N14: 1 | O14: 1 | P14: 1 | Q14: 1 | R14: 1
B16: Solar Plant Details
D17: Capacity of Plant | E17: =INDEX(J17:R17,case_active) -> 132 | F17: MWp | J17: 132 | K17: 132 | L17: 132 | M17: 132 | N17: 132 | O17: 132 | P17: 132 | Q17: 132 | R17: 132
D19: Standard Deviation in Resoruce | J19: 0.1 | K19: 0.1 | L19: 0.1 | M19: 0.1 | N19: 0.1 | O19: 0.1 | P19: 0.1 | Q19: 0.1 | R19: 0.1
D20: Complement of P Value | J20: 0.5 | K20: 0.1 | L20: 0.01 | M20: 0.1 | N20: 0.05 | O20: 0.1 | P20: 0.1 | Q20: 0.1 | R20: 0.1
D22: Annual Yield | E22: =INDEX(J22:R22,case_active) -> 1726.25279 | F22: MWh/MWp | J22: 1980 | K22: =_xlfn.NORM.INV(K20,$J$22,K19*$J$22) -> 1726.25279 | L22: =_xlfn.NORM.INV(L20,$J$22,L19*$J$22) -> 1519.383121 | M22: 1726.25279 | N22: 1654.318982 | O22: 1726.25279 | P22: 1726.25279 | Q22: 1726.25279 | R22: 1726.25279
D24: Plant Availability Code | E24: =INDEX(J24:R24,case_active) -> 0.99 | F24: % | G24: Energy generated to the grid | J24: 0.99 | K24: 0.99 | L24: 0.99 | M24: 0.99 | N24: 0.99 | O24: 0.99 | P24: 0.99 | Q24: 0.99 | R24: 0.99
D25: Degradation Code to InputS | E25: =INDEX(J25:R25,case_active) -> 2 | F25: Code | G25: Solar Cells Degradation | J25: 1 | K25: 2 | L25: 3 | M25: 3 | N25: 1 | O25: 1 | P25: 1 | Q25: 1 | R25: 1
B27: Revenues
D28: PPA Inflation Rate Code to InputS | E28: =INDEX(J28:R28,case_active) -> 2 | F28: % p.a. | G28: On costs and Revenues | J28: 2 | K28: 2 | L28: 3 | M28: 2 | N28: 3 | O28: 2 | P28: 1 | Q28: 2 | R28: 2
D30: PPA Term Contract | E30: =INDEX(J30:R30,case_active) -> 35 | F30: Years | J30: =J10 -> 35 | K30: 35 | L30: 35 | M30: 30 | N30: 35 | O30: 35 | P30: 35 | Q30: 35 | R30: 35
D31: Offtake Amount | E31: =INDEX(J31:R31,case_active) -> 1 | F31: % | G31: Of Total Production | J31: 1 | K31: 1 | L31: 1 | M31: 1 | N31: 1 | O31: 1 | P31: 1 | Q31: 1 | R31: 1
D33: Power Price for Offtake (USD 2021) | E33: =INDEX(J33:R33,case_active) -> 33 | F33: USD/MWh | G33: Real Terms - 2021 | J33: 33 | K33: 33 | L33: 33 | M33: 33 | N33: 33 | O33: 30 | P33: 33 | Q33: 33 | R33: 33
D34: Apply PPA Inflation | E34: =INDEX(J34:R34,case_active) -> 1 | F34: Flag | G34: 1 =Yes; 0 - No | J34: 1 | K34: 1 | L34: 0 | M34: 1 | N34: 0 | O34: 0 | P34: 0 | Q34: 0 | R34: 0
D35: Start Date for PPA Inflation | E35: =INDEX(J35:R35,case_active) -> 2023-12-01 | F35: Date | J35: =J9 -> 2023-12-01 | K35: =K9 -> 2023-12-01 | L35: =L9 -> 2024-03-01 | M35: 2024-05-01 | N35: 2024-03-01 | O35: 2024-03-01 | P35: 2024-03-01 | Q35: 2024-03-01 | R35: 2024-03-01
D37: Revenues Arrear Collection | E37: =INDEX(J37:R37,case_active) -> 2 | F37: Months | G37: Received in Arrears | J37: 2 | K37: 2 | L37: 2 | M37: 2 | N37: 2 | O37: 2 | P37: 2 | Q37: 2 | R37: 2
B39: Operation and Maintenance
D40: Land Lease | E40: =INDEX(J40:R40,case_active) -> 300000 | F40: USD/Yr | G40: Payable Through Construction | J40: 300000 | K40: 300000 | L40: 300000 | M40: 300000 | N40: 300000 | O40: 300000 | P40: 300000 | Q40: 300000 | R40: 300000
D41: Land Lease Infaltion Start | E41: =INDEX(J41:R41,case_active) -> 2023-01-01 | J41: 2023-01-01 | K41: 2023-01-01 | L41: 2023-01-01 | M41: 2023-01-01 | N41: 2023-01-01 | O41: 2023-01-01 | P41: 2023-01-01 | Q41: 2023-01-01 | R41: 2023-01-01
D43: O&M per Year without Inflation - Initial Contract | E43: =INDEX(J43:R43,case_active) -> 9.5 | F43: USD/kWp-yr | G43: Starting OpEx | J43: 9.5 | K43: 9.5 | L43: 9.5 | M43: 9.5 | N43: 9.5 | O43: 9.5 | P43: 9.5 | Q43: 9.5 | R43: 9.5
D44: Initial Period End for O&M | E44: =INDEX(J44:R44,case_active) -> 5 | F44: Years | J44: 5 | K44: 5 | L44: 5 | M44: 5 | N44: 5 | O44: 5 | P44: 5 | Q44: 5 | R44: 5
D45: O&M per Year after Initial Period | E45: =INDEX(J45:R45,case_active) -> 8 | F45: USD/kWp | G45: Due to Economies of Scale | J45: 7.5 | K45: 8 | L45: 8 | M45: 7.5 | N45: 7.5 | O45: 7.5 | P45: 7.5 | Q45: 7.5 | R45: 7.5
D47: Insurance During Operation | E47: =INDEX(J47:R47,case_active) -> 4 | F47: USD/kWp-yr | G47: Yearly Estimate | J47: 4 | K47: 4 | L47: 4 | M47: 4 | N47: 4 | O47: 4 | P47: 4 | Q47: 4 | R47: 4
D49: Operation and Maintenance Payment Arrears | E49: =INDEX(J49:R49,case_active) -> 2 | F49: Months | J49: 2 | K49: 2 | L49: 2 | M49: 2 | N49: 2 | O49: 2 | P49: 2 | Q49: 2 | R49: 2
B51: Capital Expenditures | G51: Paid at Financial Close
D52: EPC Contractor | E52: =INDEX(J52:R52,case_active) -> 900 | F52: USD/kWp | J52: 900 | K52: 900 | L52: 900 | M52: 900 | N52: 900 | O52: 900 | P52: 1200 | Q52: 1000 | R52: 1000
D53: S-curve Code to InputS | E53: =INDEX(J53:R53,case_active) -> 2 | F53: Code | G53: Detailed in Input-S | J53: 1 | K53: 2 | L53: 3 | M53: 3 | N53: 1 | O53: 1 | P53: 1 | Q53: 1 | R53: 1
D54: Developer Fee | E54: =INDEX(J54:R54,case_active) -> 3600000 | F54: USD | G54: Paid to Developer | J54: 3600000 | K54: 3600000 | L54: 3600000 | M54: 3600000 | N54: 3600000 | O54: 3600000 | P54: 3600000 | Q54: 3600000 | R54: 3600000
D55: Period of Developer Bonus | E55: =INDEX(J55:R55,case_active) -> 2023-12-01 | F55: Date | G55: Assume paid in Fin Close (up-front) | J55: =J7 -> 2023-01-01 | K55: =K9 -> 2023-12-01 | L55: =L7 -> 2023-01-01 | M55: =M7 -> 2023-01-01 | N55: 2023-01-01 | O55: 2023-01-01 | P55: 2023-01-01 | Q55: 2023-01-01 | R55: 2023-01-01
B57: Taxes and Capital Allowance
D58: Bonus Depreciation | F58: Percent | J58: 0 | K58: 0 | L58: 0 | M58: 0 | N58: 0 | O58: 0 | P58: 0 | Q58: 0 | R58: 0
D59: Depreciaion Life | E59: =INDEX(J59:R59,case_active) -> 5 | F59: Years | J59: 5 | K59: 5 | L59: 5 | M59: 5 | N59: 5 | O59: 5 | P59: 5 | Q59: 5 | R59: 5
D60: Declining Balance Factor | E60: =INDEX(J60:R60,case_active) -> 2 | F60: Factor | J60: 2 | K60: 2 | L60: 2 | M60: 2 | N60: 2 | O60: 2 | P60: 2 | Q60: 2 | R60: 2
D61: Tax Depreciation Code Number | E61: =INDEX(J61:R61,case_active) -> 1 | F61: Code | J61: 1 | K61: 1 | L61: 2 | M61: 1 | N61: 1 | O61: 2 | P61: 2 | Q61: 2 | R61: 2
D62: Tax Rate | E62: =INDEX(J62:R62,case_active) -> 0.21 | F62: % | J62: 0.21 | K62: 0.21 | L62: 0.21 | M62: 0.21 | N62: 0.21 | O62: 0.21 | P62: 0.21 | Q62: 0.21 | R62: 0.21
B64: Constants
D65: Months in Year | E65: 12 | F65: Months
D66: Inflation Days in Year | E66: 365 | F66: Days Inflation
D67: Semi-Annual Periods | E67: 2 | F67: Semi
D68: Days in 360 Year | E68: 360 | F68: Year 360

Sheet InputC-Financing
E1: Project IRR
E2: Equity IRR
B3: Active Scenario | E3: =case_active -> 2 | J3: Base Case | K3: P90 Debt Size Case | L3: P99 Debt Size Case | M3: Maximum Debt to Capital Case | N3: Stress Case for Credit | O3: P90 and No Inflation | P3: Higher EPC | Q3: Lower PPA | R3: Shareholder Loan
J4: 1 | K4: 2 | L4: 6 | M4: 3 | N4: 4 | O4: 5 | P4: 7 | Q4: 8 | R4: 9
B5: Dates
C6: Financial Close | E6: =INDEX(J6:R6,case_active) -> 2023-01-01 | J6: ='InputC - Operations'!J7 -> 2023-01-01 | K6: ='InputC - Operations'!K7 -> 2023-01-01 | L6: ='InputC - Operations'!L7 -> 2023-01-01 | M6: ='InputC - Operations'!M7 -> 2023-01-01 | N6: ='InputC - Operations'!N7 -> 2023-01-01 | O6: ='InputC - Operations'!O7 -> 2023-01-01 | P6: ='InputC - Operations'!P7 -> 2023-01-01 | Q6: ='InputC - Operations'!Q7 -> 2023-01-01 | R6: ='InputC - Operations'!R7 -> 2023-01-01
C7: Commercial Operation | E7: =INDEX(J7:R7,case_active) -> 2023-12-01 | J7: ='InputC - Operations'!J9 -> 2023-12-01 | K7: ='InputC - Operations'!K9 -> 2023-12-01 | L7: ='InputC - Operations'!L9 -> 2024-03-01 | M7: ='InputC - Operations'!M9 -> 2024-05-01 | N7: ='InputC - Operations'!N9 -> 2024-03-01 | O7: ='InputC - Operations'!O9 -> 2024-03-01 | P7: ='InputC - Operations'!P9 -> 2024-03-01 | Q7: ='InputC - Operations'!Q9 -> 2024-03-01 | R7: ='InputC - Operations'!R9 -> 2024-03-01
B9: Funding
C10: First Repayment Month | E10: =INDEX(J10:R10,case_active) -> 12 | J10: =MONTH(J7) -> 12 | K10: =MONTH(K7) -> 12 | L10: 3 | M10: 5 | N10: 3 | O10: 3 | P10: 3 | Q10: 3 | R10: 3
C11: Second Repayment Month | E11: =INDEX(J11:R11,case_active) -> 6 | J11: =MONTH(EDATE(J7,6)) -> 6 | K11: =MONTH(EDATE(K7,6)) -> 6 | L11: 9 | M11: 11 | N11: 9 | O11: 9 | P11: 9 | Q11: 9 | R11: 9
C13: Senior Debt
D14: Maximum Debt Sizing | E14: =INDEX(J14:R14,case_active) -> 0.8 | F14: % | G14: Tested through DSCR | J14: 0.8 | K14: 0.8 | L14: 0.8 | M14: 0.8 | N14: 0.8 | O14: 0.8 | P14: 0.8 | Q14: 0.8 | R14: 0.8
D15: DSCR Target | E15: =INDEX(J15:R15,case_active) -> 1.3 | J15: 1.3 | K15: 1.3 | L15: 1.3 | M15: 1.3 | N15: 1.3 | O15: 1.3 | P15: 1.3 | Q15: 1.3 | R15: 1.3
D16: Fix Debt Size | E16: =INDEX(J16:R16,case_active) -> FALSE | F16: Flag | J16: TRUE | K16: FALSE | L16: FALSE | M16: TRUE | N16: TRUE | O16: TRUE | P16: TRUE | Q16: TRUE | R16: TRUE
D18: Equity Up-Front Funding | E18: =INDEX(J18:R18,case_active) -> TRUE | F18: Flag | J18: TRUE | K18: TRUE | L18: TRUE | M18: TRUE | N18: TRUE | O18: TRUE | P18: TRUE | Q18: TRUE | R18: TRUE
D19: Pro-Rata Funding | E19: =INDEX(J19:R19,case_active) -> 0 | F19: Flag
D21: Debt Tenor | E21: =INDEX(J21:R21,case_active) -> 25 | F21: Years | J21: 25 | K21: 25 | L21: 25 | M21: 25 | N21: 25 | O21: 25 | P21: 25 | Q21: 25 | R21: 25
D22: End of Debt Repayment | E22: =INDEX(J22:R22,case_active) -> 2048-12-01 | J22: =EDATE(J7,J21*Months) -> 2048-12-01 | K22: 2048-12-01 | L22: 2049-03-01 | M22: 2049-05-01 | N22: 2049-03-01 | O22: 2049-03-01 | P22: 2049-03-01 | Q22: 2049-03-01 | R22: 2049-03-01
D23: Interest and Principal Repayments Timing | E23: =INDEX(J23:R23,case_active) -> 6 | F23: Months | G23: Every 6 Months | J23: 6 | K23: 6 | L23: 6 | M23: 6 | N23: 6 | O23: 6 | P23: 6 | Q23: 6 | R23: 6
D25: Base Interest Rate | E25: =INDEX(J25:R25,case_active) -> 0.035 | F25: % p.a. | G25: Annual Rate | J25: 0.035 | K25: 0.035 | L25: 0.035 | M25: 0.035 | N25: 0.035 | O25: 0.035 | P25: 0.035 | Q25: 0.035 | R25: 0.035
D26: Code for Credit Spread | E26: =INDEX(J26:R26,E3) -> 2 | F26: Code | J26: 2 | K26: 2 | L26: 1 | M26: 1 | N26: 3 | O26: 2 | P26: 1 | Q26: 1 | R26: 1
D27: Up-Front Fee | E27: =INDEX(J27:R27,case_active) -> 0.01 | F27: % | J27: 0.01 | K27: 0.01 | L27: 0.01 | M27: 0.01 | N27: 0.01 | O27: 0.01 | P27: 0.01 | Q27: 0.01 | R27: 0.01
D28: Commitment Fee | E28: =INDEX(J28:R28,case_active) -> 0.007 | F28: % p.a. | J28: 0.007 | K28: 0.007 | L28: 0.007 | M28: 0.007 | N28: 0.007 | O28: 0.007 | P28: 0.007 | Q28: 0.007 | R28: 0.007
D30: DSRA Months | E30: =INDEX(J30:R30,case_active) -> 6 | F30: Months | J30: 6 | K30: 6 | L30: 6 | M30: 6 | N30: 6 | O30: 6 | P30: 6 | Q30: 6 | R30: 6
C32: Fixed Items Copied
D33: Fixed Debt Size
D34: IDC Fixed
D35: Up-front Fee Fixed
D36: Commitment Fee Fixed
D37: DSRA Fixed
C39: Shareholder Loan
D40: Shareholder Loan as Percent of Equity | E40: =INDEX(J40:R40,case_active) -> 0 | J40: 0 | K40: 0 | L40: 0 | M40: 0 | N40: 0 | O40: 0 | P40: 0 | Q40: 0 | R40: 0.9
D41: Shareholder Loan Interest Rate | E41: =INDEX(J41:R41,case_active) -> 0.08 | F41: % p.a. | J41: 0.08 | K41: 0.08 | L41: 0.08 | M41: 0.08 | N41: 0.08 | O41: 0.08 | P41: 0.08 | Q41: 0.08 | R41: 0.08
D42: Capitalise Interest on Shareholder Loan | E42: =INDEX(J42:R42,case_active) -> 0 | F42: 1=yes;0=no
D43: Allow SHL Interest Deduction in Taxes | E43: =INDEX(J43:R43,case_active) -> 0 | F43: 1=yes;0=no
D44: Cash Flow Sweep Percent | E44: =INDEX(J44:R44,case_active) -> 0 | F44: % | J44: =J40 -> 0 | K44: =K40 -> 0 | L44: =L40 -> 0 | M44: =M40 -> 0 | N44: =N40 -> 0 | O44: 0 | P44: 0 | Q44: 0 | R44: 0.9

Sheet InputS
A1: =RIGHT(CELL("filename",A1),LEN(CELL("filename",A1))- SEARCH("]",CELL("filename",A1))) -> InputS
B3: EPC - S-Curve
D5: Construction Period | G5: Month | L5: 1 | M5: 2 | N5: 3 | O5: 4 | P5: 5 | Q5: 6 | R5: 7 | S5: 8 | T5: 9 | U5: 10 | V5: 11 | W5: 12 | X5: 13 | Y5: 14 | Z5: 15 | AA5: 16 | AB5: 17 | AC5: 18 | AD5: 19 | AE5: 20 | AF5: 21 | AG5: 22 | AH5: 23 | AI5: 24
D6: Construction Year | G6: Year | L6: =ROUNDUP(L5/12,0) -> 1 | M6: =ROUNDUP(M5/12,0) -> 1 | N6: 1 | O6: 1 | P6: 1 | Q6: 1 | R6: 1 | S6: 1 | T6: 1 | U6: 1 | V6: 1 | W6: 1 | X6: 2 | Y6: 2 | Z6: 2 | AA6: 2 | AB6: 2 | AC6: 2 | AD6: 2 | AE6: 2 | AF6: 2 | AG6: 2 | AH6: 2 | AI6: 2
D7: Construction Months | G7: Flag | H7: ='InputC - Operations'!E8 -> 11 | L7: =L5<=$H$7 -> TRUE | M7: TRUE | N7: TRUE | O7: TRUE | P7: TRUE | Q7: TRUE | R7: TRUE | S7: TRUE | T7: TRUE | U7: TRUE | V7: TRUE | W7: FALSE | X7: FALSE | Y7: FALSE | Z7: FALSE | AA7: FALSE | AB7: FALSE | AC7: FALSE | AD7: FALSE | AE7: FALSE | AF7: FALSE | AG7: FALSE | AH7: FALSE | AI7: FALSE
D9: S-Curve - Scenario Number | G9: Code | H9: ='InputC - Operations'!E53 -> 2
D11: S-Curve - Base Case | F11: 1 | G11: % | H11: =SUM(L11:BI11) -> 1 | L11: 0.25 | M11: 0.1 | N11: 0 | O11: 0.15 | P11: 0.2 | Q11: 0.3 | R11: 0 | S11: 0 | T11: 0 | U11: 0 | V11: 0 | W11: 0 | X11: 0 | Y11: 0 | Z11: 0 | AA11: 0 | AB11: 0 | AC11: 0 | AD11: 0 | AE11: 0 | AF11: 0 | AG11: 0 | AH11: 0 | AI11: 0
D12: S-Curve - Flat Case | F12: 2 | G12: % | H12: =SUM(L12:BI12) -> 1 | L12: =1/$H$7*L7 -> 0.09090909091 | M12: 0.09090909091 | N12: 0.09090909091 | O12: 0.09090909091 | P12: 0.09090909091 | Q12: 0.09090909091 | R12: 0.09090909091 | S12: 0.09090909091 | T12: 0.09090909091 | U12: 0.09090909091 | V12: 0.09090909091 | W12: 0 | X12: 0 | Y12: 0 | Z12: 0 | AA12: 0 | AB12: 0 | AC12: 0 | AD12: 0 | AE12: 0 | AF12: 0 | AG12: 0 | AH12: 0 | AI12: 0
D13: S-Curve - Front Loaded Case | F13: 3 | G13: % | H13: =SUM(L13:BI13) -> 1 | L13: 0.4 | M13: 0.3 | N13: 0.2 | O13: 0.1 | P13: 0 | Q13: 0 | R13: 0 | S13: 0 | T13: 0 | U13: 0 | V13: 0 | W13: 0 | X13: 0 | Y13: 0 | Z13: 0 | AA13: 0 | AB13: 0 | AC13: 0 | AD13: 0 | AE13: 0 | AF13: 0 | AG13: 0 | AH13: 0 | AI13: 0
D15: =INDEX(D11:D13,$H$9) -> S-Curve - Flat Case | G15: % | H15: =SUM(I15:XFD15) -> 1 | L15: =INDEX(L11:L14,$H$9) -> 0.09090909091 | M15: =INDEX(M11:M14,$H$9) -> 0.09090909091 | N15: =INDEX(N11:N14,$H$9) -> 0.09090909091 | O15: =INDEX(O11:O14,$H$9) -> 0.09090909091 | P15: =INDEX(P11:P14,$H$9) -> 0.09090909091 | Q15: =INDEX(Q11:Q14,$H$9) -> 0.09090909091 | R15: =INDEX(R11:R14,$H$9) -> 0.09090909091 | S15: =INDEX(S11:S14,$H$9) -> 0.09090909091 | T15: =INDEX(T11:T14,$H$9) -> 0.09090909091 | U15: =INDEX(U11:U14,$H$9) -> 0.09090909091 | V15: =INDEX(V11:V14,$H$9) -> 0.09090909091 | W15: =INDEX(W11:W14,$H$9) -> 0 | X15: =INDEX(X11:X14,$H$9) -> 0 | Y15: =INDEX(Y11:Y14,$H$9) -> 0 | Z15: =INDEX(Z11:Z14,$H$9) -> 0 | AA15: =INDEX(AA11:AA14,$H$9) -> 0 | AB15: =INDEX(AB11:AB14,$H$9) -> 0 | AC15: =INDEX(AC11:AC14,$H$9) -> 0 | AD15: =INDEX(AD11:AD14,$H$9) -> 0 | AE15: =INDEX(AE11:AE14,$H$9) -> 0 | AF15: =INDEX(AF11:AF14,$H$9) -> 0 | AG15: =INDEX(AG11:AG14,$H$9) -> 0 | AH15: =INDEX(AH11:AH14,$H$9) -> 0 | AI15: =INDEX(AI11:AI14,$H$9) -> 0
B17: Solar Seasonality
D18: Month Name | K18: 1 | L18: Jan | M18: Feb | N18: March | O18: April | P18: May | Q18: June | R18: July | S18: August | T18: Sept | U18: October | V18: Nov | W18: Dec
D19: Month Number | G19: Counter | L19: 1 | M19: 2 | N19: 3 | O19: 4 | P19: 5 | Q19: 6 | R19: 7 | S19: 8 | T19: 9 | U19: 10 | V19: 11 | W19: 12
D20: Resource Availability | G20: % | H20: =SUM(L20:W20) -> 1 | L20: 0.06666666667 | M20: 0.06666666667 | N20: 0.08 | O20: 0.085 | P20: 0.09 | Q20: 0.12 | R20: 0.12 | S20: 0.09 | T20: 0.08 | U20: 0.07 | V20: 0.065 | W20: 0.06666666667
B22: General Inflation Rate | G22: Code | H22: ='InputC - Operations'!E53 -> 2
D24: Year | L24: 2021 | M24: 2022 | N24: 2023 | O24: 2024 | P24: 2025 | Q24: 2026 | R24: 2027 | S24: 2028 | T24: 2029
D25: Base Case | F25: 1 | G25: % | L25: 0.015 | M25: 0.04 | N25: 0.035 | O25: 0.03 | P25: 0.03 | Q25: 0.03 | R25: 0.03 | S25: 0.03 | T25: 0.03
D26: High Inflation | F26: 2 | G26: % | L26: 0.015 | M26: 0.04 | N26: 0.04 | O26: 0.04 | P26: 0.04 | Q26: 0.04 | R26: 0.04 | S26: 0.04 | T26: 0.04
D27: Low Inflation | F27: 3 | G27: % | L27: 0.015 | M27: 0.04 | N27: 0.02 | O27: 0.02 | P27: 0.015 | Q27: 0.015 | R27: 0.015 | S27: 0.015 | T27: 0.015
D29: =INDEX(D25:D27,$H$22) -> High Inflation | G29: % | L29: =INDEX(L25:L27,$H$22) -> 0.015 | M29: =INDEX(M25:M27,$H$22) -> 0.04 | N29: =INDEX(N25:N27,$H$22) -> 0.04 | O29: =INDEX(O25:O27,$H$22) -> 0.04 | P29: =INDEX(P25:P27,$H$22) -> 0.04 | Q29: =INDEX(Q25:Q27,$H$22) -> 0.04 | R29: =INDEX(R25:R27,$H$22) -> 0.04 | S29: =INDEX(S25:S27,$H$22) -> 0.04 | T29: =INDEX(T25:T27,$H$22) -> 0.04
C31: Degradation Rate | G31: Code | H31: ='InputC - Operations'!E25 -> 2
D33: Age - Annual | G33: Year | K33: 0 | L33: 1 | M33: 2 | N33: 3 | O33: 4 | P33: 5 | Q33: 6 | R33: 7 | S33: 8 | T33: 9 | U33: 10 | V33: 11 | W33: 12
D35: Base Case | F35: 1 | G35: % | L35: 0.0075 | M35: 0.005 | N35: 0.005 | O35: 0.005 | P35: 0.005 | Q35: 0.005 | R35: 0.005 | S35: 0.005 | T35: 0.005 | U35: 0.005 | V35: 0.005 | W35: 0.005
D36: High Degradation | F36: 2 | G36: % | L36: 0.0075 | M36: 0.0075 | N36: 0.0075 | O36: 0.0075 | P36: 0.0075 | Q36: 0.0075 | R36: 0.0075 | S36: 0.0075 | T36: 0.0075 | U36: 0.0075 | V36: 0.0075 | W36: 0.0075
D37: Low Degredation | F37: 3 | G37: % | L37: 0.004 | M37: 0.004 | N37: 0.004 | O37: 0.004 | P37: 0.004 | Q37: 0.004 | R37: 0.004 | S37: 0.004 | T37: 0.004 | U37: 0.004 | V37: 0.004 | W37: 0.004
D39: =INDEX(D35:D37,$H$31) -> High Degradation | G39: % | L39: =INDEX(L35:L37,$H$31) -> 0.0075 | M39: =INDEX(M35:M37,$H$31) -> 0.0075 | N39: =INDEX(N35:N37,$H$31) -> 0.0075 | O39: =INDEX(O35:O37,$H$31) -> 0.0075 | P39: =INDEX(P35:P37,$H$31) -> 0.0075 | Q39: =INDEX(Q35:Q37,$H$31) -> 0.0075 | R39: =INDEX(R35:R37,$H$31) -> 0.0075 | S39: =INDEX(S35:S37,$H$31) -> 0.0075 | T39: =INDEX(T35:T37,$H$31) -> 0.0075 | U39: =INDEX(U35:U37,$H$31) -> 0.0075 | V39: =INDEX(V35:V37,$H$31) -> 0.0075 | W39: =INDEX(W35:W37,$H$31) -> 0.0075
C41: Depreciaion Rate
D43: Life | G43: Years | H43: ='InputC - Operations'!E59 -> 5
D44: Factor | G44: Factor | H44: ='InputC - Operations'!E60 -> 2
D46: Year | L46: 0 | M46: 1 | N46: 2 | O46: 3 | P46: 4 | Q46: 5 | R46: 6 | S46: 7 | T46: 8 | U46: 9 | V46: 10 | W46: 11 | X46: 12 | Y46: 13 | Z46: 14
D47: Annual Depreciation Rate | G47: % | M47: =IFERROR(VDB(1,0,$H$43,L46,M46,$H$44),0) -> 0.4 | N47: =IFERROR(VDB(1,0,$H$43,M46,N46,$H$44),0) -> 0.24 | O47: 0.144 | P47: 0.108 | Q47: 0.108 | R47: 0 | S47: 0 | T47: 0 | U47: 0 | V47: 0 | W47: 0 | X47: 0 | Y47: 0 | Z47: 0
C49: Margin | G49: Code | H49: ='InputC-Financing'!E26 -> 2
D51: Repayment Period | L51: 0 | M51: 1 | N51: 3 | O51: 5 | P51: 7 | Q51: 10
D53: Credit Spread in Term Sheet | F53: 1 | G53: % | L53: 0.015 | M53: 0.0175 | N53: =M53+0.25% -> 0.02 | O53: =N53+0.25% -> 0.0225 | P53: 0.025 | Q53: =P53 -> 0.025
D54: Flat Credit Spread | F54: 2 | G54: % | L54: =L53 -> 0.015 | M54: =M53 -> 0.0175 | N54: =M54 -> 0.0175 | O54: =N54 -> 0.0175 | P54: 0.0175 | Q54: 0.0175
D55: Upside Credit Spread | F55: 3 | G55: % | L55: =L54 -> 0.015 | M55: =M54 -> 0.0175 | N55: 0.015 | O55: 0.015 | P55: 0.015 | Q55: 0.015
D57: =INDEX(D53:D55,$H$49) -> Flat Credit Spread | G57: % | L57: =INDEX(L53:L55,$H$49) -> 0.015 | M57: =INDEX(M53:M55,$H$49) -> 0.0175 | N57: =INDEX(N53:N55,$H$49) -> 0.0175 | O57: =INDEX(O53:O55,$H$49) -> 0.0175 | P57: =INDEX(P53:P55,$H$49) -> 0.0175 | Q57: =INDEX(Q53:Q55,$H$49) -> 0.0175

Sheet Operation Monthly
A1: =MID(CELL("filename"),FIND("]",CELL("filename"),1)+1,250) -> Project Finance Semi-Annual
E2: Constant | F2: Constant | G2: Unit
D3: Period Number | G3: Number | L3: 1 | M3: 2 | N3: 3 | O3: 4 | P3: 5 | Q3: 6 | R3: 7 | S3: 8 | T3: 9 | U3: 10 | V3: 11 | W3: 12 | X3: 13 | Y3: 14 | Z3: 15 | AA3: 16 | AB3: 17 | AC3: 18 | AD3: 19 | AE3: 20 | AF3: 21 | AG3: 22 | AH3: 23 | AI3: 24 | AJ3: 25 | AK3: 26 | AL3: 27 | AM3: 28 | AN3: 29 | AO3: 30 | AP3: 31 | AQ3: 32 | AR3: 33 | AS3: 34 | AT3: 35 | AU3: 36 | AV3: 37 | AW3: 38 | AX3: 39 | AY3: 40 | AZ3: 41 | BA3: 42 | BB3: 43 | BC3: 44 | BD3: 45 | BE3: 46 | BF3: 47 | BG3: 48 | BH3: 49 | BI3: 50 | BJ3: 51 | BK3: 52 | BL3: 53 | BM3: 54 | BN3: 55 | BO3: 56 | BP3: 57 | BQ3: 58 | BR3: 59 | BS3: 60 | BT3: 61 | BU3: 62 | BV3: 63 | BW3: 64 | BX3: 65 | BY3: 66 | BZ3: 67 | CA3: 68 | CB3: 69 | CC3: 70 | CD3: 71 | CE3: 72 | CF3: 73 | CG3: 74 | CH3: 75 | CI3: 76 | CJ3: 77 | CK3: 78 | CL3: 79 | CM3: 80 | CN3: 81 | CO3: 82 | CP3: 83 | CQ3: 84 | CR3: 85 | CS3: 86 | CT3: 87 | CU3: 88 | CV3: 89 | CW3: 90 | CX3: 91 | CY3: 92 | CZ3: 93 | DA3: 94 | DB3: 95 | DC3: 96 | DD3: 97 | DE3: 98 | DF3: 99 | DG3: 100 | DH3: 101 | DI3: 102 | DJ3: 103 | DK3: 104 | DL3: 105 | DM3: 106 | DN3: 107 | DO3: 108 | DP3: 109 | DQ3: 110 | DR3: 111 | DS3: 112 | DT3: 113 | DU3: 114 | DV3: 115 | DW3: 116 | DX3: 117 | DY3: 118 | DZ3: 119 | EA3: 120 | EB3: 121 | EC3: 122 | ED3: 123 | EE3: 124 | EF3: 125 | EG3: 126 | EH3: 127 | EI3: 128 | EJ3: 129 | EK3: 130 | EL3: 131 | EM3: 132 | EN3: 133 | EO3: 134 | EP3: 135 | EQ3: 136 | ER3: 137 | ES3: 138 | ET3: 139 | EU3: 140 | EV3: 141 | EW3: 142 | EX3: 143 | EY3: 144 | EZ3: 145 | FA3: 146 | FB3: 147 | FC3: 148 | FD3: 149 | FE3: 150 | FF3: 151 | FG3: 152 | FH3: 153 | FI3: 154 | FJ3: 155 | FK3: 156 | FL3: 157 | FM3: 158 | FN3: 159 | FO3: 160 | FP3: 161 | FQ3: 162 | FR3: 163 | FS3: 164 | FT3: 165 | FU3: 166 | FV3: 167 | FW3: 168 | FX3: 169 | FY3: 170 | FZ3: 171 | GA3: 172 | GB3: 173 | GC3: 174 | GD3: 175 | GE3: 176 | GF3: 177 | GG3: 178 | GH3: 179 | GI3: 180 | GJ3: 181 | GK3: 182 | GL3: 183 | GM3: 184 | GN3: 185 | GO3: 186 | GP3: 187 | GQ3: 188 | GR3: 189 | GS3: 190 | GT3: 191 | GU3: 192 | GV3: 193 | GW3: 194 | GX3: 195 | GY3: 196 | GZ3: 197 | HA3: 198 | HB3: 199 | HC3: 200 | HD3: 201 | HE3: 202 | HF3: 203 | HG3: 204 | HH3: 205 | HI3: 206 | HJ3: 207 | HK3: 208 | HL3: 209 | HM3: 210 | HN3: 211 | HO3: 212 | HP3: 213 | HQ3: 214 | HR3: 215 | HS3: 216 | HT3: 217 | HU3: 218 | HV3: 219 | HW3: 220 | HX3: 221 | HY3: 222 | HZ3: 223 | IA3: 224 | IB3: 225 | IC3: 226 | ID3: 227 | IE3: 228 | IF3: 229 | IG3: 230 | IH3: 231 | II3: 232 | IJ3: 233 | IK3: 234 | IL3: 235 | IM3: 236 | IN3: 237 | IO3: 238 | IP3: 239 | IQ3: 240 | IR3: 241 | IS3: 242 | IT3: 243 | IU3: 244 | IV3: 245 | IW3: 246 | IX3: 247 | IY3: 248 | IZ3: 249 | JA3: 250 | JB3: 251 | JC3: 252 | JD3: 253 | JE3: 254 | JF3: 255 | JG3: 256 | JH3: 257 | JI3: 258 | JJ3: 259 | JK3: 260 | JL3: 261 | JM3: 262 | JN3: 263 | JO3: 264 | JP3: 265 | JQ3: 266 | JR3: 267 | JS3: 268 | JT3: 269 | JU3: 270 | JV3: 271 | JW3: 272 | JX3: 273 | JY3: 274 | JZ3: 275 | KA3: 276 | KB3: 277 | KC3: 278 | KD3: 279 | KE3: 280 | KF3: 281 | KG3: 282 | KH3: 283 | KI3: 284 | KJ3: 285 | KK3: 286 | KL3: 287 | KM3: 288 | KN3: 289 | KO3: 290 | KP3: 291 | KQ3: 292 | KR3: 293 | KS3: 294 | KT3: 295 | KU3: 296 | KV3: 297 | KW3: 298 | KX3: 299 | KY3: 300 | KZ3: 301 | LA3: 302 | LB3: 303 | LC3: 304 | LD3: 305 | LE3: 306 | LF3: 307 | LG3: 308 | LH3: 309 | LI3: 310 | LJ3: 311 | LK3: 312 | LL3: 313 | LM3: 314 | LN3: 315 | LO3: 316 | LP3: 317 | LQ3: 318 | LR3: 319 | LS3: 320 | LT3: 321 | LU3: 322 | LV3: 323 | LW3: 324 | LX3: 325 | LY3: 326 | LZ3: 327 | MA3: 328 | MB3: 329 | MC3: 330 | MD3: 331 | ME3: 332 | MF3: 333 | MG3: 334 | MH3: 335 | MI3: 336 | MJ3: 337 | MK3: 338 | ML3: 339 | MM3: 340 | MN3: 341 | MO3: 342 | MP3: 343 | MQ3: 344 | MR3: 345 | MS3: 346 | MT3: 347 | MU3: 348 | MV3: 349 | MW3: 350 | MX3: 351 | MY3: 352 | MZ3: 353 | NA3: 354 | NB3: 355 | NC3: 356 | ND3: 357 | NE3: 358 | NF3: 359 | NG3: 360 | NH3: 361 | NI3: 362 | NJ3: 363 | NK3: 364 | NL3: 365 | NM3: 366 | NN3: 367 | NO3: 368 | NP3: 369 | NQ3: 370 | NR3: 371 | NS3: 372 | NT3: 373 | NU3: 374 | NV3: 375 | NW3: 376 | NX3: 377 | NY3: 378 | NZ3: 379 | OA3: 380 | OB3: 381 | OC3: 382 | OD3: 383 | OE3: 384 | OF3: 385 | OG3: 386 | OH3: 387 | OI3: 388 | OJ3: 389 | OK3: 390 | OL3: 391 | OM3: 392 | ON3: 393 | OO3: 394 | OP3: 395 | OQ3: 396 | OR3: 397 | OS3: 398 | OT3: 399 | OU3: 400 | OV3: 401 | OW3: 402 | OX3: 403 | OY3: 404 | OZ3: 405 | PA3: 406 | PB3: 407 | PC3: 408 | PD3: 409 | PE3: 410 | PF3: 411 | PG3: 412 | PH3: 413 | PI3: 414 | PJ3: 415 | PK3: 416 | PL3: 417 | PM3: 418 | PN3: 419 | PO3: 420 | PP3: 421 | PQ3: 422 | PR3: 423 | PS3: 424 | PT3: 425 | PU3: 426 | PV3: 427 | PW3: 428 | PX3: 429 | PY3: 430 | PZ3: 431 | QA3: 432 | QB3: 433 | QC3: 434 | QD3: 435 | QE3: 436 | QF3: 437 | QG3: 438 | QH3: 439 | QI3: 440 | QJ3: 441 | QK3: 442 | QL3: 443 | QM3: 444 | QN3: 445 | QO3: 446 | QP3: 447 | QQ3: 448 | QR3: 449 | QS3: 450 | QT3: 451 | QU3: 452 | QV3: 453 | QW3: 454 | QX3: 455 | QY3: 456 | QZ3: 457 | RA3: 458 | RB3: 459 | RC3: 460 | RD3: 461 | RE3: 462 | RF3: 463 | RG3: 464 | RH3: 465 | RI3: 466 | RJ3: 467 | RK3: 468 | RL3: 469 | RM3: 470 | RN3: 471 | RO3: 472 | RP3: 473 | RQ3: 474 | RR3: 475 | RS3: 476 | RT3: 477 | RU3: 478 | RV3: 479 | RW3: 480 | RX3: 481 | RY3: 482 | RZ3: 483 | SA3: 484 | SB3: 485 | SC3: 486 | SD3: 487 | SE3: 488 | SF3: 489 | SG3: 490 | SH3: 491 | SI3: 492 | SJ3: 493 | SK3: 494 | SL3: 495 | SM3: 496 | SN3: 497 | SO3: 498 | SP3: 499 | SQ3: 500
D4: Start of Period | E4: ='InputC - Operations'!$E$7 -> 2023-01-01 | G4: Date | L4: =K5+1 -> 2023-01-01 | M4: =L5+1 -> 2023-02-01 | N4: 2023-03-01 | O4: 2023-04-01 | P4: 2023-05-01 | Q4: 2023-06-01 | R4: 2023-07-01 | S4: 2023-08-01 | T4: 2023-09-01 | U4: 2023-10-01 | V4: 2023-11-01 | W4: 2023-12-01 | X4: 2024-01-01 | Y4: 2024-02-01 | Z4: 2024-03-01 | AA4: 2024-04-01 | AB4: 2024-05-01 | AC4: 2024-06-01 | AD4: 2024-07-01 | AE4: 2024-08-01 | AF4: 2024-09-01 | AG4: 2024-10-01 | AH4: 2024-11-01 | AI4: 2024-12-01 | AJ4: 2025-01-01 | AK4: 2025-02-01 | AL4: 2025-03-01 | AM4: 2025-04-01 | AN4: 2025-05-01 | AO4: 2025-06-01 | AP4: 2025-07-01 | AQ4: 2025-08-01 | AR4: 2025-09-01 | AS4: 2025-10-01 | AT4: 2025-11-01 | AU4: 2025-12-01 | AV4: 2026-01-01 | AW4: 2026-02-01 | AX4: 2026-03-01 | AY4: 2026-04-01 | AZ4: 2026-05-01 | BA4: 2026-06-01 | BB4: 2026-07-01 | BC4: 2026-08-01 | BD4: 2026-09-01 | BE4: 2026-10-01 | BF4: 2026-11-01 | BG4: 2026-12-01 | BH4: 2027-01-01 | BI4: 2027-02-01 | BJ4: 2027-03-01 | BK4: 2027-04-01 | BL4: 2027-05-01 | BM4: 2027-06-01 | BN4: 2027-07-01 | BO4: 2027-08-01 | BP4: 2027-09-01 | BQ4: 2027-10-01 | BR4: 2027-11-01 | BS4: 2027-12-01 | BT4: 2028-01-01 | BU4: 2028-02-01 | BV4: 2028-03-01 | BW4: 2028-04-01 | BX4: 2028-05-01 | BY4: =BX5+1 -> 2028-06-01 | BZ4: 2028-07-01 | CA4: 2028-08-01 | CB4: 2028-09-01 | CC4: 2028-10-01 | CD4: 2028-11-01 | CE4: 2028-12-01 | CF4: 2029-01-01 | CG4: 2029-02-01 | CH4: 2029-03-01 | CI4: 2029-04-01 | CJ4: 2029-05-01 | CK4: 2029-06-01 | CL4: 2029-07-01 | CM4: 2029-08-01 | CN4: 2029-09-01 | CO4: 2029-10-01 | CP4: 2029-11-01 | CQ4: 2029-12-01 | CR4: 2030-01-01 | CS4: 2030-02-01 | CT4: 2030-03-01 | CU4: 2030-04-01 | CV4: 2030-05-01 | CW4: 2030-06-01 | CX4: 2030-07-01 | CY4: 2030-08-01 | CZ4: 2030-09-01 | DA4: 2030-10-01 | DB4: 2030-11-01 | DC4: 2030-12-01 | DD4: 2031-01-01 | DE4: 2031-02-01 | DF4: 2031-03-01 | DG4: 2031-04-01 | DH4: 2031-05-01 | DI4: 2031-06-01 | DJ4: 2031-07-01 | DK4: 2031-08-01 | DL4: 2031-09-01 | DM4: 2031-10-01 | DN4: 2031-11-01 | DO4: 2031-12-01 | DP4: 2032-01-01 | DQ4: 2032-02-01 | DR4: 2032-03-01 | DS4: 2032-04-01 | DT4: 2032-05-01 | DU4: 2032-06-01 | DV4: 2032-07-01 | DW4: 2032-08-01 | DX4: 2032-09-01 | DY4: 2032-10-01 | DZ4: 2032-11-01 | EA4: 2032-12-01 | EB4: 2033-01-01 | EC4: 2033-02-01 | ED4: 2033-03-01 | EE4: 2033-04-01 | EF4: 2033-05-01 | EG4: 2033-06-01 | EH4: 2033-07-01 | EI4: 2033-08-01 | EJ4: 2033-09-01 | EK4: =EJ5+1 -> 2033-10-01 | EL4: 2033-11-01 | EM4: 2033-12-01 | EN4: 2034-01-01 | EO4: 2034-02-01 | EP4: 2034-03-01 | EQ4: 2034-04-01 | ER4: 2034-05-01 | ES4: 2034-06-01 | ET4: 2034-07-01 | EU4: 2034-08-01 | EV4: 2034-09-01 | EW4: 2034-10-01 | EX4: 2034-11-01 | EY4: 2034-12-01 | EZ4: 2035-01-01 | FA4: 2035-02-01 | FB4: 2035-03-01 | FC4: 2035-04-01 | FD4: 2035-05-01 | FE4: 2035-06-01 | FF4: 2035-07-01 | FG4: 2035-08-01 | FH4: 2035-09-01 | FI4: 2035-10-01 | FJ4: 2035-11-01 | FK4: 2035-12-01 | FL4: 2036-01-01 | FM4: 2036-02-01 | FN4: 2036-03-01 | FO4: 2036-04-01 | FP4: 2036-05-01 | FQ4: 2036-06-01 | FR4: 2036-07-01 | FS4: 2036-08-01 | FT4: 2036-09-01 | FU4: 2036-10-01 | FV4: 2036-11-01 | FW4: 2036-12-01 | FX4: 2037-01-01 | FY4: 2037-02-01 | FZ4: 2037-03-01 | GA4: 2037-04-01 | GB4: 2037-05-01 | GC4: 2037-06-01 | GD4: 2037-07-01 | GE4: 2037-08-01 | GF4: 2037-09-01 | GG4: 2037-10-01 | GH4: 2037-11-01 | GI4: 2037-12-01 | GJ4: 2038-01-01 | GK4: 2038-02-01 | GL4: 2038-03-01 | GM4: 2038-04-01 | GN4: 2038-05-01 | GO4: 2038-06-01 | GP4: 2038-07-01 | GQ4: 2038-08-01 | GR4: 2038-09-01 | GS4: 2038-10-01 | GT4: 2038-11-01 | GU4: 2038-12-01 | GV4: 2039-01-01 | GW4: =GV5+1 -> 2039-02-01 | GX4: 2039-03-01 | GY4: 2039-04-01 | GZ4: 2039-05-01 | HA4: 2039-06-01 | HB4: 2039-07-01 | HC4: 2039-08-01 | HD4: 2039-09-01 | HE4: 2039-10-01 | HF4: 2039-11-01 | HG4: 2039-12-01 | HH4: 2040-01-01 | HI4: 2040-02-01 | HJ4: 2040-03-01 | HK4: 2040-04-01 | HL4: 2040-05-01 | HM4: 2040-06-01 | HN4: 2040-07-01 | HO4: 2040-08-01 | HP4: 2040-09-01 | HQ4: 2040-10-01 | HR4: 2040-11-01 | HS4: 2040-12-01 | HT4: 2041-01-01 | HU4: 2041-02-01 | HV4: 2041-03-01 | HW4: 2041-04-01 | HX4: 2041-05-01 | HY4: 2041-06-01 | HZ4: 2041-07-01 | IA4: 2041-08-01 | IB4: 2041-09-01 | IC4: 2041-10-01 | ID4: 2041-11-01 | IE4: 2041-12-01 | IF4: 2042-01-01 | IG4: 2042-02-01 | IH4: 2042-03-01 | II4: 2042-04-01 | IJ4: 2042-05-01 | IK4: 2042-06-01 | IL4: 2042-07-01 | IM4: 2042-08-01 | IN4: 2042-09-01 | IO4: 2042-10-01 | IP4: 2042-11-01 | IQ4: 2042-12-01 | IR4: 2043-01-01 | IS4: 2043-02-01 | IT4: 2043-03-01 | IU4: 2043-04-01 | IV4: 2043-05-01 | IW4: 2043-06-01 | IX4: 2043-07-01 | IY4: 2043-08-01 | IZ4: 2043-09-01 | JA4: 2043-10-01 | JB4: 2043-11-01 | JC4: 2043-12-01 | JD4: 2044-01-01 | JE4: 2044-02-01 | JF4: 2044-03-01 | JG4: 2044-04-01 | JH4: 2044-05-01 | JI4: =JH5+1 -> 2044-06-01 | JJ4: 2044-07-01 | JK4: 2044-08-01 | JL4: 2044-09-01 | JM4: 2044-10-01 | JN4: 2044-11-01 | JO4: 2044-12-01 | JP4: 2045-01-01 | JQ4: 2045-02-01 | JR4: 2045-03-01 | JS4: 2045-04-01 | JT4: 2045-05-01 | JU4: 2045-06-01 | JV4: 2045-07-01 | JW4: 2045-08-01 | JX4: 2045-09-01 | JY4: 2045-10-01 | JZ4: 2045-11-01 | KA4: 2045-12-01 | KB4: 2046-01-01 | KC4: 2046-02-01 | KD4: 2046-03-01 | KE4: 2046-04-01 | KF4: 2046-05-01 | KG4: 2046-06-01 | KH4: 2046-07-01 | KI4: 2046-08-01 | KJ4: 2046-09-01 | KK4: 2046-10-01 | KL4: 2046-11-01 | KM4: 2046-12-01 | KN4: 2047-01-01 | KO4: 2047-02-01 | KP4: 2047-03-01 | KQ4: 2047-04-01 | KR4: 2047-05-01 | KS4: 2047-06-01 | KT4: 2047-07-01 | KU4: 2047-08-01 | KV4: 2047-09-01 | KW4: 2047-10-01 | KX4: 2047-11-01 | KY4: 2047-12-01 | KZ4: 2048-01-01 | LA4: 2048-02-01 | LB4: 2048-03-01 | LC4: 2048-04-01 | LD4: 2048-05-01 | LE4: 2048-06-01 | LF4: 2048-07-01 | LG4: 2048-08-01 | LH4: 2048-09-01 | LI4: 2048-10-01 | LJ4: 2048-11-01 | LK4: 2048-12-01 | LL4: 2049-01-01 | LM4: 2049-02-01 | LN4: 2049-03-01 | LO4: 2049-04-01 | LP4: 2049-05-01 | LQ4: 2049-06-01 | LR4: 2049-07-01 | LS4: 2049-08-01 | LT4: 2049-09-01 | LU4: =LT5+1 -> 2049-10-01 | LV4: 2049-11-01 | LW4: 2049-12-01 | LX4: 2050-01-01 | LY4: 2050-02-01 | LZ4: 2050-03-01 | MA4: 2050-04-01 | MB4: 2050-05-01 | MC4: 2050-06-01 | MD4: 2050-07-01 | ME4: 2050-08-01 | MF4: 2050-09-01 | MG4: 2050-10-01 | MH4: 2050-11-01 | MI4: 2050-12-01 | MJ4: 2051-01-01 | MK4: 2051-02-01 | ML4: 2051-03-01 | MM4: 2051-04-01 | MN4: 2051-05-01 | MO4: 2051-06-01 | MP4: 2051-07-01 | MQ4: 2051-08-01 | MR4: 2051-09-01 | MS4: 2051-10-01 | MT4: 2051-11-01 | MU4: 2051-12-01 | MV4: 2052-01-01 | MW4: 2052-02-01 | MX4: 2052-03-01 | MY4: 2052-04-01 | MZ4: 2052-05-01 | NA4: 2052-06-01 | NB4: 2052-07-01 | NC4: 2052-08-01 | ND4: 2052-09-01 | NE4: 2052-10-01 | NF4: 2052-11-01 | NG4: 2052-12-01 | NH4: 2053-01-01 | NI4: 2053-02-01 | NJ4: 2053-03-01 | NK4: 2053-04-01 | NL4: 2053-05-01 | NM4: 2053-06-01 | NN4: 2053-07-01 | NO4: 2053-08-01 | NP4: 2053-09-01 | NQ4: 2053-10-01 | NR4: 2053-11-01 | NS4: 2053-12-01 | NT4: 2054-01-01 | NU4: 2054-02-01 | NV4: 2054-03-01 | NW4: 2054-04-01 | NX4: 2054-05-01 | NY4: 2054-06-01 | NZ4: 2054-07-01 | OA4: 2054-08-01 | OB4: 2054-09-01 | OC4: 2054-10-01 | OD4: 2054-11-01 | OE4: 2054-12-01 | OF4: 2055-01-01 | OG4: =OF5+1 -> 2055-02-01 | OH4: 2055-03-01 | OI4: 2055-04-01 | OJ4: 2055-05-01 | OK4: 2055-06-01 | OL4: 2055-07-01 | OM4: 2055-08-01 | ON4: 2055-09-01 | OO4: 2055-10-01 | OP4: 2055-11-01 | OQ4: 2055-12-01 | OR4: 2056-01-01 | OS4: 2056-02-01 | OT4: 2056-03-01 | OU4: 2056-04-01 | OV4: 2056-05-01 | OW4: 2056-06-01 | OX4: 2056-07-01 | OY4: 2056-08-01 | OZ4: 2056-09-01 | PA4: 2056-10-01 | PB4: 2056-11-01 | PC4: 2056-12-01 | PD4: 2057-01-01 | PE4: 2057-02-01 | PF4: 2057-03-01 | PG4: 2057-04-01 | PH4: 2057-05-01 | PI4: 2057-06-01 | PJ4: 2057-07-01 | PK4: 2057-08-01 | PL4: 2057-09-01 | PM4: 2057-10-01 | PN4: 2057-11-01 | PO4: 2057-12-01 | PP4: 2058-01-01 | PQ4: 2058-02-01 | PR4: 2058-03-01 | PS4: 2058-04-01 | PT4: 2058-05-01 | PU4: 2058-06-01 | PV4: 2058-07-01 | PW4: 2058-08-01 | PX4: 2058-09-01 | PY4: 2058-10-01 | PZ4: 2058-11-01 | QA4: 2058-12-01 | QB4: 2059-01-01 | QC4: 2059-02-01 | QD4: 2059-03-01 | QE4: 2059-04-01 | QF4: 2059-05-01 | QG4: 2059-06-01 | QH4: 2059-07-01 | QI4: 2059-08-01 | QJ4: 2059-09-01 | QK4: 2059-10-01 | QL4: 2059-11-01 | QM4: 2059-12-01 | QN4: 2060-01-01 | QO4: 2060-02-01 | QP4: 2060-03-01 | QQ4: 2060-04-01 | QR4: 2060-05-01 | QS4: =QR5+1 -> 2060-06-01 | QT4: 2060-07-01 | QU4: 2060-08-01 | QV4: 2060-09-01 | QW4: 2060-10-01 | QX4: 2060-11-01 | QY4: 2060-12-01 | QZ4: 2061-01-01 | RA4: 2061-02-01 | RB4: 2061-03-01 | RC4: 2061-04-01 | RD4: 2061-05-01 | RE4: 2061-06-01 | RF4: 2061-07-01 | RG4: 2061-08-01 | RH4: 2061-09-01 | RI4: 2061-10-01 | RJ4: 2061-11-01 | RK4: 2061-12-01 | RL4: 2062-01-01 | RM4: 2062-02-01 | RN4: 2062-03-01 | RO4: 2062-04-01 | RP4: 2062-05-01 | RQ4: 2062-06-01 | RR4: 2062-07-01 | RS4: 2062-08-01 | RT4: 2062-09-01 | RU4: 2062-10-01 | RV4: 2062-11-01 | RW4: 2062-12-01 | RX4: 2063-01-01 | RY4: 2063-02-01 | RZ4: 2063-03-01 | SA4: 2063-04-01 | SB4: 2063-05-01 | SC4: 2063-06-01 | SD4: 2063-07-01 | SE4: 2063-08-01 | SF4: 2063-09-01 | SG4: 2063-10-01 | SH4: 2063-11-01 | SI4: 2063-12-01 | SJ4: 2064-01-01 | SK4: 2064-02-01 | SL4: 2064-03-01 | SM4: 2064-04-01 | SN4: 2064-05-01 | SO4: 2064-06-01 | SP4: 2064-07-01 | SQ4: 2064-08-01
D5: End of Period | G5: Date | K5: =E4-1 -> 2022-12-31 | L5: =EDATE(L4,1)-1 -> 2023-01-31 | M5: =EDATE(M4,1)-1 -> 2023-02-28 | N5: 2023-03-31 | O5: 2023-04-30 | P5: 2023-05-31 | Q5: 2023-06-30 | R5: 2023-07-31 | S5: 2023-08-31 | T5: 2023-09-30 | U5: 2023-10-31 | V5: 2023-11-30 | W5: 2023-12-31 | X5: 2024-01-31 | Y5: 2024-02-29 | Z5: 2024-03-31 | AA5: 2024-04-30 | AB5: 2024-05-31 | AC5: 2024-06-30 | AD5: 2024-07-31 | AE5: 2024-08-31 | AF5: 2024-09-30 | AG5: 2024-10-31 | AH5: 2024-11-30 | AI5: 2024-12-31 | AJ5: 2025-01-31 | AK5: 2025-02-28 | AL5: 2025-03-31 | AM5: 2025-04-30 | AN5: 2025-05-31 | AO5: 2025-06-30 | AP5: 2025-07-31 | AQ5: 2025-08-31 | AR5: 2025-09-30 | AS5: 2025-10-31 | AT5: 2025-11-30 | AU5: 2025-12-31 | AV5: 2026-01-31 | AW5: 2026-02-28 | AX5: 2026-03-31 | AY5: 2026-04-30 | AZ5: 2026-05-31 | BA5: 2026-06-30 | BB5: 2026-07-31 | BC5: 2026-08-31 | BD5: 2026-09-30 | BE5: 2026-10-31 | BF5: 2026-11-30 | BG5: 2026-12-31 | BH5: 2027-01-31 | BI5: 2027-02-28 | BJ5: 2027-03-31 | BK5: 2027-04-30 | BL5: 2027-05-31 | BM5: 2027-06-30 | BN5: 2027-07-31 | BO5: 2027-08-31 | BP5: 2027-09-30 | BQ5: 2027-10-31 | BR5: 2027-11-30 | BS5: 2027-12-31 | BT5: 2028-01-31 | BU5: 2028-02-29 | BV5: 2028-03-31 | BW5: 2028-04-30 | BX5: 2028-05-31 | BY5: =EDATE(BY4,1)-1 -> 2028-06-30 | BZ5: 2028-07-31 | CA5: 2028-08-31 | CB5: 2028-09-30 | CC5: 2028-10-31 | CD5: 2028-11-30 | CE5: 2028-12-31 | CF5: 2029-01-31 | CG5: 2029-02-28 | CH5: 2029-03-31 | CI5: 2029-04-30 | CJ5: 2029-05-31 | CK5: 2029-06-30 | CL5: 2029-07-31 | CM5: 2029-08-31 | CN5: 2029-09-30 | CO5: 2029-10-31 | CP5: 2029-11-30 | CQ5: 2029-12-31 | CR5: 2030-01-31 | CS5: 2030-02-28 | CT5: 2030-03-31 | CU5: 2030-04-30 | CV5: 2030-05-31 | CW5: 2030-06-30 | CX5: 2030-07-31 | CY5: 2030-08-31 | CZ5: 2030-09-30 | DA5: 2030-10-31 | DB5: 2030-11-30 | DC5: 2030-12-31 | DD5: 2031-01-31 | DE5: 2031-02-28 | DF5: 2031-03-31 | DG5: 2031-04-30 | DH5: 2031-05-31 | DI5: 2031-06-30 | DJ5: 2031-07-31 | DK5: 2031-08-31 | DL5: 2031-09-30 | DM5: 2031-10-31 | DN5: 2031-11-30 | DO5: 2031-12-31 | DP5: 2032-01-31 | DQ5: 2032-02-29 | DR5: 2032-03-31 | DS5: 2032-04-30 | DT5: 2032-05-31 | DU5: 2032-06-30 | DV5: 2032-07-31 | DW5: 2032-08-31 | DX5: 2032-09-30 | DY5: 2032-10-31 | DZ5: 2032-11-30 | EA5: 2032-12-31 | EB5: 2033-01-31 | EC5: 2033-02-28 | ED5: 2033-03-31 | EE5: 2033-04-30 | EF5: 2033-05-31 | EG5: 2033-06-30 | EH5: 2033-07-31 | EI5: 2033-08-31 | EJ5: 2033-09-30 | EK5: =EDATE(EK4,1)-1 -> 2033-10-31 | EL5: 2033-11-30 | EM5: 2033-12-31 | EN5: 2034-01-31 | EO5: 2034-02-28 | EP5: 2034-03-31 | EQ5: 2034-04-30 | ER5: 2034-05-31 | ES5: 2034-06-30 | ET5: 2034-07-31 | EU5: 2034-08-31 | EV5: 2034-09-30 | EW5: 2034-10-31 | EX5: 2034-11-30 | EY5: 2034-12-31 | EZ5: 2035-01-31 | FA5: 2035-02-28 | FB5: 2035-03-31 | FC5: 2035-04-30 | FD5: 2035-05-31 | FE5: 2035-06-30 | FF5: 2035-07-31 | FG5: 2035-08-31 | FH5: 2035-09-30 | FI5: 2035-10-31 | FJ5: 2035-11-30 | FK5: 2035-12-31 | FL5: 2036-01-31 | FM5: 2036-02-29 | FN5: 2036-03-31 | FO5: 2036-04-30 | FP5: 2036-05-31 | FQ5: 2036-06-30 | FR5: 2036-07-31 | FS5: 2036-08-31 | FT5: 2036-09-30 | FU5: 2036-10-31 | FV5: 2036-11-30 | FW5: 2036-12-31 | FX5: 2037-01-31 | FY5: 2037-02-28 | FZ5: 2037-03-31 | GA5: 2037-04-30 | GB5: 2037-05-31 | GC5: 2037-06-30 | GD5: 2037-07-31 | GE5: 2037-08-31 | GF5: 2037-09-30 | GG5: 2037-10-31 | GH5: 2037-11-30 | GI5: 2037-12-31 | GJ5: 2038-01-31 | GK5: 2038-02-28 | GL5: 2038-03-31 | GM5: 2038-04-30 | GN5: 2038-05-31 | GO5: 2038-06-30 | GP5: 2038-07-31 | GQ5: 2038-08-31 | GR5: 2038-09-30 | GS5: 2038-10-31 | GT5: 2038-11-30 | GU5: 2038-12-31 | GV5: 2039-01-31 | GW5: =EDATE(GW4,1)-1 -> 2039-02-28 | GX5: 2039-03-31 | GY5: 2039-04-30 | GZ5: 2039-05-31 | HA5: 2039-06-30 | HB5: 2039-07-31 | HC5: 2039-08-31 | HD5: 2039-09-30 | HE5: 2039-10-31 | HF5: 2039-11-30 | HG5: 2039-12-31 | HH5: 2040-01-31 | HI5: 2040-02-29 | HJ5: 2040-03-31 | HK5: 2040-04-30 | HL5: 2040-05-31 | HM5: 2040-06-30 | HN5: 2040-07-31 | HO5: 2040-08-31 | HP5: 2040-09-30 | HQ5: 2040-10-31 | HR5: 2040-11-30 | HS5: 2040-12-31 | HT5: 2041-01-31 | HU5: 2041-02-28 | HV5: 2041-03-31 | HW5: 2041-04-30 | HX5: 2041-05-31 | HY5: 2041-06-30 | HZ5: 2041-07-31 | IA5: 2041-08-31 | IB5: 2041-09-30 | IC5: 2041-10-31 | ID5: 2041-11-30 | IE5: 2041-12-31 | IF5: 2042-01-31 | IG5: 2042-02-28 | IH5: 2042-03-31 | II5: 2042-04-30 | IJ5: 2042-05-31 | IK5: 2042-06-30 | IL5: 2042-07-31 | IM5: 2042-08-31 | IN5: 2042-09-30 | IO5: 2042-10-31 | IP5: 2042-11-30 | IQ5: 2042-12-31 | IR5: 2043-01-31 | IS5: 2043-02-28 | IT5: 2043-03-31 | IU5: 2043-04-30 | IV5: 2043-05-31 | IW5: 2043-06-30 | IX5: 2043-07-31 | IY5: 2043-08-31 | IZ5: 2043-09-30 | JA5: 2043-10-31 | JB5: 2043-11-30 | JC5: 2043-12-31 | JD5: 2044-01-31 | JE5: 2044-02-29 | JF5: 2044-03-31 | JG5: 2044-04-30 | JH5: 2044-05-31 | JI5: =EDATE(JI4,1)-1 -> 2044-06-30 | JJ5: 2044-07-31 | JK5: 2044-08-31 | JL5: 2044-09-30 | JM5: 2044-10-31 | JN5: 2044-11-30 | JO5: 2044-12-31 | JP5: 2045-01-31 | JQ5: 2045-02-28 | JR5: 2045-03-31 | JS5: 2045-04-30 | JT5: 2045-05-31 | JU5: 2045-06-30 | JV5: 2045-07-31 | JW5: 2045-08-31 | JX5: 2045-09-30 | JY5: 2045-10-31 | JZ5: 2045-11-30 | KA5: 2045-12-31 | KB5: 2046-01-31 | KC5: 2046-02-28 | KD5: 2046-03-31 | KE5: 2046-04-30 | KF5: 2046-05-31 | KG5: 2046-06-30 | KH5: 2046-07-31 | KI5: 2046-08-31 | KJ5: 2046-09-30 | KK5: 2046-10-31 | KL5: 2046-11-30 | KM5: 2046-12-31 | KN5: 2047-01-31 | KO5: 2047-02-28 | KP5: 2047-03-31 | KQ5: 2047-04-30 | KR5: 2047-05-31 | KS5: 2047-06-30 | KT5: 2047-07-31 | KU5: 2047-08-31 | KV5: 2047-09-30 | KW5: 2047-10-31 | KX5: 2047-11-30 | KY5: 2047-12-31 | KZ5: 2048-01-31 | LA5: 2048-02-29 | LB5: 2048-03-31 | LC5: 2048-04-30 | LD5: 2048-05-31 | LE5: 2048-06-30 | LF5: 2048-07-31 | LG5: 2048-08-31 | LH5: 2048-09-30 | LI5: 2048-10-31 | LJ5: 2048-11-30 | LK5: 2048-12-31 | LL5: 2049-01-31 | LM5: 2049-02-28 | LN5: 2049-03-31 | LO5: 2049-04-30 | LP5: 2049-05-31 | LQ5: 2049-06-30 | LR5: 2049-07-31 | LS5: 2049-08-31 | LT5: 2049-09-30 | LU5: =EDATE(LU4,1)-1 -> 2049-10-31 | LV5: 2049-11-30 | LW5: 2049-12-31 | LX5: 2050-01-31 | LY5: 2050-02-28 | LZ5: 2050-03-31 | MA5: 2050-04-30 | MB5: 2050-05-31 | MC5: 2050-06-30 | MD5: 2050-07-31 | ME5: 2050-08-31 | MF5: 2050-09-30 | MG5: 2050-10-31 | MH5: 2050-11-30 | MI5: 2050-12-31 | MJ5: 2051-01-31 | MK5: 2051-02-28 | ML5: 2051-03-31 | MM5: 2051-04-30 | MN5: 2051-05-31 | MO5: 2051-06-30 | MP5: 2051-07-31 | MQ5: 2051-08-31 | MR5: 2051-09-30 | MS5: 2051-10-31 | MT5: 2051-11-30 | MU5: 2051-12-31 | MV5: 2052-01-31 | MW5: 2052-02-29 | MX5: 2052-03-31 | MY5: 2052-04-30 | MZ5: 2052-05-31 | NA5: 2052-06-30 | NB5: 2052-07-31 | NC5: 2052-08-31 | ND5: 2052-09-30 | NE5: 2052-10-31 | NF5: 2052-11-30 | NG5: 2052-12-31 | NH5: 2053-01-31 | NI5: 2053-02-28 | NJ5: 2053-03-31 | NK5: 2053-04-30 | NL5: 2053-05-31 | NM5: 2053-06-30 | NN5: 2053-07-31 | NO5: 2053-08-31 | NP5: 2053-09-30 | NQ5: 2053-10-31 | NR5: 2053-11-30 | NS5: 2053-12-31 | NT5: 2054-01-31 | NU5: 2054-02-28 | NV5: 2054-03-31 | NW5: 2054-04-30 | NX5: 2054-05-31 | NY5: 2054-06-30 | NZ5: 2054-07-31 | OA5: 2054-08-31 | OB5: 2054-09-30 | OC5: 2054-10-31 | OD5: 2054-11-30 | OE5: 2054-12-31 | OF5: 2055-01-31 | OG5: =EDATE(OG4,1)-1 -> 2055-02-28 | OH5: 2055-03-31 | OI5: 2055-04-30 | OJ5: 2055-05-31 | OK5: 2055-06-30 | OL5: 2055-07-31 | OM5: 2055-08-31 | ON5: 2055-09-30 | OO5: 2055-10-31 | OP5: 2055-11-30 | OQ5: 2055-12-31 | OR5: 2056-01-31 | OS5: 2056-02-29 | OT5: 2056-03-31 | OU5: 2056-04-30 | OV5: 2056-05-31 | OW5: 2056-06-30 | OX5: 2056-07-31 | OY5: 2056-08-31 | OZ5: 2056-09-30 | PA5: 2056-10-31 | PB5: 2056-11-30 | PC5: 2056-12-31 | PD5: 2057-01-31 | PE5: 2057-02-28 | PF5: 2057-03-31 | PG5: 2057-04-30 | PH5: 2057-05-31 | PI5: 2057-06-30 | PJ5: 2057-07-31 | PK5: 2057-08-31 | PL5: 2057-09-30 | PM5: 2057-10-31 | PN5: 2057-11-30 | PO5: 2057-12-31 | PP5: 2058-01-31 | PQ5: 2058-02-28 | PR5: 2058-03-31 | PS5: 2058-04-30 | PT5: 2058-05-31 | PU5: 2058-06-30 | PV5: 2058-07-31 | PW5: 2058-08-31 | PX5: 2058-09-30 | PY5: 2058-10-31 | PZ5: 2058-11-30 | QA5: 2058-12-31 | QB5: 2059-01-31 | QC5: 2059-02-28 | QD5: 2059-03-31 | QE5: 2059-04-30 | QF5: 2059-05-31 | QG5: 2059-06-30 | QH5: 2059-07-31 | QI5: 2059-08-31 | QJ5: 2059-09-30 | QK5: 2059-10-31 | QL5: 2059-11-30 | QM5: 2059-12-31 | QN5: 2060-01-31 | QO5: 2060-02-29 | QP5: 2060-03-31 | QQ5: 2060-04-30 | QR5: 2060-05-31 | QS5: =EDATE(QS4,1)-1 -> 2060-06-30 | QT5: 2060-07-31 | QU5: 2060-08-31 | QV5: 2060-09-30 | QW5: 2060-10-31 | QX5: 2060-11-30 | QY5: 2060-12-31 | QZ5: 2061-01-31 | RA5: 2061-02-28 | RB5: 2061-03-31 | RC5: 2061-04-30 | RD5: 2061-05-31 | RE5: 2061-06-30 | RF5: 2061-07-31 | RG5: 2061-08-31 | RH5: 2061-09-30 | RI5: 2061-10-31 | RJ5: 2061-11-30 | RK5: 2061-12-31 | RL5: 2062-01-31 | RM5: 2062-02-28 | RN5: 2062-03-31 | RO5: 2062-04-30 | RP5: 2062-05-31 | RQ5: 2062-06-30 | RR5: 2062-07-31 | RS5: 2062-08-31 | RT5: 2062-09-30 | RU5: 2062-10-31 | RV5: 2062-11-30 | RW5: 2062-12-31 | RX5: 2063-01-31 | RY5: 2063-02-28 | RZ5: 2063-03-31 | SA5: 2063-04-30 | SB5: 2063-05-31 | SC5: 2063-06-30 | SD5: 2063-07-31 | SE5: 2063-08-31 | SF5: 2063-09-30 | SG5: 2063-10-31 | SH5: 2063-11-30 | SI5: 2063-12-31 | SJ5: 2064-01-31 | SK5: 2064-02-29 | SL5: 2064-03-31 | SM5: 2064-04-30 | SN5: 2064-05-31 | SO5: 2064-06-30 | SP5: 2064-07-31 | SQ5: 2064-08-31
D6: Pre-COD Flag | E6: ='InputC - Operations'!$E$9 -> 2023-12-01 | G6: Flag | L6: =L4<$E$6 -> TRUE | M6: TRUE | N6: TRUE | O6: TRUE | P6: TRUE | Q6: TRUE | R6: TRUE | S6: TRUE | T6: TRUE | U6: TRUE | V6: TRUE | W6: FALSE | X6: FALSE | Y6: FALSE | Z6: FALSE | AA6: FALSE | AB6: FALSE | AC6: FALSE | AD6: FALSE | AE6: FALSE | AF6: FALSE | AG6: FALSE | AH6: FALSE | AI6: FALSE | AJ6: FALSE | AK6: FALSE | AL6: FALSE | AM6: FALSE | AN6: FALSE | AO6: FALSE | AP6: FALSE | AQ6: FALSE | AR6: FALSE | AS6: FALSE | AT6: FALSE | AU6: FALSE | AV6: FALSE | AW6: FALSE | AX6: FALSE | AY6: FALSE | AZ6: FALSE | BA6: FALSE | BB6: FALSE | BC6: FALSE | BD6: FALSE | BE6: FALSE | BF6: FALSE | BG6: FALSE | BH6: FALSE | BI6: FALSE | BJ6: FALSE | BK6: FALSE | BL6: FALSE | BM6: FALSE | BN6: FALSE | BO6: FALSE | BP6: FALSE | BQ6: FALSE | BR6: FALSE | BS6: FALSE | BT6: FALSE | BU6: FALSE | BV6: FALSE | BW6: FALSE | BX6: =BX4<$E$6 -> FALSE | BY6: FALSE | BZ6: FALSE | CA6: FALSE | CB6: FALSE | CC6: FALSE | CD6: FALSE | CE6: FALSE | CF6: FALSE | CG6: FALSE | CH6: FALSE | CI6: FALSE | CJ6: FALSE | CK6: FALSE | CL6: FALSE | CM6: FALSE | CN6: FALSE | CO6: FALSE | CP6: FALSE | CQ6: FALSE | CR6: FALSE | CS6: FALSE | CT6: FALSE | CU6: FALSE | CV6: FALSE | CW6: FALSE | CX6: FALSE | CY6: FALSE | CZ6: FALSE | DA6: FALSE | DB6: FALSE | DC6: FALSE | DD6: FALSE | DE6: FALSE | DF6: FALSE | DG6: FALSE | DH6: FALSE | DI6: FALSE | DJ6: FALSE | DK6: FALSE | DL6: FALSE | DM6: FALSE | DN6: FALSE | DO6: FALSE | DP6: FALSE | DQ6: FALSE | DR6: FALSE | DS6: FALSE | DT6: FALSE | DU6: FALSE | DV6: FALSE | DW6: FALSE | DX6: FALSE | DY6: FALSE | DZ6: FALSE | EA6: FALSE | EB6: FALSE | EC6: FALSE | ED6: FALSE | EE6: FALSE | EF6: FALSE | EG6: FALSE | EH6: FALSE | EI6: FALSE | EJ6: =EJ4<$E$6 -> FALSE | EK6: FALSE | EL6: FALSE | EM6: FALSE | EN6: FALSE | EO6: FALSE | EP6: FALSE | EQ6: FALSE | ER6: FALSE | ES6: FALSE | ET6: FALSE | EU6: FALSE | EV6: FALSE | EW6: FALSE | EX6: FALSE | EY6: FALSE | EZ6: FALSE | FA6: FALSE | FB6: FALSE | FC6: FALSE | FD6: FALSE | FE6: FALSE | FF6: FALSE | FG6: FALSE | FH6: FALSE | FI6: FALSE | FJ6: FALSE | FK6: FALSE | FL6: FALSE | FM6: FALSE | FN6: FALSE | FO6: FALSE | FP6: FALSE | FQ6: FALSE | FR6: FALSE | FS6: FALSE | FT6: FALSE | FU6: FALSE | FV6: FALSE | FW6: FALSE | FX6: FALSE | FY6: FALSE | FZ6: FALSE | GA6: FALSE | GB6: FALSE | GC6: FALSE | GD6: FALSE | GE6: FALSE | GF6: FALSE | GG6: FALSE | GH6: FALSE | GI6: FALSE | GJ6: FALSE | GK6: FALSE | GL6: FALSE | GM6: FALSE | GN6: FALSE | GO6: FALSE | GP6: FALSE | GQ6: FALSE | GR6: FALSE | GS6: FALSE | GT6: FALSE | GU6: FALSE | GV6: =GV4<$E$6 -> FALSE | GW6: FALSE | GX6: FALSE | GY6: FALSE | GZ6: FALSE | HA6: FALSE | HB6: FALSE | HC6: FALSE | HD6: FALSE | HE6: FALSE | HF6: FALSE | HG6: FALSE | HH6: FALSE | HI6: FALSE | HJ6: FALSE | HK6: FALSE | HL6: FALSE | HM6: FALSE | HN6: FALSE | HO6: FALSE | HP6: FALSE | HQ6: FALSE | HR6: FALSE | HS6: FALSE | HT6: FALSE | HU6: FALSE | HV6: FALSE | HW6: FALSE | HX6: FALSE | HY6: FALSE | HZ6: FALSE | IA6: FALSE | IB6: FALSE | IC6: FALSE | ID6: FALSE | IE6: FALSE | IF6: FALSE | IG6: FALSE | IH6: FALSE | II6: FALSE | IJ6: FALSE | IK6: FALSE | IL6: FALSE | IM6: FALSE | IN6: FALSE | IO6: FALSE | IP6: FALSE | IQ6: FALSE | IR6: FALSE | IS6: FALSE | IT6: FALSE | IU6: FALSE | IV6: FALSE | IW6: FALSE | IX6: FALSE | IY6: FALSE | IZ6: FALSE | JA6: FALSE | JB6: FALSE | JC6: FALSE | JD6: FALSE | JE6: FALSE | JF6: FALSE | JG6: FALSE | JH6: =JH4<$E$6 -> FALSE | JI6: FALSE | JJ6: FALSE | JK6: FALSE | JL6: FALSE | JM6: FALSE | JN6: FALSE | JO6: FALSE | JP6: FALSE | JQ6: FALSE | JR6: FALSE | JS6: FALSE | JT6: FALSE | JU6: FALSE | JV6: FALSE | JW6: FALSE | JX6: FALSE | JY6: FALSE | JZ6: FALSE | KA6: FALSE | KB6: FALSE | KC6: FALSE | KD6: FALSE | KE6: FALSE | KF6: FALSE | KG6: FALSE | KH6: FALSE | KI6: FALSE | KJ6: FALSE | KK6: FALSE | KL6: FALSE | KM6: FALSE | KN6: FALSE | KO6: FALSE | KP6: FALSE | KQ6: FALSE | KR6: FALSE | KS6: FALSE | KT6: FALSE | KU6: FALSE | KV6: FALSE | KW6: FALSE | KX6: FALSE | KY6: FALSE | KZ6: FALSE | LA6: FALSE | LB6: FALSE | LC6: FALSE | LD6: FALSE | LE6: FALSE | LF6: FALSE | LG6: FALSE | LH6: FALSE | LI6: FALSE | LJ6: FALSE | LK6: FALSE | LL6: FALSE | LM6: FALSE | LN6: FALSE | LO6: FALSE | LP6: FALSE | LQ6: FALSE | LR6: FALSE | LS6: FALSE | LT6: =LT4<$E$6 -> FALSE | LU6: FALSE | LV6: FALSE | LW6: FALSE | LX6: FALSE | LY6: FALSE | LZ6: FALSE | MA6: FALSE | MB6: FALSE | MC6: FALSE | MD6: FALSE | ME6: FALSE | MF6: FALSE | MG6: FALSE | MH6: FALSE | MI6: FALSE | MJ6: FALSE | MK6: FALSE | ML6: FALSE | MM6: FALSE | MN6: FALSE | MO6: FALSE | MP6: FALSE | MQ6: FALSE | MR6: FALSE | MS6: FALSE | MT6: FALSE | MU6: FALSE | MV6: FALSE | MW6: FALSE | MX6: FALSE | MY6: FALSE | MZ6: FALSE | NA6: FALSE | NB6: FALSE | NC6: FALSE | ND6: FALSE | NE6: FALSE | NF6: FALSE | NG6: FALSE | NH6: FALSE | NI6: FALSE | NJ6: FALSE | NK6: FALSE | NL6: FALSE | NM6: FALSE | NN6: FALSE | NO6: FALSE | NP6: FALSE | NQ6: FALSE | NR6: FALSE | NS6: FALSE | NT6: FALSE | NU6: FALSE | NV6: FALSE | NW6: FALSE | NX6: FALSE | NY6: FALSE | NZ6: FALSE | OA6: FALSE | OB6: FALSE | OC6: FALSE | OD6: FALSE | OE6: FALSE | OF6: =OF4<$E$6 -> FALSE | OG6: FALSE | OH6: FALSE | OI6: FALSE | OJ6: FALSE | OK6: FALSE | OL6: FALSE | OM6: FALSE | ON6: FALSE | OO6: FALSE | OP6: FALSE | OQ6: FALSE | OR6: FALSE | OS6: FALSE | OT6: FALSE | OU6: FALSE | OV6: FALSE | OW6: FALSE | OX6: FALSE | OY6: FALSE | OZ6: FALSE | PA6: FALSE | PB6: FALSE | PC6: FALSE | PD6: FALSE | PE6: FALSE | PF6: FALSE | PG6: FALSE | PH6: FALSE | PI6: FALSE | PJ6: FALSE | PK6: FALSE | PL6: FALSE | PM6: FALSE | PN6: FALSE | PO6: FALSE | PP6: FALSE | PQ6: FALSE | PR6: FALSE | PS6: FALSE | PT6: FALSE | PU6: FALSE | PV6: FALSE | PW6: FALSE | PX6: FALSE | PY6: FALSE | PZ6: FALSE | QA6: FALSE | QB6: FALSE | QC6: FALSE | QD6: FALSE | QE6: FALSE | QF6: FALSE | QG6: FALSE | QH6: FALSE | QI6: FALSE | QJ6: FALSE | QK6: FALSE | QL6: FALSE | QM6: FALSE | QN6: FALSE | QO6: FALSE | QP6: FALSE | QQ6: FALSE | QR6: =QR4<$E$6 -> FALSE | QS6: FALSE | QT6: FALSE | QU6: FALSE | QV6: FALSE | QW6: FALSE | QX6: FALSE | QY6: FALSE | QZ6: FALSE | RA6: FALSE | RB6: FALSE | RC6: FALSE | RD6: FALSE | RE6: FALSE | RF6: FALSE | RG6: FALSE | RH6: FALSE | RI6: FALSE | RJ6: FALSE | RK6: FALSE | RL6: FALSE | RM6: FALSE | RN6: FALSE | RO6: FALSE | RP6: FALSE | RQ6: FALSE | RR6: FALSE | RS6: FALSE | RT6: FALSE | RU6: FALSE | RV6: FALSE | RW6: FALSE | RX6: FALSE | RY6: FALSE | RZ6: FALSE | SA6: FALSE | SB6: FALSE | SC6: FALSE | SD6: FALSE | SE6: FALSE | SF6: FALSE | SG6: FALSE | SH6: FALSE | SI6: FALSE | SJ6: FALSE | SK6: FALSE | SL6: FALSE | SM6: FALSE | SN6: FALSE | SO6: FALSE | SP6: FALSE | SQ6: FALSE
D7: Operations Flag | E7: ='InputC - Operations'!$E$9 -> 2023-12-01 | F7: ='InputC - Operations'!$E$11 -> 2058-12-01 | G7: Flag | L7: =AND(L4>=$E$7,L4<$F$7) -> FALSE | M7: FALSE | N7: FALSE | O7: FALSE | P7: FALSE | Q7: FALSE | R7: FALSE | S7: FALSE | T7: FALSE | U7: FALSE | V7: FALSE | W7: TRUE | X7: TRUE | Y7: TRUE | Z7: TRUE | AA7: TRUE | AB7: TRUE | AC7: TRUE | AD7: TRUE | AE7: TRUE | AF7: TRUE | AG7: TRUE | AH7: TRUE | AI7: TRUE | AJ7: TRUE | AK7: TRUE | AL7: TRUE | AM7: TRUE | AN7: TRUE | AO7: TRUE | AP7: TRUE | AQ7: TRUE | AR7: TRUE | AS7: TRUE | AT7: TRUE | AU7: TRUE | AV7: TRUE | AW7: TRUE | AX7: TRUE | AY7: TRUE | AZ7: TRUE | BA7: TRUE | BB7: TRUE | BC7: TRUE | BD7: TRUE | BE7: TRUE | BF7: TRUE | BG7: TRUE | BH7: TRUE | BI7: TRUE | BJ7: TRUE | BK7: TRUE | BL7: TRUE | BM7: TRUE | BN7: TRUE | BO7: TRUE | BP7: TRUE | BQ7: TRUE | BR7: TRUE | BS7: TRUE | BT7: TRUE | BU7: TRUE | BV7: TRUE | BW7: TRUE | BX7: =AND(BX4>=$E$7,BX4<$F$7) -> TRUE | BY7: TRUE | BZ7: TRUE | CA7: TRUE | CB7: TRUE | CC7: TRUE | CD7: TRUE | CE7: TRUE | CF7: TRUE | CG7: TRUE | CH7: TRUE | CI7: TRUE | CJ7: TRUE | CK7: TRUE | CL7: TRUE | CM7: TRUE | CN7: TRUE | CO7: TRUE | CP7: TRUE | CQ7: TRUE | CR7: TRUE | CS7: TRUE | CT7: TRUE | CU7: TRUE | CV7: TRUE | CW7: TRUE | CX7: TRUE | CY7: TRUE | CZ7: TRUE | DA7: TRUE | DB7: TRUE | DC7: TRUE | DD7: TRUE | DE7: TRUE | DF7: TRUE | DG7: TRUE | DH7: TRUE | DI7: TRUE | DJ7: TRUE | DK7: TRUE | DL7: TRUE | DM7: TRUE | DN7: TRUE | DO7: TRUE | DP7: TRUE | DQ7: TRUE | DR7: TRUE | DS7: TRUE | DT7: TRUE | DU7: TRUE | DV7: TRUE | DW7: TRUE | DX7: TRUE | DY7: TRUE | DZ7: TRUE | EA7: TRUE | EB7: TRUE | EC7: TRUE | ED7: TRUE | EE7: TRUE | EF7: TRUE | EG7: TRUE | EH7: TRUE | EI7: TRUE | EJ7: =AND(EJ4>=$E$7,EJ4<$F$7) -> TRUE | EK7: TRUE | EL7: TRUE | EM7: TRUE | EN7: TRUE | EO7: TRUE | EP7: TRUE | EQ7: TRUE | ER7: TRUE | ES7: TRUE | ET7: TRUE | EU7: TRUE | EV7: TRUE | EW7: TRUE | EX7: TRUE | EY7: TRUE | EZ7: TRUE | FA7: TRUE | FB7: TRUE | FC7: TRUE | FD7: TRUE | FE7: TRUE | FF7: TRUE | FG7: TRUE | FH7: TRUE | FI7: TRUE | FJ7: TRUE | FK7: TRUE | FL7: TRUE | FM7: TRUE | FN7: TRUE | FO7: TRUE | FP7: TRUE | FQ7: TRUE | FR7: TRUE | FS7: TRUE | FT7: TRUE | FU7: TRUE | FV7: TRUE | FW7: TRUE | FX7: TRUE | FY7: TRUE | FZ7: TRUE | GA7: TRUE | GB7: TRUE | GC7: TRUE | GD7: TRUE | GE7: TRUE | GF7: TRUE | GG7: TRUE | GH7: TRUE | GI7: TRUE | GJ7: TRUE | GK7: TRUE | GL7: TRUE | GM7: TRUE | GN7: TRUE | GO7: TRUE | GP7: TRUE | GQ7: TRUE | GR7: TRUE | GS7: TRUE | GT7: TRUE | GU7: TRUE | GV7: =AND(GV4>=$E$7,GV4<$F$7) -> TRUE | GW7: TRUE | GX7: TRUE | GY7: TRUE | GZ7: TRUE | HA7: TRUE | HB7: TRUE | HC7: TRUE | HD7: TRUE | HE7: TRUE | HF7: TRUE | HG7: TRUE | HH7: TRUE | HI7: TRUE | HJ7: TRUE | HK7: TRUE | HL7: TRUE | HM7: TRUE | HN7: TRUE | HO7: TRUE | HP7: TRUE | HQ7: TRUE | HR7: TRUE | HS7: TRUE | HT7: TRUE | HU7: TRUE | HV7: TRUE | HW7: TRUE | HX7: TRUE | HY7: TRUE | HZ7: TRUE | IA7: TRUE | IB7: TRUE | IC7: TRUE | ID7: TRUE | IE7: TRUE | IF7: TRUE | IG7: TRUE | IH7: TRUE | II7: TRUE | IJ7: TRUE | IK7: TRUE | IL7: TRUE | IM7: TRUE | IN7: TRUE | IO7: TRUE | IP7: TRUE | IQ7: TRUE | IR7: TRUE | IS7: TRUE | IT7: TRUE | IU7: TRUE | IV7: TRUE | IW7: TRUE | IX7: TRUE | IY7: TRUE | IZ7: TRUE | JA7: TRUE | JB7: TRUE | JC7: TRUE | JD7: TRUE | JE7: TRUE | JF7: TRUE | JG7: TRUE | JH7: =AND(JH4>=$E$7,JH4<$F$7) -> TRUE | JI7: TRUE | JJ7: TRUE | JK7: TRUE | JL7: TRUE | JM7: TRUE | JN7: TRUE | JO7: TRUE | JP7: TRUE | JQ7: TRUE | JR7: TRUE | JS7: TRUE | JT7: TRUE | JU7: TRUE | JV7: TRUE | JW7: TRUE | JX7: TRUE | JY7: TRUE | JZ7: TRUE | KA7: TRUE | KB7: TRUE | KC7: TRUE | KD7: TRUE | KE7: TRUE | KF7: TRUE | KG7: TRUE | KH7: TRUE | KI7: TRUE | KJ7: TRUE | KK7: TRUE | KL7: TRUE | KM7: TRUE | KN7: TRUE | KO7: TRUE | KP7: TRUE | KQ7: TRUE | KR7: TRUE | KS7: TRUE | KT7: TRUE | KU7: TRUE | KV7: TRUE | KW7: TRUE | KX7: TRUE | KY7: TRUE | KZ7: TRUE | LA7: TRUE | LB7: TRUE | LC7: TRUE | LD7: TRUE | LE7: TRUE | LF7: TRUE | LG7: TRUE | LH7: TRUE | LI7: TRUE | LJ7: TRUE | LK7: TRUE | LL7: TRUE | LM7: TRUE | LN7: TRUE | LO7: TRUE | LP7: TRUE | LQ7: TRUE | LR7: TRUE | LS7: TRUE | LT7: =AND(LT4>=$E$7,LT4<$F$7) -> TRUE | LU7: TRUE | LV7: TRUE | LW7: TRUE | LX7: TRUE | LY7: TRUE | LZ7: TRUE | MA7: TRUE | MB7: TRUE | MC7: TRUE | MD7: TRUE | ME7: TRUE | MF7: TRUE | MG7: TRUE | MH7: TRUE | MI7: TRUE | MJ7: TRUE | MK7: TRUE | ML7: TRUE | MM7: TRUE | MN7: TRUE | MO7: TRUE | MP7: TRUE | MQ7: TRUE | MR7: TRUE | MS7: TRUE | MT7: TRUE | MU7: TRUE | MV7: TRUE | MW7: TRUE | MX7: TRUE | MY7: TRUE | MZ7: TRUE | NA7: TRUE | NB7: TRUE | NC7: TRUE | ND7: TRUE | NE7: TRUE | NF7: TRUE | NG7: TRUE | NH7: TRUE | NI7: TRUE | NJ7: TRUE | NK7: TRUE | NL7: TRUE | NM7: TRUE | NN7: TRUE | NO7: TRUE | NP7: TRUE | NQ7: TRUE | NR7: TRUE | NS7: TRUE | NT7: TRUE | NU7: TRUE | NV7: TRUE | NW7: TRUE | NX7: TRUE | NY7: TRUE | NZ7: TRUE | OA7: TRUE | OB7: TRUE | OC7: TRUE | OD7: TRUE | OE7: TRUE | OF7: =AND(OF4>=$E$7,OF4<$F$7) -> TRUE | OG7: TRUE | OH7: TRUE | OI7: TRUE | OJ7: TRUE | OK7: TRUE | OL7: TRUE | OM7: TRUE | ON7: TRUE | OO7: TRUE | OP7: TRUE | OQ7: TRUE | OR7: TRUE | OS7: TRUE | OT7: TRUE | OU7: TRUE | OV7: TRUE | OW7: TRUE | OX7: TRUE | OY7: TRUE | OZ7: TRUE | PA7: TRUE | PB7: TRUE | PC7: TRUE | PD7: TRUE | PE7: TRUE | PF7: TRUE | PG7: TRUE | PH7: TRUE | PI7: TRUE | PJ7: TRUE | PK7: TRUE | PL7: TRUE | PM7: TRUE | PN7: TRUE | PO7: TRUE | PP7: TRUE | PQ7: TRUE | PR7: TRUE | PS7: TRUE | PT7: TRUE | PU7: TRUE | PV7: TRUE | PW7: TRUE | PX7: TRUE | PY7: TRUE | PZ7: TRUE | QA7: FALSE | QB7: FALSE | QC7: FALSE | QD7: FALSE | QE7: FALSE | QF7: FALSE | QG7: FALSE | QH7: FALSE | QI7: FALSE | QJ7: FALSE | QK7: FALSE | QL7: FALSE | QM7: FALSE | QN7: FALSE | QO7: FALSE | QP7: FALSE | QQ7: FALSE | QR7: =AND(QR4>=$E$7,QR4<$F$7) -> FALSE | QS7: FALSE | QT7: FALSE | QU7: FALSE | QV7: FALSE | QW7: FALSE | QX7: FALSE | QY7: FALSE | QZ7: FALSE | RA7: FALSE | RB7: FALSE | RC7: FALSE | RD7: FALSE | RE7: FALSE | RF7: FALSE | RG7: FALSE | RH7: FALSE | RI7: FALSE | RJ7: FALSE | RK7: FALSE | RL7: FALSE | RM7: FALSE | RN7: FALSE | RO7: FALSE | RP7: FALSE | RQ7: FALSE | RR7: FALSE | RS7: FALSE | RT7: FALSE | RU7: FALSE | RV7: FALSE | RW7: FALSE | RX7: FALSE | RY7: FALSE | RZ7: FALSE | SA7: FALSE | SB7: FALSE | SC7: FALSE | SD7: FALSE | SE7: FALSE | SF7: FALSE | SG7: FALSE | SH7: FALSE | SI7: FALSE | SJ7: FALSE | SK7: FALSE | SL7: FALSE | SM7: FALSE | SN7: FALSE | SO7: FALSE | SP7: FALSE | SQ7: FALSE
D8: Year | G8: Year | L8: =YEAR(L4) -> 2023 | M8: =YEAR(M4) -> 2023 | N8: 2023 | O8: 2023 | P8: 2023 | Q8: 2023 | R8: 2023 | S8: 2023 | T8: 2023 | U8: 2023 | V8: 2023 | W8: 2023 | X8: 2024 | Y8: 2024 | Z8: 2024 | AA8: 2024 | AB8: 2024 | AC8: 2024 | AD8: 2024 | AE8: 2024 | AF8: 2024 | AG8: 2024 | AH8: 2024 | AI8: 2024 | AJ8: 2025 | AK8: 2025 | AL8: 2025 | AM8: 2025 | AN8: 2025 | AO8: 2025 | AP8: 2025 | AQ8: 2025 | AR8: 2025 | AS8: 2025 | AT8: 2025 | AU8: 2025 | AV8: 2026 | AW8: 2026 | AX8: 2026 | AY8: 2026 | AZ8: 2026 | BA8: 2026 | BB8: 2026 | BC8: 2026 | BD8: 2026 | BE8: 2026 | BF8: 2026 | BG8: 2026 | BH8: 2027 | BI8: 2027 | BJ8: 2027 | BK8: 2027 | BL8: 2027 | BM8: 2027 | BN8: 2027 | BO8: 2027 | BP8: 2027 | BQ8: 2027 | BR8: 2027 | BS8: 2027 | BT8: 2028 | BU8: 2028 | BV8: 2028 | BW8: 2028 | BX8: 2028 | BY8: =YEAR(BY4) -> 2028 | BZ8: 2028 | CA8: 2028 | CB8: 2028 | CC8: 2028 | CD8: 2028 | CE8: 2028 | CF8: 2029 | CG8: 2029 | CH8: 2029 | CI8: 2029 | CJ8: 2029 | CK8: 2029 | CL8: 2029 | CM8: 2029 | CN8: 2029 | CO8: 2029 | CP8: 2029 | CQ8: 2029 | CR8: 2030 | CS8: 2030 | CT8: 2030 | CU8: 2030 | CV8: 2030 | CW8: 2030 | CX8: 2030 | CY8: 2030 | CZ8: 2030 | DA8: 2030 | DB8: 2030 | DC8: 2030 | DD8: 2031 | DE8: 2031 | DF8: 2031 | DG8: 2031 | DH8: 2031 | DI8: 2031 | DJ8: 2031 | DK8: 2031 | DL8: 2031 | DM8: 2031 | DN8: 2031 | DO8: 2031 | DP8: 2032 | DQ8: 2032 | DR8: 2032 | DS8: 2032 | DT8: 2032 | DU8: 2032 | DV8: 2032 | DW8: 2032 | DX8: 2032 | DY8: 2032 | DZ8: 2032 | EA8: 2032 | EB8: 2033 | EC8: 2033 | ED8: 2033 | EE8: 2033 | EF8: 2033 | EG8: 2033 | EH8: 2033 | EI8: 2033 | EJ8: 2033 | EK8: =YEAR(EK4) -> 2033 | EL8: 2033 | EM8: 2033 | EN8: 2034 | EO8: 2034 | EP8: 2034 | EQ8: 2034 | ER8: 2034 | ES8: 2034 | ET8: 2034 | EU8: 2034 | EV8: 2034 | EW8: 2034 | EX8: 2034 | EY8: 2034 | EZ8: 2035 | FA8: 2035 | FB8: 2035 | FC8: 2035 | FD8: 2035 | FE8: 2035 | FF8: 2035 | FG8: 2035 | FH8: 2035 | FI8: 2035 | FJ8: 2035 | FK8: 2035 | FL8: 2036 | FM8: 2036 | FN8: 2036 | FO8: 2036 | FP8: 2036 | FQ8: 2036 | FR8: 2036 | FS8: 2036 | FT8: 2036 | FU8: 2036 | FV8: 2036 | FW8: 2036 | FX8: 2037 | FY8: 2037 | FZ8: 2037 | GA8: 2037 | GB8: 2037 | GC8: 2037 | GD8: 2037 | GE8: 2037 | GF8: 2037 | GG8: 2037 | GH8: 2037 | GI8: 2037 | GJ8: 2038 | GK8: 2038 | GL8: 2038 | GM8: 2038 | GN8: 2038 | GO8: 2038 | GP8: 2038 | GQ8: 2038 | GR8: 2038 | GS8: 2038 | GT8: 2038 | GU8: 2038 | GV8: 2039 | GW8: =YEAR(GW4) -> 2039 | GX8: 2039 | GY8: 2039 | GZ8: 2039 | HA8: 2039 | HB8: 2039 | HC8: 2039 | HD8: 2039 | HE8: 2039 | HF8: 2039 | HG8: 2039 | HH8: 2040 | HI8: 2040 | HJ8: 2040 | HK8: 2040 | HL8: 2040 | HM8: 2040 | HN8: 2040 | HO8: 2040 | HP8: 2040 | HQ8: 2040 | HR8: 2040 | HS8: 2040 | HT8: 2041 | HU8: 2041 | HV8: 2041 | HW8: 2041 | HX8: 2041 | HY8: 2041 | HZ8: 2041 | IA8: 2041 | IB8: 2041 | IC8: 2041 | ID8: 2041 | IE8: 2041 | IF8: 2042 | IG8: 2042 | IH8: 2042 | II8: 2042 | IJ8: 2042 | IK8: 2042 | IL8: 2042 | IM8: 2042 | IN8: 2042 | IO8: 2042 | IP8: 2042 | IQ8: 2042 | IR8: 2043 | IS8: 2043 | IT8: 2043 | IU8: 2043 | IV8: 2043 | IW8: 2043 | IX8: 2043 | IY8: 2043 | IZ8: 2043 | JA8: 2043 | JB8: 2043 | JC8: 2043 | JD8: 2044 | JE8: 2044 | JF8: 2044 | JG8: 2044 | JH8: 2044 | JI8: =YEAR(JI4) -> 2044 | JJ8: 2044 | JK8: 2044 | JL8: 2044 | JM8: 2044 | JN8: 2044 | JO8: 2044 | JP8: 2045 | JQ8: 2045 | JR8: 2045 | JS8: 2045 | JT8: 2045 | JU8: 2045 | JV8: 2045 | JW8: 2045 | JX8: 2045 | JY8: 2045 | JZ8: 2045 | KA8: 2045 | KB8: 2046 | KC8: 2046 | KD8: 2046 | KE8: 2046 | KF8: 2046 | KG8: 2046 | KH8: 2046 | KI8: 2046 | KJ8: 2046 | KK8: 2046 | KL8: 2046 | KM8: 2046 | KN8: 2047 | KO8: 2047 | KP8: 2047 | KQ8: 2047 | KR8: 2047 | KS8: 2047 | KT8: 2047 | KU8: 2047 | KV8: 2047 | KW8: 2047 | KX8: 2047 | KY8: 2047 | KZ8: 2048 | LA8: 2048 | LB8: 2048 | LC8: 2048 | LD8: 2048 | LE8: 2048 | LF8: 2048 | LG8: 2048 | LH8: 2048 | LI8: 2048 | LJ8: 2048 | LK8: 2048 | LL8: 2049 | LM8: 2049 | LN8: 2049 | LO8: 2049 | LP8: 2049 | LQ8: 2049 | LR8: 2049 | LS8: 2049 | LT8: 2049 | LU8: =YEAR(LU4) -> 2049 | LV8: 2049 | LW8: 2049 | LX8: 2050 | LY8: 2050 | LZ8: 2050 | MA8: 2050 | MB8: 2050 | MC8: 2050 | MD8: 2050 | ME8: 2050 | MF8: 2050 | MG8: 2050 | MH8: 2050 | MI8: 2050 | MJ8: 2051 | MK8: 2051 | ML8: 2051 | MM8: 2051 | MN8: 2051 | MO8: 2051 | MP8: 2051 | MQ8: 2051 | MR8: 2051 | MS8: 2051 | MT8: 2051 | MU8: 2051 | MV8: 2052 | MW8: 2052 | MX8: 2052 | MY8: 2052 | MZ8: 2052 | NA8: 2052 | NB8: 2052 | NC8: 2052 | ND8: 2052 | NE8: 2052 | NF8: 2052 | NG8: 2052 | NH8: 2053 | NI8: 2053 | NJ8: 2053 | NK8: 2053 | NL8: 2053 | NM8: 2053 | NN8: 2053 | NO8: 2053 | NP8: 2053 | NQ8: 2053 | NR8: 2053 | NS8: 2053 | NT8: 2054 | NU8: 2054 | NV8: 2054 | NW8: 2054 | NX8: 2054 | NY8: 2054 | NZ8: 2054 | OA8: 2054 | OB8: 2054 | OC8: 2054 | OD8: 2054 | OE8: 2054 | OF8: 2055 | OG8: =YEAR(OG4) -> 2055 | OH8: 2055 | OI8: 2055 | OJ8: 2055 | OK8: 2055 | OL8: 2055 | OM8: 2055 | ON8: 2055 | OO8: 2055 | OP8: 2055 | OQ8: 2055 | OR8: 2056 | OS8: 2056 | OT8: 2056 | OU8: 2056 | OV8: 2056 | OW8: 2056 | OX8: 2056 | OY8: 2056 | OZ8: 2056 | PA8: 2056 | PB8: 2056 | PC8: 2056 | PD8: 2057 | PE8: 2057 | PF8: 2057 | PG8: 2057 | PH8: 2057 | PI8: 2057 | PJ8: 2057 | PK8: 2057 | PL8: 2057 | PM8: 2057 | PN8: 2057 | PO8: 2057 | PP8: 2058 | PQ8: 2058 | PR8: 2058 | PS8: 2058 | PT8: 2058 | PU8: 2058 | PV8: 2058 | PW8: 2058 | PX8: 2058 | PY8: 2058 | PZ8: 2058 | QA8: 2058 | QB8: 2059 | QC8: 2059 | QD8: 2059 | QE8: 2059 | QF8: 2059 | QG8: 2059 | QH8: 2059 | QI8: 2059 | QJ8: 2059 | QK8: 2059 | QL8: 2059 | QM8: 2059 | QN8: 2060 | QO8: 2060 | QP8: 2060 | QQ8: 2060 | QR8: 2060 | QS8: =YEAR(QS4) -> 2060 | QT8: 2060 | QU8: 2060 | QV8: 2060 | QW8: 2060 | QX8: 2060 | QY8: 2060 | QZ8: 2061 | RA8: 2061 | RB8: 2061 | RC8: 2061 | RD8: 2061 | RE8: 2061 | RF8: 2061 | RG8: 2061 | RH8: 2061 | RI8: 2061 | RJ8: 2061 | RK8: 2061 | RL8: 2062 | RM8: 2062 | RN8: 2062 | RO8: 2062 | RP8: 2062 | RQ8: 2062 | RR8: 2062 | RS8: 2062 | RT8: 2062 | RU8: 2062 | RV8: 2062 | RW8: 2062 | RX8: 2063 | RY8: 2063 | RZ8: 2063 | SA8: 2063 | SB8: 2063 | SC8: 2063 | SD8: 2063 | SE8: 2063 | SF8: 2063 | SG8: 2063 | SH8: 2063 | SI8: 2063 | SJ8: 2064 | SK8: 2064 | SL8: 2064 | SM8: 2064 | SN8: 2064 | SO8: 2064 | SP8: 2064 | SQ8: 2064
B10: Monthly and Semi-Annual Date for Financing
D11: Counter from COD | G11: Counter | L11: =K11+L7 -> 0 | M11: =L11+M7 -> 0 | N11: 0 | O11: 0 | P11: 0 | Q11: 0 | R11: 0 | S11: 0 | T11: 0 | U11: 0 | V11: 0 | W11: 1 | X11: 2 | Y11: 3 | Z11: 4 | AA11: 5 | AB11: 6 | AC11: 7 | AD11: 8 | AE11: 9 | AF11: 10 | AG11: 11 | AH11: 12 | AI11: 13 | AJ11: 14 | AK11: 15 | AL11: 16 | AM11: 17 | AN11: 18 | AO11: 19 | AP11: 20 | AQ11: 21 | AR11: 22 | AS11: 23 | AT11: 24 | AU11: 25 | AV11: 26 | AW11: 27 | AX11: 28 | AY11: 29 | AZ11: 30 | BA11: 31 | BB11: 32 | BC11: 33 | BD11: 34 | BE11: 35 | BF11: 36 | BG11: 37 | BH11: 38 | BI11: 39 | BJ11: 40 | BK11: 41 | BL11: 42 | BM11: 43 | BN11: 44 | BO11: 45 | BP11: 46 | BQ11: 47 | BR11: 48 | BS11: 49 | BT11: 50 | BU11: 51 | BV11: 52 | BW11: 53 | BX11: 54 | BY11: =BX11+BY7 -> 55 | BZ11: 56 | CA11: 57 | CB11: 58 | CC11: 59 | CD11: 60 | CE11: 61 | CF11: 62 | CG11: 63 | CH11: 64 | CI11: 65 | CJ11: 66 | CK11: 67 | CL11: 68 | CM11: 69 | CN11: 70 | CO11: 71 | CP11: 72 | CQ11: 73 | CR11: 74 | CS11: 75 | CT11: 76 | CU11: 77 | CV11: 78 | CW11: 79 | CX11: 80 | CY11: 81 | CZ11: 82 | DA11: 83 | DB11: 84 | DC11: 85 | DD11: 86 | DE11: 87 | DF11: 88 | DG11: 89 | DH11: 90 | DI11: 91 | DJ11: 92 | DK11: 93 | DL11: 94 | DM11: 95 | DN11: 96 | DO11: 97 | DP11: 98 | DQ11: 99 | DR11: 100 | DS11: 101 | DT11: 102 | DU11: 103 | DV11: 104 | DW11: 105 | DX11: 106 | DY11: 107 | DZ11: 108 | EA11: 109 | EB11: 110 | EC11: 111 | ED11: 112 | EE11: 113 | EF11: 114 | EG11: 115 | EH11: 116 | EI11: 117 | EJ11: 118 | EK11: =EJ11+EK7 -> 119 | EL11: 120 | EM11: 121 | EN11: 122 | EO11: 123 | EP11: 124 | EQ11: 125 | ER11: 126 | ES11: 127 | ET11: 128 | EU11: 129 | EV11: 130 | EW11: 131 | EX11: 132 | EY11: 133 | EZ11: 134 | FA11: 135 | FB11: 136 | FC11: 137 | FD11: 138 | FE11: 139 | FF11: 140 | FG11: 141 | FH11: 142 | FI11: 143 | FJ11: 144 | FK11: 145 | FL11: 146 | FM11: 147 | FN11: 148 | FO11: 149 | FP11: 150 | FQ11: 151 | FR11: 152 | FS11: 153 | FT11: 154 | FU11: 155 | FV11: 156 | FW11: 157 | FX11: 158 | FY11: 159 | FZ11: 160 | GA11: 161 | GB11: 162 | GC11: 163 | GD11: 164 | GE11: 165 | GF11: 166 | GG11: 167 | GH11: 168 | GI11: 169 | GJ11: 170 | GK11: 171 | GL11: 172 | GM11: 173 | GN11: 174 | GO11: 175 | GP11: 176 | GQ11: 177 | GR11: 178 | GS11: 179 | GT11: 180 | GU11: 181 | GV11: 182 | GW11: =GV11+GW7 -> 183 | GX11: 184 | GY11: 185 | GZ11: 186 | HA11: 187 | HB11: 188 | HC11: 189 | HD11: 190 | HE11: 191 | HF11: 192 | HG11: 193 | HH11: 194 | HI11: 195 | HJ11: 196 | HK11: 197 | HL11: 198 | HM11: 199 | HN11: 200 | HO11: 201 | HP11: 202 | HQ11: 203 | HR11: 204 | HS11: 205 | HT11: 206 | HU11: 207 | HV11: 208 | HW11: 209 | HX11: 210 | HY11: 211 | HZ11: 212 | IA11: 213 | IB11: 214 | IC11: 215 | ID11: 216 | IE11: 217 | IF11: 218 | IG11: 219 | IH11: 220 | II11: 221 | IJ11: 222 | IK11: 223 | IL11: 224 | IM11: 225 | IN11: 226 | IO11: 227 | IP11: 228 | IQ11: 229 | IR11: 230 | IS11: 231 | IT11: 232 | IU11: 233 | IV11: 234 | IW11: 235 | IX11: 236 | IY11: 237 | IZ11: 238 | JA11: 239 | JB11: 240 | JC11: 241 | JD11: 242 | JE11: 243 | JF11: 244 | JG11: 245 | JH11: 246 | JI11: =JH11+JI7 -> 247 | JJ11: 248 | JK11: 249 | JL11: 250 | JM11: 251 | JN11: 252 | JO11: 253 | JP11: 254 | JQ11: 255 | JR11: 256 | JS11: 257 | JT11: 258 | JU11: 259 | JV11: 260 | JW11: 261 | JX11: 262 | JY11: 263 | JZ11: 264 | KA11: 265 | KB11: 266 | KC11: 267 | KD11: 268 | KE11: 269 | KF11: 270 | KG11: 271 | KH11: 272 | KI11: 273 | KJ11: 274 | KK11: 275 | KL11: 276 | KM11: 277 | KN11: 278 | KO11: 279 | KP11: 280 | KQ11: 281 | KR11: 282 | KS11: 283 | KT11: 284 | KU11: 285 | KV11: 286 | KW11: 287 | KX11: 288 | KY11: 289 | KZ11: 290 | LA11: 291 | LB11: 292 | LC11: 293 | LD11: 294 | LE11: 295 | LF11: 296 | LG11: 297 | LH11: 298 | LI11: 299 | LJ11: 300 | LK11: 301 | LL11: 302 | LM11: 303 | LN11: 304 | LO11: 305 | LP11: 306 | LQ11: 307 | LR11: 308 | LS11: 309 | LT11: 310 | LU11: =LT11+LU7 -> 311 | LV11: 312 | LW11: 313 | LX11: 314 | LY11: 315 | LZ11: 316 | MA11: 317 | MB11: 318 | MC11: 319 | MD11: 320 | ME11: 321 | MF11: 322 | MG11: 323 | MH11: 324 | MI11: 325 | MJ11: 326 | MK11: 327 | ML11: 328 | MM11: 329 | MN11: 330 | MO11: 331 | MP11: 332 | MQ11: 333 | MR11: 334 | MS11: 335 | MT11: 336 | MU11: 337 | MV11: 338 | MW11: 339 | MX11: 340 | MY11: 341 | MZ11: 342 | NA11: 343 | NB11: 344 | NC11: 345 | ND11: 346 | NE11: 347 | NF11: 348 | NG11: 349 | NH11: 350 | NI11: 351 | NJ11: 352 | NK11: 353 | NL11: 354 | NM11: 355 | NN11: 356 | NO11: 357 | NP11: 358 | NQ11: 359 | NR11: 360 | NS11: 361 | NT11: 362 | NU11: 363 | NV11: 364 | NW11: 365 | NX11: 366 | NY11: 367 | NZ11: 368 | OA11: 369 | OB11: 370 | OC11: 371 | OD11: 372 | OE11: 373 | OF11: 374 | OG11: =OF11+OG7 -> 375 | OH11: 376 | OI11: 377 | OJ11: 378 | OK11: 379 | OL11: 380 | OM11: 381 | ON11: 382 | OO11: 383 | OP11: 384 | OQ11: 385 | OR11: 386 | OS11: 387 | OT11: 388 | OU11: 389 | OV11: 390 | OW11: 391 | OX11: 392 | OY11: 393 | OZ11: 394 | PA11: 395 | PB11: 396 | PC11: 397 | PD11: 398 | PE11: 399 | PF11: 400 | PG11: 401 | PH11: 402 | PI11: 403 | PJ11: 404 | PK11: 405 | PL11: 406 | PM11: 407 | PN11: 408 | PO11: 409 | PP11: 410 | PQ11: 411 | PR11: 412 | PS11: 413 | PT11: 414 | PU11: 415 | PV11: 416 | PW11: 417 | PX11: 418 | PY11: 419 | PZ11: 420 | QA11: 420 | QB11: 420 | QC11: 420 | QD11: 420 | QE11: 420 | QF11: 420 | QG11: 420 | QH11: 420 | QI11: 420 | QJ11: 420 | QK11: 420 | QL11: 420 | QM11: 420 | QN11: 420 | QO11: 420 | QP11: 420 | QQ11: 420 | QR11: 420 | QS11: =QR11+QS7 -> 420 | QT11: 420 | QU11: 420 | QV11: 420 | QW11: 420 | QX11: 420 | QY11: 420 | QZ11: 420 | RA11: 420 | RB11: 420 | RC11: 420 | RD11: 420 | RE11: 420 | RF11: 420 | RG11: 420 | RH11: 420 | RI11: 420 | RJ11: 420 | RK11: 420 | RL11: 420 | RM11: 420 | RN11: 420 | RO11: 420 | RP11: 420 | RQ11: 420 | RR11: 420 | RS11: 420 | RT11: 420 | RU11: 420 | RV11: 420 | RW11: 420 | RX11: 420 | RY11: 420 | RZ11: 420 | SA11: 420 | SB11: 420 | SC11: 420 | SD11: 420 | SE11: 420 | SF11: 420 | SG11: 420 | SH11: 420 | SI11: 420 | SJ11: 420 | SK11: 420 | SL11: 420 | SM11: 420 | SN11: 420 | SO11: 420 | SP11: 420 | SQ11: 420
D12: Flag for Semi Annual Period | E12: ='InputC-Financing'!E10 -> 12 | F12: ='InputC-Financing'!E11 -> 6 | G12: Flag | H12: Months --> | L12: =OR(MONTH(L4)=$E$12,MONTH(L4)=$F$12)*L7 -> 0 | M12: 0 | N12: 0 | O12: 0 | P12: 0 | Q12: 0 | R12: 0 | S12: 0 | T12: 0 | U12: 0 | V12: 0 | W12: 1 | X12: 0 | Y12: 0 | Z12: 0 | AA12: 0 | AB12: 0 | AC12: 1 | AD12: 0 | AE12: 0 | AF12: 0 | AG12: 0 | AH12: 0 | AI12: 1 | AJ12: 0 | AK12: 0 | AL12: 0 | AM12: 0 | AN12: 0 | AO12: 1 | AP12: 0 | AQ12: 0 | AR12: 0 | AS12: 0 | AT12: 0 | AU12: 1 | AV12: 0 | AW12: 0 | AX12: 0 | AY12: 0 | AZ12: 0 | BA12: 1 | BB12: 0 | BC12: 0 | BD12: 0 | BE12: 0 | BF12: 0 | BG12: 1 | BH12: 0 | BI12: 0 | BJ12: 0 | BK12: 0 | BL12: 0 | BM12: 1 | BN12: 0 | BO12: 0 | BP12: 0 | BQ12: 0 | BR12: 0 | BS12: 1 | BT12: 0 | BU12: 0 | BV12: 0 | BW12: 0 | BX12: =OR(MONTH(BX4)=$E$12,MONTH(BX4)=$F$12)*BX7 -> 0 | BY12: 1 | BZ12: 0 | CA12: 0 | CB12: 0 | CC12: 0 | CD12: 0 | CE12: 1 | CF12: 0 | CG12: 0 | CH12: 0 | CI12: 0 | CJ12: 0 | CK12: 1 | CL12: 0 | CM12: 0 | CN12: 0 | CO12: 0 | CP12: 0 | CQ12: 1 | CR12: 0 | CS12: 0 | CT12: 0 | CU12: 0 | CV12: 0 | CW12: 1 | CX12: 0 | CY12: 0 | CZ12: 0 | DA12: 0 | DB12: 0 | DC12: 1 | DD12: 0 | DE12: 0 | DF12: 0 | DG12: 0 | DH12: 0 | DI12: 1 | DJ12: 0 | DK12: 0 | DL12: 0 | DM12: 0 | DN12: 0 | DO12: 1 | DP12: 0 | DQ12: 0 | DR12: 0 | DS12: 0 | DT12: 0 | DU12: 1 | DV12: 0 | DW12: 0 | DX12: 0 | DY12: 0 | DZ12: 0 | EA12: 1 | EB12: 0 | EC12: 0 | ED12: 0 | EE12: 0 | EF12: 0 | EG12: 1 | EH12: 0 | EI12: 0 | EJ12: =OR(MONTH(EJ4)=$E$12,MONTH(EJ4)=$F$12)*EJ7 -> 0 | EK12: 0 | EL12: 0 | EM12: 1 | EN12: 0 | EO12: 0 | EP12: 0 | EQ12: 0 | ER12: 0 | ES12: 1 | ET12: 0 | EU12: 0 | EV12: 0 | EW12: 0 | EX12: 0 | EY12: 1 | EZ12: 0 | FA12: 0 | FB12: 0 | FC12: 0 | FD12: 0 | FE12: 1 | FF12: 0 | FG12: 0 | FH12: 0 | FI12: 0 | FJ12: 0 | FK12: 1 | FL12: 0 | FM12: 0 | FN12: 0 | FO12: 0 | FP12: 0 | FQ12: 1 | FR12: 0 | FS12: 0 | FT12: 0 | FU12: 0 | FV12: 0 | FW12: 1 | FX12: 0 | FY12: 0 | FZ12: 0 | GA12: 0 | GB12: 0 | GC12: 1 | GD12: 0 | GE12: 0 | GF12: 0 | GG12: 0 | GH12: 0 | GI12: 1 | GJ12: 0 | GK12: 0 | GL12: 0 | GM12: 0 | GN12: 0 | GO12: 1 | GP12: 0 | GQ12: 0 | GR12: 0 | GS12: 0 | GT12: 0 | GU12: 1 | GV12: =OR(MONTH(GV4)=$E$12,MONTH(GV4)=$F$12)*GV7 -> 0 | GW12: 0 | GX12: 0 | GY12: 0 | GZ12: 0 | HA12: 1 | HB12: 0 | HC12: 0 | HD12: 0 | HE12: 0 | HF12: 0 | HG12: 1 | HH12: 0 | HI12: 0 | HJ12: 0 | HK12: 0 | HL12: 0 | HM12: 1 | HN12: 0 | HO12: 0 | HP12: 0 | HQ12: 0 | HR12: 0 | HS12: 1 | HT12: 0 | HU12: 0 | HV12: 0 | HW12: 0 | HX12: 0 | HY12: 1 | HZ12: 0 | IA12: 0 | IB12: 0 | IC12: 0 | ID12: 0 | IE12: 1 | IF12: 0 | IG12: 0 | IH12: 0 | II12: 0 | IJ12: 0 | IK12: 1 | IL12: 0 | IM12: 0 | IN12: 0 | IO12: 0 | IP12: 0 | IQ12: 1 | IR12: 0 | IS12: 0 | IT12: 0 | IU12: 0 | IV12: 0 | IW12: 1 | IX12: 0 | IY12: 0 | IZ12: 0 | JA12: 0 | JB12: 0 | JC12: 1 | JD12: 0 | JE12: 0 | JF12: 0 | JG12: 0 | JH12: =OR(MONTH(JH4)=$E$12,MONTH(JH4)=$F$12)*JH7 -> 0 | JI12: 1 | JJ12: 0 | JK12: 0 | JL12: 0 | JM12: 0 | JN12: 0 | JO12: 1 | JP12: 0 | JQ12: 0 | JR12: 0 | JS12: 0 | JT12: 0 | JU12: 1 | JV12: 0 | JW12: 0 | JX12: 0 | JY12: 0 | JZ12: 0 | KA12: 1 | KB12: 0 | KC12: 0 | KD12: 0 | KE12: 0 | KF12: 0 | KG12: 1 | KH12: 0 | KI12: 0 | KJ12: 0 | KK12: 0 | KL12: 0 | KM12: 1 | KN12: 0 | KO12: 0 | KP12: 0 | KQ12: 0 | KR12: 0 | KS12: 1 | KT12: 0 | KU12: 0 | KV12: 0 | KW12: 0 | KX12: 0 | KY12: 1 | KZ12: 0 | LA12: 0 | LB12: 0 | LC12: 0 | LD12: 0 | LE12: 1 | LF12: 0 | LG12: 0 | LH12: 0 | LI12: 0 | LJ12: 0 | LK12: 1 | LL12: 0 | LM12: 0 | LN12: 0 | LO12: 0 | LP12: 0 | LQ12: 1 | LR12: 0 | LS12: 0 | LT12: =OR(MONTH(LT4)=$E$12,MONTH(LT4)=$F$12)*LT7 -> 0 | LU12: 0 | LV12: 0 | LW12: 1 | LX12: 0 | LY12: 0 | LZ12: 0 | MA12: 0 | MB12: 0 | MC12: 1 | MD12: 0 | ME12: 0 | MF12: 0 | MG12: 0 | MH12: 0 | MI12: 1 | MJ12: 0 | MK12: 0 | ML12: 0 | MM12: 0 | MN12: 0 | MO12: 1 | MP12: 0 | MQ12: 0 | MR12: 0 | MS12: 0 | MT12: 0 | MU12: 1 | MV12: 0 | MW12: 0 | MX12: 0 | MY12: 0 | MZ12: 0 | NA12: 1 | NB12: 0 | NC12: 0 | ND12: 0 | NE12: 0 | NF12: 0 | NG12: 1 | NH12: 0 | NI12: 0 | NJ12: 0 | NK12: 0 | NL12: 0 | NM12: 1 | NN12: 0 | NO12: 0 | NP12: 0 | NQ12: 0 | NR12: 0 | NS12: 1 | NT12: 0 | NU12: 0 | NV12: 0 | NW12: 0 | NX12: 0 | NY12: 1 | NZ12: 0 | OA12: 0 | OB12: 0 | OC12: 0 | OD12: 0 | OE12: 1 | OF12: =OR(MONTH(OF4)=$E$12,MONTH(OF4)=$F$12)*OF7 -> 0 | OG12: 0 | OH12: 0 | OI12: 0 | OJ12: 0 | OK12: 1 | OL12: 0 | OM12: 0 | ON12: 0 | OO12: 0 | OP12: 0 | OQ12: 1 | OR12: 0 | OS12: 0 | OT12: 0 | OU12: 0 | OV12: 0 | OW12: 1 | OX12: 0 | OY12: 0 | OZ12: 0 | PA12: 0 | PB12: 0 | PC12: 1 | PD12: 0 | PE12: 0 | PF12: 0 | PG12: 0 | PH12: 0 | PI12: 1 | PJ12: 0 | PK12: 0 | PL12: 0 | PM12: 0 | PN12: 0 | PO12: 1 | PP12: 0 | PQ12: 0 | PR12: 0 | PS12: 0 | PT12: 0 | PU12: 1 | PV12: 0 | PW12: 0 | PX12: 0 | PY12: 0 | PZ12: 0 | QA12: 0 | QB12: 0 | QC12: 0 | QD12: 0 | QE12: 0 | QF12: 0 | QG12: 0 | QH12: 0 | QI12: 0 | QJ12: 0 | QK12: 0 | QL12: 0 | QM12: 0 | QN12: 0 | QO12: 0 | QP12: 0 | QQ12: 0 | QR12: =OR(MONTH(QR4)=$E$12,MONTH(QR4)=$F$12)*QR7 -> 0 | QS12: 0 | QT12: 0 | QU12: 0 | QV12: 0 | QW12: 0 | QX12: 0 | QY12: 0 | QZ12: 0 | RA12: 0 | RB12: 0 | RC12: 0 | RD12: 0 | RE12: 0 | RF12: 0 | RG12: 0 | RH12: 0 | RI12: 0 | RJ12: 0 | RK12: 0 | RL12: 0 | RM12: 0 | RN12: 0 | RO12: 0 | RP12: 0 | RQ12: 0 | RR12: 0 | RS12: 0 | RT12: 0 | RU12: 0 | RV12: 0 | RW12: 0 | RX12: 0 | RY12: 0 | RZ12: 0 | SA12: 0 | SB12: 0 | SC12: 0 | SD12: 0 | SE12: 0 | SF12: 0 | SG12: 0 | SH12: 0 | SI12: 0 | SJ12: 0 | SK12: 0 | SL12: 0 | SM12: 0 | SN12: 0 | SO12: 0 | SP12: 0 | SQ12: 0
D13: Semi-Annual Counter | G13: Counter | K13: 0 | L13: =IF(L12,0,K13+1) -> 1 | M13: =IF(M12,0,L13+1) -> 2 | N13: 3 | O13: 4 | P13: 5 | Q13: 6 | R13: 7 | S13: 8 | T13: 9 | U13: 10 | V13: 11 | W13: 0 | X13: 1 | Y13: 2 | Z13: 3 | AA13: 4 | AB13: 5 | AC13: 0 | AD13: 1 | AE13: 2 | AF13: 3 | AG13: 4 | AH13: 5 | AI13: 0 | AJ13: 1 | AK13: 2 | AL13: 3 | AM13: 4 | AN13: 5 | AO13: 0 | AP13: 1 | AQ13: 2 | AR13: 3 | AS13: 4 | AT13: 5 | AU13: 0 | AV13: 1 | AW13: 2 | AX13: 3 | AY13: 4 | AZ13: 5 | BA13: 0 | BB13: 1 | BC13: 2 | BD13: 3 | BE13: 4 | BF13: 5 | BG13: 0 | BH13: 1 | BI13: 2 | BJ13: 3 | BK13: 4 | BL13: 5 | BM13: 0 | BN13: 1 | BO13: 2 | BP13: 3 | BQ13: 4 | BR13: 5 | BS13: 0 | BT13: 1 | BU13: 2 | BV13: 3 | BW13: 4 | BX13: 5 | BY13: =IF(BY12,0,BX13+1) -> 0 | BZ13: 1 | CA13: 2 | CB13: 3 | CC13: 4 | CD13: 5 | CE13: 0 | CF13: 1 | CG13: 2 | CH13: 3 | CI13: 4 | CJ13: 5 | CK13: 0 | CL13: 1 | CM13: 2 | CN13: 3 | CO13: 4 | CP13: 5 | CQ13: 0 | CR13: 1 | CS13: 2 | CT13: 3 | CU13: 4 | CV13: 5 | CW13: 0 | CX13: 1 | CY13: 2 | CZ13: 3 | DA13: 4 | DB13: 5 | DC13: 0 | DD13: 1 | DE13: 2 | DF13: 3 | DG13: 4 | DH13: 5 | DI13: 0 | DJ13: 1 | DK13: 2 | DL13: 3 | DM13: 4 | DN13: 5 | DO13: 0 | DP13: 1 | DQ13: 2 | DR13: 3 | DS13: 4 | DT13: 5 | DU13: 0 | DV13: 1 | DW13: 2 | DX13: 3 | DY13: 4 | DZ13: 5 | EA13: 0 | EB13: 1 | EC13: 2 | ED13: 3 | EE13: 4 | EF13: 5 | EG13: 0 | EH13: 1 | EI13: 2 | EJ13: 3 | EK13: =IF(EK12,0,EJ13+1) -> 4 | EL13: 5 | EM13: 0 | EN13: 1 | EO13: 2 | EP13: 3 | EQ13: 4 | ER13: 5 | ES13: 0 | ET13: 1 | EU13: 2 | EV13: 3 | EW13: 4 | EX13: 5 | EY13: 0 | EZ13: 1 | FA13: 2 | FB13: 3 | FC13: 4 | FD13: 5 | FE13: 0 | FF13: 1 | FG13: 2 | FH13: 3 | FI13: 4 | FJ13: 5 | FK13: 0 | FL13: 1 | FM13: 2 | FN13: 3 | FO13: 4 | FP13: 5 | FQ13: 0 | FR13: 1 | FS13: 2 | FT13: 3 | FU13: 4 | FV13: 5 | FW13: 0 | FX13: 1 | FY13: 2 | FZ13: 3 | GA13: 4 | GB13: 5 | GC13: 0 | GD13: 1 | GE13: 2 | GF13: 3 | GG13: 4 | GH13: 5 | GI13: 0 | GJ13: 1 | GK13: 2 | GL13: 3 | GM13: 4 | GN13: 5 | GO13: 0 | GP13: 1 | GQ13: 2 | GR13: 3 | GS13: 4 | GT13: 5 | GU13: 0 | GV13: 1 | GW13: =IF(GW12,0,GV13+1) -> 2 | GX13: 3 | GY13: 4 | GZ13: 5 | HA13: 0 | HB13: 1 | HC13: 2 | HD13: 3 | HE13: 4 | HF13: 5 | HG13: 0 | HH13: 1 | HI13: 2 | HJ13: 3 | HK13: 4 | HL13: 5 | HM13: 0 | HN13: 1 | HO13: 2 | HP13: 3 | HQ13: 4 | HR13: 5 | HS13: 0 | HT13: 1 | HU13: 2 | HV13: 3 | HW13: 4 | HX13: 5 | HY13: 0 | HZ13: 1 | IA13: 2 | IB13: 3 | IC13: 4 | ID13: 5 | IE13: 0 | IF13: 1 | IG13: 2 | IH13: 3 | II13: 4 | IJ13: 5 | IK13: 0 | IL13: 1 | IM13: 2 | IN13: 3 | IO13: 4 | IP13: 5 | IQ13: 0 | IR13: 1 | IS13: 2 | IT13: 3 | IU13: 4 | IV13: 5 | IW13: 0 | IX13: 1 | IY13: 2 | IZ13: 3 | JA13: 4 | JB13: 5 | JC13: 0 | JD13: 1 | JE13: 2 | JF13: 3 | JG13: 4 | JH13: 5 | JI13: =IF(JI12,0,JH13+1) -> 0 | JJ13: 1 | JK13: 2 | JL13: 3 | JM13: 4 | JN13: 5 | JO13: 0 | JP13: 1 | JQ13: 2 | JR13: 3 | JS13: 4 | JT13: 5 | JU13: 0 | JV13: 1 | JW13: 2 | JX13: 3 | JY13: 4 | JZ13: 5 | KA13: 0 | KB13: 1 | KC13: 2 | KD13: 3 | KE13: 4 | KF13: 5 | KG13: 0 | KH13: 1 | KI13: 2 | KJ13: 3 | KK13: 4 | KL13: 5 | KM13: 0 | KN13: 1 | KO13: 2 | KP13: 3 | KQ13: 4 | KR13: 5 | KS13: 0 | KT13: 1 | KU13: 2 | KV13: 3 | KW13: 4 | KX13: 5 | KY13: 0 | KZ13: 1 | LA13: 2 | LB13: 3 | LC13: 4 | LD13: 5 | LE13: 0 | LF13: 1 | LG13: 2 | LH13: 3 | LI13: 4 | LJ13: 5 | LK13: 0 | LL13: 1 | LM13: 2 | LN13: 3 | LO13: 4 | LP13: 5 | LQ13: 0 | LR13: 1 | LS13: 2 | LT13: 3 | LU13: =IF(LU12,0,LT13+1) -> 4 | LV13: 5 | LW13: 0 | LX13: 1 | LY13: 2 | LZ13: 3 | MA13: 4 | MB13: 5 | MC13: 0 | MD13: 1 | ME13: 2 | MF13: 3 | MG13: 4 | MH13: 5 | MI13: 0 | MJ13: 1 | MK13: 2 | ML13: 3 | MM13: 4 | MN13: 5 | MO13: 0 | MP13: 1 | MQ13: 2 | MR13: 3 | MS13: 4 | MT13: 5 | MU13: 0 | MV13: 1 | MW13: 2 | MX13: 3 | MY13: 4 | MZ13: 5 | NA13: 0 | NB13: 1 | NC13: 2 | ND13: 3 | NE13: 4 | NF13: 5 | NG13: 0 | NH13: 1 | NI13: 2 | NJ13: 3 | NK13: 4 | NL13: 5 | NM13: 0 | NN13: 1 | NO13: 2 | NP13: 3 | NQ13: 4 | NR13: 5 | NS13: 0 | NT13: 1 | NU13: 2 | NV13: 3 | NW13: 4 | NX13: 5 | NY13: 0 | NZ13: 1 | OA13: 2 | OB13: 3 | OC13: 4 | OD13: 5 | OE13: 0 | OF13: 1 | OG13: =IF(OG12,0,OF13+1) -> 2 | OH13: 3 | OI13: 4 | OJ13: 5 | OK13: 0 | OL13: 1 | OM13: 2 | ON13: 3 | OO13: 4 | OP13: 5 | OQ13: 0 | OR13: 1 | OS13: 2 | OT13: 3 | OU13: 4 | OV13: 5 | OW13: 0 | OX13: 1 | OY13: 2 | OZ13: 3 | PA13: 4 | PB13: 5 | PC13: 0 | PD13: 1 | PE13: 2 | PF13: 3 | PG13: 4 | PH13: 5 | PI13: 0 | PJ13: 1 | PK13: 2 | PL13: 3 | PM13: 4 | PN13: 5 | PO13: 0 | PP13: 1 | PQ13: 2 | PR13: 3 | PS13: 4 | PT13: 5 | PU13: 0 | PV13: 1 | PW13: 2 | PX13: 3 | PY13: 4 | PZ13: 5 | QA13: 6 | QB13: 7 | QC13: 8 | QD13: 9 | QE13: 10 | QF13: 11 | QG13: 12 | QH13: 13 | QI13: 14 | QJ13: 15 | QK13: 16 | QL13: 17 | QM13: 18 | QN13: 19 | QO13: 20 | QP13: 21 | QQ13: 22 | QR13: 23 | QS13: =IF(QS12,0,QR13+1) -> 24 | QT13: 25 | QU13: 26 | QV13: 27 | QW13: 28 | QX13: 29 | QY13: 30 | QZ13: 31 | RA13: 32 | RB13: 33 | RC13: 34 | RD13: 35 | RE13: 36 | RF13: 37 | RG13: 38 | RH13: 39 | RI13: 40 | RJ13: 41 | RK13: 42 | RL13: 43 | RM13: 44 | RN13: 45 | RO13: 46 | RP13: 47 | RQ13: 48 | RR13: 49 | RS13: 50 | RT13: 51 | RU13: 52 | RV13: 53 | RW13: 54 | RX13: 55 | RY13: 56 | RZ13: 57 | SA13: 58 | SB13: 59 | SC13: 60 | SD13: 61 | SE13: 62 | SF13: 63 | SG13: 64 | SH13: 65 | SI13: 66 | SJ13: 67 | SK13: 68 | SL13: 69 | SM13: 70 | SN13: 71 | SO13: 72 | SP13: 73 | SQ13: 74
D14: Forward Semi-Annual Date with Same Dates | G14: Date | L14: =IF(L6,L4,OFFSET(L4,0,-L13)) -> 2023-01-01 | M14: =IF(M6,M4,OFFSET(M4,0,-M13)) -> 2023-02-01 | N14: 2023-03-01 | O14: 2023-04-01 | P14: 2023-05-01 | Q14: 2023-06-01 | R14: 2023-07-01 | S14: 2023-08-01 | T14: 2023-09-01 | U14: 2023-10-01 | V14: 2023-11-01 | W14: 2023-12-01 | X14: 2023-12-01 | Y14: 2023-12-01 | Z14: 2023-12-01 | AA14: 2023-12-01 | AB14: 2023-12-01 | AC14: 2024-06-01 | AD14: 2024-06-01 | AE14: 2024-06-01 | AF14: 2024-06-01 | AG14: 2024-06-01 | AH14: 2024-06-01 | AI14: 2024-12-01 | AJ14: 2024-12-01 | AK14: 2024-12-01 | AL14: 2024-12-01 | AM14: 2024-12-01 | AN14: 2024-12-01 | AO14: 2025-06-01 | AP14: 2025-06-01 | AQ14: 2025-06-01 | AR14: 2025-06-01 | AS14: 2025-06-01 | AT14: 2025-06-01 | AU14: 2025-12-01 | AV14: 2025-12-01 | AW14: 2025-12-01 | AX14: 2025-12-01 | AY14: 2025-12-01 | AZ14: 2025-12-01 | BA14: 2026-06-01 | BB14: 2026-06-01 | BC14: 2026-06-01 | BD14: 2026-06-01 | BE14: 2026-06-01 | BF14: 2026-06-01 | BG14: 2026-12-01 | BH14: 2026-12-01 | BI14: 2026-12-01 | BJ14: 2026-12-01 | BK14: 2026-12-01 | BL14: 2026-12-01 | BM14: 2027-06-01 | BN14: 2027-06-01 | BO14: 2027-06-01 | BP14: 2027-06-01 | BQ14: 2027-06-01 | BR14: 2027-06-01 | BS14: 2027-12-01 | BT14: 2027-12-01 | BU14: 2027-12-01 | BV14: 2027-12-01 | BW14: 2027-12-01 | BX14: 2027-12-01 | BY14: =IF(BY6,BY4,OFFSET(BY4,0,-BY13)) -> 2028-06-01 | BZ14: 2028-06-01 | CA14: 2028-06-01 | CB14: 2028-06-01 | CC14: 2028-06-01 | CD14: 2028-06-01 | CE14: 2028-12-01 | CF14: 2028-12-01 | CG14: 2028-12-01 | CH14: 2028-12-01 | CI14: 2028-12-01 | CJ14: 2028-12-01 | CK14: 2029-06-01 | CL14: 2029-06-01 | CM14: 2029-06-01 | CN14: 2029-06-01 | CO14: 2029-06-01 | CP14: 2029-06-01 | CQ14: 2029-12-01 | CR14: 2029-12-01 | CS14: 2029-12-01 | CT14: 2029-12-01 | CU14: 2029-12-01 | CV14: 2029-12-01 | CW14: 2030-06-01 | CX14: 2030-06-01 | CY14: 2030-06-01 | CZ14: 2030-06-01 | DA14: 2030-06-01 | DB14: 2030-06-01 | DC14: 2030-12-01 | DD14: 2030-12-01 | DE14: 2030-12-01 | DF14: 2030-12-01 | DG14: 2030-12-01 | DH14: 2030-12-01 | DI14: 2031-06-01 | DJ14: 2031-06-01 | DK14: 2031-06-01 | DL14: 2031-06-01 | DM14: 2031-06-01 | DN14: 2031-06-01 | DO14: 2031-12-01 | DP14: 2031-12-01 | DQ14: 2031-12-01 | DR14: 2031-12-01 | DS14: 2031-12-01 | DT14: 2031-12-01 | DU14: 2032-06-01 | DV14: 2032-06-01 | DW14: 2032-06-01 | DX14: 2032-06-01 | DY14: 2032-06-01 | DZ14: 2032-06-01 | EA14: 2032-12-01 | EB14: 2032-12-01 | EC14: 2032-12-01 | ED14: 2032-12-01 | EE14: 2032-12-01 | EF14: 2032-12-01 | EG14: 2033-06-01 | EH14: 2033-06-01 | EI14: 2033-06-01 | EJ14: 2033-06-01 | EK14: =IF(EK6,EK4,OFFSET(EK4,0,-EK13)) -> 2033-06-01 | EL14: 2033-06-01 | EM14: 2033-12-01 | EN14: 2033-12-01 | EO14: 2033-12-01 | EP14: 2033-12-01 | EQ14: 2033-12-01 | ER14: 2033-12-01 | ES14: 2034-06-01 | ET14: 2034-06-01 | EU14: 2034-06-01 | EV14: 2034-06-01 | EW14: 2034-06-01 | EX14: 2034-06-01 | EY14: 2034-12-01 | EZ14: 2034-12-01 | FA14: 2034-12-01 | FB14: 2034-12-01 | FC14: 2034-12-01 | FD14: 2034-12-01 | FE14: 2035-06-01 | FF14: 2035-06-01 | FG14: 2035-06-01 | FH14: 2035-06-01 | FI14: 2035-06-01 | FJ14: 2035-06-01 | FK14: 2035-12-01 | FL14: 2035-12-01 | FM14: 2035-12-01 | FN14: 2035-12-01 | FO14: 2035-12-01 | FP14: 2035-12-01 | FQ14: 2036-06-01 | FR14: 2036-06-01 | FS14: 2036-06-01 | FT14: 2036-06-01 | FU14: 2036-06-01 | FV14: 2036-06-01 | FW14: 2036-12-01 | FX14: 2036-12-01 | FY14: 2036-12-01 | FZ14: 2036-12-01 | GA14: 2036-12-01 | GB14: 2036-12-01 | GC14: 2037-06-01 | GD14: 2037-06-01 | GE14: 2037-06-01 | GF14: 2037-06-01 | GG14: 2037-06-01 | GH14: 2037-06-01 | GI14: 2037-12-01 | GJ14: 2037-12-01 | GK14: 2037-12-01 | GL14: 2037-12-01 | GM14: 2037-12-01 | GN14: 2037-12-01 | GO14: 2038-06-01 | GP14: 2038-06-01 | GQ14: 2038-06-01 | GR14: 2038-06-01 | GS14: 2038-06-01 | GT14: 2038-06-01 | GU14: 2038-12-01 | GV14: 2038-12-01 | GW14: =IF(GW6,GW4,OFFSET(GW4,0,-GW13)) -> 2038-12-01 | GX14: 2038-12-01 | GY14: 2038-12-01 | GZ14: 2038-12-01 | HA14: 2039-06-01 | HB14: 2039-06-01 | HC14: 2039-06-01 | HD14: 2039-06-01 | HE14: 2039-06-01 | HF14: 2039-06-01 | HG14: 2039-12-01 | HH14: 2039-12-01 | HI14: 2039-12-01 | HJ14: 2039-12-01 | HK14: 2039-12-01 | HL14: 2039-12-01 | HM14: 2040-06-01 | HN14: 2040-06-01 | HO14: 2040-06-01 | HP14: 2040-06-01 | HQ14: 2040-06-01 | HR14: 2040-06-01 | HS14: 2040-12-01 | HT14: 2040-12-01 | HU14: 2040-12-01 | HV14: 2040-12-01 | HW14: 2040-12-01 | HX14: 2040-12-01 | HY14: 2041-06-01 | HZ14: 2041-06-01 | IA14: 2041-06-01 | IB14: 2041-06-01 | IC14: 2041-06-01 | ID14: 2041-06-01 | IE14: 2041-12-01 | IF14: 2041-12-01 | IG14: 2041-12-01 | IH14: 2041-12-01 | II14: 2041-12-01 | IJ14: 2041-12-01 | IK14: 2042-06-01 | IL14: 2042-06-01 | IM14: 2042-06-01 | IN14: 2042-06-01 | IO14: 2042-06-01 | IP14: 2042-06-01 | IQ14: 2042-12-01 | IR14: 2042-12-01 | IS14: 2042-12-01 | IT14: 2042-12-01 | IU14: 2042-12-01 | IV14: 2042-12-01 | IW14: 2043-06-01 | IX14: 2043-06-01 | IY14: 2043-06-01 | IZ14: 2043-06-01 | JA14: 2043-06-01 | JB14: 2043-06-01 | JC14: 2043-12-01 | JD14: 2043-12-01 | JE14: 2043-12-01 | JF14: 2043-12-01 | JG14: 2043-12-01 | JH14: 2043-12-01 | JI14: =IF(JI6,JI4,OFFSET(JI4,0,-JI13)) -> 2044-06-01 | JJ14: 2044-06-01 | JK14: 2044-06-01 | JL14: 2044-06-01 | JM14: 2044-06-01 | JN14: 2044-06-01 | JO14: 2044-12-01 | JP14: 2044-12-01 | JQ14: 2044-12-01 | JR14: 2044-12-01 | JS14: 2044-12-01 | JT14: 2044-12-01 | JU14: 2045-06-01 | JV14: 2045-06-01 | JW14: 2045-06-01 | JX14: 2045-06-01 | JY14: 2045-06-01 | JZ14: 2045-06-01 | KA14: 2045-12-01 | KB14: 2045-12-01 | KC14: 2045-12-01 | KD14: 2045-12-01 | KE14: 2045-12-01 | KF14: 2045-12-01 | KG14: 2046-06-01 | KH14: 2046-06-01 | KI14: 2046-06-01 | KJ14: 2046-06-01 | KK14: 2046-06-01 | KL14: 2046-06-01 | KM14: 2046-12-01 | KN14: 2046-12-01 | KO14: 2046-12-01 | KP14: 2046-12-01 | KQ14: 2046-12-01 | KR14: 2046-12-01 | KS14: 2047-06-01 | KT14: 2047-06-01 | KU14: 2047-06-01 | KV14: 2047-06-01 | KW14: 2047-06-01 | KX14: 2047-06-01 | KY14: 2047-12-01 | KZ14: 2047-12-01 | LA14: 2047-12-01 | LB14: 2047-12-01 | LC14: 2047-12-01 | LD14: 2047-12-01 | LE14: 2048-06-01 | LF14: 2048-06-01 | LG14: 2048-06-01 | LH14: 2048-06-01 | LI14: 2048-06-01 | LJ14: 2048-06-01 | LK14: 2048-12-01 | LL14: 2048-12-01 | LM14: 2048-12-01 | LN14: 2048-12-01 | LO14: 2048-12-01 | LP14: 2048-12-01 | LQ14: 2049-06-01 | LR14: 2049-06-01 | LS14: 2049-06-01 | LT14: 2049-06-01 | LU14: =IF(LU6,LU4,OFFSET(LU4,0,-LU13)) -> 2049-06-01 | LV14: 2049-06-01 | LW14: 2049-12-01 | LX14: 2049-12-01 | LY14: 2049-12-01 | LZ14: 2049-12-01 | MA14: 2049-12-01 | MB14: 2049-12-01 | MC14: 2050-06-01 | MD14: 2050-06-01 | ME14: 2050-06-01 | MF14: 2050-06-01 | MG14: 2050-06-01 | MH14: 2050-06-01 | MI14: 2050-12-01 | MJ14: 2050-12-01 | MK14: 2050-12-01 | ML14: 2050-12-01 | MM14: 2050-12-01 | MN14: 2050-12-01 | MO14: 2051-06-01 | MP14: 2051-06-01 | MQ14: 2051-06-01 | MR14: 2051-06-01 | MS14: 2051-06-01 | MT14: 2051-06-01 | MU14: 2051-12-01 | MV14: 2051-12-01 | MW14: 2051-12-01 | MX14: 2051-12-01 | MY14: 2051-12-01 | MZ14: 2051-12-01 | NA14: 2052-06-01 | NB14: 2052-06-01 | NC14: 2052-06-01 | ND14: 2052-06-01 | NE14: 2052-06-01 | NF14: 2052-06-01 | NG14: 2052-12-01 | NH14: 2052-12-01 | NI14: 2052-12-01 | NJ14: 2052-12-01 | NK14: 2052-12-01 | NL14: 2052-12-01 | NM14: 2053-06-01 | NN14: 2053-06-01 | NO14: 2053-06-01 | NP14: 2053-06-01 | NQ14: 2053-06-01 | NR14: 2053-06-01 | NS14: 2053-12-01 | NT14: 2053-12-01 | NU14: 2053-12-01 | NV14: 2053-12-01 | NW14: 2053-12-01 | NX14: 2053-12-01 | NY14: 2054-06-01 | NZ14: 2054-06-01 | OA14: 2054-06-01 | OB14: 2054-06-01 | OC14: 2054-06-01 | OD14: 2054-06-01 | OE14: 2054-12-01 | OF14: 2054-12-01 | OG14: =IF(OG6,OG4,OFFSET(OG4,0,-OG13)) -> 2054-12-01 | OH14: 2054-12-01 | OI14: 2054-12-01 | OJ14: 2054-12-01 | OK14: 2055-06-01 | OL14: 2055-06-01 | OM14: 2055-06-01 | ON14: 2055-06-01 | OO14: 2055-06-01 | OP14: 2055-06-01 | OQ14: 2055-12-01 | OR14: 2055-12-01 | OS14: 2055-12-01 | OT14: 2055-12-01 | OU14: 2055-12-01 | OV14: 2055-12-01 | OW14: 2056-06-01 | OX14: 2056-06-01 | OY14: 2056-06-01 | OZ14: 2056-06-01 | PA14: 2056-06-01 | PB14: 2056-06-01 | PC14: 2056-12-01 | PD14: 2056-12-01 | PE14: 2056-12-01 | PF14: 2056-12-01 | PG14: 2056-12-01 | PH14: 2056-12-01 | PI14: 2057-06-01 | PJ14: 2057-06-01 | PK14: 2057-06-01 | PL14: 2057-06-01 | PM14: 2057-06-01 | PN14: 2057-06-01 | PO14: 2057-12-01 | PP14: 2057-12-01 | PQ14: 2057-12-01 | PR14: 2057-12-01 | PS14: 2057-12-01 | PT14: 2057-12-01 | PU14: 2058-06-01 | PV14: 2058-06-01 | PW14: 2058-06-01 | PX14: 2058-06-01 | PY14: 2058-06-01 | PZ14: 2058-06-01 | QA14: 2058-06-01 | QB14: 2058-06-01 | QC14: 2058-06-01 | QD14: 2058-06-01 | QE14: 2058-06-01 | QF14: 2058-06-01 | QG14: 2058-06-01 | QH14: 2058-06-01 | QI14: 2058-06-01 | QJ14: 2058-06-01 | QK14: 2058-06-01 | QL14: 2058-06-01 | QM14: 2058-06-01 | QN14: 2058-06-01 | QO14: 2058-06-01 | QP14: 2058-06-01 | QQ14: 2058-06-01 | QR14: 2058-06-01 | QS14: =IF(QS6,QS4,OFFSET(QS4,0,-QS13)) -> 2058-06-01 | QT14: 2058-06-01 | QU14: 2058-06-01 | QV14: 2058-06-01 | QW14: 2058-06-01 | QX14: 2058-06-01 | QY14: 2058-06-01 | QZ14: 2058-06-01 | RA14: 2058-06-01 | RB14: 2058-06-01 | RC14: 2058-06-01 | RD14: 2058-06-01 | RE14: 2058-06-01 | RF14: 2058-06-01 | RG14: 2058-06-01 | RH14: 2058-06-01 | RI14: 2058-06-01 | RJ14: 2058-06-01 | RK14: 2058-06-01 | RL14: 2058-06-01 | RM14: 2058-06-01 | RN14: 2058-06-01 | RO14: 2058-06-01 | RP14: 2058-06-01 | RQ14: 2058-06-01 | RR14: 2058-06-01 | RS14: 2058-06-01 | RT14: 2058-06-01 | RU14: 2058-06-01 | RV14: 2058-06-01 | RW14: 2058-06-01 | RX14: 2058-06-01 | RY14: 2058-06-01 | RZ14: 2058-06-01 | SA14: 2058-06-01 | SB14: 2058-06-01 | SC14: 2058-06-01 | SD14: 2058-06-01 | SE14: 2058-06-01 | SF14: 2058-06-01 | SG14: 2058-06-01 | SH14: 2058-06-01 | SI14: 2058-06-01 | SJ14: 2058-06-01 | SK14: 2058-06-01 | SL14: 2058-06-01 | SM14: 2058-06-01 | SN14: 2058-06-01 | SO14: 2058-06-01 | SP14: 2058-06-01 | SQ14: 2058-06-01
B16: Capacity and Production
D17: Capacity in MW | E17: ='InputC - Operations'!$E$17 -> 132 | G17: ='InputC - Operations'!F17 -> MWp | L17: =$E$17*L7 -> 0 | M17: 0 | N17: 0 | O17: 0 | P17: 0 | Q17: 0 | R17: 0 | S17: 0 | T17: 0 | U17: 0 | V17: 0 | W17: 132 | X17: 132 | Y17: 132 | Z17: 132 | AA17: 132 | AB17: 132 | AC17: 132 | AD17: 132 | AE17: 132 | AF17: 132 | AG17: 132 | AH17: 132 | AI17: 132 | AJ17: 132 | AK17: 132 | AL17: 132 | AM17: 132 | AN17: 132 | AO17: 132 | AP17: 132 | AQ17: 132 | AR17: 132 | AS17: 132 | AT17: 132 | AU17: 132 | AV17: 132 | AW17: 132 | AX17: 132 | AY17: 132 | AZ17: 132 | BA17: 132 | BB17: 132 | BC17: 132 | BD17: 132 | BE17: 132 | BF17: 132 | BG17: 132 | BH17: 132 | BI17: 132 | BJ17: 132 | BK17: 132 | BL17: 132 | BM17: 132 | BN17: 132 | BO17: 132 | BP17: 132 | BQ17: 132 | BR17: 132 | BS17: 132 | BT17: 132 | BU17: 132 | BV17: 132 | BW17: 132 | BX17: =$E$17*BX7 -> 132 | BY17: 132 | BZ17: 132 | CA17: 132 | CB17: 132 | CC17: 132 | CD17: 132 | CE17: 132 | CF17: 132 | CG17: 132 | CH17: 132 | CI17: 132 | CJ17: 132 | CK17: 132 | CL17: 132 | CM17: 132 | CN17: 132 | CO17: 132 | CP17: 132 | CQ17: 132 | CR17: 132 | CS17: 132 | CT17: 132 | CU17: 132 | CV17: 132 | CW17: 132 | CX17: 132 | CY17: 132 | CZ17: 132 | DA17: 132 | DB17: 132 | DC17: 132 | DD17: 132 | DE17: 132 | DF17: 132 | DG17: 132 | DH17: 132 | DI17: 132 | DJ17: 132 | DK17: 132 | DL17: 132 | DM17: 132 | DN17: 132 | DO17: 132 | DP17: 132 | DQ17: 132 | DR17: 132 | DS17: 132 | DT17: 132 | DU17: 132 | DV17: 132 | DW17: 132 | DX17: 132 | DY17: 132 | DZ17: 132 | EA17: 132 | EB17: 132 | EC17: 132 | ED17: 132 | EE17: 132 | EF17: 132 | EG17: 132 | EH17: 132 | EI17: 132 | EJ17: =$E$17*EJ7 -> 132 | EK17: 132 | EL17: 132 | EM17: 132 | EN17: 132 | EO17: 132 | EP17: 132 | EQ17: 132 | ER17: 132 | ES17: 132 | ET17: 132 | EU17: 132 | EV17: 132 | EW17: 132 | EX17: 132 | EY17: 132 | EZ17: 132 | FA17: 132 | FB17: 132 | FC17: 132 | FD17: 132 | FE17: 132 | FF17: 132 | FG17: 132 | FH17: 132 | FI17: 132 | FJ17: 132 | FK17: 132 | FL17: 132 | FM17: 132 | FN17: 132 | FO17: 132 | FP17: 132 | FQ17: 132 | FR17: 132 | FS17: 132 | FT17: 132 | FU17: 132 | FV17: 132 | FW17: 132 | FX17: 132 | FY17: 132 | FZ17: 132 | GA17: 132 | GB17: 132 | GC17: 132 | GD17: 132 | GE17: 132 | GF17: 132 | GG17: 132 | GH17: 132 | GI17: 132 | GJ17: 132 | GK17: 132 | GL17: 132 | GM17: 132 | GN17: 132 | GO17: 132 | GP17: 132 | GQ17: 132 | GR17: 132 | GS17: 132 | GT17: 132 | GU17: 132 | GV17: =$E$17*GV7 -> 132 | GW17: 132 | GX17: 132 | GY17: 132 | GZ17: 132 | HA17: 132 | HB17: 132 | HC17: 132 | HD17: 132 | HE17: 132 | HF17: 132 | HG17: 132 | HH17: 132 | HI17: 132 | HJ17: 132 | HK17: 132 | HL17: 132 | HM17: 132 | HN17: 132 | HO17: 132 | HP17: 132 | HQ17: 132 | HR17: 132 | HS17: 132 | HT17: 132 | HU17: 132 | HV17: 132 | HW17: 132 | HX17: 132 | HY17: 132 | HZ17: 132 | IA17: 132 | IB17: 132 | IC17: 132 | ID17: 132 | IE17: 132 | IF17: 132 | IG17: 132 | IH17: 132 | II17: 132 | IJ17: 132 | IK17: 132 | IL17: 132 | IM17: 132 | IN17: 132 | IO17: 132 | IP17: 132 | IQ17: 132 | IR17: 132 | IS17: 132 | IT17: 132 | IU17: 132 | IV17: 132 | IW17: 132 | IX17: 132 | IY17: 132 | IZ17: 132 | JA17: 132 | JB17: 132 | JC17: 132 | JD17: 132 | JE17: 132 | JF17: 132 | JG17: 132 | JH17: =$E$17*JH7 -> 132 | JI17: 132 | JJ17: 132 | JK17: 132 | JL17: 132 | JM17: 132 | JN17: 132 | JO17: 132 | JP17: 132 | JQ17: 132 | JR17: 132 | JS17: 132 | JT17: 132 | JU17: 132 | JV17: 132 | JW17: 132 | JX17: 132 | JY17: 132 | JZ17: 132 | KA17: 132 | KB17: 132 | KC17: 132 | KD17: 132 | KE17: 132 | KF17: 132 | KG17: 132 | KH17: 132 | KI17: 132 | KJ17: 132 | KK17: 132 | KL17: 132 | KM17: 132 | KN17: 132 | KO17: 132 | KP17: 132 | KQ17: 132 | KR17: 132 | KS17: 132 | KT17: 132 | KU17: 132 | KV17: 132 | KW17: 132 | KX17: 132 | KY17: 132 | KZ17: 132 | LA17: 132 | LB17: 132 | LC17: 132 | LD17: 132 | LE17: 132 | LF17: 132 | LG17: 132 | LH17: 132 | LI17: 132 | LJ17: 132 | LK17: 132 | LL17: 132 | LM17: 132 | LN17: 132 | LO17: 132 | LP17: 132 | LQ17: 132 | LR17: 132 | LS17: 132 | LT17: =$E$17*LT7 -> 132 | LU17: 132 | LV17: 132 | LW17: 132 | LX17: 132 | LY17: 132 | LZ17: 132 | MA17: 132 | MB17: 132 | MC17: 132 | MD17: 132 | ME17: 132 | MF17: 132 | MG17: 132 | MH17: 132 | MI17: 132 | MJ17: 132 | MK17: 132 | ML17: 132 | MM17: 132 | MN17: 132 | MO17: 132 | MP17: 132 | MQ17: 132 | MR17: 132 | MS17: 132 | MT17: 132 | MU17: 132 | MV17: 132 | MW17: 132 | MX17: 132 | MY17: 132 | MZ17: 132 | NA17: 132 | NB17: 132 | NC17: 132 | ND17: 132 | NE17: 132 | NF17: 132 | NG17: 132 | NH17: 132 | NI17: 132 | NJ17: 132 | NK17: 132 | NL17: 132 | NM17: 132 | NN17: 132 | NO17: 132 | NP17: 132 | NQ17: 132 | NR17: 132 | NS17: 132 | NT17: 132 | NU17: 132 | NV17: 132 | NW17: 132 | NX17: 132 | NY17: 132 | NZ17: 132 | OA17: 132 | OB17: 132 | OC17: 132 | OD17: 132 | OE17: 132 | OF17: =$E$17*OF7 -> 132 | OG17: 132 | OH17: 132 | OI17: 132 | OJ17: 132 | OK17: 132 | OL17: 132 | OM17: 132 | ON17: 132 | OO17: 132 | OP17: 132 | OQ17: 132 | OR17: 132 | OS17: 132 | OT17: 132 | OU17: 132 | OV17: 132 | OW17: 132 | OX17: 132 | OY17: 132 | OZ17: 132 | PA17: 132 | PB17: 132 | PC17: 132 | PD17: 132 | PE17: 132 | PF17: 132 | PG17: 132 | PH17: 132 | PI17: 132 | PJ17: 132 | PK17: 132 | PL17: 132 | PM17: 132 | PN17: 132 | PO17: 132 | PP17: 132 | PQ17: 132 | PR17: 132 | PS17: 132 | PT17: 132 | PU17: 132 | PV17: 132 | PW17: 132 | PX17: 132 | PY17: 132 | PZ17: 132 | QA17: 0 | QB17: 0 | QC17: 0 | QD17: 0 | QE17: 0 | QF17: 0 | QG17: 0 | QH17: 0 | QI17: 0 | QJ17: 0 | QK17: 0 | QL17: 0 | QM17: 0 | QN17: 0 | QO17: 0 | QP17: 0 | QQ17: 0 | QR17: =$E$17*QR7 -> 0 | QS17: 0 | QT17: 0 | QU17: 0 | QV17: 0 | QW17: 0 | QX17: 0 | QY17: 0 | QZ17: 0 | RA17: 0 | RB17: 0 | RC17: 0 | RD17: 0 | RE17: 0 | RF17: 0 | RG17: 0 | RH17: 0 | RI17: 0 | RJ17: 0 | RK17: 0 | RL17: 0 | RM17: 0 | RN17: 0 | RO17: 0 | RP17: 0 | RQ17: 0 | RR17: 0 | RS17: 0 | RT17: 0 | RU17: 0 | RV17: 0 | RW17: 0 | RX17: 0 | RY17: 0 | RZ17: 0 | SA17: 0 | SB17: 0 | SC17: 0 | SD17: 0 | SE17: 0 | SF17: 0 | SG17: 0 | SH17: 0 | SI17: 0 | SJ17: 0 | SK17: 0 | SL17: 0 | SM17: 0 | SN17: 0 | SO17: 0 | SP17: 0 | SQ17: 0
D18: Capacity in kW | E18: ='InputC - Operations'!E17*1000 -> 132000 | G18: kWp | L18: =$E$18*L7 -> 0 | M18: =$E$18*M7 -> 0 | N18: 0 | O18: 0 | P18: 0 | Q18: 0 | R18: 0 | S18: 0 | T18: 0 | U18: 0 | V18: 0 | W18: 132000 | X18: 132000 | Y18: 132000 | Z18: 132000 | AA18: 132000 | AB18: 132000 | AC18: 132000 | AD18: 132000 | AE18: 132000 | AF18: 132000 | AG18: 132000 | AH18: 132000 | AI18: 132000 | AJ18: 132000 | AK18: 132000 | AL18: 132000 | AM18: 132000 | AN18: 132000 | AO18: 132000 | AP18: 132000 | AQ18: 132000 | AR18: 132000 | AS18: 132000 | AT18: 132000 | AU18: 132000 | AV18: 132000 | AW18: 132000 | AX18: 132000 | AY18: 132000 | AZ18: 132000 | BA18: 132000 | BB18: 132000 | BC18: 132000 | BD18: 132000 | BE18: 132000 | BF18: 132000 | BG18: 132000 | BH18: 132000 | BI18: 132000 | BJ18: 132000 | BK18: 132000 | BL18: 132000 | BM18: 132000 | BN18: 132000 | BO18: 132000 | BP18: 132000 | BQ18: 132000 | BR18: 132000 | BS18: 132000 | BT18: 132000 | BU18: 132000 | BV18: 132000 | BW18: 132000 | BX18: 132000 | BY18: =$E$18*BY7 -> 132000 | BZ18: 132000 | CA18: 132000 | CB18: 132000 | CC18: 132000 | CD18: 132000 | CE18: 132000 | CF18: 132000 | CG18: 132000 | CH18: 132000 | CI18: 132000 | CJ18: 132000 | CK18: 132000 | CL18: 132000 | CM18: 132000 | CN18: 132000 | CO18: 132000 | CP18: 132000 | CQ18: 132000 | CR18: 132000 | CS18: 132000 | CT18: 132000 | CU18: 132000 | CV18: 132000 | CW18: 132000 | CX18: 132000 | CY18: 132000 | CZ18: 132000 | DA18: 132000 | DB18: 132000 | DC18: 132000 | DD18: 132000 | DE18: 132000 | DF18: 132000 | DG18: 132000 | DH18: 132000 | DI18: 132000 | DJ18: 132000 | DK18: 132000 | DL18: 132000 | DM18: 132000 | DN18: 132000 | DO18: 132000 | DP18: 132000 | DQ18: 132000 | DR18: 132000 | DS18: 132000 | DT18: 132000 | DU18: 132000 | DV18: 132000 | DW18: 132000 | DX18: 132000 | DY18: 132000 | DZ18: 132000 | EA18: 132000 | EB18: 132000 | EC18: 132000 | ED18: 132000 | EE18: 132000 | EF18: 132000 | EG18: 132000 | EH18: 132000 | EI18: 132000 | EJ18: 132000 | EK18: =$E$18*EK7 -> 132000 | EL18: 132000 | EM18: 132000 | EN18: 132000 | EO18: 132000 | EP18: 132000 | EQ18: 132000 | ER18: 132000 | ES18: 132000 | ET18: 132000 | EU18: 132000 | EV18: 132000 | EW18: 132000 | EX18: 132000 | EY18: 132000 | EZ18: 132000 | FA18: 132000 | FB18: 132000 | FC18: 132000 | FD18: 132000 | FE18: 132000 | FF18: 132000 | FG18: 132000 | FH18: 132000 | FI18: 132000 | FJ18: 132000 | FK18: 132000 | FL18: 132000 | FM18: 132000 | FN18: 132000 | FO18: 132000 | FP18: 132000 | FQ18: 132000 | FR18: 132000 | FS18: 132000 | FT18: 132000 | FU18: 132000 | FV18: 132000 | FW18: 132000 | FX18: 132000 | FY18: 132000 | FZ18: 132000 | GA18: 132000 | GB18: 132000 | GC18: 132000 | GD18: 132000 | GE18: 132000 | GF18: 132000 | GG18: 132000 | GH18: 132000 | GI18: 132000 | GJ18: 132000 | GK18: 132000 | GL18: 132000 | GM18: 132000 | GN18: 132000 | GO18: 132000 | GP18: 132000 | GQ18: 132000 | GR18: 132000 | GS18: 132000 | GT18: 132000 | GU18: 132000 | GV18: 132000 | GW18: =$E$18*GW7 -> 132000 | GX18: 132000 | GY18: 132000 | GZ18: 132000 | HA18: 132000 | HB18: 132000 | HC18: 132000 | HD18: 132000 | HE18: 132000 | HF18: 132000 | HG18: 132000 | HH18: 132000 | HI18: 132000 | HJ18: 132000 | HK18: 132000 | HL18: 132000 | HM18: 132000 | HN18: 132000 | HO18: 132000 | HP18: 132000 | HQ18: 132000 | HR18: 132000 | HS18: 132000 | HT18: 132000 | HU18: 132000 | HV18: 132000 | HW18: 132000 | HX18: 132000 | HY18: 132000 | HZ18: 132000 | IA18: 132000 | IB18: 132000 | IC18: 132000 | ID18: 132000 | IE18: 132000 | IF18: 132000 | IG18: 132000 | IH18: 132000 | II18: 132000 | IJ18: 132000 | IK18: 132000 | IL18: 132000 | IM18: 132000 | IN18: 132000 | IO18: 132000 | IP18: 132000 | IQ18: 132000 | IR18: 132000 | IS18: 132000 | IT18: 132000 | IU18: 132000 | IV18: 132000 | IW18: 132000 | IX18: 132000 | IY18: 132000 | IZ18: 132000 | JA18: 132000 | JB18: 132000 | JC18: 132000 | JD18: 132000 | JE18: 132000 | JF18: 132000 | JG18: 132000 | JH18: 132000 | JI18: =$E$18*JI7 -> 132000 | JJ18: 132000 | JK18: 132000 | JL18: 132000 | JM18: 132000 | JN18: 132000 | JO18: 132000 | JP18: 132000 | JQ18: 132000 | JR18: 132000 | JS18: 132000 | JT18: 132000 | JU18: 132000 | JV18: 132000 | JW18: 132000 | JX18: 132000 | JY18: 132000 | JZ18: 132000 | KA18: 132000 | KB18: 132000 | KC18: 132000 | KD18: 132000 | KE18: 132000 | KF18: 132000 | KG18: 132000 | KH18: 132000 | KI18: 132000 | KJ18: 132000 | KK18: 132000 | KL18: 132000 | KM18: 132000 | KN18: 132000 | KO18: 132000 | KP18: 132000 | KQ18: 132000 | KR18: 132000 | KS18: 132000 | KT18: 132000 | KU18: 132000 | KV18: 132000 | KW18: 132000 | KX18: 132000 | KY18: 132000 | KZ18: 132000 | LA18: 132000 | LB18: 132000 | LC18: 132000 | LD18: 132000 | LE18: 132000 | LF18: 132000 | LG18: 132000 | LH18: 132000 | LI18: 132000 | LJ18: 132000 | LK18: 132000 | LL18: 132000 | LM18: 132000 | LN18: 132000 | LO18: 132000 | LP18: 132000 | LQ18: 132000 | LR18: 132000 | LS18: 132000 | LT18: 132000 | LU18: =$E$18*LU7 -> 132000 | LV18: 132000 | LW18: 132000 | LX18: 132000 | LY18: 132000 | LZ18: 132000 | MA18: 132000 | MB18: 132000 | MC18: 132000 | MD18: 132000 | ME18: 132000 | MF18: 132000 | MG18: 132000 | MH18: 132000 | MI18: 132000 | MJ18: 132000 | MK18: 132000 | ML18: 132000 | MM18: 132000 | MN18: 132000 | MO18: 132000 | MP18: 132000 | MQ18: 132000 | MR18: 132000 | MS18: 132000 | MT18: 132000 | MU18: 132000 | MV18: 132000 | MW18: 132000 | MX18: 132000 | MY18: 132000 | MZ18: 132000 | NA18: 132000 | NB18: 132000 | NC18: 132000 | ND18: 132000 | NE18: 132000 | NF18: 132000 | NG18: 132000 | NH18: 132000 | NI18: 132000 | NJ18: 132000 | NK18: 132000 | NL18: 132000 | NM18: 132000 | NN18: 132000 | NO18: 132000 | NP18: 132000 | NQ18: 132000 | NR18: 132000 | NS18: 132000 | NT18: 132000 | NU18: 132000 | NV18: 132000 | NW18: 132000 | NX18: 132000 | NY18: 132000 | NZ18: 132000 | OA18: 132000 | OB18: 132000 | OC18: 132000 | OD18: 132000 | OE18: 132000 | OF18: 132000 | OG18: =$E$18*OG7 -> 132000 | OH18: 132000 | OI18: 132000 | OJ18: 132000 | OK18: 132000 | OL18: 132000 | OM18: 132000 | ON18: 132000 | OO18: 132000 | OP18: 132000 | OQ18: 132000 | OR18: 132000 | OS18: 132000 | OT18: 132000 | OU18: 132000 | OV18: 132000 | OW18: 132000 | OX18: 132000 | OY18: 132000 | OZ18: 132000 | PA18: 132000 | PB18: 132000 | PC18: 132000 | PD18: 132000 | PE18: 132000 | PF18: 132000 | PG18: 132000 | PH18: 132000 | PI18: 132000 | PJ18: 132000 | PK18: 132000 | PL18: 132000 | PM18: 132000 | PN18: 132000 | PO18: 132000 | PP18: 132000 | PQ18: 132000 | PR18: 132000 | PS18: 132000 | PT18: 132000 | PU18: 132000 | PV18: 132000 | PW18: 132000 | PX18: 132000 | PY18: 132000 | PZ18: 132000 | QA18: 0 | QB18: 0 | QC18: 0 | QD18: 0 | QE18: 0 | QF18: 0 | QG18: 0 | QH18: 0 | QI18: 0 | QJ18: 0 | QK18: 0 | QL18: 0 | QM18: 0 | QN18: 0 | QO18: 0 | QP18: 0 | QQ18: 0 | QR18: 0 | QS18: =$E$18*QS7 -> 0 | QT18: 0 | QU18: 0 | QV18: 0 | QW18: 0 | QX18: 0 | QY18: 0 | QZ18: 0 | RA18: 0 | RB18: 0 | RC18: 0 | RD18: 0 | RE18: 0 | RF18: 0 | RG18: 0 | RH18: 0 | RI18: 0 | RJ18: 0 | RK18: 0 | RL18: 0 | RM18: 0 | RN18: 0 | RO18: 0 | RP18: 0 | RQ18: 0 | RR18: 0 | RS18: 0 | RT18: 0 | RU18: 0 | RV18: 0 | RW18: 0 | RX18: 0 | RY18: 0 | RZ18: 0 | SA18: 0 | SB18: 0 | SC18: 0 | SD18: 0 | SE18: 0 | SF18: 0 | SG18: 0 | SH18: 0 | SI18: 0 | SJ18: 0 | SK18: 0 | SL18: 0 | SM18: 0 | SN18: 0 | SO18: 0 | SP18: 0 | SQ18: 0
D20: Annual Yield | E20: ='InputC - Operations'!$E$22 -> 1726.25279 | G20: kWh/kWp | L20: =$E$20*L7 -> 0 | M20: 0 | N20: 0 | O20: 0 | P20: 0 | Q20: 0 | R20: 0 | S20: 0 | T20: 0 | U20: 0 | V20: 0 | W20: 1726.25279 | X20: 1726.25279 | Y20: 1726.25279 | Z20: 1726.25279 | AA20: 1726.25279 | AB20: 1726.25279 | AC20: 1726.25279 | AD20: 1726.25279 | AE20: 1726.25279 | AF20: 1726.25279 | AG20: 1726.25279 | AH20: 1726.25279 | AI20: 1726.25279 | AJ20: 1726.25279 | AK20: 1726.25279 | AL20: 1726.25279 | AM20: 1726.25279 | AN20: 1726.25279 | AO20: 1726.25279 | AP20: 1726.25279 | AQ20: 1726.25279 | AR20: 1726.25279 | AS20: 1726.25279 | AT20: 1726.25279 | AU20: 1726.25279 | AV20: 1726.25279 | AW20: 1726.25279 | AX20: 1726.25279 | AY20: 1726.25279 | AZ20: 1726.25279 | BA20: 1726.25279 | BB20: 1726.25279 | BC20: 1726.25279 | BD20: 1726.25279 | BE20: 1726.25279 | BF20: 1726.25279 | BG20: 1726.25279 | BH20: 1726.25279 | BI20: 1726.25279 | BJ20: 1726.25279 | BK20: 1726.25279 | BL20: 1726.25279 | BM20: 1726.25279 | BN20: 1726.25279 | BO20: 1726.25279 | BP20: 1726.25279 | BQ20: 1726.25279 | BR20: 1726.25279 | BS20: 1726.25279 | BT20: 1726.25279 | BU20: 1726.25279 | BV20: 1726.25279 | BW20: 1726.25279 | BX20: =$E$20*BX7 -> 1726.25279 | BY20: 1726.25279 | BZ20: 1726.25279 | CA20: 1726.25279 | CB20: 1726.25279 | CC20: 1726.25279 | CD20: 1726.25279 | CE20: 1726.25279 | CF20: 1726.25279 | CG20: 1726.25279 | CH20: 1726.25279 | CI20: 1726.25279 | CJ20: 1726.25279 | CK20: 1726.25279 | CL20: 1726.25279 | CM20: 1726.25279 | CN20: 1726.25279 | CO20: 1726.25279 | CP20: 1726.25279 | CQ20: 1726.25279 | CR20: 1726.25279 | CS20: 1726.25279 | CT20: 1726.25279 | CU20: 1726.25279 | CV20: 1726.25279 | CW20: 1726.25279 | CX20: 1726.25279 | CY20: 1726.25279 | CZ20: 1726.25279 | DA20: 1726.25279 | DB20: 1726.25279 | DC20: 1726.25279 | DD20: 1726.25279 | DE20: 1726.25279 | DF20: 1726.25279 | DG20: 1726.25279 | DH20: 1726.25279 | DI20: 1726.25279 | DJ20: 1726.25279 | DK20: 1726.25279 | DL20: 1726.25279 | DM20: 1726.25279 | DN20: 1726.25279 | DO20: 1726.25279 | DP20: 1726.25279 | DQ20: 1726.25279 | DR20: 1726.25279 | DS20: 1726.25279 | DT20: 1726.25279 | DU20: 1726.25279 | DV20: 1726.25279 | DW20: 1726.25279 | DX20: 1726.25279 | DY20: 1726.25279 | DZ20: 1726.25279 | EA20: 1726.25279 | EB20: 1726.25279 | EC20: 1726.25279 | ED20: 1726.25279 | EE20: 1726.25279 | EF20: 1726.25279 | EG20: 1726.25279 | EH20: 1726.25279 | EI20: 1726.25279 | EJ20: =$E$20*EJ7 -> 1726.25279 | EK20: 1726.25279 | EL20: 1726.25279 | EM20: 1726.25279 | EN20: 1726.25279 | EO20: 1726.25279 | EP20: 1726.25279 | EQ20: 1726.25279 | ER20: 1726.25279 | ES20: 1726.25279 | ET20: 1726.25279 | EU20: 1726.25279 | EV20: 1726.25279 | EW20: 1726.25279 | EX20: 1726.25279 | EY20: 1726.25279 | EZ20: 1726.25279 | FA20: 1726.25279 | FB20: 1726.25279 | FC20: 1726.25279 | FD20: 1726.25279 | FE20: 1726.25279 | FF20: 1726.25279 | FG20: 1726.25279 | FH20: 1726.25279 | FI20: 1726.25279 | FJ20: 1726.25279 | FK20: 1726.25279 | FL20: 1726.25279 | FM20: 1726.25279 | FN20: 1726.25279 | FO20: 1726.25279 | FP20: 1726.25279 | FQ20: 1726.25279 | FR20: 1726.25279 | FS20: 1726.25279 | FT20: 1726.25279 | FU20: 1726.25279 | FV20: 1726.25279 | FW20: 1726.25279 | FX20: 1726.25279 | FY20: 1726.25279 | FZ20: 1726.25279 | GA20: 1726.25279 | GB20: 1726.25279 | GC20: 1726.25279 | GD20: 1726.25279 | GE20: 1726.25279 | GF20: 1726.25279 | GG20: 1726.25279 | GH20: 1726.25279 | GI20: 1726.25279 | GJ20: 1726.25279 | GK20: 1726.25279 | GL20: 1726.25279 | GM20: 1726.25279 | GN20: 1726.25279 | GO20: 1726.25279 | GP20: 1726.25279 | GQ20: 1726.25279 | GR20: 1726.25279 | GS20: 1726.25279 | GT20: 1726.25279 | GU20: 1726.25279 | GV20: =$E$20*GV7 -> 1726.25279 | GW20: 1726.25279 | GX20: 1726.25279 | GY20: 1726.25279 | GZ20: 1726.25279 | HA20: 1726.25279 | HB20: 1726.25279 | HC20: 1726.25279 | HD20: 1726.25279 | HE20: 1726.25279 | HF20: 1726.25279 | HG20: 1726.25279 | HH20: 1726.25279 | HI20: 1726.25279 | HJ20: 1726.25279 | HK20: 1726.25279 | HL20: 1726.25279 | HM20: 1726.25279 | HN20: 1726.25279 | HO20: 1726.25279 | HP20: 1726.25279 | HQ20: 1726.25279 | HR20: 1726.25279 | HS20: 1726.25279 | HT20: 1726.25279 | HU20: 1726.25279 | HV20: 1726.25279 | HW20: 1726.25279 | HX20: 1726.25279 | HY20: 1726.25279 | HZ20: 1726.25279 | IA20: 1726.25279 | IB20: 1726.25279 | IC20: 1726.25279 | ID20: 1726.25279 | IE20: 1726.25279 | IF20: 1726.25279 | IG20: 1726.25279 | IH20: 1726.25279 | II20: 1726.25279 | IJ20: 1726.25279 | IK20: 1726.25279 | IL20: 1726.25279 | IM20: 1726.25279 | IN20: 1726.25279 | IO20: 1726.25279 | IP20: 1726.25279 | IQ20: 1726.25279 | IR20: 1726.25279 | IS20: 1726.25279 | IT20: 1726.25279 | IU20: 1726.25279 | IV20: 1726.25279 | IW20: 1726.25279 | IX20: 1726.25279 | IY20: 1726.25279 | IZ20: 1726.25279 | JA20: 1726.25279 | JB20: 1726.25279 | JC20: 1726.25279 | JD20: 1726.25279 | JE20: 1726.25279 | JF20: 1726.25279 | JG20: 1726.25279 | JH20: =$E$20*JH7 -> 1726.25279 | JI20: 1726.25279 | JJ20: 1726.25279 | JK20: 1726.25279 | JL20: 1726.25279 | JM20: 1726.25279 | JN20: 1726.25279 | JO20: 1726.25279 | JP20: 1726.25279 | JQ20: 1726.25279 | JR20: 1726.25279 | JS20: 1726.25279 | JT20: 1726.25279 | JU20: 1726.25279 | JV20: 1726.25279 | JW20: 1726.25279 | JX20: 1726.25279 | JY20: 1726.25279 | JZ20: 1726.25279 | KA20: 1726.25279 | KB20: 1726.25279 | KC20: 1726.25279 | KD20: 1726.25279 | KE20: 1726.25279 | KF20: 1726.25279 | KG20: 1726.25279 | KH20: 1726.25279 | KI20: 1726.25279 | KJ20: 1726.25279 | KK20: 1726.25279 | KL20: 1726.25279 | KM20: 1726.25279 | KN20: 1726.25279 | KO20: 1726.25279 | KP20: 1726.25279 | KQ20: 1726.25279 | KR20: 1726.25279 | KS20: 1726.25279 | KT20: 1726.25279 | KU20: 1726.25279 | KV20: 1726.25279 | KW20: 1726.25279 | KX20: 1726.25279 | KY20: 1726.25279 | KZ20: 1726.25279 | LA20: 1726.25279 | LB20: 1726.25279 | LC20: 1726.25279 | LD20: 1726.25279 | LE20: 1726.25279 | LF20: 1726.25279 | LG20: 1726.25279 | LH20: 1726.25279 | LI20: 1726.25279 | LJ20: 1726.25279 | LK20: 1726.25279 | LL20: 1726.25279 | LM20: 1726.25279 | LN20: 1726.25279 | LO20: 1726.25279 | LP20: 1726.25279 | LQ20: 1726.25279 | LR20: 1726.25279 | LS20: 1726.25279 | LT20: =$E$20*LT7 -> 1726.25279 | LU20: 1726.25279 | LV20: 1726.25279 | LW20: 1726.25279 | LX20: 1726.25279 | LY20: 1726.25279 | LZ20: 1726.25279 | MA20: 1726.25279 | MB20: 1726.25279 | MC20: 1726.25279 | MD20: 1726.25279 | ME20: 1726.25279 | MF20: 1726.25279 | MG20: 1726.25279 | MH20: 1726.25279 | MI20: 1726.25279 | MJ20: 1726.25279 | MK20: 1726.25279 | ML20: 1726.25279 | MM20: 1726.25279 | MN20: 1726.25279 | MO20: 1726.25279 | MP20: 1726.25279 | MQ20: 1726.25279 | MR20: 1726.25279 | MS20: 1726.25279 | MT20: 1726.25279 | MU20: 1726.25279 | MV20: 1726.25279 | MW20: 1726.25279 | MX20: 1726.25279 | MY20: 1726.25279 | MZ20: 1726.25279 | NA20: 1726.25279 | NB20: 1726.25279 | NC20: 1726.25279 | ND20: 1726.25279 | NE20: 1726.25279 | NF20: 1726.25279 | NG20: 1726.25279 | NH20: 1726.25279 | NI20: 1726.25279 | NJ20: 1726.25279 | NK20: 1726.25279 | NL20: 1726.25279 | NM20: 1726.25279 | NN20: 1726.25279 | NO20: 1726.25279 | NP20: 1726.25279 | NQ20: 1726.25279 | NR20: 1726.25279 | NS20: 1726.25279 | NT20: 1726.25279 | NU20: 1726.25279 | NV20: 1726.25279 | NW20: 1726.25279 | NX20: 1726.25279 | NY20: 1726.25279 | NZ20: 1726.25279 | OA20: 1726.25279 | OB20: 1726.25279 | OC20: 1726.25279 | OD20: 1726.25279 | OE20: 1726.25279 | OF20: =$E$20*OF7 -> 1726.25279 | OG20: 1726.25279 | OH20: 1726.25279 | OI20: 1726.25279 | OJ20: 1726.25279 | OK20: 1726.25279 | OL20: 1726.25279 | OM20: 1726.25279 | ON20: 1726.25279 | OO20: 1726.25279 | OP20: 1726.25279 | OQ20: 1726.25279 | OR20: 1726.25279 | OS20: 1726.25279 | OT20: 1726.25279 | OU20: 1726.25279 | OV20: 1726.25279 | OW20: 1726.25279 | OX20: 1726.25279 | OY20: 1726.25279 | OZ20: 1726.25279 | PA20: 1726.25279 | PB20: 1726.25279 | PC20: 1726.25279 | PD20: 1726.25279 | PE20: 1726.25279 | PF20: 1726.25279 | PG20: 1726.25279 | PH20: 1726.25279 | PI20: 1726.25279 | PJ20: 1726.25279 | PK20: 1726.25279 | PL20: 1726.25279 | PM20: 1726.25279 | PN20: 1726.25279 | PO20: 1726.25279 | PP20: 1726.25279 | PQ20: 1726.25279 | PR20: 1726.25279 | PS20: 1726.25279 | PT20: 1726.25279 | PU20: 1726.25279 | PV20: 1726.25279 | PW20: 1726.25279 | PX20: 1726.25279 | PY20: 1726.25279 | PZ20: 1726.25279 | QA20: 0 | QB20: 0 | QC20: 0 | QD20: 0 | QE20: 0 | QF20: 0 | QG20: 0 | QH20: 0 | QI20: 0 | QJ20: 0 | QK20: 0 | QL20: 0 | QM20: 0 | QN20: 0 | QO20: 0 | QP20: 0 | QQ20: 0 | QR20: =$E$20*QR7 -> 0 | QS20: 0 | QT20: 0 | QU20: 0 | QV20: 0 | QW20: 0 | QX20: 0 | QY20: 0 | QZ20: 0 | RA20: 0 | RB20: 0 | RC20: 0 | RD20: 0 | RE20: 0 | RF20: 0 | RG20: 0 | RH20: 0 | RI20: 0 | RJ20: 0 | RK20: 0 | RL20: 0 | RM20: 0 | RN20: 0 | RO20: 0 | RP20: 0 | RQ20: 0 | RR20: 0 | RS20: 0 | RT20: 0 | RU20: 0 | RV20: 0 | RW20: 0 | RX20: 0 | RY20: 0 | RZ20: 0 | SA20: 0 | SB20: 0 | SC20: 0 | SD20: 0 | SE20: 0 | SF20: 0 | SG20: 0 | SH20: 0 | SI20: 0 | SJ20: 0 | SK20: 0 | SL20: 0 | SM20: 0 | SN20: 0 | SO20: 0 | SP20: 0 | SQ20: 0
D21: Annual Generation b/4 Degrad, Availiblity | G21: MWH | L21: =L20*L17 -> 0 | M21: =M20*M17 -> 0 | N21: 0 | O21: 0 | P21: 0 | Q21: 0 | R21: 0 | S21: 0 | T21: 0 | U21: 0 | V21: 0 | W21: 227865.3683 | X21: 227865.3683 | Y21: 227865.3683 | Z21: 227865.3683 | AA21: 227865.3683 | AB21: 227865.3683 | AC21: 227865.3683 | AD21: 227865.3683 | AE21: 227865.3683 | AF21: 227865.3683 | AG21: 227865.3683 | AH21: 227865.3683 | AI21: 227865.3683 | AJ21: 227865.3683 | AK21: 227865.3683 | AL21: 227865.3683 | AM21: 227865.3683 | AN21: 227865.3683 | AO21: 227865.3683 | AP21: 227865.3683 | AQ21: 227865.3683 | AR21: 227865.3683 | AS21: 227865.3683 | AT21: 227865.3683 | AU21: 227865.3683 | AV21: 227865.3683 | AW21: 227865.3683 | AX21: 227865.3683 | AY21: 227865.3683 | AZ21: 227865.3683 | BA21: 227865.3683 | BB21: 227865.3683 | BC21: 227865.3683 | BD21: 227865.3683 | BE21: 227865.3683 | BF21: 227865.3683 | BG21: 227865.3683 | BH21: 227865.3683 | BI21: 227865.3683 | BJ21: 227865.3683 | BK21: 227865.3683 | BL21: 227865.3683 | BM21: 227865.3683 | BN21: 227865.3683 | BO21: 227865.3683 | BP21: 227865.3683 | BQ21: 227865.3683 | BR21: 227865.3683 | BS21: 227865.3683 | BT21: 227865.3683 | BU21: 227865.3683 | BV21: 227865.3683 | BW21: 227865.3683 | BX21: 227865.3683 | BY21: =BY20*BY17 -> 227865.3683 | BZ21: 227865.3683 | CA21: 227865.3683 | CB21: 227865.3683 | CC21: 227865.3683 | CD21: 227865.3683 | CE21: 227865.3683 | CF21: 227865.3683 | CG21: 227865.3683 | CH21: 227865.3683 | CI21: 227865.3683 | CJ21: 227865.3683 | CK21: 227865.3683 | CL21: 227865.3683 | CM21: 227865.3683 | CN21: 227865.3683 | CO21: 227865.3683 | CP21: 227865.3683 | CQ21: 227865.3683 | CR21: 227865.3683 | CS21: 227865.3683 | CT21: 227865.3683 | CU21: 227865.3683 | CV21: 227865.3683 | CW21: 227865.3683 | CX21: 227865.3683 | CY21: 227865.3683 | CZ21: 227865.3683 | DA21: 227865.3683 | DB21: 227865.3683 | DC21: 227865.3683 | DD21: 227865.3683 | DE21: 227865.3683 | DF21: 227865.3683 | DG21: 227865.3683 | DH21: 227865.3683 | DI21: 227865.3683 | DJ21: 227865.3683 | DK21: 227865.3683 | DL21: 227865.3683 | DM21: 227865.3683 | DN21: 227865.3683 | DO21: 227865.3683 | DP21: 227865.3683 | DQ21: 227865.3683 | DR21: 227865.3683 | DS21: 227865.3683 | DT21: 227865.3683 | DU21: 227865.3683 | DV21: 227865.3683 | DW21: 227865.3683 | DX21: 227865.3683 | DY21: 227865.3683 | DZ21: 227865.3683 | EA21: 227865.3683 | EB21: 227865.3683 | EC21: 227865.3683 | ED21: 227865.3683 | EE21: 227865.3683 | EF21: 227865.3683 | EG21: 227865.3683 | EH21: 227865.3683 | EI21: 227865.3683 | EJ21: 227865.3683 | EK21: =EK20*EK17 -> 227865.3683 | EL21: 227865.3683 | EM21: 227865.3683 | EN21: 227865.3683 | EO21: 227865.3683 | EP21: 227865.3683 | EQ21: 227865.3683 | ER21: 227865.3683 | ES21: 227865.3683 | ET21: 227865.3683 | EU21: 227865.3683 | EV21: 227865.3683 | EW21: 227865.3683 | EX21: 227865.3683 | EY21: 227865.3683 | EZ21: 227865.3683 | FA21: 227865.3683 | FB21: 227865.3683 | FC21: 227865.3683 | FD21: 227865.3683 | FE21: 227865.3683 | FF21: 227865.3683 | FG21: 227865.3683 | FH21: 227865.3683 | FI21: 227865.3683 | FJ21: 227865.3683 | FK21: 227865.3683 | FL21: 227865.3683 | FM21: 227865.3683 | FN21: 227865.3683 | FO21: 227865.3683 | FP21: 227865.3683 | FQ21: 227865.3683 | FR21: 227865.3683 | FS21: 227865.3683 | FT21: 227865.3683 | FU21: 227865.3683 | FV21: 227865.3683 | FW21: 227865.3683 | FX21: 227865.3683 | FY21: 227865.3683 | FZ21: 227865.3683 | GA21: 227865.3683 | GB21: 227865.3683 | GC21: 227865.3683 | GD21: 227865.3683 | GE21: 227865.3683 | GF21: 227865.3683 | GG21: 227865.3683 | GH21: 227865.3683 | GI21: 227865.3683 | GJ21: 227865.3683 | GK21: 227865.3683 | GL21: 227865.3683 | GM21: 227865.3683 | GN21: 227865.3683 | GO21: 227865.3683 | GP21: 227865.3683 | GQ21: 227865.3683 | GR21: 227865.3683 | GS21: 227865.3683 | GT21: 227865.3683 | GU21: 227865.3683 | GV21: 227865.3683 | GW21: =GW20*GW17 -> 227865.3683 | GX21: 227865.3683 | GY21: 227865.3683 | GZ21: 227865.3683 | HA21: 227865.3683 | HB21: 227865.3683 | HC21: 227865.3683 | HD21: 227865.3683 | HE21: 227865.3683 | HF21: 227865.3683 | HG21: 227865.3683 | HH21: 227865.3683 | HI21: 227865.3683 | HJ21: 227865.3683 | HK21: 227865.3683 | HL21: 227865.3683 | HM21: 227865.3683 | HN21: 227865.3683 | HO21: 227865.3683 | HP21: 227865.3683 | HQ21: 227865.3683 | HR21: 227865.3683 | HS21: 227865.3683 | HT21: 227865.3683 | HU21: 227865.3683 | HV21: 227865.3683 | HW21: 227865.3683 | HX21: 227865.3683 | HY21: 227865.3683 | HZ21: 227865.3683 | IA21: 227865.3683 | IB21: 227865.3683 | IC21: 227865.3683 | ID21: 227865.3683 | IE21: 227865.3683 | IF21: 227865.3683 | IG21: 227865.3683 | IH21: 227865.3683 | II21: 227865.3683 | IJ21: 227865.3683 | IK21: 227865.3683 | IL21: 227865.3683 | IM21: 227865.3683 | IN21: 227865.3683 | IO21: 227865.3683 | IP21: 227865.3683 | IQ21: 227865.3683 | IR21: 227865.3683 | IS21: 227865.3683 | IT21: 227865.3683 | IU21: 227865.3683 | IV21: 227865.3683 | IW21: 227865.3683 | IX21: 227865.3683 | IY21: 227865.3683 | IZ21: 227865.3683 | JA21: 227865.3683 | JB21: 227865.3683 | JC21: 227865.3683 | JD21: 227865.3683 | JE21: 227865.3683 | JF21: 227865.3683 | JG21: 227865.3683 | JH21: 227865.3683 | JI21: =JI20*JI17 -> 227865.3683 | JJ21: 227865.3683 | JK21: 227865.3683 | JL21: 227865.3683 | JM21: 227865.3683 | JN21: 227865.3683 | JO21: 227865.3683 | JP21: 227865.3683 | JQ21: 227865.3683 | JR21: 227865.3683 | JS21: 227865.3683 | JT21: 227865.3683 | JU21: 227865.3683 | JV21: 227865.3683 | JW21: 227865.3683 | JX21: 227865.3683 | JY21: 227865.3683 | JZ21: 227865.3683 | KA21: 227865.3683 | KB21: 227865.3683 | KC21: 227865.3683 | KD21: 227865.3683 | KE21: 227865.3683 | KF21: 227865.3683 | KG21: 227865.3683 | KH21: 227865.3683 | KI21: 227865.3683 | KJ21: 227865.3683 | KK21: 227865.3683 | KL21: 227865.3683 | KM21: 227865.3683 | KN21: 227865.3683 | KO21: 227865.3683 | KP21: 227865.3683 | KQ21: 227865.3683 | KR21: 227865.3683 | KS21: 227865.3683 | KT21: 227865.3683 | KU21: 227865.3683 | KV21: 227865.3683 | KW21: 227865.3683 | KX21: 227865.3683 | KY21: 227865.3683 | KZ21: 227865.3683 | LA21: 227865.3683 | LB21: 227865.3683 | LC21: 227865.3683 | LD21: 227865.3683 | LE21: 227865.3683 | LF21: 227865.3683 | LG21: 227865.3683 | LH21: 227865.3683 | LI21: 227865.3683 | LJ21: 227865.3683 | LK21: 227865.3683 | LL21: 227865.3683 | LM21: 227865.3683 | LN21: 227865.3683 | LO21: 227865.3683 | LP21: 227865.3683 | LQ21: 227865.3683 | LR21: 227865.3683 | LS21: 227865.3683 | LT21: 227865.3683 | LU21: =LU20*LU17 -> 227865.3683 | LV21: 227865.3683 | LW21: 227865.3683 | LX21: 227865.3683 | LY21: 227865.3683 | LZ21: 227865.3683 | MA21: 227865.3683 | MB21: 227865.3683 | MC21: 227865.3683 | MD21: 227865.3683 | ME21: 227865.3683 | MF21: 227865.3683 | MG21: 227865.3683 | MH21: 227865.3683 | MI21: 227865.3683 | MJ21: 227865.3683 | MK21: 227865.3683 | ML21: 227865.3683 | MM21: 227865.3683 | MN21: 227865.3683 | MO21: 227865.3683 | MP21: 227865.3683 | MQ21: 227865.3683 | MR21: 227865.3683 | MS21: 227865.3683 | MT21: 227865.3683 | MU21: 227865.3683 | MV21: 227865.3683 | MW21: 227865.3683 | MX21: 227865.3683 | MY21: 227865.3683 | MZ21: 227865.3683 | NA21: 227865.3683 | NB21: 227865.3683 | NC21: 227865.3683 | ND21: 227865.3683 | NE21: 227865.3683 | NF21: 227865.3683 | NG21: 227865.3683 | NH21: 227865.3683 | NI21: 227865.3683 | NJ21: 227865.3683 | NK21: 227865.3683 | NL21: 227865.3683 | NM21: 227865.3683 | NN21: 227865.3683 | NO21: 227865.3683 | NP21: 227865.3683 | NQ21: 227865.3683 | NR21: 227865.3683 | NS21: 227865.3683 | NT21: 227865.3683 | NU21: 227865.3683 | NV21: 227865.3683 | NW21: 227865.3683 | NX21: 227865.3683 | NY21: 227865.3683 | NZ21: 227865.3683 | OA21: 227865.3683 | OB21: 227865.3683 | OC21: 227865.3683 | OD21: 227865.3683 | OE21: 227865.3683 | OF21: 227865.3683 | OG21: =OG20*OG17 -> 227865.3683 | OH21: 227865.3683 | OI21: 227865.3683 | OJ21: 227865.3683 | OK21: 227865.3683 | OL21: 227865.3683 | OM21: 227865.3683 | ON21: 227865.3683 | OO21: 227865.3683 | OP21: 227865.3683 | OQ21: 227865.3683 | OR21: 227865.3683 | OS21: 227865.3683 | OT21: 227865.3683 | OU21: 227865.3683 | OV21: 227865.3683 | OW21: 227865.3683 | OX21: 227865.3683 | OY21: 227865.3683 | OZ21: 227865.3683 | PA21: 227865.3683 | PB21: 227865.3683 | PC21: 227865.3683 | PD21: 227865.3683 | PE21: 227865.3683 | PF21: 227865.3683 | PG21: 227865.3683 | PH21: 227865.3683 | PI21: 227865.3683 | PJ21: 227865.3683 | PK21: 227865.3683 | PL21: 227865.3683 | PM21: 227865.3683 | PN21: 227865.3683 | PO21: 227865.3683 | PP21: 227865.3683 | PQ21: 227865.3683 | PR21: 227865.3683 | PS21: 227865.3683 | PT21: 227865.3683 | PU21: 227865.3683 | PV21: 227865.3683 | PW21: 227865.3683 | PX21: 227865.3683 | PY21: 227865.3683 | PZ21: 227865.3683 | QA21: 0 | QB21: 0 | QC21: 0 | QD21: 0 | QE21: 0 | QF21: 0 | QG21: 0 | QH21: 0 | QI21: 0 | QJ21: 0 | QK21: 0 | QL21: 0 | QM21: 0 | QN21: 0 | QO21: 0 | QP21: 0 | QQ21: 0 | QR21: 0 | QS21: =QS20*QS17 -> 0 | QT21: 0 | QU21: 0 | QV21: 0 | QW21: 0 | QX21: 0 | QY21: 0 | QZ21: 0 | RA21: 0 | RB21: 0 | RC21: 0 | RD21: 0 | RE21: 0 | RF21: 0 | RG21: 0 | RH21: 0 | RI21: 0 | RJ21: 0 | RK21: 0 | RL21: 0 | RM21: 0 | RN21: 0 | RO21: 0 | RP21: 0 | RQ21: 0 | RR21: 0 | RS21: 0 | RT21: 0 | RU21: 0 | RV21: 0 | RW21: 0 | RX21: 0 | RY21: 0 | RZ21: 0 | SA21: 0 | SB21: 0 | SC21: 0 | SD21: 0 | SE21: 0 | SF21: 0 | SG21: 0 | SH21: 0 | SI21: 0 | SJ21: 0 | SK21: 0 | SL21: 0 | SM21: 0 | SN21: 0 | SO21: 0 | SP21: 0 | SQ21: 0
D23: Availability Factor | E23: ='InputC - Operations'!$E$24 -> 0.99 | G23: Pct | L23: =$E$23*L7 -> 0 | M23: 0 | N23: 0 | O23: 0 | P23: 0 | Q23: 0 | R23: 0 | S23: 0 | T23: 0 | U23: 0 | V23: 0 | W23: 0.99 | X23: 0.99 | Y23: 0.99 | Z23: 0.99 | AA23: 0.99 | AB23: 0.99 | AC23: 0.99 | AD23: 0.99 | AE23: 0.99 | AF23: 0.99 | AG23: 0.99 | AH23: 0.99 | AI23: 0.99 | AJ23: 0.99 | AK23: 0.99 | AL23: 0.99 | AM23: 0.99 | AN23: 0.99 | AO23: 0.99 | AP23: 0.99 | AQ23: 0.99 | AR23: 0.99 | AS23: 0.99 | AT23: 0.99 | AU23: 0.99 | AV23: 0.99 | AW23: 0.99 | AX23: 0.99 | AY23: 0.99 | AZ23: 0.99 | BA23: 0.99 | BB23: 0.99 | BC23: 0.99 | BD23: 0.99 | BE23: 0.99 | BF23: 0.99 | BG23: 0.99 | BH23: 0.99 | BI23: 0.99 | BJ23: 0.99 | BK23: 0.99 | BL23: 0.99 | BM23: 0.99 | BN23: 0.99 | BO23: 0.99 | BP23: 0.99 | BQ23: 0.99 | BR23: 0.99 | BS23: 0.99 | BT23: 0.99 | BU23: 0.99 | BV23: 0.99 | BW23: 0.99 | BX23: =$E$23*BX7 -> 0.99 | BY23: 0.99 | BZ23: 0.99 | CA23: 0.99 | CB23: 0.99 | CC23: 0.99 | CD23: 0.99 | CE23: 0.99 | CF23: 0.99 | CG23: 0.99 | CH23: 0.99 | CI23: 0.99 | CJ23: 0.99 | CK23: 0.99 | CL23: 0.99 | CM23: 0.99 | CN23: 0.99 | CO23: 0.99 | CP23: 0.99 | CQ23: 0.99 | CR23: 0.99 | CS23: 0.99 | CT23: 0.99 | CU23: 0.99 | CV23: 0.99 | CW23: 0.99 | CX23: 0.99 | CY23: 0.99 | CZ23: 0.99 | DA23: 0.99 | DB23: 0.99 | DC23: 0.99 | DD23: 0.99 | DE23: 0.99 | DF23: 0.99 | DG23: 0.99 | DH23: 0.99 | DI23: 0.99 | DJ23: 0.99 | DK23: 0.99 | DL23: 0.99 | DM23: 0.99 | DN23: 0.99 | DO23: 0.99 | DP23: 0.99 | DQ23: 0.99 | DR23: 0.99 | DS23: 0.99 | DT23: 0.99 | DU23: 0.99 | DV23: 0.99 | DW23: 0.99 | DX23: 0.99 | DY23: 0.99 | DZ23: 0.99 | EA23: 0.99 | EB23: 0.99 | EC23: 0.99 | ED23: 0.99 | EE23: 0.99 | EF23: 0.99 | EG23: 0.99 | EH23: 0.99 | EI23: 0.99 | EJ23: =$E$23*EJ7 -> 0.99 | EK23: 0.99 | EL23: 0.99 | EM23: 0.99 | EN23: 0.99 | EO23: 0.99 | EP23: 0.99 | EQ23: 0.99 | ER23: 0.99 | ES23: 0.99 | ET23: 0.99 | EU23: 0.99 | EV23: 0.99 | EW23: 0.99 | EX23: 0.99 | EY23: 0.99 | EZ23: 0.99 | FA23: 0.99 | FB23: 0.99 | FC23: 0.99 | FD23: 0.99 | FE23: 0.99 | FF23: 0.99 | FG23: 0.99 | FH23: 0.99 | FI23: 0.99 | FJ23: 0.99 | FK23: 0.99 | FL23: 0.99 | FM23: 0.99 | FN23: 0.99 | FO23: 0.99 | FP23: 0.99 | FQ23: 0.99 | FR23: 0.99 | FS23: 0.99 | FT23: 0.99 | FU23: 0.99 | FV23: 0.99 | FW23: 0.99 | FX23: 0.99 | FY23: 0.99 | FZ23: 0.99 | GA23: 0.99 | GB23: 0.99 | GC23: 0.99 | GD23: 0.99 | GE23: 0.99 | GF23: 0.99 | GG23: 0.99 | GH23: 0.99 | GI23: 0.99 | GJ23: 0.99 | GK23: 0.99 | GL23: 0.99 | GM23: 0.99 | GN23: 0.99 | GO23: 0.99 | GP23: 0.99 | GQ23: 0.99 | GR23: 0.99 | GS23: 0.99 | GT23: 0.99 | GU23: 0.99 | GV23: =$E$23*GV7 -> 0.99 | GW23: 0.99 | GX23: 0.99 | GY23: 0.99 | GZ23: 0.99 | HA23: 0.99 | HB23: 0.99 | HC23: 0.99 | HD23: 0.99 | HE23: 0.99 | HF23: 0.99 | HG23: 0.99 | HH23: 0.99 | HI23: 0.99 | HJ23: 0.99 | HK23: 0.99 | HL23: 0.99 | HM23: 0.99 | HN23: 0.99 | HO23: 0.99 | HP23: 0.99 | HQ23: 0.99 | HR23: 0.99 | HS23: 0.99 | HT23: 0.99 | HU23: 0.99 | HV23: 0.99 | HW23: 0.99 | HX23: 0.99 | HY23: 0.99 | HZ23: 0.99 | IA23: 0.99 | IB23: 0.99 | IC23: 0.99 | ID23: 0.99 | IE23: 0.99 | IF23: 0.99 | IG23: 0.99 | IH23: 0.99 | II23: 0.99 | IJ23: 0.99 | IK23: 0.99 | IL23: 0.99 | IM23: 0.99 | IN23: 0.99 | IO23: 0.99 | IP23: 0.99 | IQ23: 0.99 | IR23: 0.99 | IS23: 0.99 | IT23: 0.99 | IU23: 0.99 | IV23: 0.99 | IW23: 0.99 | IX23: 0.99 | IY23: 0.99 | IZ23: 0.99 | JA23: 0.99 | JB23: 0.99 | JC23: 0.99 | JD23: 0.99 | JE23: 0.99 | JF23: 0.99 | JG23: 0.99 | JH23: =$E$23*JH7 -> 0.99 | JI23: 0.99 | JJ23: 0.99 | JK23: 0.99 | JL23: 0.99 | JM23: 0.99 | JN23: 0.99 | JO23: 0.99 | JP23: 0.99 | JQ23: 0.99 | JR23: 0.99 | JS23: 0.99 | JT23: 0.99 | JU23: 0.99 | JV23: 0.99 | JW23: 0.99 | JX23: 0.99 | JY23: 0.99 | JZ23: 0.99 | KA23: 0.99 | KB23: 0.99 | KC23: 0.99 | KD23: 0.99 | KE23: 0.99 | KF23: 0.99 | KG23: 0.99 | KH23: 0.99 | KI23: 0.99 | KJ23: 0.99 | KK23: 0.99 | KL23: 0.99 | KM23: 0.99 | KN23: 0.99 | KO23: 0.99 | KP23: 0.99 | KQ23: 0.99 | KR23: 0.99 | KS23: 0.99 | KT23: 0.99 | KU23: 0.99 | KV23: 0.99 | KW23: 0.99 | KX23: 0.99 | KY23: 0.99 | KZ23: 0.99 | LA23: 0.99 | LB23: 0.99 | LC23: 0.99 | LD23: 0.99 | LE23: 0.99 | LF23: 0.99 | LG23: 0.99 | LH23: 0.99 | LI23: 0.99 | LJ23: 0.99 | LK23: 0.99 | LL23: 0.99 | LM23: 0.99 | LN23: 0.99 | LO23: 0.99 | LP23: 0.99 | LQ23: 0.99 | LR23: 0.99 | LS23: 0.99 | LT23: =$E$23*LT7 -> 0.99 | LU23: 0.99 | LV23: 0.99 | LW23: 0.99 | LX23: 0.99 | LY23: 0.99 | LZ23: 0.99 | MA23: 0.99 | MB23: 0.99 | MC23: 0.99 | MD23: 0.99 | ME23: 0.99 | MF23: 0.99 | MG23: 0.99 | MH23: 0.99 | MI23: 0.99 | MJ23: 0.99 | MK23: 0.99 | ML23: 0.99 | MM23: 0.99 | MN23: 0.99 | MO23: 0.99 | MP23: 0.99 | MQ23: 0.99 | MR23: 0.99 | MS23: 0.99 | MT23: 0.99 | MU23: 0.99 | MV23: 0.99 | MW23: 0.99 | MX23: 0.99 | MY23: 0.99 | MZ23: 0.99 | NA23: 0.99 | NB23: 0.99 | NC23: 0.99 | ND23: 0.99 | NE23: 0.99 | NF23: 0.99 | NG23: 0.99 | NH23: 0.99 | NI23: 0.99 | NJ23: 0.99 | NK23: 0.99 | NL23: 0.99 | NM23: 0.99 | NN23: 0.99 | NO23: 0.99 | NP23: 0.99 | NQ23: 0.99 | NR23: 0.99 | NS23: 0.99 | NT23: 0.99 | NU23: 0.99 | NV23: 0.99 | NW23: 0.99 | NX23: 0.99 | NY23: 0.99 | NZ23: 0.99 | OA23: 0.99 | OB23: 0.99 | OC23: 0.99 | OD23: 0.99 | OE23: 0.99 | OF23: =$E$23*OF7 -> 0.99 | OG23: 0.99 | OH23: 0.99 | OI23: 0.99 | OJ23: 0.99 | OK23: 0.99 | OL23: 0.99 | OM23: 0.99 | ON23: 0.99 | OO23: 0.99 | OP23: 0.99 | OQ23: 0.99 | OR23: 0.99 | OS23: 0.99 | OT23: 0.99 | OU23: 0.99 | OV23: 0.99 | OW23: 0.99 | OX23: 0.99 | OY23: 0.99 | OZ23: 0.99 | PA23: 0.99 | PB23: 0.99 | PC23: 0.99 | PD23: 0.99 | PE23: 0.99 | PF23: 0.99 | PG23: 0.99 | PH23: 0.99 | PI23: 0.99 | PJ23: 0.99 | PK23: 0.99 | PL23: 0.99 | PM23: 0.99 | PN23: 0.99 | PO23: 0.99 | PP23: 0.99 | PQ23: 0.99 | PR23: 0.99 | PS23: 0.99 | PT23: 0.99 | PU23: 0.99 | PV23: 0.99 | PW23: 0.99 | PX23: 0.99 | PY23: 0.99 | PZ23: 0.99 | QA23: 0 | QB23: 0 | QC23: 0 | QD23: 0 | QE23: 0 | QF23: 0 | QG23: 0 | QH23: 0 | QI23: 0 | QJ23: 0 | QK23: 0 | QL23: 0 | QM23: 0 | QN23: 0 | QO23: 0 | QP23: 0 | QQ23: 0 | QR23: =$E$23*QR7 -> 0 | QS23: 0 | QT23: 0 | QU23: 0 | QV23: 0 | QW23: 0 | QX23: 0 | QY23: 0 | QZ23: 0 | RA23: 0 | RB23: 0 | RC23: 0 | RD23: 0 | RE23: 0 | RF23: 0 | RG23: 0 | RH23: 0 | RI23: 0 | RJ23: 0 | RK23: 0 | RL23: 0 | RM23: 0 | RN23: 0 | RO23: 0 | RP23: 0 | RQ23: 0 | RR23: 0 | RS23: 0 | RT23: 0 | RU23: 0 | RV23: 0 | RW23: 0 | RX23: 0 | RY23: 0 | RZ23: 0 | SA23: 0 | SB23: 0 | SC23: 0 | SD23: 0 | SE23: 0 | SF23: 0 | SG23: 0 | SH23: 0 | SI23: 0 | SJ23: 0 | SK23: 0 | SL23: 0 | SM23: 0 | SN23: 0 | SO23: 0 | SP23: 0 | SQ23: 0
D24: Available Generation | G24: MWH | L24: =L23*L21 -> 0 | M24: =M23*M21 -> 0 | N24: 0 | O24: 0 | P24: 0 | Q24: 0 | R24: 0 | S24: 0 | T24: 0 | U24: 0 | V24: 0 | W24: 225586.7146 | X24: 225586.7146 | Y24: 225586.7146 | Z24: 225586.7146 | AA24: 225586.7146 | AB24: 225586.7146 | AC24: 225586.7146 | AD24: 225586.7146 | AE24: 225586.7146 | AF24: 225586.7146 | AG24: 225586.7146 | AH24: 225586.7146 | AI24: 225586.7146 | AJ24: 225586.7146 | AK24: 225586.7146 | AL24: 225586.7146 | AM24: 225586.7146 | AN24: 225586.7146 | AO24: 225586.7146 | AP24: 225586.7146 | AQ24: 225586.7146 | AR24: 225586.7146 | AS24: 225586.7146 | AT24: 225586.7146 | AU24: 225586.7146 | AV24: 225586.7146 | AW24: 225586.7146 | AX24: 225586.7146 | AY24: 225586.7146 | AZ24: 225586.7146 | BA24: 225586.7146 | BB24: 225586.7146 | BC24: 225586.7146 | BD24: 225586.7146 | BE24: 225586.7146 | BF24: 225586.7146 | BG24: 225586.7146 | BH24: 225586.7146 | BI24: 225586.7146 | BJ24: 225586.7146 | BK24: 225586.7146 | BL24: 225586.7146 | BM24: 225586.7146 | BN24: 225586.7146 | BO24: 225586.7146 | BP24: 225586.7146 | BQ24: 225586.7146 | BR24: 225586.7146 | BS24: 225586.7146 | BT24: 225586.7146 | BU24: 225586.7146 | BV24: 225586.7146 | BW24: 225586.7146 | BX24: 225586.7146 | BY24: =BY23*BY21 -> 225586.7146 | BZ24: 225586.7146 | CA24: 225586.7146 | CB24: 225586.7146 | CC24: 225586.7146 | CD24: 225586.7146 | CE24: 225586.7146 | CF24: 225586.7146 | CG24: 225586.7146 | CH24: 225586.7146 | CI24: 225586.7146 | CJ24: 225586.7146 | CK24: 225586.7146 | CL24: 225586.7146 | CM24: 225586.7146 | CN24: 225586.7146 | CO24: 225586.7146 | CP24: 225586.7146 | CQ24: 225586.7146 | CR24: 225586.7146 | CS24: 225586.7146 | CT24: 225586.7146 | CU24: 225586.7146 | CV24: 225586.7146 | CW24: 225586.7146 | CX24: 225586.7146 | CY24: 225586.7146 | CZ24: 225586.7146 | DA24: 225586.7146 | DB24: 225586.7146 | DC24: 225586.7146 | DD24: 225586.7146 | DE24: 225586.7146 | DF24: 225586.7146 | DG24: 225586.7146 | DH24: 225586.7146 | DI24: 225586.7146 | DJ24: 225586.7146 | DK24: 225586.7146 | DL24: 225586.7146 | DM24: 225586.7146 | DN24: 225586.7146 | DO24: 225586.7146 | DP24: 225586.7146 | DQ24: 225586.7146 | DR24: 225586.7146 | DS24: 225586.7146 | DT24: 225586.7146 | DU24: 225586.7146 | DV24: 225586.7146 | DW24: 225586.7146 | DX24: 225586.7146 | DY24: 225586.7146 | DZ24: 225586.7146 | EA24: 225586.7146 | EB24: 225586.7146 | EC24: 225586.7146 | ED24: 225586.7146 | EE24: 225586.7146 | EF24: 225586.7146 | EG24: 225586.7146 | EH24: 225586.7146 | EI24: 225586.7146 | EJ24: 225586.7146 | EK24: =EK23*EK21 -> 225586.7146 | EL24: 225586.7146 | EM24: 225586.7146 | EN24: 225586.7146 | EO24: 225586.7146 | EP24: 225586.7146 | EQ24: 225586.7146 | ER24: 225586.7146 | ES24: 225586.7146 | ET24: 225586.7146 | EU24: 225586.7146 | EV24: 225586.7146 | EW24: 225586.7146 | EX24: 225586.7146 | EY24: 225586.7146 | EZ24: 225586.7146 | FA24: 225586.7146 | FB24: 225586.7146 | FC24: 225586.7146 | FD24: 225586.7146 | FE24: 225586.7146 | FF24: 225586.7146 | FG24: 225586.7146 | FH24: 225586.7146 | FI24: 225586.7146 | FJ24: 225586.7146 | FK24: 225586.7146 | FL24: 225586.7146 | FM24: 225586.7146 | FN24: 225586.7146 | FO24: 225586.7146 | FP24: 225586.7146 | FQ24: 225586.7146 | FR24: 225586.7146 | FS24: 225586.7146 | FT24: 225586.7146 | FU24: 225586.7146 | FV24: 225586.7146 | FW24: 225586.7146 | FX24: 225586.7146 | FY24: 225586.7146 | FZ24: 225586.7146 | GA24: 225586.7146 | GB24: 225586.7146 | GC24: 225586.7146 | GD24: 225586.7146 | GE24: 225586.7146 | GF24: 225586.7146 | GG24: 225586.7146 | GH24: 225586.7146 | GI24: 225586.7146 | GJ24: 225586.7146 | GK24: 225586.7146 | GL24: 225586.7146 | GM24: 225586.7146 | GN24: 225586.7146 | GO24: 225586.7146 | GP24: 225586.7146 | GQ24: 225586.7146 | GR24: 225586.7146 | GS24: 225586.7146 | GT24: 225586.7146 | GU24: 225586.7146 | GV24: 225586.7146 | GW24: =GW23*GW21 -> 225586.7146 | GX24: 225586.7146 | GY24: 225586.7146 | GZ24: 225586.7146 | HA24: 225586.7146 | HB24: 225586.7146 | HC24: 225586.7146 | HD24: 225586.7146 | HE24: 225586.7146 | HF24: 225586.7146 | HG24: 225586.7146 | HH24: 225586.7146 | HI24: 225586.7146 | HJ24: 225586.7146 | HK24: 225586.7146 | HL24: 225586.7146 | HM24: 225586.7146 | HN24: 225586.7146 | HO24: 225586.7146 | HP24: 225586.7146 | HQ24: 225586.7146 | HR24: 225586.7146 | HS24: 225586.7146 | HT24: 225586.7146 | HU24: 225586.7146 | HV24: 225586.7146 | HW24: 225586.7146 | HX24: 225586.7146 | HY24: 225586.7146 | HZ24: 225586.7146 | IA24: 225586.7146 | IB24: 225586.7146 | IC24: 225586.7146 | ID24: 225586.7146 | IE24: 225586.7146 | IF24: 225586.7146 | IG24: 225586.7146 | IH24: 225586.7146 | II24: 225586.7146 | IJ24: 225586.7146 | IK24: 225586.7146 | IL24: 225586.7146 | IM24: 225586.7146 | IN24: 225586.7146 | IO24: 225586.7146 | IP24: 225586.7146 | IQ24: 225586.7146 | IR24: 225586.7146 | IS24: 225586.7146 | IT24: 225586.7146 | IU24: 225586.7146 | IV24: 225586.7146 | IW24: 225586.7146 | IX24: 225586.7146 | IY24: 225586.7146 | IZ24: 225586.7146 | JA24: 225586.7146 | JB24: 225586.7146 | JC24: 225586.7146 | JD24: 225586.7146 | JE24: 225586.7146 | JF24: 225586.7146 | JG24: 225586.7146 | JH24: 225586.7146 | JI24: =JI23*JI21 -> 225586.7146 | JJ24: 225586.7146 | JK24: 225586.7146 | JL24: 225586.7146 | JM24: 225586.7146 | JN24: 225586.7146 | JO24: 225586.7146 | JP24: 225586.7146 | JQ24: 225586.7146 | JR24: 225586.7146 | JS24: 225586.7146 | JT24: 225586.7146 | JU24: 225586.7146 | JV24: 225586.7146 | JW24: 225586.7146 | JX24: 225586.7146 | JY24: 225586.7146 | JZ24: 225586.7146 | KA24: 225586.7146 | KB24: 225586.7146 | KC24: 225586.7146 | KD24: 225586.7146 | KE24: 225586.7146 | KF24: 225586.7146 | KG24: 225586.7146 | KH24: 225586.7146 | KI24: 225586.7146 | KJ24: 225586.7146 | KK24: 225586.7146 | KL24: 225586.7146 | KM24: 225586.7146 | KN24: 225586.7146 | KO24: 225586.7146 | KP24: 225586.7146 | KQ24: 225586.7146 | KR24: 225586.7146 | KS24: 225586.7146 | KT24: 225586.7146 | KU24: 225586.7146 | KV24: 225586.7146 | KW24: 225586.7146 | KX24: 225586.7146 | KY24: 225586.7146 | KZ24: 225586.7146 | LA24: 225586.7146 | LB24: 225586.7146 | LC24: 225586.7146 | LD24: 225586.7146 | LE24: 225586.7146 | LF24: 225586.7146 | LG24: 225586.7146 | LH24: 225586.7146 | LI24: 225586.7146 | LJ24: 225586.7146 | LK24: 225586.7146 | LL24: 225586.7146 | LM24: 225586.7146 | LN24: 225586.7146 | LO24: 225586.7146 | LP24: 225586.7146 | LQ24: 225586.7146 | LR24: 225586.7146 | LS24: 225586.7146 | LT24: 225586.7146 | LU24: =LU23*LU21 -> 225586.7146 | LV24: 225586.7146 | LW24: 225586.7146 | LX24: 225586.7146 | LY24: 225586.7146 | LZ24: 225586.7146 | MA24: 225586.7146 | MB24: 225586.7146 | MC24: 225586.7146 | MD24: 225586.7146 | ME24: 225586.7146 | MF24: 225586.7146 | MG24: 225586.7146 | MH24: 225586.7146 | MI24: 225586.7146 | MJ24: 225586.7146 | MK24: 225586.7146 | ML24: 225586.7146 | MM24: 225586.7146 | MN24: 225586.7146 | MO24: 225586.7146 | MP24: 225586.7146 | MQ24: 225586.7146 | MR24: 225586.7146 | MS24: 225586.7146 | MT24: 225586.7146 | MU24: 225586.7146 | MV24: 225586.7146 | MW24: 225586.7146 | MX24: 225586.7146 | MY24: 225586.7146 | MZ24: 225586.7146 | NA24: 225586.7146 | NB24: 225586.7146 | NC24: 225586.7146 | ND24: 225586.7146 | NE24: 225586.7146 | NF24: 225586.7146 | NG24: 225586.7146 | NH24: 225586.7146 | NI24: 225586.7146 | NJ24: 225586.7146 | NK24: 225586.7146 | NL24: 225586.7146 | NM24: 225586.7146 | NN24: 225586.7146 | NO24: 225586.7146 | NP24: 225586.7146 | NQ24: 225586.7146 | NR24: 225586.7146 | NS24: 225586.7146 | NT24: 225586.7146 | NU24: 225586.7146 | NV24: 225586.7146 | NW24: 225586.7146 | NX24: 225586.7146 | NY24: 225586.7146 | NZ24: 225586.7146 | OA24: 225586.7146 | OB24: 225586.7146 | OC24: 225586.7146 | OD24: 225586.7146 | OE24: 225586.7146 | OF24: 225586.7146 | OG24: =OG23*OG21 -> 225586.7146 | OH24: 225586.7146 | OI24: 225586.7146 | OJ24: 225586.7146 | OK24: 225586.7146 | OL24: 225586.7146 | OM24: 225586.7146 | ON24: 225586.7146 | OO24: 225586.7146 | OP24: 225586.7146 | OQ24: 225586.7146 | OR24: 225586.7146 | OS24: 225586.7146 | OT24: 225586.7146 | OU24: 225586.7146 | OV24: 225586.7146 | OW24: 225586.7146 | OX24: 225586.7146 | OY24: 225586.7146 | OZ24: 225586.7146 | PA24: 225586.7146 | PB24: 225586.7146 | PC24: 225586.7146 | PD24: 225586.7146 | PE24: 225586.7146 | PF24: 225586.7146 | PG24: 225586.7146 | PH24: 225586.7146 | PI24: 225586.7146 | PJ24: 225586.7146 | PK24: 225586.7146 | PL24: 225586.7146 | PM24: 225586.7146 | PN24: 225586.7146 | PO24: 225586.7146 | PP24: 225586.7146 | PQ24: 225586.7146 | PR24: 225586.7146 | PS24: 225586.7146 | PT24: 225586.7146 | PU24: 225586.7146 | PV24: 225586.7146 | PW24: 225586.7146 | PX24: 225586.7146 | PY24: 225586.7146 | PZ24: 225586.7146 | QA24: 0 | QB24: 0 | QC24: 0 | QD24: 0 | QE24: 0 | QF24: 0 | QG24: 0 | QH24: 0 | QI24: 0 | QJ24: 0 | QK24: 0 | QL24: 0 | QM24: 0 | QN24: 0 | QO24: 0 | QP24: 0 | QQ24: 0 | QR24: 0 | QS24: =QS23*QS21 -> 0 | QT24: 0 | QU24: 0 | QV24: 0 | QW24: 0 | QX24: 0 | QY24: 0 | QZ24: 0 | RA24: 0 | RB24: 0 | RC24: 0 | RD24: 0 | RE24: 0 | RF24: 0 | RG24: 0 | RH24: 0 | RI24: 0 | RJ24: 0 | RK24: 0 | RL24: 0 | RM24: 0 | RN24: 0 | RO24: 0 | RP24: 0 | RQ24: 0 | RR24: 0 | RS24: 0 | RT24: 0 | RU24: 0 | RV24: 0 | RW24: 0 | RX24: 0 | RY24: 0 | RZ24: 0 | SA24: 0 | SB24: 0 | SC24: 0 | SD24: 0 | SE24: 0 | SF24: 0 | SG24: 0 | SH24: 0 | SI24: 0 | SJ24: 0 | SK24: 0 | SL24: 0 | SM24: 0 | SN24: 0 | SO24: 0 | SP24: 0 | SQ24: 0
D26: Age in Periods | G26: Months | L26: =K26+L7 -> 0 | M26: =L26+M7 -> 0 | N26: 0 | O26: 0 | P26: 0 | Q26: 0 | R26: 0 | S26: 0 | T26: 0 | U26: 0 | V26: 0 | W26: 1 | X26: 2 | Y26: 3 | Z26: 4 | AA26: 5 | AB26: 6 | AC26: 7 | AD26: 8 | AE26: 9 | AF26: 10 | AG26: 11 | AH26: 12 | AI26: 13 | AJ26: 14 | AK26: 15 | AL26: 16 | AM26: 17 | AN26: 18 | AO26: 19 | AP26: 20 | AQ26: 21 | AR26: 22 | AS26: 23 | AT26: 24 | AU26: 25 | AV26: 26 | AW26: 27 | AX26: 28 | AY26: 29 | AZ26: 30 | BA26: 31 | BB26: 32 | BC26: 33 | BD26: 34 | BE26: 35 | BF26: 36 | BG26: 37 | BH26: 38 | BI26: 39 | BJ26: 40 | BK26: 41 | BL26: 42 | BM26: 43 | BN26: 44 | BO26: 45 | BP26: 46 | BQ26: 47 | BR26: 48 | BS26: 49 | BT26: 50 | BU26: 51 | BV26: 52 | BW26: 53 | BX26: 54 | BY26: =BX26+BY7 -> 55 | BZ26: 56 | CA26: 57 | CB26: 58 | CC26: 59 | CD26: 60 | CE26: 61 | CF26: 62 | CG26: 63 | CH26: 64 | CI26: 65 | CJ26: 66 | CK26: 67 | CL26: 68 | CM26: 69 | CN26: 70 | CO26: 71 | CP26: 72 | CQ26: 73 | CR26: 74 | CS26: 75 | CT26: 76 | CU26: 77 | CV26: 78 | CW26: 79 | CX26: 80 | CY26: 81 | CZ26: 82 | DA26: 83 | DB26: 84 | DC26: 85 | DD26: 86 | DE26: 87 | DF26: 88 | DG26: 89 | DH26: 90 | DI26: 91 | DJ26: 92 | DK26: 93 | DL26: 94 | DM26: 95 | DN26: 96 | DO26: 97 | DP26: 98 | DQ26: 99 | DR26: 100 | DS26: 101 | DT26: 102 | DU26: 103 | DV26: 104 | DW26: 105 | DX26: 106 | DY26: 107 | DZ26: 108 | EA26: 109 | EB26: 110 | EC26: 111 | ED26: 112 | EE26: 113 | EF26: 114 | EG26: 115 | EH26: 116 | EI26: 117 | EJ26: 118 | EK26: =EJ26+EK7 -> 119 | EL26: 120 | EM26: 121 | EN26: 122 | EO26: 123 | EP26: 124 | EQ26: 125 | ER26: 126 | ES26: 127 | ET26: 128 | EU26: 129 | EV26: 130 | EW26: 131 | EX26: 132 | EY26: 133 | EZ26: 134 | FA26: 135 | FB26: 136 | FC26: 137 | FD26: 138 | FE26: 139 | FF26: 140 | FG26: 141 | FH26: 142 | FI26: 143 | FJ26: 144 | FK26: 145 | FL26: 146 | FM26: 147 | FN26: 148 | FO26: 149 | FP26: 150 | FQ26: 151 | FR26: 152 | FS26: 153 | FT26: 154 | FU26: 155 | FV26: 156 | FW26: 157 | FX26: 158 | FY26: 159 | FZ26: 160 | GA26: 161 | GB26: 162 | GC26: 163 | GD26: 164 | GE26: 165 | GF26: 166 | GG26: 167 | GH26: 168 | GI26: 169 | GJ26: 170 | GK26: 171 | GL26: 172 | GM26: 173 | GN26: 174 | GO26: 175 | GP26: 176 | GQ26: 177 | GR26: 178 | GS26: 179 | GT26: 180 | GU26: 181 | GV26: 182 | GW26: =GV26+GW7 -> 183 | GX26: 184 | GY26: 185 | GZ26: 186 | HA26: 187 | HB26: 188 | HC26: 189 | HD26: 190 | HE26: 191 | HF26: 192 | HG26: 193 | HH26: 194 | HI26: 195 | HJ26: 196 | HK26: 197 | HL26: 198 | HM26: 199 | HN26: 200 | HO26: 201 | HP26: 202 | HQ26: 203 | HR26: 204 | HS26: 205 | HT26: 206 | HU26: 207 | HV26: 208 | HW26: 209 | HX26: 210 | HY26: 211 | HZ26: 212 | IA26: 213 | IB26: 214 | IC26: 215 | ID26: 216 | IE26: 217 | IF26: 218 | IG26: 219 | IH26: 220 | II26: 221 | IJ26: 222 | IK26: 223 | IL26: 224 | IM26: 225 | IN26: 226 | IO26: 227 | IP26: 228 | IQ26: 229 | IR26: 230 | IS26: 231 | IT26: 232 | IU26: 233 | IV26: 234 | IW26: 235 | IX26: 236 | IY26: 237 | IZ26: 238 | JA26: 239 | JB26: 240 | JC26: 241 | JD26: 242 | JE26: 243 | JF26: 244 | JG26: 245 | JH26: 246 | JI26: =JH26+JI7 -> 247 | JJ26: 248 | JK26: 249 | JL26: 250 | JM26: 251 | JN26: 252 | JO26: 253 | JP26: 254 | JQ26: 255 | JR26: 256 | JS26: 257 | JT26: 258 | JU26: 259 | JV26: 260 | JW26: 261 | JX26: 262 | JY26: 263 | JZ26: 264 | KA26: 265 | KB26: 266 | KC26: 267 | KD26: 268 | KE26: 269 | KF26: 270 | KG26: 271 | KH26: 272 | KI26: 273 | KJ26: 274 | KK26: 275 | KL26: 276 | KM26: 277 | KN26: 278 | KO26: 279 | KP26: 280 | KQ26: 281 | KR26: 282 | KS26: 283 | KT26: 284 | KU26: 285 | KV26: 286 | KW26: 287 | KX26: 288 | KY26: 289 | KZ26: 290 | LA26: 291 | LB26: 292 | LC26: 293 | LD26: 294 | LE26: 295 | LF26: 296 | LG26: 297 | LH26: 298 | LI26: 299 | LJ26: 300 | LK26: 301 | LL26: 302 | LM26: 303 | LN26: 304 | LO26: 305 | LP26: 306 | LQ26: 307 | LR26: 308 | LS26: 309 | LT26: 310 | LU26: =LT26+LU7 -> 311 | LV26: 312 | LW26: 313 | LX26: 314 | LY26: 315 | LZ26: 316 | MA26: 317 | MB26: 318 | MC26: 319 | MD26: 320 | ME26: 321 | MF26: 322 | MG26: 323 | MH26: 324 | MI26: 325 | MJ26: 326 | MK26: 327 | ML26: 328 | MM26: 329 | MN26: 330 | MO26: 331 | MP26: 332 | MQ26: 333 | MR26: 334 | MS26: 335 | MT26: 336 | MU26: 337 | MV26: 338 | MW26: 339 | MX26: 340 | MY26: 341 | MZ26: 342 | NA26: 343 | NB26: 344 | NC26: 345 | ND26: 346 | NE26: 347 | NF26: 348 | NG26: 349 | NH26: 350 | NI26: 351 | NJ26: 352 | NK26: 353 | NL26: 354 | NM26: 355 | NN26: 356 | NO26: 357 | NP26: 358 | NQ26: 359 | NR26: 360 | NS26: 361 | NT26: 362 | NU26: 363 | NV26: 364 | NW26: 365 | NX26: 366 | NY26: 367 | NZ26: 368 | OA26: 369 | OB26: 370 | OC26: 371 | OD26: 372 | OE26: 373 | OF26: 374 | OG26: =OF26+OG7 -> 375 | OH26: 376 | OI26: 377 | OJ26: 378 | OK26: 379 | OL26: 380 | OM26: 381 | ON26: 382 | OO26: 383 | OP26: 384 | OQ26: 385 | OR26: 386 | OS26: 387 | OT26: 388 | OU26: 389 | OV26: 390 | OW26: 391 | OX26: 392 | OY26: 393 | OZ26: 394 | PA26: 395 | PB26: 396 | PC26: 397 | PD26: 398 | PE26: 399 | PF26: 400 | PG26: 401 | PH26: 402 | PI26: 403 | PJ26: 404 | PK26: 405 | PL26: 406 | PM26: 407 | PN26: 408 | PO26: 409 | PP26: 410 | PQ26: 411 | PR26: 412 | PS26: 413 | PT26: 414 | PU26: 415 | PV26: 416 | PW26: 417 | PX26: 418 | PY26: 419 | PZ26: 420 | QA26: 420 | QB26: 420 | QC26: 420 | QD26: 420 | QE26: 420 | QF26: 420 | QG26: 420 | QH26: 420 | QI26: 420 | QJ26: 420 | QK26: 420 | QL26: 420 | QM26: 420 | QN26: 420 | QO26: 420 | QP26: 420 | QQ26: 420 | QR26: 420 | QS26: =QR26+QS7 -> 420 | QT26: 420 | QU26: 420 | QV26: 420 | QW26: 420 | QX26: 420 | QY26: 420 | QZ26: 420 | RA26: 420 | RB26: 420 | RC26: 420 | RD26: 420 | RE26: 420 | RF26: 420 | RG26: 420 | RH26: 420 | RI26: 420 | RJ26: 420 | RK26: 420 | RL26: 420 | RM26: 420 | RN26: 420 | RO26: 420 | RP26: 420 | RQ26: 420 | RR26: 420 | RS26: 420 | RT26: 420 | RU26: 420 | RV26: 420 | RW26: 420 | RX26: 420 | RY26: 420 | RZ26: 420 | SA26: 420 | SB26: 420 | SC26: 420 | SD26: 420 | SE26: 420 | SF26: 420 | SG26: 420 | SH26: 420 | SI26: 420 | SJ26: 420 | SK26: 420 | SL26: 420 | SM26: 420 | SN26: 420 | SO26: 420 | SP26: 420 | SQ26: 420
D27: Age in Years | G27: Years | L27: =ROUNDUP(L26/Months,0) -> 0 | M27: 0 | N27: 0 | O27: 0 | P27: 0 | Q27: 0 | R27: 0 | S27: 0 | T27: 0 | U27: 0 | V27: 0 | W27: 1 | X27: 1 | Y27: 1 | Z27: 1 | AA27: 1 | AB27: 1 | AC27: 1 | AD27: 1 | AE27: 1 | AF27: 1 | AG27: 1 | AH27: 1 | AI27: 2 | AJ27: 2 | AK27: 2 | AL27: 2 | AM27: 2 | AN27: 2 | AO27: 2 | AP27: 2 | AQ27: 2 | AR27: 2 | AS27: 2 | AT27: 2 | AU27: 3 | AV27: 3 | AW27: 3 | AX27: 3 | AY27: 3 | AZ27: 3 | BA27: 3 | BB27: 3 | BC27: 3 | BD27: 3 | BE27: 3 | BF27: 3 | BG27: 4 | BH27: 4 | BI27: 4 | BJ27: 4 | BK27: 4 | BL27: 4 | BM27: 4 | BN27: 4 | BO27: 4 | BP27: 4 | BQ27: 4 | BR27: 4 | BS27: 5 | BT27: 5 | BU27: 5 | BV27: 5 | BW27: 5 | BX27: =ROUNDUP(BX26/Months,0) -> 5 | BY27: 5 | BZ27: 5 | CA27: 5 | CB27: 5 | CC27: 5 | CD27: 5 | CE27: 6 | CF27: 6 | CG27: 6 | CH27: 6 | CI27: 6 | CJ27: 6 | CK27: 6 | CL27: 6 | CM27: 6 | CN27: 6 | CO27: 6 | CP27: 6 | CQ27: 7 | CR27: 7 | CS27: 7 | CT27: 7 | CU27: 7 | CV27: 7 | CW27: 7 | CX27: 7 | CY27: 7 | CZ27: 7 | DA27: 7 | DB27: 7 | DC27: 8 | DD27: 8 | DE27: 8 | DF27: 8 | DG27: 8 | DH27: 8 | DI27: 8 | DJ27: 8 | DK27: 8 | DL27: 8 | DM27: 8 | DN27: 8 | DO27: 9 | DP27: 9 | DQ27: 9 | DR27: 9 | DS27: 9 | DT27: 9 | DU27: 9 | DV27: 9 | DW27: 9 | DX27: 9 | DY27: 9 | DZ27: 9 | EA27: 10 | EB27: 10 | EC27: 10 | ED27: 10 | EE27: 10 | EF27: 10 | EG27: 10 | EH27: 10 | EI27: 10 | EJ27: =ROUNDUP(EJ26/Months,0) -> 10 | EK27: 10 | EL27: 10 | EM27: 11 | EN27: 11 | EO27: 11 | EP27: 11 | EQ27: 11 | ER27: 11 | ES27: 11 | ET27: 11 | EU27: 11 | EV27: 11 | EW27: 11 | EX27: 11 | EY27: 12 | EZ27: 12 | FA27: 12 | FB27: 12 | FC27: 12 | FD27: 12 | FE27: 12 | FF27: 12 | FG27: 12 | FH27: 12 | FI27: 12 | FJ27: 12 | FK27: 13 | FL27: 13 | FM27: 13 | FN27: 13 | FO27: 13 | FP27: 13 | FQ27: 13 | FR27: 13 | FS27: 13 | FT27: 13 | FU27: 13 | FV27: 13 | FW27: 14 | FX27: 14 | FY27: 14 | FZ27: 14 | GA27: 14 | GB27: 14 | GC27: 14 | GD27: 14 | GE27: 14 | GF27: 14 | GG27: 14 | GH27: 14 | GI27: 15 | GJ27: 15 | GK27: 15 | GL27: 15 | GM27: 15 | GN27: 15 | GO27: 15 | GP27: 15 | GQ27: 15 | GR27: 15 | GS27: 15 | GT27: 15 | GU27: 16 | GV27: =ROUNDUP(GV26/Months,0) -> 16 | GW27: 16 | GX27: 16 | GY27: 16 | GZ27: 16 | HA27: 16 | HB27: 16 | HC27: 16 | HD27: 16 | HE27: 16 | HF27: 16 | HG27: 17 | HH27: 17 | HI27: 17 | HJ27: 17 | HK27: 17 | HL27: 17 | HM27: 17 | HN27: 17 | HO27: 17 | HP27: 17 | HQ27: 17 | HR27: 17 | HS27: 18 | HT27: 18 | HU27: 18 | HV27: 18 | HW27: 18 | HX27: 18 | HY27: 18 | HZ27: 18 | IA27: 18 | IB27: 18 | IC27: 18 | ID27: 18 | IE27: 19 | IF27: 19 | IG27: 19 | IH27: 19 | II27: 19 | IJ27: 19 | IK27: 19 | IL27: 19 | IM27: 19 | IN27: 19 | IO27: 19 | IP27: 19 | IQ27: 20 | IR27: 20 | IS27: 20 | IT27: 20 | IU27: 20 | IV27: 20 | IW27: 20 | IX27: 20 | IY27: 20 | IZ27: 20 | JA27: 20 | JB27: 20 | JC27: 21 | JD27: 21 | JE27: 21 | JF27: 21 | JG27: 21 | JH27: =ROUNDUP(JH26/Months,0) -> 21 | JI27: 21 | JJ27: 21 | JK27: 21 | JL27: 21 | JM27: 21 | JN27: 21 | JO27: 22 | JP27: 22 | JQ27: 22 | JR27: 22 | JS27: 22 | JT27: 22 | JU27: 22 | JV27: 22 | JW27: 22 | JX27: 22 | JY27: 22 | JZ27: 22 | KA27: 23 | KB27: 23 | KC27: 23 | KD27: 23 | KE27: 23 | KF27: 23 | KG27: 23 | KH27: 23 | KI27: 23 | KJ27: 23 | KK27: 23 | KL27: 23 | KM27: 24 | KN27: 24 | KO27: 24 | KP27: 24 | KQ27: 24 | KR27: 24 | KS27: 24 | KT27: 24 | KU27: 24 | KV27: 24 | KW27: 24 | KX27: 24 | KY27: 25 | KZ27: 25 | LA27: 25 | LB27: 25 | LC27: 25 | LD27: 25 | LE27: 25 | LF27: 25 | LG27: 25 | LH27: 25 | LI27: 25 | LJ27: 25 | LK27: 26 | LL27: 26 | LM27: 26 | LN27: 26 | LO27: 26 | LP27: 26 | LQ27: 26 | LR27: 26 | LS27: 26 | LT27: =ROUNDUP(LT26/Months,0) -> 26 | LU27: 26 | LV27: 26 | LW27: 27 | LX27: 27 | LY27: 27 | LZ27: 27 | MA27: 27 | MB27: 27 | MC27: 27 | MD27: 27 | ME27: 27 | MF27: 27 | MG27: 27 | MH27: 27 | MI27: 28 | MJ27: 28 | MK27: 28 | ML27: 28 | MM27: 28 | MN27: 28 | MO27: 28 | MP27: 28 | MQ27: 28 | MR27: 28 | MS27: 28 | MT27: 28 | MU27: 29 | MV27: 29 | MW27: 29 | MX27: 29 | MY27: 29 | MZ27: 29 | NA27: 29 | NB27: 29 | NC27: 29 | ND27: 29 | NE27: 29 | NF27: 29 | NG27: 30 | NH27: 30 | NI27: 30 | NJ27: 30 | NK27: 30 | NL27: 30 | NM27: 30 | NN27: 30 | NO27: 30 | NP27: 30 | NQ27: 30 | NR27: 30 | NS27: 31 | NT27: 31 | NU27: 31 | NV27: 31 | NW27: 31 | NX27: 31 | NY27: 31 | NZ27: 31 | OA27: 31 | OB27: 31 | OC27: 31 | OD27: 31 | OE27: 32 | OF27: =ROUNDUP(OF26/Months,0) -> 32 | OG27: 32 | OH27: 32 | OI27: 32 | OJ27: 32 | OK27: 32 | OL27: 32 | OM27: 32 | ON27: 32 | OO27: 32 | OP27: 32 | OQ27: 33 | OR27: 33 | OS27: 33 | OT27: 33 | OU27: 33 | OV27: 33 | OW27: 33 | OX27: 33 | OY27: 33 | OZ27: 33 | PA27: 33 | PB27: 33 | PC27: 34 | PD27: 34 | PE27: 34 | PF27: 34 | PG27: 34 | PH27: 34 | PI27: 34 | PJ27: 34 | PK27: 34 | PL27: 34 | PM27: 34 | PN27: 34 | PO27: 35 | PP27: 35 | PQ27: 35 | PR27: 35 | PS27: 35 | PT27: 35 | PU27: 35 | PV27: 35 | PW27: 35 | PX27: 35 | PY27: 35 | PZ27: 35 | QA27: 35 | QB27: 35 | QC27: 35 | QD27: 35 | QE27: 35 | QF27: 35 | QG27: 35 | QH27: 35 | QI27: 35 | QJ27: 35 | QK27: 35 | QL27: 35 | QM27: 35 | QN27: 35 | QO27: 35 | QP27: 35 | QQ27: 35 | QR27: =ROUNDUP(QR26/Months,0) -> 35 | QS27: 35 | QT27: 35 | QU27: 35 | QV27: 35 | QW27: 35 | QX27: 35 | QY27: 35 | QZ27: 35 | RA27: 35 | RB27: 35 | RC27: 35 | RD27: 35 | RE27: 35 | RF27: 35 | RG27: 35 | RH27: 35 | RI27: 35 | RJ27: 35 | RK27: 35 | RL27: 35 | RM27: 35 | RN27: 35 | RO27: 35 | RP27: 35 | RQ27: 35 | RR27: 35 | RS27: 35 | RT27: 35 | RU27: 35 | RV27: 35 | RW27: 35 | RX27: 35 | RY27: 35 | RZ27: 35 | SA27: 35 | SB27: 35 | SC27: 35 | SD27: 35 | SE27: 35 | SF27: 35 | SG27: 35 | SH27: 35 | SI27: 35 | SJ27: 35 | SK27: 35 | SL27: 35 | SM27: 35 | SN27: 35 | SO27: 35 | SP27: 35 | SQ27: 35
D28: Annual Degradation | E28: =InputS!D39 -> High Degradation | G28: % p.a. | L28: =LOOKUP(L27,InputS!33:33,InputS!39:39) -> 0 | M28: =LOOKUP(M27,InputS!33:33,InputS!39:39) -> 0 | N28: =LOOKUP(N27,InputS!33:33,InputS!39:39) -> 0 | O28: =LOOKUP(O27,InputS!33:33,InputS!39:39) -> 0 | P28: =LOOKUP(P27,InputS!33:33,InputS!39:39) -> 0 | Q28: =LOOKUP(Q27,InputS!33:33,InputS!39:39) -> 0 | R28: =LOOKUP(R27,InputS!33:33,InputS!39:39) -> 0 | S28: =LOOKUP(S27,InputS!33:33,InputS!39:39) -> 0 | T28: =LOOKUP(T27,InputS!33:33,InputS!39:39) -> 0 | U28: =LOOKUP(U27,InputS!33:33,InputS!39:39) -> 0 | V28: =LOOKUP(V27,InputS!33:33,InputS!39:39) -> 0 | W28: =LOOKUP(W27,InputS!33:33,InputS!39:39) -> 0.0075 | X28: =LOOKUP(X27,InputS!33:33,InputS!39:39) -> 0.0075 | Y28: =LOOKUP(Y27,InputS!33:33,InputS!39:39) -> 0.0075 | Z28: =LOOKUP(Z27,InputS!33:33,InputS!39:39) -> 0.0075 | AA28: =LOOKUP(AA27,InputS!33:33,InputS!39:39) -> 0.0075 | AB28: =LOOKUP(AB27,InputS!33:33,InputS!39:39) -> 0.0075 | AC28: =LOOKUP(AC27,InputS!33:33,InputS!39:39) -> 0.0075 | AD28: =LOOKUP(AD27,InputS!33:33,InputS!39:39) -> 0.0075 | AE28: =LOOKUP(AE27,InputS!33:33,InputS!39:39) -> 0.0075 | AF28: =LOOKUP(AF27,InputS!33:33,InputS!39:39) -> 0.0075 | AG28: =LOOKUP(AG27,InputS!33:33,InputS!39:39) -> 0.0075 | AH28: =LOOKUP(AH27,InputS!33:33,InputS!39:39) -> 0.0075 | AI28: =LOOKUP(AI27,InputS!33:33,InputS!39:39) -> 0.0075 | AJ28: =LOOKUP(AJ27,InputS!33:33,InputS!39:39) -> 0.0075 | AK28: =LOOKUP(AK27,InputS!33:33,InputS!39:39) -> 0.0075 | AL28: =LOOKUP(AL27,InputS!33:33,InputS!39:39) -> 0.0075 | AM28: =LOOKUP(AM27,InputS!33:33,InputS!39:39) -> 0.0075 | AN28: =LOOKUP(AN27,InputS!33:33,InputS!39:39) -> 0.0075 | AO28: =LOOKUP(AO27,InputS!33:33,InputS!39:39) -> 0.0075 | AP28: =LOOKUP(AP27,InputS!33:33,InputS!39:39) -> 0.0075 | AQ28: =LOOKUP(AQ27,InputS!33:33,InputS!39:39) -> 0.0075 | AR28: =LOOKUP(AR27,InputS!33:33,InputS!39:39) -> 0.0075 | AS28: =LOOKUP(AS27,InputS!33:33,InputS!39:39) -> 0.0075 | AT28: =LOOKUP(AT27,InputS!33:33,InputS!39:39) -> 0.0075 | AU28: =LOOKUP(AU27,InputS!33:33,InputS!39:39) -> 0.0075 | AV28: =LOOKUP(AV27,InputS!33:33,InputS!39:39) -> 0.0075 | AW28: =LOOKUP(AW27,InputS!33:33,InputS!39:39) -> 0.0075 | AX28: =LOOKUP(AX27,InputS!33:33,InputS!39:39) -> 0.0075 | AY28: =LOOKUP(AY27,InputS!33:33,InputS!39:39) -> 0.0075 | AZ28: =LOOKUP(AZ27,InputS!33:33,InputS!39:39) -> 0.0075 | BA28: =LOOKUP(BA27,InputS!33:33,InputS!39:39) -> 0.0075 | BB28: =LOOKUP(BB27,InputS!33:33,InputS!39:39) -> 0.0075 | BC28: =LOOKUP(BC27,InputS!33:33,InputS!39:39) -> 0.0075 | BD28: =LOOKUP(BD27,InputS!33:33,InputS!39:39) -> 0.0075 | BE28: =LOOKUP(BE27,InputS!33:33,InputS!39:39) -> 0.0075 | BF28: =LOOKUP(BF27,InputS!33:33,InputS!39:39) -> 0.0075 | BG28: =LOOKUP(BG27,InputS!33:33,InputS!39:39) -> 0.0075 | BH28: =LOOKUP(BH27,InputS!33:33,InputS!39:39) -> 0.0075 | BI28: =LOOKUP(BI27,InputS!33:33,InputS!39:39) -> 0.0075 | BJ28: =LOOKUP(BJ27,InputS!33:33,InputS!39:39) -> 0.0075 | BK28: =LOOKUP(BK27,InputS!33:33,InputS!39:39) -> 0.0075 | BL28: =LOOKUP(BL27,InputS!33:33,InputS!39:39) -> 0.0075 | BM28: =LOOKUP(BM27,InputS!33:33,InputS!39:39) -> 0.0075 | BN28: =LOOKUP(BN27,InputS!33:33,InputS!39:39) -> 0.0075 | BO28: =LOOKUP(BO27,InputS!33:33,InputS!39:39) -> 0.0075 | BP28: =LOOKUP(BP27,InputS!33:33,InputS!39:39) -> 0.0075 | BQ28: =LOOKUP(BQ27,InputS!33:33,InputS!39:39) -> 0.0075 | BR28: =LOOKUP(BR27,InputS!33:33,InputS!39:39) -> 0.0075 | BS28: =LOOKUP(BS27,InputS!33:33,InputS!39:39) -> 0.0075 | BT28: =LOOKUP(BT27,InputS!33:33,InputS!39:39) -> 0.0075 | BU28: =LOOKUP(BU27,InputS!33:33,InputS!39:39) -> 0.0075 | BV28: =LOOKUP(BV27,InputS!33:33,InputS!39:39) -> 0.0075 | BW28: =LOOKUP(BW27,InputS!33:33,InputS!39:39) -> 0.0075 | BX28: =LOOKUP(BX27,InputS!33:33,InputS!39:39) -> 0.0075 | BY28: =LOOKUP(BY27,InputS!33:33,InputS!39:39) -> 0.0075 | BZ28: =LOOKUP(BZ27,InputS!33:33,InputS!39:39) -> 0.0075 | CA28: =LOOKUP(CA27,InputS!33:33,InputS!39:39) -> 0.0075 | CB28: =LOOKUP(CB27,InputS!33:33,InputS!39:39) -> 0.0075 | CC28: =LOOKUP(CC27,InputS!33:33,InputS!39:39) -> 0.0075 | CD28: =LOOKUP(CD27,InputS!33:33,InputS!39:39) -> 0.0075 | CE28: =LOOKUP(CE27,InputS!33:33,InputS!39:39) -> 0.0075 | CF28: =LOOKUP(CF27,InputS!33:33,InputS!39:39) -> 0.0075 | CG28: =LOOKUP(CG27,InputS!33:33,InputS!39:39) -> 0.0075 | CH28: =LOOKUP(CH27,InputS!33:33,InputS!39:39) -> 0.0075 | CI28: =LOOKUP(CI27,InputS!33:33,InputS!39:39) -> 0.0075 | CJ28: =LOOKUP(CJ27,InputS!33:33,InputS!39:39) -> 0.0075 | CK28: =LOOKUP(CK27,InputS!33:33,InputS!39:39) -> 0.0075 | CL28: =LOOKUP(CL27,InputS!33:33,InputS!39:39) -> 0.0075 | CM28: =LOOKUP(CM27,InputS!33:33,InputS!39:39) -> 0.0075 | CN28: =LOOKUP(CN27,InputS!33:33,InputS!39:39) -> 0.0075 | CO28: =LOOKUP(CO27,InputS!33:33,InputS!39:39) -> 0.0075 | CP28: =LOOKUP(CP27,InputS!33:33,InputS!39:39) -> 0.0075 | CQ28: =LOOKUP(CQ27,InputS!33:33,InputS!39:39) -> 0.0075 | CR28: =LOOKUP(CR27,InputS!33:33,InputS!39:39) -> 0.0075 | CS28: =LOOKUP(CS27,InputS!33:33,InputS!39:39) -> 0.0075 | CT28: =LOOKUP(CT27,InputS!33:33,InputS!39:39) -> 0.0075 | CU28: =LOOKUP(CU27,InputS!33:33,InputS!39:39) -> 0.0075 | CV28: =LOOKUP(CV27,InputS!33:33,InputS!39:39) -> 0.0075 | CW28: =LOOKUP(CW27,InputS!33:33,InputS!39:39) -> 0.0075 | CX28: =LOOKUP(CX27,InputS!33:33,InputS!39:39) -> 0.0075 | CY28: =LOOKUP(CY27,InputS!33:33,InputS!39:39) -> 0.0075 | CZ28: =LOOKUP(CZ27,InputS!33:33,InputS!39:39) -> 0.0075 | DA28: =LOOKUP(DA27,InputS!33:33,InputS!39:39) -> 0.0075 | DB28: =LOOKUP(DB27,InputS!33:33,InputS!39:39) -> 0.0075 | DC28: =LOOKUP(DC27,InputS!33:33,InputS!39:39) -> 0.0075 | DD28: =LOOKUP(DD27,InputS!33:33,InputS!39:39) -> 0.0075 | DE28: =LOOKUP(DE27,InputS!33:33,InputS!39:39) -> 0.0075 | DF28: =LOOKUP(DF27,InputS!33:33,InputS!39:39) -> 0.0075 | DG28: =LOOKUP(DG27,InputS!33:33,InputS!39:39) -> 0.0075 | DH28: =LOOKUP(DH27,InputS!33:33,InputS!39:39) -> 0.0075 | DI28: =LOOKUP(DI27,InputS!33:33,InputS!39:39) -> 0.0075 | DJ28: =LOOKUP(DJ27,InputS!33:33,InputS!39:39) -> 0.0075 | DK28: =LOOKUP(DK27,InputS!33:33,InputS!39:39) -> 0.0075 | DL28: =LOOKUP(DL27,InputS!33:33,InputS!39:39) -> 0.0075 | DM28: =LOOKUP(DM27,InputS!33:33,InputS!39:39) -> 0.0075 | DN28: =LOOKUP(DN27,InputS!33:33,InputS!39:39) -> 0.0075 | DO28: =LOOKUP(DO27,InputS!33:33,InputS!39:39) -> 0.0075 | DP28: =LOOKUP(DP27,InputS!33:33,InputS!39:39) -> 0.0075 | DQ28: =LOOKUP(DQ27,InputS!33:33,InputS!39:39) -> 0.0075 | DR28: =LOOKUP(DR27,InputS!33:33,InputS!39:39) -> 0.0075 | DS28: =LOOKUP(DS27,InputS!33:33,InputS!39:39) -> 0.0075 | DT28: =LOOKUP(DT27,InputS!33:33,InputS!39:39) -> 0.0075 | DU28: =LOOKUP(DU27,InputS!33:33,InputS!39:39) -> 0.0075 | DV28: =LOOKUP(DV27,InputS!33:33,InputS!39:39) -> 0.0075 | DW28: =LOOKUP(DW27,InputS!33:33,InputS!39:39) -> 0.0075 | DX28: =LOOKUP(DX27,InputS!33:33,InputS!39:39) -> 0.0075 | DY28: =LOOKUP(DY27,InputS!33:33,InputS!39:39) -> 0.0075 | DZ28: =LOOKUP(DZ27,InputS!33:33,InputS!39:39) -> 0.0075 | EA28: =LOOKUP(EA27,InputS!33:33,InputS!39:39) -> 0.0075 | EB28: =LOOKUP(EB27,InputS!33:33,InputS!39:39) -> 0.0075 | EC28: =LOOKUP(EC27,InputS!33:33,InputS!39:39) -> 0.0075 | ED28: =LOOKUP(ED27,InputS!33:33,InputS!39:39) -> 0.0075 | EE28: =LOOKUP(EE27,InputS!33:33,InputS!39:39) -> 0.0075 | EF28: =LOOKUP(EF27,InputS!33:33,InputS!39:39) -> 0.0075 | EG28: =LOOKUP(EG27,InputS!33:33,InputS!39:39) -> 0.0075 | EH28: =LOOKUP(EH27,InputS!33:33,InputS!39:39) -> 0.0075 | EI28: =LOOKUP(EI27,InputS!33:33,InputS!39:39) -> 0.0075 | EJ28: =LOOKUP(EJ27,InputS!33:33,InputS!39:39) -> 0.0075 | EK28: =LOOKUP(EK27,InputS!33:33,InputS!39:39) -> 0.0075 | EL28: =LOOKUP(EL27,InputS!33:33,InputS!39:39) -> 0.0075 | EM28: =LOOKUP(EM27,InputS!33:33,InputS!39:39) -> 0.0075 | EN28: =LOOKUP(EN27,InputS!33:33,InputS!39:39) -> 0.0075 | EO28: =LOOKUP(EO27,InputS!33:33,InputS!39:39) -> 0.0075 | EP28: =LOOKUP(EP27,InputS!33:33,InputS!39:39) -> 0.0075 | EQ28: =LOOKUP(EQ27,InputS!33:33,InputS!39:39) -> 0.0075 | ER28: =LOOKUP(ER27,InputS!33:33,InputS!39:39) -> 0.0075 | ES28: =LOOKUP(ES27,InputS!33:33,InputS!39:39) -> 0.0075 | ET28: =LOOKUP(ET27,InputS!33:33,InputS!39:39) -> 0.0075 | EU28: =LOOKUP(EU27,InputS!33:33,InputS!39:39) -> 0.0075 | EV28: =LOOKUP(EV27,InputS!33:33,InputS!39:39) -> 0.0075 | EW28: =LOOKUP(EW27,InputS!33:33,InputS!39:39) -> 0.0075 | EX28: =LOOKUP(EX27,InputS!33:33,InputS!39:39) -> 0.0075 | EY28: =LOOKUP(EY27,InputS!33:33,InputS!39:39) -> 0.0075 | EZ28: =LOOKUP(EZ27,InputS!33:33,InputS!39:39) -> 0.0075 | FA28: =LOOKUP(FA27,InputS!33:33,InputS!39:39) -> 0.0075 | FB28: =LOOKUP(FB27,InputS!33:33,InputS!39:39) -> 0.0075 | FC28: =LOOKUP(FC27,InputS!33:33,InputS!39:39) -> 0.0075 | FD28: =LOOKUP(FD27,InputS!33:33,InputS!39:39) -> 0.0075 | FE28: =LOOKUP(FE27,InputS!33:33,InputS!39:39) -> 0.0075 | FF28: =LOOKUP(FF27,InputS!33:33,InputS!39:39) -> 0.0075 | FG28: =LOOKUP(FG27,InputS!33:33,InputS!39:39) -> 0.0075 | FH28: =LOOKUP(FH27,InputS!33:33,InputS!39:39) -> 0.0075 | FI28: =LOOKUP(FI27,InputS!33:33,InputS!39:39) -> 0.0075 | FJ28: =LOOKUP(FJ27,InputS!33:33,InputS!39:39) -> 0.0075 | FK28: =LOOKUP(FK27,InputS!33:33,InputS!39:39) -> 0.0075 | FL28: =LOOKUP(FL27,InputS!33:33,InputS!39:39) -> 0.0075 | FM28: =LOOKUP(FM27,InputS!33:33,InputS!39:39) -> 0.0075 | FN28: =LOOKUP(FN27,InputS!33:33,InputS!39:39) -> 0.0075 | FO28: =LOOKUP(FO27,InputS!33:33,InputS!39:39) -> 0.0075 | FP28: =LOOKUP(FP27,InputS!33:33,InputS!39:39) -> 0.0075 | FQ28: =LOOKUP(FQ27,InputS!33:33,InputS!39:39) -> 0.0075 | FR28: =LOOKUP(FR27,InputS!33:33,InputS!39:39) -> 0.0075 | FS28: =LOOKUP(FS27,InputS!33:33,InputS!39:39) -> 0.0075 | FT28: =LOOKUP(FT27,InputS!33:33,InputS!39:39) -> 0.0075 | FU28: =LOOKUP(FU27,InputS!33:33,InputS!39:39) -> 0.0075 | FV28: =LOOKUP(FV27,InputS!33:33,InputS!39:39) -> 0.0075 | FW28: =LOOKUP(FW27,InputS!33:33,InputS!39:39) -> 0.0075 | FX28: =LOOKUP(FX27,InputS!33:33,InputS!39:39) -> 0.0075 | FY28: =LOOKUP(FY27,InputS!33:33,InputS!39:39) -> 0.0075 | FZ28: =LOOKUP(FZ27,InputS!33:33,InputS!39:39) -> 0.0075 | GA28: =LOOKUP(GA27,InputS!33:33,InputS!39:39) -> 0.0075 | GB28: =LOOKUP(GB27,InputS!33:33,InputS!39:39) -> 0.0075 | GC28: =LOOKUP(GC27,InputS!33:33,InputS!39:39) -> 0.0075 | GD28: =LOOKUP(GD27,InputS!33:33,InputS!39:39) -> 0.0075 | GE28: =LOOKUP(GE27,InputS!33:33,InputS!39:39) -> 0.0075 | GF28: =LOOKUP(GF27,InputS!33:33,InputS!39:39) -> 0.0075 | GG28: =LOOKUP(GG27,InputS!33:33,InputS!39:39) -> 0.0075 | GH28: =LOOKUP(GH27,InputS!33:33,InputS!39:39) -> 0.0075 | GI28: =LOOKUP(GI27,InputS!33:33,InputS!39:39) -> 0.0075 | GJ28: =LOOKUP(GJ27,InputS!33:33,InputS!39:39) -> 0.0075 | GK28: =LOOKUP(GK27,InputS!33:33,InputS!39:39) -> 0.0075 | GL28: =LOOKUP(GL27,InputS!33:33,InputS!39:39) -> 0.0075 | GM28: =LOOKUP(GM27,InputS!33:33,InputS!39:39) -> 0.0075 | GN28: =LOOKUP(GN27,InputS!33:33,InputS!39:39) -> 0.0075 | GO28: =LOOKUP(GO27,InputS!33:33,InputS!39:39) -> 0.0075 | GP28: =LOOKUP(GP27,InputS!33:33,InputS!39:39) -> 0.0075 | GQ28: =LOOKUP(GQ27,InputS!33:33,InputS!39:39) -> 0.0075 | GR28: =LOOKUP(GR27,InputS!33:33,InputS!39:39) -> 0.0075 | GS28: =LOOKUP(GS27,InputS!33:33,InputS!39:39) -> 0.0075 | GT28: =LOOKUP(GT27,InputS!33:33,InputS!39:39) -> 0.0075 | GU28: =LOOKUP(GU27,InputS!33:33,InputS!39:39) -> 0.0075 | GV28: =LOOKUP(GV27,InputS!33:33,InputS!39:39) -> 0.0075 | GW28: =LOOKUP(GW27,InputS!33:33,InputS!39:39) -> 0.0075 | GX28: =LOOKUP(GX27,InputS!33:33,InputS!39:39) -> 0.0075 | GY28: =LOOKUP(GY27,InputS!33:33,InputS!39:39) -> 0.0075 | GZ28: =LOOKUP(GZ27,InputS!33:33,InputS!39:39) -> 0.0075 | HA28: =LOOKUP(HA27,InputS!33:33,InputS!39:39) -> 0.0075 | HB28: =LOOKUP(HB27,InputS!33:33,InputS!39:39) -> 0.0075 | HC28: =LOOKUP(HC27,InputS!33:33,InputS!39:39) -> 0.0075 | HD28: =LOOKUP(HD27,InputS!33:33,InputS!39:39) -> 0.0075 | HE28: =LOOKUP(HE27,InputS!33:33,InputS!39:39) -> 0.0075 | HF28: =LOOKUP(HF27,InputS!33:33,InputS!39:39) -> 0.0075 | HG28: =LOOKUP(HG27,InputS!33:33,InputS!39:39) -> 0.0075 | HH28: =LOOKUP(HH27,InputS!33:33,InputS!39:39) -> 0.0075 | HI28: =LOOKUP(HI27,InputS!33:33,InputS!39:39) -> 0.0075 | HJ28: =LOOKUP(HJ27,InputS!33:33,InputS!39:39) -> 0.0075 | HK28: =LOOKUP(HK27,InputS!33:33,InputS!39:39) -> 0.0075 | HL28: =LOOKUP(HL27,InputS!33:33,InputS!39:39) -> 0.0075 | HM28: =LOOKUP(HM27,InputS!33:33,InputS!39:39) -> 0.0075 | HN28: =LOOKUP(HN27,InputS!33:33,InputS!39:39) -> 0.0075 | HO28: =LOOKUP(HO27,InputS!33:33,InputS!39:39) -> 0.0075 | HP28: =LOOKUP(HP27,InputS!33:33,InputS!39:39) -> 0.0075 | HQ28: =LOOKUP(HQ27,InputS!33:33,InputS!39:39) -> 0.0075 | HR28: =LOOKUP(HR27,InputS!33:33,InputS!39:39) -> 0.0075 | HS28: =LOOKUP(HS27,InputS!33:33,InputS!39:39) -> 0.0075 | HT28: =LOOKUP(HT27,InputS!33:33,InputS!39:39) -> 0.0075 | HU28: =LOOKUP(HU27,InputS!33:33,InputS!39:39) -> 0.0075 | HV28: =LOOKUP(HV27,InputS!33:33,InputS!39:39) -> 0.0075 | HW28: =LOOKUP(HW27,InputS!33:33,InputS!39:39) -> 0.0075 | HX28: =LOOKUP(HX27,InputS!33:33,InputS!39:39) -> 0.0075 | HY28: =LOOKUP(HY27,InputS!33:33,InputS!39:39) -> 0.0075 | HZ28: =LOOKUP(HZ27,InputS!33:33,InputS!39:39) -> 0.0075 | IA28: =LOOKUP(IA27,InputS!33:33,InputS!39:39) -> 0.0075 | IB28: =LOOKUP(IB27,InputS!33:33,InputS!39:39) -> 0.0075 | IC28: =LOOKUP(IC27,InputS!33:33,InputS!39:39) -> 0.0075 | ID28: =LOOKUP(ID27,InputS!33:33,InputS!39:39) -> 0.0075 | IE28: =LOOKUP(IE27,InputS!33:33,InputS!39:39) -> 0.0075 | IF28: =LOOKUP(IF27,InputS!33:33,InputS!39:39) -> 0.0075 | IG28: =LOOKUP(IG27,InputS!33:33,InputS!39:39) -> 0.0075 | IH28: =LOOKUP(IH27,InputS!33:33,InputS!39:39) -> 0.0075 | II28: =LOOKUP(II27,InputS!33:33,InputS!39:39) -> 0.0075 | IJ28: =LOOKUP(IJ27,InputS!33:33,InputS!39:39) -> 0.0075 | IK28: =LOOKUP(IK27,InputS!33:33,InputS!39:39) -> 0.0075 | IL28: =LOOKUP(IL27,InputS!33:33,InputS!39:39) -> 0.0075 | IM28: =LOOKUP(IM27,InputS!33:33,InputS!39:39) -> 0.0075 | IN28: =LOOKUP(IN27,InputS!33:33,InputS!39:39) -> 0.0075 | IO28: =LOOKUP(IO27,InputS!33:33,InputS!39:39) -> 0.0075 | IP28: =LOOKUP(IP27,InputS!33:33,InputS!39:39) -> 0.0075 | IQ28: =LOOKUP(IQ27,InputS!33:33,InputS!39:39) -> 0.0075 | IR28: =LOOKUP(IR27,InputS!33:33,InputS!39:39) -> 0.0075 | IS28: =LOOKUP(IS27,InputS!33:33,InputS!39:39) -> 0.0075 | IT28: =LOOKUP(IT27,InputS!33:33,InputS!39:39) -> 0.0075 | IU28: =LOOKUP(IU27,InputS!33:33,InputS!39:39) -> 0.0075 | IV28: =LOOKUP(IV27,InputS!33:33,InputS!39:39) -> 0.0075 | IW28: =LOOKUP(IW27,InputS!33:33,InputS!39:39) -> 0.0075 | IX28: =LOOKUP(IX27,InputS!33:33,InputS!39:39) -> 0.0075 | IY28: =LOOKUP(IY27,InputS!33:33,InputS!39:39) -> 0.0075 | IZ28: =LOOKUP(IZ27,InputS!33:33,InputS!39:39) -> 0.0075 | JA28: =LOOKUP(JA27,InputS!33:33,InputS!39:39) -> 0.0075 | JB28: =LOOKUP(JB27,InputS!33:33,InputS!39:39) -> 0.0075 | JC28: =LOOKUP(JC27,InputS!33:33,InputS!39:39) -> 0.0075 | JD28: =LOOKUP(JD27,InputS!33:33,InputS!39:39) -> 0.0075 | JE28: =LOOKUP(JE27,InputS!33:33,InputS!39:39) -> 0.0075 | JF28: =LOOKUP(JF27,InputS!33:33,InputS!39:39) -> 0.0075 | JG28: =LOOKUP(JG27,InputS!33:33,InputS!39:39) -> 0.0075 | JH28: =LOOKUP(JH27,InputS!33:33,InputS!39:39) -> 0.0075 | JI28: =LOOKUP(JI27,InputS!33:33,InputS!39:39) -> 0.0075 | JJ28: =LOOKUP(JJ27,InputS!33:33,InputS!39:39) -> 0.0075 | JK28: =LOOKUP(JK27,InputS!33:33,InputS!39:39) -> 0.0075 | JL28: =LOOKUP(JL27,InputS!33:33,InputS!39:39) -> 0.0075 | JM28: =LOOKUP(JM27,InputS!33:33,InputS!39:39) -> 0.0075 | JN28: =LOOKUP(JN27,InputS!33:33,InputS!39:39) -> 0.0075 | JO28: =LOOKUP(JO27,InputS!33:33,InputS!39:39) -> 0.0075 | JP28: =LOOKUP(JP27,InputS!33:33,InputS!39:39) -> 0.0075 | JQ28: =LOOKUP(JQ27,InputS!33:33,InputS!39:39) -> 0.0075 | JR28: =LOOKUP(JR27,InputS!33:33,InputS!39:39) -> 0.0075 | JS28: =LOOKUP(JS27,InputS!33:33,InputS!39:39) -> 0.0075 | JT28: =LOOKUP(JT27,InputS!33:33,InputS!39:39) -> 0.0075 | JU28: =LOOKUP(JU27,InputS!33:33,InputS!39:39) -> 0.0075 | JV28: =LOOKUP(JV27,InputS!33:33,InputS!39:39) -> 0.0075 | JW28: =LOOKUP(JW27,InputS!33:33,InputS!39:39) -> 0.0075 | JX28: =LOOKUP(JX27,InputS!33:33,InputS!39:39) -> 0.0075 | JY28: =LOOKUP(JY27,InputS!33:33,InputS!39:39) -> 0.0075 | JZ28: =LOOKUP(JZ27,InputS!33:33,InputS!39:39) -> 0.0075 | KA28: =LOOKUP(KA27,InputS!33:33,InputS!39:39) -> 0.0075 | KB28: =LOOKUP(KB27,InputS!33:33,InputS!39:39) -> 0.0075 | KC28: =LOOKUP(KC27,InputS!33:33,InputS!39:39) -> 0.0075 | KD28: =LOOKUP(KD27,InputS!33:33,InputS!39:39) -> 0.0075 | KE28: =LOOKUP(KE27,InputS!33:33,InputS!39:39) -> 0.0075 | KF28: =LOOKUP(KF27,InputS!33:33,InputS!39:39) -> 0.0075 | KG28: =LOOKUP(KG27,InputS!33:33,InputS!39:39) -> 0.0075 | KH28: =LOOKUP(KH27,InputS!33:33,InputS!39:39) -> 0.0075 | KI28: =LOOKUP(KI27,InputS!33:33,InputS!39:39) -> 0.0075 | KJ28: =LOOKUP(KJ27,InputS!33:33,InputS!39:39) -> 0.0075 | KK28: =LOOKUP(KK27,InputS!33:33,InputS!39:39) -> 0.0075 | KL28: =LOOKUP(KL27,InputS!33:33,InputS!39:39) -> 0.0075 | KM28: =LOOKUP(KM27,InputS!33:33,InputS!39:39) -> 0.0075 | KN28: =LOOKUP(KN27,InputS!33:33,InputS!39:39) -> 0.0075 | KO28: =LOOKUP(KO27,InputS!33:33,InputS!39:39) -> 0.0075 | KP28: =LOOKUP(KP27,InputS!33:33,InputS!39:39) -> 0.0075 | KQ28: =LOOKUP(KQ27,InputS!33:33,InputS!39:39) -> 0.0075 | KR28: =LOOKUP(KR27,InputS!33:33,InputS!39:39) -> 0.0075 | KS28: =LOOKUP(KS27,InputS!33:33,InputS!39:39) -> 0.0075 | KT28: =LOOKUP(KT27,InputS!33:33,InputS!39:39) -> 0.0075 | KU28: =LOOKUP(KU27,InputS!33:33,InputS!39:39) -> 0.0075 | KV28: =LOOKUP(KV27,InputS!33:33,InputS!39:39) -> 0.0075 | KW28: =LOOKUP(KW27,InputS!33:33,InputS!39:39) -> 0.0075 | KX28: =LOOKUP(KX27,InputS!33:33,InputS!39:39) -> 0.0075 | KY28: =LOOKUP(KY27,InputS!33:33,InputS!39:39) -> 0.0075 | KZ28: =LOOKUP(KZ27,InputS!33:33,InputS!39:39) -> 0.0075 | LA28: =LOOKUP(LA27,InputS!33:33,InputS!39:39) -> 0.0075 | LB28: =LOOKUP(LB27,InputS!33:33,InputS!39:39) -> 0.0075 | LC28: =LOOKUP(LC27,InputS!33:33,InputS!39:39) -> 0.0075 | LD28: =LOOKUP(LD27,InputS!33:33,InputS!39:39) -> 0.0075 | LE28: =LOOKUP(LE27,InputS!33:33,InputS!39:39) -> 0.0075 | LF28: =LOOKUP(LF27,InputS!33:33,InputS!39:39) -> 0.0075 | LG28: =LOOKUP(LG27,InputS!33:33,InputS!39:39) -> 0.0075 | LH28: =LOOKUP(LH27,InputS!33:33,InputS!39:39) -> 0.0075 | LI28: =LOOKUP(LI27,InputS!33:33,InputS!39:39) -> 0.0075 | LJ28: =LOOKUP(LJ27,InputS!33:33,InputS!39:39) -> 0.0075 | LK28: =LOOKUP(LK27,InputS!33:33,InputS!39:39) -> 0.0075 | LL28: =LOOKUP(LL27,InputS!33:33,InputS!39:39) -> 0.0075 | LM28: =LOOKUP(LM27,InputS!33:33,InputS!39:39) -> 0.0075 | LN28: =LOOKUP(LN27,InputS!33:33,InputS!39:39) -> 0.0075 | LO28: =LOOKUP(LO27,InputS!33:33,InputS!39:39) -> 0.0075 | LP28: =LOOKUP(LP27,InputS!33:33,InputS!39:39) -> 0.0075 | LQ28: =LOOKUP(LQ27,InputS!33:33,InputS!39:39) -> 0.0075 | LR28: =LOOKUP(LR27,InputS!33:33,InputS!39:39) -> 0.0075 | LS28: =LOOKUP(LS27,InputS!33:33,InputS!39:39) -> 0.0075 | LT28: =LOOKUP(LT27,InputS!33:33,InputS!39:39) -> 0.0075 | LU28: =LOOKUP(LU27,InputS!33:33,InputS!39:39) -> 0.0075 | LV28: =LOOKUP(LV27,InputS!33:33,InputS!39:39) -> 0.0075 | LW28: =LOOKUP(LW27,InputS!33:33,InputS!39:39) -> 0.0075 | LX28: =LOOKUP(LX27,InputS!33:33,InputS!39:39) -> 0.0075 | LY28: =LOOKUP(LY27,InputS!33:33,InputS!39:39) -> 0.0075 | LZ28: =LOOKUP(LZ27,InputS!33:33,InputS!39:39) -> 0.0075 | MA28: =LOOKUP(MA27,InputS!33:33,InputS!39:39) -> 0.0075 | MB28: =LOOKUP(MB27,InputS!33:33,InputS!39:39) -> 0.0075 | MC28: =LOOKUP(MC27,InputS!33:33,InputS!39:39) -> 0.0075 | MD28: =LOOKUP(MD27,InputS!33:33,InputS!39:39) -> 0.0075 | ME28: =LOOKUP(ME27,InputS!33:33,InputS!39:39) -> 0.0075 | MF28: =LOOKUP(MF27,InputS!33:33,InputS!39:39) -> 0.0075 | MG28: =LOOKUP(MG27,InputS!33:33,InputS!39:39) -> 0.0075 | MH28: =LOOKUP(MH27,InputS!33:33,InputS!39:39) -> 0.0075 | MI28: =LOOKUP(MI27,InputS!33:33,InputS!39:39) -> 0.0075 | MJ28: =LOOKUP(MJ27,InputS!33:33,InputS!39:39) -> 0.0075 | MK28: =LOOKUP(MK27,InputS!33:33,InputS!39:39) -> 0.0075 | ML28: =LOOKUP(ML27,InputS!33:33,InputS!39:39) -> 0.0075 | MM28: =LOOKUP(MM27,InputS!33:33,InputS!39:39) -> 0.0075 | MN28: =LOOKUP(MN27,InputS!33:33,InputS!39:39) -> 0.0075 | MO28: =LOOKUP(MO27,InputS!33:33,InputS!39:39) -> 0.0075 | MP28: =LOOKUP(MP27,InputS!33:33,InputS!39:39) -> 0.0075 | MQ28: =LOOKUP(MQ27,InputS!33:33,InputS!39:39) -> 0.0075 | MR28: =LOOKUP(MR27,InputS!33:33,InputS!39:39) -> 0.0075 | MS28: =LOOKUP(MS27,InputS!33:33,InputS!39:39) -> 0.0075 | MT28: =LOOKUP(MT27,InputS!33:33,InputS!39:39) -> 0.0075 | MU28: =LOOKUP(MU27,InputS!33:33,InputS!39:39) -> 0.0075 | MV28: =LOOKUP(MV27,InputS!33:33,InputS!39:39) -> 0.0075 | MW28: =LOOKUP(MW27,InputS!33:33,InputS!39:39) -> 0.0075 | MX28: =LOOKUP(MX27,InputS!33:33,InputS!39:39) -> 0.0075 | MY28: =LOOKUP(MY27,InputS!33:33,InputS!39:39) -> 0.0075 | MZ28: =LOOKUP(MZ27,InputS!33:33,InputS!39:39) -> 0.0075 | NA28: =LOOKUP(NA27,InputS!33:33,InputS!39:39) -> 0.0075 | NB28: =LOOKUP(NB27,InputS!33:33,InputS!39:39) -> 0.0075 | NC28: =LOOKUP(NC27,InputS!33:33,InputS!39:39) -> 0.0075 | ND28: =LOOKUP(ND27,InputS!33:33,InputS!39:39) -> 0.0075 | NE28: =LOOKUP(NE27,InputS!33:33,InputS!39:39) -> 0.0075 | NF28: =LOOKUP(NF27,InputS!33:33,InputS!39:39) -> 0.0075 | NG28: =LOOKUP(NG27,InputS!33:33,InputS!39:39) -> 0.0075 | NH28: =LOOKUP(NH27,InputS!33:33,InputS!39:39) -> 0.0075 | NI28: =LOOKUP(NI27,InputS!33:33,InputS!39:39) -> 0.0075 | NJ28: =LOOKUP(NJ27,InputS!33:33,InputS!39:39) -> 0.0075 | NK28: =LOOKUP(NK27,InputS!33:33,InputS!39:39) -> 0.0075 | NL28: =LOOKUP(NL27,InputS!33:33,InputS!39:39) -> 0.0075 | NM28: =LOOKUP(NM27,InputS!33:33,InputS!39:39) -> 0.0075 | NN28: =LOOKUP(NN27,InputS!33:33,InputS!39:39) -> 0.0075 | NO28: =LOOKUP(NO27,InputS!33:33,InputS!39:39) -> 0.0075 | NP28: =LOOKUP(NP27,InputS!33:33,InputS!39:39) -> 0.0075 | NQ28: =LOOKUP(NQ27,InputS!33:33,InputS!39:39) -> 0.0075 | NR28: =LOOKUP(NR27,InputS!33:33,InputS!39:39) -> 0.0075 | NS28: =LOOKUP(NS27,InputS!33:33,InputS!39:39) -> 0.0075 | NT28: =LOOKUP(NT27,InputS!33:33,InputS!39:39) -> 0.0075 | NU28: =LOOKUP(NU27,InputS!33:33,InputS!39:39) -> 0.0075 | NV28: =LOOKUP(NV27,InputS!33:33,InputS!39:39) -> 0.0075 | NW28: =LOOKUP(NW27,InputS!33:33,InputS!39:39) -> 0.0075 | NX28: =LOOKUP(NX27,InputS!33:33,InputS!39:39) -> 0.0075 | NY28: =LOOKUP(NY27,InputS!33:33,InputS!39:39) -> 0.0075 | NZ28: =LOOKUP(NZ27,InputS!33:33,InputS!39:39) -> 0.0075 | OA28: =LOOKUP(OA27,InputS!33:33,InputS!39:39) -> 0.0075 | OB28: =LOOKUP(OB27,InputS!33:33,InputS!39:39) -> 0.0075 | OC28: =LOOKUP(OC27,InputS!33:33,InputS!39:39) -> 0.0075 | OD28: =LOOKUP(OD27,InputS!33:33,InputS!39:39) -> 0.0075 | OE28: =LOOKUP(OE27,InputS!33:33,InputS!39:39) -> 0.0075 | OF28: =LOOKUP(OF27,InputS!33:33,InputS!39:39) -> 0.0075 | OG28: =LOOKUP(OG27,InputS!33:33,InputS!39:39) -> 0.0075 | OH28: =LOOKUP(OH27,InputS!33:33,InputS!39:39) -> 0.0075 | OI28: =LOOKUP(OI27,InputS!33:33,InputS!39:39) -> 0.0075 | OJ28: =LOOKUP(OJ27,InputS!33:33,InputS!39:39) -> 0.0075 | OK28: =LOOKUP(OK27,InputS!33:33,InputS!39:39) -> 0.0075 | OL28: =LOOKUP(OL27,InputS!33:33,InputS!39:39) -> 0.0075 | OM28: =LOOKUP(OM27,InputS!33:33,InputS!39:39) -> 0.0075 | ON28: =LOOKUP(ON27,InputS!33:33,InputS!39:39) -> 0.0075 | OO28: =LOOKUP(OO27,InputS!33:33,InputS!39:39) -> 0.0075 | OP28: =LOOKUP(OP27,InputS!33:33,InputS!39:39) -> 0.0075 | OQ28: =LOOKUP(OQ27,InputS!33:33,InputS!39:39) -> 0.0075 | OR28: =LOOKUP(OR27,InputS!33:33,InputS!39:39) -> 0.0075 | OS28: =LOOKUP(OS27,InputS!33:33,InputS!39:39) -> 0.0075 | OT28: =LOOKUP(OT27,InputS!33:33,InputS!39:39) -> 0.0075 | OU28: =LOOKUP(OU27,InputS!33:33,InputS!39:39) -> 0.0075 | OV28: =LOOKUP(OV27,InputS!33:33,InputS!39:39) -> 0.0075 | OW28: =LOOKUP(OW27,InputS!33:33,InputS!39:39) -> 0.0075 | OX28: =LOOKUP(OX27,InputS!33:33,InputS!39:39) -> 0.0075 | OY28: =LOOKUP(OY27,InputS!33:33,InputS!39:39) -> 0.0075 | OZ28: =LOOKUP(OZ27,InputS!33:33,InputS!39:39) -> 0.0075 | PA28: =LOOKUP(PA27,InputS!33:33,InputS!39:39) -> 0.0075 | PB28: =LOOKUP(PB27,InputS!33:33,InputS!39:39) -> 0.0075 | PC28: =LOOKUP(PC27,InputS!33:33,InputS!39:39) -> 0.0075 | PD28: =LOOKUP(PD27,InputS!33:33,InputS!39:39) -> 0.0075 | PE28: =LOOKUP(PE27,InputS!33:33,InputS!39:39) -> 0.0075 | PF28: =LOOKUP(PF27,InputS!33:33,InputS!39:39) -> 0.0075 | PG28: =LOOKUP(PG27,InputS!33:33,InputS!39:39) -> 0.0075 | PH28: =LOOKUP(PH27,InputS!33:33,InputS!39:39) -> 0.0075 | PI28: =LOOKUP(PI27,InputS!33:33,InputS!39:39) -> 0.0075 | PJ28: =LOOKUP(PJ27,InputS!33:33,InputS!39:39) -> 0.0075 | PK28: =LOOKUP(PK27,InputS!33:33,InputS!39:39) -> 0.0075 | PL28: =LOOKUP(PL27,InputS!33:33,InputS!39:39) -> 0.0075 | PM28: =LOOKUP(PM27,InputS!33:33,InputS!39:39) -> 0.0075 | PN28: =LOOKUP(PN27,InputS!33:33,InputS!39:39) -> 0.0075 | PO28: =LOOKUP(PO27,InputS!33:33,InputS!39:39) -> 0.0075 | PP28: =LOOKUP(PP27,InputS!33:33,InputS!39:39) -> 0.0075 | PQ28: =LOOKUP(PQ27,InputS!33:33,InputS!39:39) -> 0.0075 | PR28: =LOOKUP(PR27,InputS!33:33,InputS!39:39) -> 0.0075 | PS28: =LOOKUP(PS27,InputS!33:33,InputS!39:39) -> 0.0075 | PT28: =LOOKUP(PT27,InputS!33:33,InputS!39:39) -> 0.0075 | PU28: =LOOKUP(PU27,InputS!33:33,InputS!39:39) -> 0.0075 | PV28: =LOOKUP(PV27,InputS!33:33,InputS!39:39) -> 0.0075 | PW28: =LOOKUP(PW27,InputS!33:33,InputS!39:39) -> 0.0075 | PX28: =LOOKUP(PX27,InputS!33:33,InputS!39:39) -> 0.0075 | PY28: =LOOKUP(PY27,InputS!33:33,InputS!39:39) -> 0.0075 | PZ28: =LOOKUP(PZ27,InputS!33:33,InputS!39:39) -> 0.0075 | QA28: =LOOKUP(QA27,InputS!33:33,InputS!39:39) -> 0.0075 | QB28: =LOOKUP(QB27,InputS!33:33,InputS!39:39) -> 0.0075 | QC28: =LOOKUP(QC27,InputS!33:33,InputS!39:39) -> 0.0075 | QD28: =LOOKUP(QD27,InputS!33:33,InputS!39:39) -> 0.0075 | QE28: =LOOKUP(QE27,InputS!33:33,InputS!39:39) -> 0.0075 | QF28: =LOOKUP(QF27,InputS!33:33,InputS!39:39) -> 0.0075 | QG28: =LOOKUP(QG27,InputS!33:33,InputS!39:39) -> 0.0075 | QH28: =LOOKUP(QH27,InputS!33:33,InputS!39:39) -> 0.0075 | QI28: =LOOKUP(QI27,InputS!33:33,InputS!39:39) -> 0.0075 | QJ28: =LOOKUP(QJ27,InputS!33:33,InputS!39:39) -> 0.0075 | QK28: =LOOKUP(QK27,InputS!33:33,InputS!39:39) -> 0.0075 | QL28: =LOOKUP(QL27,InputS!33:33,InputS!39:39) -> 0.0075 | QM28: =LOOKUP(QM27,InputS!33:33,InputS!39:39) -> 0.0075 | QN28: =LOOKUP(QN27,InputS!33:33,InputS!39:39) -> 0.0075 | QO28: =LOOKUP(QO27,InputS!33:33,InputS!39:39) -> 0.0075 | QP28: =LOOKUP(QP27,InputS!33:33,InputS!39:39) -> 0.0075 | QQ28: =LOOKUP(QQ27,InputS!33:33,InputS!39:39) -> 0.0075 | QR28: =LOOKUP(QR27,InputS!33:33,InputS!39:39) -> 0.0075 | QS28: =LOOKUP(QS27,InputS!33:33,InputS!39:39) -> 0.0075 | QT28: =LOOKUP(QT27,InputS!33:33,InputS!39:39) -> 0.0075 | QU28: =LOOKUP(QU27,InputS!33:33,InputS!39:39) -> 0.0075 | QV28: =LOOKUP(QV27,InputS!33:33,InputS!39:39) -> 0.0075 | QW28: =LOOKUP(QW27,InputS!33:33,InputS!39:39) -> 0.0075 | QX28: =LOOKUP(QX27,InputS!33:33,InputS!39:39) -> 0.0075 | QY28: =LOOKUP(QY27,InputS!33:33,InputS!39:39) -> 0.0075 | QZ28: =LOOKUP(QZ27,InputS!33:33,InputS!39:39) -> 0.0075 | RA28: =LOOKUP(RA27,InputS!33:33,InputS!39:39) -> 0.0075 | RB28: =LOOKUP(RB27,InputS!33:33,InputS!39:39) -> 0.0075 | RC28: =LOOKUP(RC27,InputS!33:33,InputS!39:39) -> 0.0075 | RD28: =LOOKUP(RD27,InputS!33:33,InputS!39:39) -> 0.0075 | RE28: =LOOKUP(RE27,InputS!33:33,InputS!39:39) -> 0.0075 | RF28: =LOOKUP(RF27,InputS!33:33,InputS!39:39) -> 0.0075 | RG28: =LOOKUP(RG27,InputS!33:33,InputS!39:39) -> 0.0075 | RH28: =LOOKUP(RH27,InputS!33:33,InputS!39:39) -> 0.0075 | RI28: =LOOKUP(RI27,InputS!33:33,InputS!39:39) -> 0.0075 | RJ28: =LOOKUP(RJ27,InputS!33:33,InputS!39:39) -> 0.0075 | RK28: =LOOKUP(RK27,InputS!33:33,InputS!39:39) -> 0.0075 | RL28: =LOOKUP(RL27,InputS!33:33,InputS!39:39) -> 0.0075 | RM28: =LOOKUP(RM27,InputS!33:33,InputS!39:39) -> 0.0075 | RN28: =LOOKUP(RN27,InputS!33:33,InputS!39:39) -> 0.0075 | RO28: =LOOKUP(RO27,InputS!33:33,InputS!39:39) -> 0.0075 | RP28: =LOOKUP(RP27,InputS!33:33,InputS!39:39) -> 0.0075 | RQ28: =LOOKUP(RQ27,InputS!33:33,InputS!39:39) -> 0.0075 | RR28: =LOOKUP(RR27,InputS!33:33,InputS!39:39) -> 0.0075 | RS28: =LOOKUP(RS27,InputS!33:33,InputS!39:39) -> 0.0075 | RT28: =LOOKUP(RT27,InputS!33:33,InputS!39:39) -> 0.0075 | RU28: =LOOKUP(RU27,InputS!33:33,InputS!39:39) -> 0.0075 | RV28: =LOOKUP(RV27,InputS!33:33,InputS!39:39) -> 0.0075 | RW28: =LOOKUP(RW27,InputS!33:33,InputS!39:39) -> 0.0075 | RX28: =LOOKUP(RX27,InputS!33:33,InputS!39:39) -> 0.0075 | RY28: =LOOKUP(RY27,InputS!33:33,InputS!39:39) -> 0.0075 | RZ28: =LOOKUP(RZ27,InputS!33:33,InputS!39:39) -> 0.0075 | SA28: =LOOKUP(SA27,InputS!33:33,InputS!39:39) -> 0.0075 | SB28: =LOOKUP(SB27,InputS!33:33,InputS!39:39) -> 0.0075 | SC28: =LOOKUP(SC27,InputS!33:33,InputS!39:39) -> 0.0075 | SD28: =LOOKUP(SD27,InputS!33:33,InputS!39:39) -> 0.0075 | SE28: =LOOKUP(SE27,InputS!33:33,InputS!39:39) -> 0.0075 | SF28: =LOOKUP(SF27,InputS!33:33,InputS!39:39) -> 0.0075 | SG28: =LOOKUP(SG27,InputS!33:33,InputS!39:39) -> 0.0075 | SH28: =LOOKUP(SH27,InputS!33:33,InputS!39:39) -> 0.0075 | SI28: =LOOKUP(SI27,InputS!33:33,InputS!39:39) -> 0.0075 | SJ28: =LOOKUP(SJ27,InputS!33:33,InputS!39:39) -> 0.0075 | SK28: =LOOKUP(SK27,InputS!33:33,InputS!39:39) -> 0.0075 | SL28: =LOOKUP(SL27,InputS!33:33,InputS!39:39) -> 0.0075 | SM28: =LOOKUP(SM27,InputS!33:33,InputS!39:39) -> 0.0075 | SN28: =LOOKUP(SN27,InputS!33:33,InputS!39:39) -> 0.0075 | SO28: =LOOKUP(SO27,InputS!33:33,InputS!39:39) -> 0.0075 | SP28: =LOOKUP(SP27,InputS!33:33,InputS!39:39) -> 0.0075 | SQ28: =LOOKUP(SQ27,InputS!33:33,InputS!39:39) -> 0.0075
D29: Monthly Degradation | G29: % p.p. | L29: =(1+L28)^(1/Months)-1 -> 0 | M29: 0 | N29: 0 | O29: 0 | P29: 0 | Q29: 0 | R29: 0 | S29: 0 | T29: 0 | U29: 0 | V29: 0 | W29: 0.0006228618011 | X29: 0.0006228618011 | Y29: 0.0006228618011 | Z29: 0.0006228618011 | AA29: 0.0006228618011 | AB29: 0.0006228618011 | AC29: 0.0006228618011 | AD29: 0.0006228618011 | AE29: 0.0006228618011 | AF29: 0.0006228618011 | AG29: 0.0006228618011 | AH29: 0.0006228618011 | AI29: 0.0006228618011 | AJ29: 0.0006228618011 | AK29: 0.0006228618011 | AL29: 0.0006228618011 | AM29: 0.0006228618011 | AN29: 0.0006228618011 | AO29: 0.0006228618011 | AP29: 0.0006228618011 | AQ29: 0.0006228618011 | AR29: 0.0006228618011 | AS29: 0.0006228618011 | AT29: 0.0006228618011 | AU29: 0.0006228618011 | AV29: 0.0006228618011 | AW29: 0.0006228618011 | AX29: 0.0006228618011 | AY29: 0.0006228618011 | AZ29: 0.0006228618011 | BA29: 0.0006228618011 | BB29: 0.0006228618011 | BC29: 0.0006228618011 | BD29: 0.0006228618011 | BE29: 0.0006228618011 | BF29: 0.0006228618011 | BG29: 0.0006228618011 | BH29: 0.0006228618011 | BI29: 0.0006228618011 | BJ29: 0.0006228618011 | BK29: 0.0006228618011 | BL29: 0.0006228618011 | BM29: 0.0006228618011 | BN29: 0.0006228618011 | BO29: 0.0006228618011 | BP29: 0.0006228618011 | BQ29: 0.0006228618011 | BR29: 0.0006228618011 | BS29: 0.0006228618011 | BT29: 0.0006228618011 | BU29: 0.0006228618011 | BV29: 0.0006228618011 | BW29: 0.0006228618011 | BX29: =(1+BX28)^(1/Months)-1 -> 0.0006228618011 | BY29: 0.0006228618011 | BZ29: 0.0006228618011 | CA29: 0.0006228618011 | CB29: 0.0006228618011 | CC29: 0.0006228618011 | CD29: 0.0006228618011 | CE29: 0.0006228618011 | CF29: 0.0006228618011 | CG29: 0.0006228618011 | CH29: 0.0006228618011 | CI29: 0.0006228618011 | CJ29: 0.0006228618011 | CK29: 0.0006228618011 | CL29: 0.0006228618011 | CM29: 0.0006228618011 | CN29: 0.0006228618011 | CO29: 0.0006228618011 | CP29: 0.0006228618011 | CQ29: 0.0006228618011 | CR29: 0.0006228618011 | CS29: 0.0006228618011 | CT29: 0.0006228618011 | CU29: 0.0006228618011 | CV29: 0.0006228618011 | CW29: 0.0006228618011 | CX29: 0.0006228618011 | CY29: 0.0006228618011 | CZ29: 0.0006228618011 | DA29: 0.0006228618011 | DB29: 0.0006228618011 | DC29: 0.0006228618011 | DD29: 0.0006228618011 | DE29: 0.0006228618011 | DF29: 0.0006228618011 | DG29: 0.0006228618011 | DH29: 0.0006228618011 | DI29: 0.0006228618011 | DJ29: 0.0006228618011 | DK29: 0.0006228618011 | DL29: 0.0006228618011 | DM29: 0.0006228618011 | DN29: 0.0006228618011 | DO29: 0.0006228618011 | DP29: 0.0006228618011 | DQ29: 0.0006228618011 | DR29: 0.0006228618011 | DS29: 0.0006228618011 | DT29: 0.0006228618011 | DU29: 0.0006228618011 | DV29: 0.0006228618011 | DW29: 0.0006228618011 | DX29: 0.0006228618011 | DY29: 0.0006228618011 | DZ29: 0.0006228618011 | EA29: 0.0006228618011 | EB29: 0.0006228618011 | EC29: 0.0006228618011 | ED29: 0.0006228618011 | EE29: 0.0006228618011 | EF29: 0.0006228618011 | EG29: 0.0006228618011 | EH29: 0.0006228618011 | EI29: 0.0006228618011 | EJ29: =(1+EJ28)^(1/Months)-1 -> 0.0006228618011 | EK29: 0.0006228618011 | EL29: 0.0006228618011 | EM29: 0.0006228618011 | EN29: 0.0006228618011 | EO29: 0.0006228618011 | EP29: 0.0006228618011 | EQ29: 0.0006228618011 | ER29: 0.0006228618011 | ES29: 0.0006228618011 | ET29: 0.0006228618011 | EU29: 0.0006228618011 | EV29: 0.0006228618011 | EW29: 0.0006228618011 | EX29: 0.0006228618011 | EY29: 0.0006228618011 | EZ29: 0.0006228618011 | FA29: 0.0006228618011 | FB29: 0.0006228618011 | FC29: 0.0006228618011 | FD29: 0.0006228618011 | FE29: 0.0006228618011 | FF29: 0.0006228618011 | FG29: 0.0006228618011 | FH29: 0.0006228618011 | FI29: 0.0006228618011 | FJ29: 0.0006228618011 | FK29: 0.0006228618011 | FL29: 0.0006228618011 | FM29: 0.0006228618011 | FN29: 0.0006228618011 | FO29: 0.0006228618011 | FP29: 0.0006228618011 | FQ29: 0.0006228618011 | FR29: 0.0006228618011 | FS29: 0.0006228618011 | FT29: 0.0006228618011 | FU29: 0.0006228618011 | FV29: 0.0006228618011 | FW29: 0.0006228618011 | FX29: 0.0006228618011 | FY29: 0.0006228618011 | FZ29: 0.0006228618011 | GA29: 0.0006228618011 | GB29: 0.0006228618011 | GC29: 0.0006228618011 | GD29: 0.0006228618011 | GE29: 0.0006228618011 | GF29: 0.0006228618011 | GG29: 0.0006228618011 | GH29: 0.0006228618011 | GI29: 0.0006228618011 | GJ29: 0.0006228618011 | GK29: 0.0006228618011 | GL29: 0.0006228618011 | GM29: 0.0006228618011 | GN29: 0.0006228618011 | GO29: 0.0006228618011 | GP29: 0.0006228618011 | GQ29: 0.0006228618011 | GR29: 0.0006228618011 | GS29: 0.0006228618011 | GT29: 0.0006228618011 | GU29: 0.0006228618011 | GV29: =(1+GV28)^(1/Months)-1 -> 0.0006228618011 | GW29: 0.0006228618011 | GX29: 0.0006228618011 | GY29: 0.0006228618011 | GZ29: 0.0006228618011 | HA29: 0.0006228618011 | HB29: 0.0006228618011 | HC29: 0.0006228618011 | HD29: 0.0006228618011 | HE29: 0.0006228618011 | HF29: 0.0006228618011 | HG29: 0.0006228618011 | HH29: 0.0006228618011 | HI29: 0.0006228618011 | HJ29: 0.0006228618011 | HK29: 0.0006228618011 | HL29: 0.0006228618011 | HM29: 0.0006228618011 | HN29: 0.0006228618011 | HO29: 0.0006228618011 | HP29: 0.0006228618011 | HQ29: 0.0006228618011 | HR29: 0.0006228618011 | HS29: 0.0006228618011 | HT29: 0.0006228618011 | HU29: 0.0006228618011 | HV29: 0.0006228618011 | HW29: 0.0006228618011 | HX29: 0.0006228618011 | HY29: 0.0006228618011 | HZ29: 0.0006228618011 | IA29: 0.0006228618011 | IB29: 0.0006228618011 | IC29: 0.0006228618011 | ID29: 0.0006228618011 | IE29: 0.0006228618011 | IF29: 0.0006228618011 | IG29: 0.0006228618011 | IH29: 0.0006228618011 | II29: 0.0006228618011 | IJ29: 0.0006228618011 | IK29: 0.0006228618011 | IL29: 0.0006228618011 | IM29: 0.0006228618011 | IN29: 0.0006228618011 | IO29: 0.0006228618011 | IP29: 0.0006228618011 | IQ29: 0.0006228618011 | IR29: 0.0006228618011 | IS29: 0.0006228618011 | IT29: 0.0006228618011 | IU29: 0.0006228618011 | IV29: 0.0006228618011 | IW29: 0.0006228618011 | IX29: 0.0006228618011 | IY29: 0.0006228618011 | IZ29: 0.0006228618011 | JA29: 0.0006228618011 | JB29: 0.0006228618011 | JC29: 0.0006228618011 | JD29: 0.0006228618011 | JE29: 0.0006228618011 | JF29: 0.0006228618011 | JG29: 0.0006228618011 | JH29: =(1+JH28)^(1/Months)-1 -> 0.0006228618011 | JI29: 0.0006228618011 | JJ29: 0.0006228618011 | JK29: 0.0006228618011 | JL29: 0.0006228618011 | JM29: 0.0006228618011 | JN29: 0.0006228618011 | JO29: 0.0006228618011 | JP29: 0.0006228618011 | JQ29: 0.0006228618011 | JR29: 0.0006228618011 | JS29: 0.0006228618011 | JT29: 0.0006228618011 | JU29: 0.0006228618011 | JV29: 0.0006228618011 | JW29: 0.0006228618011 | JX29: 0.0006228618011 | JY29: 0.0006228618011 | JZ29: 0.0006228618011 | KA29: 0.0006228618011 | KB29: 0.0006228618011 | KC29: 0.0006228618011 | KD29: 0.0006228618011 | KE29: 0.0006228618011 | KF29: 0.0006228618011 | KG29: 0.0006228618011 | KH29: 0.0006228618011 | KI29: 0.0006228618011 | KJ29: 0.0006228618011 | KK29: 0.0006228618011 | KL29: 0.0006228618011 | KM29: 0.0006228618011 | KN29: 0.0006228618011 | KO29: 0.0006228618011 | KP29: 0.0006228618011 | KQ29: 0.0006228618011 | KR29: 0.0006228618011 | KS29: 0.0006228618011 | KT29: 0.0006228618011 | KU29: 0.0006228618011 | KV29: 0.0006228618011 | KW29: 0.0006228618011 | KX29: 0.0006228618011 | KY29: 0.0006228618011 | KZ29: 0.0006228618011 | LA29: 0.0006228618011 | LB29: 0.0006228618011 | LC29: 0.0006228618011 | LD29: 0.0006228618011 | LE29: 0.0006228618011 | LF29: 0.0006228618011 | LG29: 0.0006228618011 | LH29: 0.0006228618011 | LI29: 0.0006228618011 | LJ29: 0.0006228618011 | LK29: 0.0006228618011 | LL29: 0.0006228618011 | LM29: 0.0006228618011 | LN29: 0.0006228618011 | LO29: 0.0006228618011 | LP29: 0.0006228618011 | LQ29: 0.0006228618011 | LR29: 0.0006228618011 | LS29: 0.0006228618011 | LT29: =(1+LT28)^(1/Months)-1 -> 0.0006228618011 | LU29: 0.0006228618011 | LV29: 0.0006228618011 | LW29: 0.0006228618011 | LX29: 0.0006228618011 | LY29: 0.0006228618011 | LZ29: 0.0006228618011 | MA29: 0.0006228618011 | MB29: 0.0006228618011 | MC29: 0.0006228618011 | MD29: 0.0006228618011 | ME29: 0.0006228618011 | MF29: 0.0006228618011 | MG29: 0.0006228618011 | MH29: 0.0006228618011 | MI29: 0.0006228618011 | MJ29: 0.0006228618011 | MK29: 0.0006228618011 | ML29: 0.0006228618011 | MM29: 0.0006228618011 | MN29: 0.0006228618011 | MO29: 0.0006228618011 | MP29: 0.0006228618011 | MQ29: 0.0006228618011 | MR29: 0.0006228618011 | MS29: 0.0006228618011 | MT29: 0.0006228618011 | MU29: 0.0006228618011 | MV29: 0.0006228618011 | MW29: 0.0006228618011 | MX29: 0.0006228618011 | MY29: 0.0006228618011 | MZ29: 0.0006228618011 | NA29: 0.0006228618011 | NB29: 0.0006228618011 | NC29: 0.0006228618011 | ND29: 0.0006228618011 | NE29: 0.0006228618011 | NF29: 0.0006228618011 | NG29: 0.0006228618011 | NH29: 0.0006228618011 | NI29: 0.0006228618011 | NJ29: 0.0006228618011 | NK29: 0.0006228618011 | NL29: 0.0006228618011 | NM29: 0.0006228618011 | NN29: 0.0006228618011 | NO29: 0.0006228618011 | NP29: 0.0006228618011 | NQ29: 0.0006228618011 | NR29: 0.0006228618011 | NS29: 0.0006228618011 | NT29: 0.0006228618011 | NU29: 0.0006228618011 | NV29: 0.0006228618011 | NW29: 0.0006228618011 | NX29: 0.0006228618011 | NY29: 0.0006228618011 | NZ29: 0.0006228618011 | OA29: 0.0006228618011 | OB29: 0.0006228618011 | OC29: 0.0006228618011 | OD29: 0.0006228618011 | OE29: 0.0006228618011 | OF29: =(1+OF28)^(1/Months)-1 -> 0.0006228618011 | OG29: 0.0006228618011 | OH29: 0.0006228618011 | OI29: 0.0006228618011 | OJ29: 0.0006228618011 | OK29: 0.0006228618011 | OL29: 0.0006228618011 | OM29: 0.0006228618011 | ON29: 0.0006228618011 | OO29: 0.0006228618011 | OP29: 0.0006228618011 | OQ29: 0.0006228618011 | OR29: 0.0006228618011 | OS29: 0.0006228618011 | OT29: 0.0006228618011 | OU29: 0.0006228618011 | OV29: 0.0006228618011 | OW29: 0.0006228618011 | OX29: 0.0006228618011 | OY29: 0.0006228618011 | OZ29: 0.0006228618011 | PA29: 0.0006228618011 | PB29: 0.0006228618011 | PC29: 0.0006228618011 | PD29: 0.0006228618011 | PE29: 0.0006228618011 | PF29: 0.0006228618011 | PG29: 0.0006228618011 | PH29: 0.0006228618011 | PI29: 0.0006228618011 | PJ29: 0.0006228618011 | PK29: 0.0006228618011 | PL29: 0.0006228618011 | PM29: 0.0006228618011 | PN29: 0.0006228618011 | PO29: 0.0006228618011 | PP29: 0.0006228618011 | PQ29: 0.0006228618011 | PR29: 0.0006228618011 | PS29: 0.0006228618011 | PT29: 0.0006228618011 | PU29: 0.0006228618011 | PV29: 0.0006228618011 | PW29: 0.0006228618011 | PX29: 0.0006228618011 | PY29: 0.0006228618011 | PZ29: 0.0006228618011 | QA29: 0.0006228618011 | QB29: 0.0006228618011 | QC29: 0.0006228618011 | QD29: 0.0006228618011 | QE29: 0.0006228618011 | QF29: 0.0006228618011 | QG29: 0.0006228618011 | QH29: 0.0006228618011 | QI29: 0.0006228618011 | QJ29: 0.0006228618011 | QK29: 0.0006228618011 | QL29: 0.0006228618011 | QM29: 0.0006228618011 | QN29: 0.0006228618011 | QO29: 0.0006228618011 | QP29: 0.0006228618011 | QQ29: 0.0006228618011 | QR29: =(1+QR28)^(1/Months)-1 -> 0.0006228618011 | QS29: 0.0006228618011 | QT29: 0.0006228618011 | QU29: 0.0006228618011 | QV29: 0.0006228618011 | QW29: 0.0006228618011 | QX29: 0.0006228618011 | QY29: 0.0006228618011 | QZ29: 0.0006228618011 | RA29: 0.0006228618011 | RB29: 0.0006228618011 | RC29: 0.0006228618011 | RD29: 0.0006228618011 | RE29: 0.0006228618011 | RF29: 0.0006228618011 | RG29: 0.0006228618011 | RH29: 0.0006228618011 | RI29: 0.0006228618011 | RJ29: 0.0006228618011 | RK29: 0.0006228618011 | RL29: 0.0006228618011 | RM29: 0.0006228618011 | RN29: 0.0006228618011 | RO29: 0.0006228618011 | RP29: 0.0006228618011 | RQ29: 0.0006228618011 | RR29: 0.0006228618011 | RS29: 0.0006228618011 | RT29: 0.0006228618011 | RU29: 0.0006228618011 | RV29: 0.0006228618011 | RW29: 0.0006228618011 | RX29: 0.0006228618011 | RY29: 0.0006228618011 | RZ29: 0.0006228618011 | SA29: 0.0006228618011 | SB29: 0.0006228618011 | SC29: 0.0006228618011 | SD29: 0.0006228618011 | SE29: 0.0006228618011 | SF29: 0.0006228618011 | SG29: 0.0006228618011 | SH29: 0.0006228618011 | SI29: 0.0006228618011 | SJ29: 0.0006228618011 | SK29: 0.0006228618011 | SL29: 0.0006228618011 | SM29: 0.0006228618011 | SN29: 0.0006228618011 | SO29: 0.0006228618011 | SP29: 0.0006228618011 | SQ29: 0.0006228618011
D30: Monthly Degradation Index | G30: Index | K30: 1 | L30: =K30*(1-L29) -> 1 | M30: =L30*(1+M29) -> 1 | N30: 1 | O30: 1 | P30: 1 | Q30: 1 | R30: 1 | S30: 1 | T30: 1 | U30: 1 | V30: 1 | W30: 1.000622862 | X30: 1.001246112 | Y30: 1.00186975 | Z30: 1.002493776 | AA30: 1.003118191 | AB30: 1.003742995 | AC30: 1.004368188 | AD30: 1.004993771 | AE30: 1.005619743 | AF30: 1.006246105 | AG30: 1.006872857 | AH30: 1.0075 | AI30: 1.008127533 | AJ30: 1.008755457 | AK30: 1.009383773 | AL30: 1.010012479 | AM30: 1.010641577 | AN30: 1.011271067 | AO30: 1.01190095 | AP30: 1.012531224 | AQ30: 1.013161891 | AR30: 1.013792951 | AS30: 1.014424404 | AT30: 1.01505625 | AU30: 1.01568849 | AV30: 1.016321123 | AW30: 1.016954151 | AX30: 1.017587573 | AY30: 1.018221389 | AZ30: 1.0188556 | BA30: 1.019490207 | BB30: 1.020125208 | BC30: 1.020760605 | BD30: 1.021396398 | BE30: 1.022032587 | BF30: 1.022669172 | BG30: 1.023306153 | BH30: 1.023943532 | BI30: 1.024581307 | BJ30: 1.02521948 | BK30: 1.02585805 | BL30: 1.026497017 | BM30: 1.027136383 | BN30: 1.027776147 | BO30: 1.02841631 | BP30: 1.029056871 | BQ30: 1.029697831 | BR30: 1.030339191 | BS30: 1.03098095 | BT30: 1.031623108 | BU30: 1.032265667 | BV30: 1.032908626 | BW30: 1.033551985 | BX30: 1.034195745 | BY30: =BX30*(1+BY29) -> 1.034839906 | BZ30: 1.035484468 | CA30: 1.036129432 | CB30: 1.036774798 | CC30: 1.037420565 | CD30: 1.038066735 | CE30: 1.038713307 | CF30: 1.039360282 | CG30: 1.040007659 | CH30: 1.04065544 | CI30: 1.041303625 | CJ30: 1.041952213 | CK30: 1.042601205 | CL30: 1.043250602 | CM30: 1.043900403 | CN30: 1.044550609 | CO30: 1.045201219 | CP30: 1.045852235 | CQ30: 1.046503657 | CR30: 1.047155484 | CS30: 1.047807717 | CT30: 1.048460356 | CU30: 1.049113402 | CV30: 1.049766855 | CW30: 1.050420714 | CX30: 1.051074981 | CY30: 1.051729656 | CZ30: 1.052384738 | DA30: 1.053040228 | DB30: 1.053696127 | DC30: 1.054352434 | DD30: 1.05500915 | DE30: 1.055666275 | DF30: 1.056323809 | DG30: 1.056981753 | DH30: 1.057640106 | DI30: 1.05829887 | DJ30: 1.058958044 | DK30: 1.059617628 | DL30: 1.060277624 | DM30: 1.06093803 | DN30: 1.061598848 | DO30: 1.062260077 | DP30: 1.062921718 | DQ30: 1.063583772 | DR30: 1.064246237 | DS30: 1.064909116 | DT30: 1.065572407 | DU30: 1.066236111 | DV30: 1.066900229 | DW30: 1.06756476 | DX30: 1.068229706 | DY30: 1.068895065 | DZ30: 1.069560839 | EA30: 1.070227028 | EB30: 1.070893631 | EC30: 1.07156065 | ED30: 1.072228084 | EE30: 1.072895934 | EF30: 1.0735642 | EG30: 1.074232882 | EH30: 1.074901981 | EI30: 1.075571496 | EJ30: 1.076241429 | EK30: =EJ30*(1+EK29) -> 1.076911778 | EL30: 1.077582545 | EM30: 1.07825373 | EN30: 1.078925334 | EO30: 1.079597355 | EP30: 1.080269795 | EQ30: 1.080942654 | ER30: 1.081615932 | ES30: 1.082289629 | ET30: 1.082963746 | EU30: 1.083638282 | EV30: 1.084313239 | EW30: 1.084988617 | EX30: 1.085664415 | EY30: 1.086340633 | EZ30: 1.087017274 | FA30: 1.087694335 | FB30: 1.088371818 | FC30: 1.089049724 | FD30: 1.089728051 | FE30: 1.090406801 | FF30: 1.091085974 | FG30: 1.09176557 | FH30: 1.092445589 | FI30: 1.093126031 | FJ30: 1.093806898 | FK30: 1.094488188 | FL30: 1.095169903 | FM30: 1.095852043 | FN30: 1.096534607 | FO30: 1.097217596 | FP30: 1.097901011 | FQ30: 1.098584852 | FR30: 1.099269119 | FS30: 1.099953811 | FT30: 1.100638931 | FU30: 1.101324476 | FV30: 1.102010449 | FW30: 1.10269685 | FX30: 1.103383677 | FY30: 1.104070933 | FZ30: 1.104758617 | GA30: 1.105446728 | GB30: 1.106135269 | GC30: 1.106824238 | GD30: 1.107513637 | GE30: 1.108203465 | GF30: 1.108893722 | GG30: 1.10958441 | GH30: 1.110275528 | GI30: 1.110967076 | GJ30: 1.111659055 | GK30: 1.112351465 | GL30: 1.113044306 | GM30: 1.113737579 | GN30: 1.114431284 | GO30: 1.11512542 | GP30: 1.115819989 | GQ30: 1.116514991 | GR30: 1.117210425 | GS30: 1.117906293 | GT30: 1.118602594 | GU30: 1.119299329 | GV30: 1.119996498 | GW30: =GV30*(1+GW29) -> 1.120694101 | GX30: 1.121392138 | GY30: 1.122090611 | GZ30: 1.122789518 | HA30: 1.123488861 | HB30: 1.124188639 | HC30: 1.124888853 | HD30: 1.125589504 | HE30: 1.12629059 | HF30: 1.126992114 | HG30: 1.127694074 | HH30: 1.128396472 | HI30: 1.129099307 | HJ30: 1.129802579 | HK30: 1.13050629 | HL30: 1.13121044 | HM30: 1.131915027 | HN30: 1.132620054 | HO30: 1.13332552 | HP30: 1.134031425 | HQ30: 1.13473777 | HR30: 1.135444555 | HS30: 1.13615178 | HT30: 1.136859445 | HU30: 1.137567551 | HV30: 1.138276099 | HW30: 1.138985088 | HX30: 1.139694518 | HY30: 1.14040439 | HZ30: 1.141114704 | IA30: 1.141825461 | IB30: 1.142536661 | IC30: 1.143248303 | ID30: 1.143960389 | IE30: 1.144672918 | IF30: 1.145385891 | IG30: 1.146099308 | IH30: 1.14681317 | II30: 1.147527476 | IJ30: 1.148242227 | IK30: 1.148957423 | IL30: 1.149673065 | IM30: 1.150389152 | IN30: 1.151105686 | IO30: 1.151822665 | IP30: 1.152540092 | IQ30: 1.153257965 | IR30: 1.153976285 | IS30: 1.154695053 | IT30: 1.155414268 | IU30: 1.156133932 | IV30: 1.156854043 | IW30: 1.157574604 | IX30: 1.158295613 | IY30: 1.159017071 | IZ30: 1.159738978 | JA30: 1.160461335 | JB30: 1.161184142 | JC30: 1.1619074 | JD30: 1.162631107 | JE30: 1.163355266 | JF30: 1.164079875 | JG30: 1.164804936 | JH30: 1.165530449 | JI30: =JH30*(1+JI29) -> 1.166256413 | JJ30: 1.16698283 | JK30: 1.167709699 | JL30: 1.16843702 | JM30: 1.169164795 | JN30: 1.169893023 | JO30: 1.170621705 | JP30: 1.171350841 | JQ30: 1.17208043 | JR30: 1.172810474 | JS30: 1.173540973 | JT30: 1.174271927 | JU30: 1.175003336 | JV30: 1.175735201 | JW30: 1.176467521 | JX30: 1.177200298 | JY30: 1.177933531 | JZ30: 1.178667221 | KA30: 1.179401368 | KB30: 1.180135972 | KC30: 1.180871034 | KD30: 1.181606553 | KE30: 1.182342531 | KF30: 1.183078967 | KG30: 1.183815861 | KH30: 1.184553215 | KI30: 1.185291028 | KJ30: 1.1860293 | KK30: 1.186768033 | KL30: 1.187507225 | KM30: 1.188246878 | KN30: 1.188986992 | KO30: 1.189727566 | KP30: 1.190468602 | KQ30: 1.1912101 | KR30: 1.191952059 | KS30: 1.19269448 | KT30: 1.193437364 | KU30: 1.194180711 | KV30: 1.19492452 | KW30: 1.195668793 | KX30: 1.196413529 | KY30: 1.19715873 | KZ30: 1.197904394 | LA30: 1.198650523 | LB30: 1.199397117 | LC30: 1.200144175 | LD30: 1.200891699 | LE30: 1.201639689 | LF30: 1.202388144 | LG30: 1.203137066 | LH30: 1.203886454 | LI30: 1.204636309 | LJ30: 1.205386631 | LK30: 1.20613742 | LL30: 1.206888677 | LM30: 1.207640402 | LN30: 1.208392595 | LO30: 1.209145257 | LP30: 1.209898387 | LQ30: 1.210651986 | LR30: 1.211406055 | LS30: 1.212160594 | LT30: 1.212915602 | LU30: =LT30*(1+LU29) -> 1.213671081 | LV30: 1.214427031 | LW30: 1.215183451 | LX30: 1.215940342 | LY30: 1.216697705 | LZ30: 1.217455539 | MA30: 1.218213846 | MB30: 1.218972625 | MC30: 1.219731876 | MD30: 1.220491601 | ME30: 1.221251798 | MF30: 1.222012469 | MG30: 1.222773614 | MH30: 1.223535233 | MI30: 1.224297327 | MJ30: 1.225059895 | MK30: 1.225822938 | ML30: 1.226586456 | MM30: 1.22735045 | MN30: 1.22811492 | MO30: 1.228879865 | MP30: 1.229645288 | MQ30: 1.230411187 | MR30: 1.231177563 | MS30: 1.231944416 | MT30: 1.232711748 | MU30: 1.233479557 | MV30: 1.234247844 | MW30: 1.23501661 | MX30: 1.235785854 | MY30: 1.236555578 | MZ30: 1.237325781 | NA30: 1.238096464 | NB30: 1.238867627 | NC30: 1.239639271 | ND30: 1.240411395 | NE30: 1.241184 | NF30: 1.241957086 | NG30: 1.242730653 | NH30: 1.243504703 | NI30: 1.244279234 | NJ30: 1.245054248 | NK30: 1.245829745 | NL30: 1.246605725 | NM30: 1.247382188 | NN30: 1.248159135 | NO30: 1.248936565 | NP30: 1.24971448 | NQ30: 1.25049288 | NR30: 1.251271764 | NS30: 1.252051133 | NT30: 1.252830988 | NU30: 1.253611329 | NV30: 1.254392155 | NW30: 1.255173468 | NX30: 1.255955268 | NY30: 1.256737554 | NZ30: 1.257520328 | OA30: 1.25830359 | OB30: 1.259087339 | OC30: 1.259871576 | OD30: 1.260656302 | OE30: 1.261441517 | OF30: 1.26222722 | OG30: =OF30*(1+OG29) -> 1.263013414 | OH30: 1.263800096 | OI30: 1.264587269 | OJ30: 1.265374932 | OK30: 1.266163086 | OL30: 1.266951731 | OM30: 1.267740866 | ON30: 1.268530494 | OO30: 1.269320613 | OP30: 1.270111224 | OQ30: 1.270902328 | OR30: 1.271693925 | OS30: 1.272486014 | OT30: 1.273278597 | OU30: 1.274071674 | OV30: 1.274865244 | OW30: 1.275659309 | OX30: 1.276453869 | OY30: 1.277248923 | OZ30: 1.278044473 | PA30: 1.278840518 | PB30: 1.279637058 | PC30: 1.280434096 | PD30: 1.281231629 | PE30: 1.282029659 | PF30: 1.282828187 | PG30: 1.283627211 | PH30: 1.284426734 | PI30: 1.285226754 | PJ30: 1.286027273 | PK30: 1.28682829 | PL30: 1.287629806 | PM30: 1.288431821 | PN30: 1.289234336 | PO30: 1.290037351 | PP30: 1.290840866 | PQ30: 1.291644882 | PR30: 1.292449398 | PS30: 1.293254415 | PT30: 1.294059934 | PU30: 1.294865955 | PV30: 1.295672477 | PW30: 1.296479502 | PX30: 1.29728703 | PY30: 1.29809506 | PZ30: 1.298903594 | QA30: 1.299712631 | QB30: 1.300522173 | QC30: 1.301332218 | QD30: 1.302142768 | QE30: 1.302953823 | QF30: 1.303765384 | QG30: 1.304577449 | QH30: 1.305390021 | QI30: 1.306203098 | QJ30: 1.307016682 | QK30: 1.307830773 | QL30: 1.308645371 | QM30: 1.309460476 | QN30: 1.310276089 | QO30: 1.31109221 | QP30: 1.311908839 | QQ30: 1.312725977 | QR30: 1.313543624 | QS30: =QR30*(1+QS29) -> 1.31436178 | QT30: 1.315180446 | QU30: 1.315999622 | QV30: 1.316819307 | QW30: 1.317639504 | QX30: 1.318460211 | QY30: 1.31928143 | QZ30: 1.32010316 | RA30: 1.320925402 | RB30: 1.321748156 | RC30: 1.322571422 | RD30: 1.323395201 | RE30: 1.324219493 | RF30: 1.325044299 | RG30: 1.325869619 | RH30: 1.326695452 | RI30: 1.3275218 | RJ30: 1.328348663 | RK30: 1.32917604 | RL30: 1.330003933 | RM30: 1.330832342 | RN30: 1.331661267 | RO30: 1.332490708 | RP30: 1.333320665 | RQ30: 1.33415114 | RR30: 1.334982131 | RS30: 1.335813641 | RT30: 1.336645668 | RU30: 1.337478214 | RV30: 1.338311278 | RW30: 1.339144861 | RX30: 1.339978963 | RY30: 1.340813585 | RZ30: 1.341648726 | SA30: 1.342484388 | SB30: 1.34332057 | SC30: 1.344157273 | SD30: 1.344994497 | SE30: 1.345832243 | SF30: 1.346670511 | SG30: 1.3475093 | SH30: 1.348348612 | SI30: 1.349188447 | SJ30: 1.350028805 | SK30: 1.350869687 | SL30: 1.351711092 | SM30: 1.352553021 | SN30: 1.353395474 | SO30: 1.354238453 | SP30: 1.355081956 | SQ30: 1.355925985
D31: Annual Generation after Degradation | G31: MWH | L31: =L30*L24 -> 0 | M31: =M30*M24 -> 0 | N31: 0 | O31: 0 | P31: 0 | Q31: 0 | R31: 0 | S31: 0 | T31: 0 | U31: 0 | V31: 0 | W31: 225727.2239 | X31: 225867.8208 | Y31: 226008.5053 | Z31: 226149.2773 | AA31: 226290.1371 | AB31: 226431.0845 | AC31: 226572.1198 | AD31: 226713.2429 | AE31: 226854.454 | AF31: 226995.7529 | AG31: 227137.1399 | AH31: 227278.615 | AI31: 227420.1781 | AJ31: 227561.8295 | AK31: 227703.569 | AL31: 227845.3969 | AM31: 227987.3131 | AN31: 228129.3177 | AO31: 228271.4107 | AP31: 228413.5923 | AQ31: 228555.8624 | AR31: 228698.2211 | AS31: 228840.6685 | AT31: 228983.2046 | AU31: 229125.8295 | AV31: 229268.5432 | AW31: 229411.3458 | AX31: 229554.2374 | AY31: 229697.2179 | AZ31: 229840.2876 | BA31: 229983.4463 | BB31: 230126.6942 | BC31: 230270.0313 | BD31: 230413.4577 | BE31: 230556.9735 | BF31: 230700.5786 | BG31: 230844.2732 | BH31: 230988.0573 | BI31: 231131.9309 | BJ31: 231275.8942 | BK31: 231419.9471 | BL31: 231564.0897 | BM31: 231708.3221 | BN31: 231852.6444 | BO31: 231997.0566 | BP31: 232141.5587 | BQ31: 232286.1508 | BR31: 232430.8329 | BS31: 232575.6052 | BT31: 232720.4677 | BU31: 232865.4204 | BV31: 233010.4634 | BW31: 233155.5967 | BX31: 233300.8204 | BY31: =BY30*BY24 -> 233446.1346 | BZ31: 233591.5392 | CA31: 233737.0345 | CB31: 233882.6204 | CC31: 234028.2969 | CD31: 234174.0642 | CE31: 234319.9223 | CF31: 234465.8712 | CG31: 234611.911 | CH31: 234758.0418 | CI31: 234904.2637 | CJ31: 235050.5765 | CK31: 235196.9806 | CL31: 235343.4758 | CM31: 235490.0622 | CN31: 235636.74 | CO31: 235783.5091 | CP31: 235930.3697 | CQ31: 236077.3217 | CR31: 236224.3652 | CS31: 236371.5004 | CT31: 236518.7271 | CU31: 236666.0456 | CV31: 236813.4559 | CW31: 236960.9579 | CX31: 237108.5519 | CY31: 237256.2377 | CZ31: 237404.0156 | DA31: 237551.8855 | DB31: 237699.8474 | DC31: 237847.9016 | DD31: 237996.048 | DE31: 238144.2866 | DF31: 238292.6176 | DG31: 238441.041 | DH31: 238589.5568 | DI31: 238738.1651 | DJ31: 238886.866 | DK31: 239035.6595 | DL31: 239184.5457 | DM31: 239333.5246 | DN31: 239482.5963 | DO31: 239631.7609 | DP31: 239781.0183 | DQ31: 239930.3688 | DR31: 240079.8122 | DS31: 240229.3488 | DT31: 240378.9785 | DU31: 240528.7013 | DV31: 240678.5175 | DW31: 240828.4269 | DX31: 240978.4298 | DY31: 241128.526 | DZ31: 241278.7158 | EA31: 241428.9991 | EB31: 241579.376 | EC31: 241729.8465 | ED31: 241880.4108 | EE31: 242031.0689 | EF31: 242181.8208 | EG31: 242332.6666 | EH31: 242483.6064 | EI31: 242634.6401 | EJ31: 242785.768 | EK31: =EK30*EK24 -> 242936.99 | EL31: 243088.3061 | EM31: 243239.7166 | EN31: 243391.2213 | EO31: 243542.8204 | EP31: 243694.5139 | EQ31: 243846.3019 | ER31: 243998.1845 | ES31: 244150.1616 | ET31: 244302.2334 | EU31: 244454.3999 | EV31: 244606.6613 | EW31: 244759.0174 | EX31: 244911.4684 | EY31: 245064.0144 | EZ31: 245216.6555 | FA31: 245369.3915 | FB31: 245522.2228 | FC31: 245675.1492 | FD31: 245828.1708 | FE31: 245981.2878 | FF31: 246134.5002 | FG31: 246287.8079 | FH31: 246441.2112 | FI31: 246594.71 | FJ31: 246748.3045 | FK31: 246901.9945 | FL31: 247055.7804 | FM31: 247209.662 | FN31: 247363.6394 | FO31: 247517.7128 | FP31: 247671.8821 | FQ31: 247826.1475 | FR31: 247980.5089 | FS31: 248134.9665 | FT31: 248289.5203 | FU31: 248444.1704 | FV31: 248598.9167 | FW31: 248753.7595 | FX31: 248908.6987 | FY31: 249063.7344 | FZ31: 249218.8667 | GA31: 249374.0956 | GB31: 249529.4212 | GC31: 249684.8436 | GD31: 249840.3627 | GE31: 249995.9788 | GF31: 250151.6917 | GG31: 250307.5016 | GH31: 250463.4086 | GI31: 250619.4127 | GJ31: 250775.514 | GK31: 250931.7124 | GL31: 251088.0082 | GM31: 251244.4014 | GN31: 251400.8919 | GO31: 251557.4799 | GP31: 251714.1655 | GQ31: 251870.9486 | GR31: 252027.8294 | GS31: 252184.8079 | GT31: 252341.8842 | GU31: 252499.0583 | GV31: 252656.3303 | GW31: =GW30*GW24 -> 252813.7003 | GX31: 252971.1683 | GY31: 253128.7344 | GZ31: 253286.3986 | HA31: 253444.161 | HB31: 253602.0217 | HC31: 253759.9807 | HD31: 253918.0381 | HE31: 254076.194 | HF31: 254234.4483 | HG31: 254392.8012 | HH31: 254551.2528 | HI31: 254709.803 | HJ31: 254868.4521 | HK31: 255027.1999 | HL31: 255186.0466 | HM31: 255344.9922 | HN31: 255504.0369 | HO31: 255663.1806 | HP31: 255822.4234 | HQ31: 255981.7654 | HR31: 256141.2067 | HS31: 256300.7472 | HT31: 256460.3872 | HU31: 256620.1266 | HV31: 256779.9654 | HW31: 256939.9039 | HX31: 257099.9419 | HY31: 257260.0797 | HZ31: 257420.3171 | IA31: 257580.6544 | IB31: 257741.0916 | IC31: 257901.6286 | ID31: 258062.2657 | IE31: 258223.0028 | IF31: 258383.8401 | IG31: 258544.7775 | IH31: 258705.8152 | II31: 258866.9532 | IJ31: 259028.1915 | IK31: 259189.5303 | IL31: 259350.9695 | IM31: 259512.5093 | IN31: 259674.1498 | IO31: 259835.8909 | IP31: 259997.7327 | IQ31: 260159.6754 | IR31: 260321.7189 | IS31: 260483.8633 | IT31: 260646.1088 | IU31: 260808.4553 | IV31: 260970.9029 | IW31: 261133.4517 | IX31: 261296.1018 | IY31: 261458.8531 | IZ31: 261621.7059 | JA31: 261784.66 | JB31: 261947.7157 | JC31: 262110.8729 | JD31: 262274.1318 | JE31: 262437.4923 | JF31: 262600.9546 | JG31: 262764.5187 | JH31: 262928.1847 | JI31: =JI30*JI24 -> 263091.9526 | JJ31: 263255.8225 | JK31: 263419.7945 | JL31: 263583.8687 | JM31: 263748.045 | JN31: 263912.3236 | JO31: 264076.7045 | JP31: 264241.1878 | JQ31: 264405.7735 | JR31: 264570.4618 | JS31: 264735.2526 | JT31: 264900.1461 | JU31: 265065.1423 | JV31: 265230.2412 | JW31: 265395.443 | JX31: 265560.7477 | JY31: 265726.1553 | JZ31: 265891.666 | KA31: 266057.2798 | KB31: 266222.9967 | KC31: 266388.8168 | KD31: 266554.7402 | KE31: 266720.767 | KF31: 266886.8972 | KG31: 267053.1308 | KH31: 267219.468 | KI31: 267385.9088 | KJ31: 267552.4533 | KK31: 267719.1015 | KL31: 267885.8535 | KM31: 268052.7094 | KN31: 268219.6692 | KO31: 268386.7329 | KP31: 268553.9008 | KQ31: 268721.1728 | KR31: 268888.5489 | KS31: 269056.0293 | KT31: 269223.614 | KU31: 269391.3031 | KV31: 269559.0967 | KW31: 269726.9948 | KX31: 269894.9974 | KY31: 270063.1047 | KZ31: 270231.3167 | LA31: 270399.6334 | LB31: 270568.055 | LC31: 270736.5815 | LD31: 270905.213 | LE31: 271073.9495 | LF31: 271242.7911 | LG31: 271411.7379 | LH31: 271580.7899 | LI31: 271749.9472 | LJ31: 271919.2099 | LK31: 272088.578 | LL31: 272258.0515 | LM31: 272427.6307 | LN31: 272597.3155 | LO31: 272767.1059 | LP31: 272937.0021 | LQ31: 273107.0042 | LR31: 273277.1121 | LS31: 273447.3259 | LT31: 273617.6458 | LU31: =LU30*LU24 -> 273788.0718 | LV31: 273958.604 | LW31: 274129.2423 | LX31: 274299.9869 | LY31: 274470.8379 | LZ31: 274641.7953 | MA31: 274812.8592 | MB31: 274984.0296 | MC31: 275155.3067 | MD31: 275326.6904 | ME31: 275498.1809 | MF31: 275669.7782 | MG31: 275841.4824 | MH31: 276013.2935 | MI31: 276185.2116 | MJ31: 276357.2368 | MK31: 276529.3692 | ML31: 276701.6088 | MM31: 276873.9556 | MN31: 277046.4099 | MO31: 277218.9715 | MP31: 277391.6406 | MQ31: 277564.4172 | MR31: 277737.3015 | MS31: 277910.2935 | MT31: 278083.3932 | MU31: 278256.6007 | MV31: 278429.9161 | MW31: 278603.3395 | MX31: 278776.8709 | MY31: 278950.5103 | MZ31: 279124.2579 | NA31: 279298.1138 | NB31: 279472.0779 | NC31: 279646.1504 | ND31: 279820.3313 | NE31: 279994.6207 | NF31: 280169.0186 | NG31: 280343.5252 | NH31: 280518.1405 | NI31: 280692.8645 | NJ31: 280867.6974 | NK31: 281042.6391 | NL31: 281217.6899 | NM31: 281392.8496 | NN31: 281568.1185 | NO31: 281743.4965 | NP31: 281918.9838 | NQ31: 282094.5803 | NR31: 282270.2863 | NS31: 282446.1017 | NT31: 282622.0265 | NU31: 282798.061 | NV31: 282974.2051 | NW31: 283150.4589 | NX31: 283326.8225 | NY31: 283503.296 | NZ31: 283679.8794 | OA31: 283856.5727 | OB31: 284033.3761 | OC31: 284210.2897 | OD31: 284387.3134 | OE31: 284564.4474 | OF31: 284741.6917 | OG31: =OG30*OG24 -> 284919.0465 | OH31: 285096.5117 | OI31: 285274.0874 | OJ31: 285451.7737 | OK31: 285629.5707 | OL31: 285807.4785 | OM31: 285985.497 | ON31: 286163.6265 | OO31: 286341.8669 | OP31: 286520.2183 | OQ31: 286698.6808 | OR31: 286877.2544 | OS31: 287055.9393 | OT31: 287234.7355 | OU31: 287413.643 | OV31: 287592.662 | OW31: 287771.7925 | OX31: 287951.0346 | OY31: 288130.3883 | OZ31: 288309.8537 | PA31: 288489.4309 | PB31: 288669.1199 | PC31: 288848.9209 | PD31: 289028.8338 | PE31: 289208.8589 | PF31: 289388.996 | PG31: 289569.2454 | PH31: 289749.607 | PI31: 289930.0809 | PJ31: 290110.6673 | PK31: 290291.3662 | PL31: 290472.1776 | PM31: 290653.1016 | PN31: 290834.1383 | PO31: 291015.2878 | PP31: 291196.5501 | PQ31: 291377.9253 | PR31: 291559.4135 | PS31: 291741.0147 | PT31: 291922.729 | PU31: 292104.5565 | PV31: 292286.4973 | PW31: 292468.5514 | PX31: 292650.7189 | PY31: 292832.9999 | PZ31: 293015.3943 | QA31: 0 | QB31: 0 | QC31: 0 | QD31: 0 | QE31: 0 | QF31: 0 | QG31: 0 | QH31: 0 | QI31: 0 | QJ31: 0 | QK31: 0 | QL31: 0 | QM31: 0 | QN31: 0 | QO31: 0 | QP31: 0 | QQ31: 0 | QR31: 0 | QS31: =QS30*QS24 -> 0 | QT31: 0 | QU31: 0 | QV31: 0 | QW31: 0 | QX31: 0 | QY31: 0 | QZ31: 0 | RA31: 0 | RB31: 0 | RC31: 0 | RD31: 0 | RE31: 0 | RF31: 0 | RG31: 0 | RH31: 0 | RI31: 0 | RJ31: 0 | RK31: 0 | RL31: 0 | RM31: 0 | RN31: 0 | RO31: 0 | RP31: 0 | RQ31: 0 | RR31: 0 | RS31: 0 | RT31: 0 | RU31: 0 | RV31: 0 | RW31: 0 | RX31: 0 | RY31: 0 | RZ31: 0 | SA31: 0 | SB31: 0 | SC31: 0 | SD31: 0 | SE31: 0 | SF31: 0 | SG31: 0 | SH31: 0 | SI31: 0 | SJ31: 0 | SK31: 0 | SL31: 0 | SM31: 0 | SN31: 0 | SO31: 0 | SP31: 0 | SQ31: 0
D33: Month Number | G33: Month | L33: =MONTH(L4) -> 1 | M33: =MONTH(M4) -> 2 | N33: 3 | O33: 4 | P33: 5 | Q33: 6 | R33: 7 | S33: 8 | T33: 9 | U33: 10 | V33: 11 | W33: 12 | X33: 1 | Y33: 2 | Z33: 3 | AA33: 4 | AB33: 5 | AC33: 6 | AD33: 7 | AE33: 8 | AF33: 9 | AG33: 10 | AH33: 11 | AI33: 12 | AJ33: 1 | AK33: 2 | AL33: 3 | AM33: 4 | AN33: 5 | AO33: 6 | AP33: 7 | AQ33: 8 | AR33: 9 | AS33: 10 | AT33: 11 | AU33: 12 | AV33: 1 | AW33: 2 | AX33: 3 | AY33: 4 | AZ33: 5 | BA33: 6 | BB33: 7 | BC33: 8 | BD33: 9 | BE33: 10 | BF33: 11 | BG33: 12 | BH33: 1 | BI33: 2 | BJ33: 3 | BK33: 4 | BL33: 5 | BM33: 6 | BN33: 7 | BO33: 8 | BP33: 9 | BQ33: 10 | BR33: 11 | BS33: 12 | BT33: 1 | BU33: 2 | BV33: 3 | BW33: 4 | BX33: 5 | BY33: =MONTH(BY4) -> 6 | BZ33: 7 | CA33: 8 | CB33: 9 | CC33: 10 | CD33: 11 | CE33: 12 | CF33: 1 | CG33: 2 | CH33: 3 | CI33: 4 | CJ33: 5 | CK33: 6 | CL33: 7 | CM33: 8 | CN33: 9 | CO33: 10 | CP33: 11 | CQ33: 12 | CR33: 1 | CS33: 2 | CT33: 3 | CU33: 4 | CV33: 5 | CW33: 6 | CX33: 7 | CY33: 8 | CZ33: 9 | DA33: 10 | DB33: 11 | DC33: 12 | DD33: 1 | DE33: 2 | DF33: 3 | DG33: 4 | DH33: 5 | DI33: 6 | DJ33: 7 | DK33: 8 | DL33: 9 | DM33: 10 | DN33: 11 | DO33: 12 | DP33: 1 | DQ33: 2 | DR33: 3 | DS33: 4 | DT33: 5 | DU33: 6 | DV33: 7 | DW33: 8 | DX33: 9 | DY33: 10 | DZ33: 11 | EA33: 12 | EB33: 1 | EC33: 2 | ED33: 3 | EE33: 4 | EF33: 5 | EG33: 6 | EH33: 7 | EI33: 8 | EJ33: 9 | EK33: =MONTH(EK4) -> 10 | EL33: 11 | EM33: 12 | EN33: 1 | EO33: 2 | EP33: 3 | EQ33: 4 | ER33: 5 | ES33: 6 | ET33: 7 | EU33: 8 | EV33: 9 | EW33: 10 | EX33: 11 | EY33: 12 | EZ33: 1 | FA33: 2 | FB33: 3 | FC33: 4 | FD33: 5 | FE33: 6 | FF33: 7 | FG33: 8 | FH33: 9 | FI33: 10 | FJ33: 11 | FK33: 12 | FL33: 1 | FM33: 2 | FN33: 3 | FO33: 4 | FP33: 5 | FQ33: 6 | FR33: 7 | FS33: 8 | FT33: 9 | FU33: 10 | FV33: 11 | FW33: 12 | FX33: 1 | FY33: 2 | FZ33: 3 | GA33: 4 | GB33: 5 | GC33: 6 | GD33: 7 | GE33: 8 | GF33: 9 | GG33: 10 | GH33: 11 | GI33: 12 | GJ33: 1 | GK33: 2 | GL33: 3 | GM33: 4 | GN33: 5 | GO33: 6 | GP33: 7 | GQ33: 8 | GR33: 9 | GS33: 10 | GT33: 11 | GU33: 12 | GV33: 1 | GW33: =MONTH(GW4) -> 2 | GX33: 3 | GY33: 4 | GZ33: 5 | HA33: 6 | HB33: 7 | HC33: 8 | HD33: 9 | HE33: 10 | HF33: 11 | HG33: 12 | HH33: 1 | HI33: 2 | HJ33: 3 | HK33: 4 | HL33: 5 | HM33: 6 | HN33: 7 | HO33: 8 | HP33: 9 | HQ33: 10 | HR33: 11 | HS33: 12 | HT33: 1 | HU33: 2 | HV33: 3 | HW33: 4 | HX33: 5 | HY33: 6 | HZ33: 7 | IA33: 8 | IB33: 9 | IC33: 10 | ID33: 11 | IE33: 12 | IF33: 1 | IG33: 2 | IH33: 3 | II33: 4 | IJ33: 5 | IK33: 6 | IL33: 7 | IM33: 8 | IN33: 9 | IO33: 10 | IP33: 11 | IQ33: 12 | IR33: 1 | IS33: 2 | IT33: 3 | IU33: 4 | IV33: 5 | IW33: 6 | IX33: 7 | IY33: 8 | IZ33: 9 | JA33: 10 | JB33: 11 | JC33: 12 | JD33: 1 | JE33: 2 | JF33: 3 | JG33: 4 | JH33: 5 | JI33: =MONTH(JI4) -> 6 | JJ33: 7 | JK33: 8 | JL33: 9 | JM33: 10 | JN33: 11 | JO33: 12 | JP33: 1 | JQ33: 2 | JR33: 3 | JS33: 4 | JT33: 5 | JU33: 6 | JV33: 7 | JW33: 8 | JX33: 9 | JY33: 10 | JZ33: 11 | KA33: 12 | KB33: 1 | KC33: 2 | KD33: 3 | KE33: 4 | KF33: 5 | KG33: 6 | KH33: 7 | KI33: 8 | KJ33: 9 | KK33: 10 | KL33: 11 | KM33: 12 | KN33: 1 | KO33: 2 | KP33: 3 | KQ33: 4 | KR33: 5 | KS33: 6 | KT33: 7 | KU33: 8 | KV33: 9 | KW33: 10 | KX33: 11 | KY33: 12 | KZ33: 1 | LA33: 2 | LB33: 3 | LC33: 4 | LD33: 5 | LE33: 6 | LF33: 7 | LG33: 8 | LH33: 9 | LI33: 10 | LJ33: 11 | LK33: 12 | LL33: 1 | LM33: 2 | LN33: 3 | LO33: 4 | LP33: 5 | LQ33: 6 | LR33: 7 | LS33: 8 | LT33: 9 | LU33: =MONTH(LU4) -> 10 | LV33: 11 | LW33: 12 | LX33: 1 | LY33: 2 | LZ33: 3 | MA33: 4 | MB33: 5 | MC33: 6 | MD33: 7 | ME33: 8 | MF33: 9 | MG33: 10 | MH33: 11 | MI33: 12 | MJ33: 1 | MK33: 2 | ML33: 3 | MM33: 4 | MN33: 5 | MO33: 6 | MP33: 7 | MQ33: 8 | MR33: 9 | MS33: 10 | MT33: 11 | MU33: 12 | MV33: 1 | MW33: 2 | MX33: 3 | MY33: 4 | MZ33: 5 | NA33: 6 | NB33: 7 | NC33: 8 | ND33: 9 | NE33: 10 | NF33: 11 | NG33: 12 | NH33: 1 | NI33: 2 | NJ33: 3 | NK33: 4 | NL33: 5 | NM33: 6 | NN33: 7 | NO33: 8 | NP33: 9 | NQ33: 10 | NR33: 11 | NS33: 12 | NT33: 1 | NU33: 2 | NV33: 3 | NW33: 4 | NX33: 5 | NY33: 6 | NZ33: 7 | OA33: 8 | OB33: 9 | OC33: 10 | OD33: 11 | OE33: 12 | OF33: 1 | OG33: =MONTH(OG4) -> 2 | OH33: 3 | OI33: 4 | OJ33: 5 | OK33: 6 | OL33: 7 | OM33: 8 | ON33: 9 | OO33: 10 | OP33: 11 | OQ33: 12 | OR33: 1 | OS33: 2 | OT33: 3 | OU33: 4 | OV33: 5 | OW33: 6 | OX33: 7 | OY33: 8 | OZ33: 9 | PA33: 10 | PB33: 11 | PC33: 12 | PD33: 1 | PE33: 2 | PF33: 3 | PG33: 4 | PH33: 5 | PI33: 6 | PJ33: 7 | PK33: 8 | PL33: 9 | PM33: 10 | PN33: 11 | PO33: 12 | PP33: 1 | PQ33: 2 | PR33: 3 | PS33: 4 | PT33: 5 | PU33: 6 | PV33: 7 | PW33: 8 | PX33: 9 | PY33: 10 | PZ33: 11 | QA33: 12 | QB33: 1 | QC33: 2 | QD33: 3 | QE33: 4 | QF33: 5 | QG33: 6 | QH33: 7 | QI33: 8 | QJ33: 9 | QK33: 10 | QL33: 11 | QM33: 12 | QN33: 1 | QO33: 2 | QP33: 3 | QQ33: 4 | QR33: 5 | QS33: =MONTH(QS4) -> 6 | QT33: 7 | QU33: 8 | QV33: 9 | QW33: 10 | QX33: 11 | QY33: 12 | QZ33: 1 | RA33: 2 | RB33: 3 | RC33: 4 | RD33: 5 | RE33: 6 | RF33: 7 | RG33: 8 | RH33: 9 | RI33: 10 | RJ33: 11 | RK33: 12 | RL33: 1 | RM33: 2 | RN33: 3 | RO33: 4 | RP33: 5 | RQ33: 6 | RR33: 7 | RS33: 8 | RT33: 9 | RU33: 10 | RV33: 11 | RW33: 12 | RX33: 1 | RY33: 2 | RZ33: 3 | SA33: 4 | SB33: 5 | SC33: 6 | SD33: 7 | SE33: 8 | SF33: 9 | SG33: 10 | SH33: 11 | SI33: 12 | SJ33: 1 | SK33: 2 | SL33: 3 | SM33: 4 | SN33: 5 | SO33: 6 | SP33: 7 | SQ33: 8
D34: Seasonality | G34: % | L34: =LOOKUP(L33,InputS!19:19,InputS!20:20) -> 0.06666666667 | M34: =LOOKUP(M33,InputS!19:19,InputS!20:20) -> 0.06666666667 | N34: =LOOKUP(N33,InputS!19:19,InputS!20:20) -> 0.08 | O34: =LOOKUP(O33,InputS!19:19,InputS!20:20) -> 0.085 | P34: =LOOKUP(P33,InputS!19:19,InputS!20:20) -> 0.09 | Q34: =LOOKUP(Q33,InputS!19:19,InputS!20:20) -> 0.12 | R34: =LOOKUP(R33,InputS!19:19,InputS!20:20) -> 0.12 | S34: =LOOKUP(S33,InputS!19:19,InputS!20:20) -> 0.09 | T34: =LOOKUP(T33,InputS!19:19,InputS!20:20) -> 0.08 | U34: =LOOKUP(U33,InputS!19:19,InputS!20:20) -> 0.07 | V34: =LOOKUP(V33,InputS!19:19,InputS!20:20) -> 0.065 | W34: =LOOKUP(W33,InputS!19:19,InputS!20:20) -> 0.06666666667 | X34: =LOOKUP(X33,InputS!19:19,InputS!20:20) -> 0.06666666667 | Y34: =LOOKUP(Y33,InputS!19:19,InputS!20:20) -> 0.06666666667 | Z34: =LOOKUP(Z33,InputS!19:19,InputS!20:20) -> 0.08 | AA34: =LOOKUP(AA33,InputS!19:19,InputS!20:20) -> 0.085 | AB34: =LOOKUP(AB33,InputS!19:19,InputS!20:20) -> 0.09 | AC34: =LOOKUP(AC33,InputS!19:19,InputS!20:20) -> 0.12 | AD34: =LOOKUP(AD33,InputS!19:19,InputS!20:20) -> 0.12 | AE34: =LOOKUP(AE33,InputS!19:19,InputS!20:20) -> 0.09 | AF34: =LOOKUP(AF33,InputS!19:19,InputS!20:20) -> 0.08 | AG34: =LOOKUP(AG33,InputS!19:19,InputS!20:20) -> 0.07 | AH34: =LOOKUP(AH33,InputS!19:19,InputS!20:20) -> 0.065 | AI34: =LOOKUP(AI33,InputS!19:19,InputS!20:20) -> 0.06666666667 | AJ34: =LOOKUP(AJ33,InputS!19:19,InputS!20:20) -> 0.06666666667 | AK34: =LOOKUP(AK33,InputS!19:19,InputS!20:20) -> 0.06666666667 | AL34: =LOOKUP(AL33,InputS!19:19,InputS!20:20) -> 0.08 | AM34: =LOOKUP(AM33,InputS!19:19,InputS!20:20) -> 0.085 | AN34: =LOOKUP(AN33,InputS!19:19,InputS!20:20) -> 0.09 | AO34: =LOOKUP(AO33,InputS!19:19,InputS!20:20) -> 0.12 | AP34: =LOOKUP(AP33,InputS!19:19,InputS!20:20) -> 0.12 | AQ34: =LOOKUP(AQ33,InputS!19:19,InputS!20:20) -> 0.09 | AR34: =LOOKUP(AR33,InputS!19:19,InputS!20:20) -> 0.08 | AS34: =LOOKUP(AS33,InputS!19:19,InputS!20:20) -> 0.07 | AT34: =LOOKUP(AT33,InputS!19:19,InputS!20:20) -> 0.065 | AU34: =LOOKUP(AU33,InputS!19:19,InputS!20:20) -> 0.06666666667 | AV34: =LOOKUP(AV33,InputS!19:19,InputS!20:20) -> 0.06666666667 | AW34: =LOOKUP(AW33,InputS!19:19,InputS!20:20) -> 0.06666666667 | AX34: =LOOKUP(AX33,InputS!19:19,InputS!20:20) -> 0.08 | AY34: =LOOKUP(AY33,InputS!19:19,InputS!20:20) -> 0.085 | AZ34: =LOOKUP(AZ33,InputS!19:19,InputS!20:20) -> 0.09 | BA34: =LOOKUP(BA33,InputS!19:19,InputS!20:20) -> 0.12 | BB34: =LOOKUP(BB33,InputS!19:19,InputS!20:20) -> 0.12 | BC34: =LOOKUP(BC33,InputS!19:19,InputS!20:20) -> 0.09 | BD34: =LOOKUP(BD33,InputS!19:19,InputS!20:20) -> 0.08 | BE34: =LOOKUP(BE33,InputS!19:19,InputS!20:20) -> 0.07 | BF34: =LOOKUP(BF33,InputS!19:19,InputS!20:20) -> 0.065 | BG34: =LOOKUP(BG33,InputS!19:19,InputS!20:20) -> 0.06666666667 | BH34: =LOOKUP(BH33,InputS!19:19,InputS!20:20) -> 0.06666666667 | BI34: =LOOKUP(BI33,InputS!19:19,InputS!20:20) -> 0.06666666667 | BJ34: =LOOKUP(BJ33,InputS!19:19,InputS!20:20) -> 0.08 | BK34: =LOOKUP(BK33,InputS!19:19,InputS!20:20) -> 0.085 | BL34: =LOOKUP(BL33,InputS!19:19,InputS!20:20) -> 0.09 | BM34: =LOOKUP(BM33,InputS!19:19,InputS!20:20) -> 0.12 | BN34: =LOOKUP(BN33,InputS!19:19,InputS!20:20) -> 0.12 | BO34: =LOOKUP(BO33,InputS!19:19,InputS!20:20) -> 0.09 | BP34: =LOOKUP(BP33,InputS!19:19,InputS!20:20) -> 0.08 | BQ34: =LOOKUP(BQ33,InputS!19:19,InputS!20:20) -> 0.07 | BR34: =LOOKUP(BR33,InputS!19:19,InputS!20:20) -> 0.065 | BS34: =LOOKUP(BS33,InputS!19:19,InputS!20:20) -> 0.06666666667 | BT34: =LOOKUP(BT33,InputS!19:19,InputS!20:20) -> 0.06666666667 | BU34: =LOOKUP(BU33,InputS!19:19,InputS!20:20) -> 0.06666666667 | BV34: =LOOKUP(BV33,InputS!19:19,InputS!20:20) -> 0.08 | BW34: =LOOKUP(BW33,InputS!19:19,InputS!20:20) -> 0.085 | BX34: =LOOKUP(BX33,InputS!19:19,InputS!20:20) -> 0.09 | BY34: =LOOKUP(BY33,InputS!19:19,InputS!20:20) -> 0.12 | BZ34: =LOOKUP(BZ33,InputS!19:19,InputS!20:20) -> 0.12 | CA34: =LOOKUP(CA33,InputS!19:19,InputS!20:20) -> 0.09 | CB34: =LOOKUP(CB33,InputS!19:19,InputS!20:20) -> 0.08 | CC34: =LOOKUP(CC33,InputS!19:19,InputS!20:20) -> 0.07 | CD34: =LOOKUP(CD33,InputS!19:19,InputS!20:20) -> 0.065 | CE34: =LOOKUP(CE33,InputS!19:19,InputS!20:20) -> 0.06666666667 | CF34: =LOOKUP(CF33,InputS!19:19,InputS!20:20) -> 0.06666666667 | CG34: =LOOKUP(CG33,InputS!19:19,InputS!20:20) -> 0.06666666667 | CH34: =LOOKUP(CH33,InputS!19:19,InputS!20:20) -> 0.08 | CI34: =LOOKUP(CI33,InputS!19:19,InputS!20:20) -> 0.085 | CJ34: =LOOKUP(CJ33,InputS!19:19,InputS!20:20) -> 0.09 | CK34: =LOOKUP(CK33,InputS!19:19,InputS!20:20) -> 0.12 | CL34: =LOOKUP(CL33,InputS!19:19,InputS!20:20) -> 0.12 | CM34: =LOOKUP(CM33,InputS!19:19,InputS!20:20) -> 0.09 | CN34: =LOOKUP(CN33,InputS!19:19,InputS!20:20) -> 0.08 | CO34: =LOOKUP(CO33,InputS!19:19,InputS!20:20) -> 0.07 | CP34: =LOOKUP(CP33,InputS!19:19,InputS!20:20) -> 0.065 | CQ34: =LOOKUP(CQ33,InputS!19:19,InputS!20:20) -> 0.06666666667 | CR34: =LOOKUP(CR33,InputS!19:19,InputS!20:20) -> 0.06666666667 | CS34: =LOOKUP(CS33,InputS!19:19,InputS!20:20) -> 0.06666666667 | CT34: =LOOKUP(CT33,InputS!19:19,InputS!20:20) -> 0.08 | CU34: =LOOKUP(CU33,InputS!19:19,InputS!20:20) -> 0.085 | CV34: =LOOKUP(CV33,InputS!19:19,InputS!20:20) -> 0.09 | CW34: =LOOKUP(CW33,InputS!19:19,InputS!20:20) -> 0.12 | CX34: =LOOKUP(CX33,InputS!19:19,InputS!20:20) -> 0.12 | CY34: =LOOKUP(CY33,InputS!19:19,InputS!20:20) -> 0.09 | CZ34: =LOOKUP(CZ33,InputS!19:19,InputS!20:20) -> 0.08 | DA34: =LOOKUP(DA33,InputS!19:19,InputS!20:20) -> 0.07 | DB34: =LOOKUP(DB33,InputS!19:19,InputS!20:20) -> 0.065 | DC34: =LOOKUP(DC33,InputS!19:19,InputS!20:20) -> 0.06666666667 | DD34: =LOOKUP(DD33,InputS!19:19,InputS!20:20) -> 0.06666666667 | DE34: =LOOKUP(DE33,InputS!19:19,InputS!20:20) -> 0.06666666667 | DF34: =LOOKUP(DF33,InputS!19:19,InputS!20:20) -> 0.08 | DG34: =LOOKUP(DG33,InputS!19:19,InputS!20:20) -> 0.085 | DH34: =LOOKUP(DH33,InputS!19:19,InputS!20:20) -> 0.09 | DI34: =LOOKUP(DI33,InputS!19:19,InputS!20:20) -> 0.12 | DJ34: =LOOKUP(DJ33,InputS!19:19,InputS!20:20) -> 0.12 | DK34: =LOOKUP(DK33,InputS!19:19,InputS!20:20) -> 0.09 | DL34: =LOOKUP(DL33,InputS!19:19,InputS!20:20) -> 0.08 | DM34: =LOOKUP(DM33,InputS!19:19,InputS!20:20) -> 0.07 | DN34: =LOOKUP(DN33,InputS!19:19,InputS!20:20) -> 0.065 | DO34: =LOOKUP(DO33,InputS!19:19,InputS!20:20) -> 0.06666666667 | DP34: =LOOKUP(DP33,InputS!19:19,InputS!20:20) -> 0.06666666667 | DQ34: =LOOKUP(DQ33,InputS!19:19,InputS!20:20) -> 0.06666666667 | DR34: =LOOKUP(DR33,InputS!19:19,InputS!20:20) -> 0.08 | DS34: =LOOKUP(DS33,InputS!19:19,InputS!20:20) -> 0.085 | DT34: =LOOKUP(DT33,InputS!19:19,InputS!20:20) -> 0.09 | DU34: =LOOKUP(DU33,InputS!19:19,InputS!20:20) -> 0.12 | DV34: =LOOKUP(DV33,InputS!19:19,InputS!20:20) -> 0.12 | DW34: =LOOKUP(DW33,InputS!19:19,InputS!20:20) -> 0.09 | DX34: =LOOKUP(DX33,InputS!19:19,InputS!20:20) -> 0.08 | DY34: =LOOKUP(DY33,InputS!19:19,InputS!20:20) -> 0.07 | DZ34: =LOOKUP(DZ33,InputS!19:19,InputS!20:20) -> 0.065 | EA34: =LOOKUP(EA33,InputS!19:19,InputS!20:20) -> 0.06666666667 | EB34: =LOOKUP(EB33,InputS!19:19,InputS!20:20) -> 0.06666666667 | EC34: =LOOKUP(EC33,InputS!19:19,InputS!20:20) -> 0.06666666667 | ED34: =LOOKUP(ED33,InputS!19:19,InputS!20:20) -> 0.08 | EE34: =LOOKUP(EE33,InputS!19:19,InputS!20:20) -> 0.085 | EF34: =LOOKUP(EF33,InputS!19:19,InputS!20:20) -> 0.09 | EG34: =LOOKUP(EG33,InputS!19:19,InputS!20:20) -> 0.12 | EH34: =LOOKUP(EH33,InputS!19:19,InputS!20:20) -> 0.12 | EI34: =LOOKUP(EI33,InputS!19:19,InputS!20:20) -> 0.09 | EJ34: =LOOKUP(EJ33,InputS!19:19,InputS!20:20) -> 0.08 | EK34: =LOOKUP(EK33,InputS!19:19,InputS!20:20) -> 0.07 | EL34: =LOOKUP(EL33,InputS!19:19,InputS!20:20) -> 0.065 | EM34: =LOOKUP(EM33,InputS!19:19,InputS!20:20) -> 0.06666666667 | EN34: =LOOKUP(EN33,InputS!19:19,InputS!20:20) -> 0.06666666667 | EO34: =LOOKUP(EO33,InputS!19:19,InputS!20:20) -> 0.06666666667 | EP34: =LOOKUP(EP33,InputS!19:19,InputS!20:20) -> 0.08 | EQ34: =LOOKUP(EQ33,InputS!19:19,InputS!20:20) -> 0.085 | ER34: =LOOKUP(ER33,InputS!19:19,InputS!20:20) -> 0.09 | ES34: =LOOKUP(ES33,InputS!19:19,InputS!20:20) -> 0.12 | ET34: =LOOKUP(ET33,InputS!19:19,InputS!20:20) -> 0.12 | EU34: =LOOKUP(EU33,InputS!19:19,InputS!20:20) -> 0.09 | EV34: =LOOKUP(EV33,InputS!19:19,InputS!20:20) -> 0.08 | EW34: =LOOKUP(EW33,InputS!19:19,InputS!20:20) -> 0.07 | EX34: =LOOKUP(EX33,InputS!19:19,InputS!20:20) -> 0.065 | EY34: =LOOKUP(EY33,InputS!19:19,InputS!20:20) -> 0.06666666667 | EZ34: =LOOKUP(EZ33,InputS!19:19,InputS!20:20) -> 0.06666666667 | FA34: =LOOKUP(FA33,InputS!19:19,InputS!20:20) -> 0.06666666667 | FB34: =LOOKUP(FB33,InputS!19:19,InputS!20:20) -> 0.08 | FC34: =LOOKUP(FC33,InputS!19:19,InputS!20:20) -> 0.085 | FD34: =LOOKUP(FD33,InputS!19:19,InputS!20:20) -> 0.09 | FE34: =LOOKUP(FE33,InputS!19:19,InputS!20:20) -> 0.12 | FF34: =LOOKUP(FF33,InputS!19:19,InputS!20:20) -> 0.12 | FG34: =LOOKUP(FG33,InputS!19:19,InputS!20:20) -> 0.09 | FH34: =LOOKUP(FH33,InputS!19:19,InputS!20:20) -> 0.08 | FI34: =LOOKUP(FI33,InputS!19:19,InputS!20:20) -> 0.07 | FJ34: =LOOKUP(FJ33,InputS!19:19,InputS!20:20) -> 0.065 | FK34: =LOOKUP(FK33,InputS!19:19,InputS!20:20) -> 0.06666666667 | FL34: =LOOKUP(FL33,InputS!19:19,InputS!20:20) -> 0.06666666667 | FM34: =LOOKUP(FM33,InputS!19:19,InputS!20:20) -> 0.06666666667 | FN34: =LOOKUP(FN33,InputS!19:19,InputS!20:20) -> 0.08 | FO34: =LOOKUP(FO33,InputS!19:19,InputS!20:20) -> 0.085 | FP34: =LOOKUP(FP33,InputS!19:19,InputS!20:20) -> 0.09 | FQ34: =LOOKUP(FQ33,InputS!19:19,InputS!20:20) -> 0.12 | FR34: =LOOKUP(FR33,InputS!19:19,InputS!20:20) -> 0.12 | FS34: =LOOKUP(FS33,InputS!19:19,InputS!20:20) -> 0.09 | FT34: =LOOKUP(FT33,InputS!19:19,InputS!20:20) -> 0.08 | FU34: =LOOKUP(FU33,InputS!19:19,InputS!20:20) -> 0.07 | FV34: =LOOKUP(FV33,InputS!19:19,InputS!20:20) -> 0.065 | FW34: =LOOKUP(FW33,InputS!19:19,InputS!20:20) -> 0.06666666667 | FX34: =LOOKUP(FX33,InputS!19:19,InputS!20:20) -> 0.06666666667 | FY34: =LOOKUP(FY33,InputS!19:19,InputS!20:20) -> 0.06666666667 | FZ34: =LOOKUP(FZ33,InputS!19:19,InputS!20:20) -> 0.08 | GA34: =LOOKUP(GA33,InputS!19:19,InputS!20:20) -> 0.085 | GB34: =LOOKUP(GB33,InputS!19:19,InputS!20:20) -> 0.09 | GC34: =LOOKUP(GC33,InputS!19:19,InputS!20:20) -> 0.12 | GD34: =LOOKUP(GD33,InputS!19:19,InputS!20:20) -> 0.12 | GE34: =LOOKUP(GE33,InputS!19:19,InputS!20:20) -> 0.09 | GF34: =LOOKUP(GF33,InputS!19:19,InputS!20:20) -> 0.08 | GG34: =LOOKUP(GG33,InputS!19:19,InputS!20:20) -> 0.07 | GH34: =LOOKUP(GH33,InputS!19:19,InputS!20:20) -> 0.065 | GI34: =LOOKUP(GI33,InputS!19:19,InputS!20:20) -> 0.06666666667 | GJ34: =LOOKUP(GJ33,InputS!19:19,InputS!20:20) -> 0.06666666667 | GK34: =LOOKUP(GK33,InputS!19:19,InputS!20:20) -> 0.06666666667 | GL34: =LOOKUP(GL33,InputS!19:19,InputS!20:20) -> 0.08 | GM34: =LOOKUP(GM33,InputS!19:19,InputS!20:20) -> 0.085 | GN34: =LOOKUP(GN33,InputS!19:19,InputS!20:20) -> 0.09 | GO34: =LOOKUP(GO33,InputS!19:19,InputS!20:20) -> 0.12 | GP34: =LOOKUP(GP33,InputS!19:19,InputS!20:20) -> 0.12 | GQ34: =LOOKUP(GQ33,InputS!19:19,InputS!20:20) -> 0.09 | GR34: =LOOKUP(GR33,InputS!19:19,InputS!20:20) -> 0.08 | GS34: =LOOKUP(GS33,InputS!19:19,InputS!20:20) -> 0.07 | GT34: =LOOKUP(GT33,InputS!19:19,InputS!20:20) -> 0.065 | GU34: =LOOKUP(GU33,InputS!19:19,InputS!20:20) -> 0.06666666667 | GV34: =LOOKUP(GV33,InputS!19:19,InputS!20:20) -> 0.06666666667 | GW34: =LOOKUP(GW33,InputS!19:19,InputS!20:20) -> 0.06666666667 | GX34: =LOOKUP(GX33,InputS!19:19,InputS!20:20) -> 0.08 | GY34: =LOOKUP(GY33,InputS!19:19,InputS!20:20) -> 0.085 | GZ34: =LOOKUP(GZ33,InputS!19:19,InputS!20:20) -> 0.09 | HA34: =LOOKUP(HA33,InputS!19:19,InputS!20:20) -> 0.12 | HB34: =LOOKUP(HB33,InputS!19:19,InputS!20:20) -> 0.12 | HC34: =LOOKUP(HC33,InputS!19:19,InputS!20:20) -> 0.09 | HD34: =LOOKUP(HD33,InputS!19:19,InputS!20:20) -> 0.08 | HE34: =LOOKUP(HE33,InputS!19:19,InputS!20:20) -> 0.07 | HF34: =LOOKUP(HF33,InputS!19:19,InputS!20:20) -> 0.065 | HG34: =LOOKUP(HG33,InputS!19:19,InputS!20:20) -> 0.06666666667 | HH34: =LOOKUP(HH33,InputS!19:19,InputS!20:20) -> 0.06666666667 | HI34: =LOOKUP(HI33,InputS!19:19,InputS!20:20) -> 0.06666666667 | HJ34: =LOOKUP(HJ33,InputS!19:19,InputS!20:20) -> 0.08 | HK34: =LOOKUP(HK33,InputS!19:19,InputS!20:20) -> 0.085 | HL34: =LOOKUP(HL33,InputS!19:19,InputS!20:20) -> 0.09 | HM34: =LOOKUP(HM33,InputS!19:19,InputS!20:20) -> 0.12 | HN34: =LOOKUP(HN33,InputS!19:19,InputS!20:20) -> 0.12 | HO34: =LOOKUP(HO33,InputS!19:19,InputS!20:20) -> 0.09 | HP34: =LOOKUP(HP33,InputS!19:19,InputS!20:20) -> 0.08 | HQ34: =LOOKUP(HQ33,InputS!19:19,InputS!20:20) -> 0.07 | HR34: =LOOKUP(HR33,InputS!19:19,InputS!20:20) -> 0.065 | HS34: =LOOKUP(HS33,InputS!19:19,InputS!20:20) -> 0.06666666667 | HT34: =LOOKUP(HT33,InputS!19:19,InputS!20:20) -> 0.06666666667 | HU34: =LOOKUP(HU33,InputS!19:19,InputS!20:20) -> 0.06666666667 | HV34: =LOOKUP(HV33,InputS!19:19,InputS!20:20) -> 0.08 | HW34: =LOOKUP(HW33,InputS!19:19,InputS!20:20) -> 0.085 | HX34: =LOOKUP(HX33,InputS!19:19,InputS!20:20) -> 0.09 | HY34: =LOOKUP(HY33,InputS!19:19,InputS!20:20) -> 0.12 | HZ34: =LOOKUP(HZ33,InputS!19:19,InputS!20:20) -> 0.12 | IA34: =LOOKUP(IA33,InputS!19:19,InputS!20:20) -> 0.09 | IB34: =LOOKUP(IB33,InputS!19:19,InputS!20:20) -> 0.08 | IC34: =LOOKUP(IC33,InputS!19:19,InputS!20:20) -> 0.07 | ID34: =LOOKUP(ID33,InputS!19:19,InputS!20:20) -> 0.065 | IE34: =LOOKUP(IE33,InputS!19:19,InputS!20:20) -> 0.06666666667 | IF34: =LOOKUP(IF33,InputS!19:19,InputS!20:20) -> 0.06666666667 | IG34: =LOOKUP(IG33,InputS!19:19,InputS!20:20) -> 0.06666666667 | IH34: =LOOKUP(IH33,InputS!19:19,InputS!20:20) -> 0.08 | II34: =LOOKUP(II33,InputS!19:19,InputS!20:20) -> 0.085 | IJ34: =LOOKUP(IJ33,InputS!19:19,InputS!20:20) -> 0.09 | IK34: =LOOKUP(IK33,InputS!19:19,InputS!20:20) -> 0.12 | IL34: =LOOKUP(IL33,InputS!19:19,InputS!20:20) -> 0.12 | IM34: =LOOKUP(IM33,InputS!19:19,InputS!20:20) -> 0.09 | IN34: =LOOKUP(IN33,InputS!19:19,InputS!20:20) -> 0.08 | IO34: =LOOKUP(IO33,InputS!19:19,InputS!20:20) -> 0.07 | IP34: =LOOKUP(IP33,InputS!19:19,InputS!20:20) -> 0.065 | IQ34: =LOOKUP(IQ33,InputS!19:19,InputS!20:20) -> 0.06666666667 | IR34: =LOOKUP(IR33,InputS!19:19,InputS!20:20) -> 0.06666666667 | IS34: =LOOKUP(IS33,InputS!19:19,InputS!20:20) -> 0.06666666667 | IT34: =LOOKUP(IT33,InputS!19:19,InputS!20:20) -> 0.08 | IU34: =LOOKUP(IU33,InputS!19:19,InputS!20:20) -> 0.085 | IV34: =LOOKUP(IV33,InputS!19:19,InputS!20:20) -> 0.09 | IW34: =LOOKUP(IW33,InputS!19:19,InputS!20:20) -> 0.12 | IX34: =LOOKUP(IX33,InputS!19:19,InputS!20:20) -> 0.12 | IY34: =LOOKUP(IY33,InputS!19:19,InputS!20:20) -> 0.09 | IZ34: =LOOKUP(IZ33,InputS!19:19,InputS!20:20) -> 0.08 | JA34: =LOOKUP(JA33,InputS!19:19,InputS!20:20) -> 0.07 | JB34: =LOOKUP(JB33,InputS!19:19,InputS!20:20) -> 0.065 | JC34: =LOOKUP(JC33,InputS!19:19,InputS!20:20) -> 0.06666666667 | JD34: =LOOKUP(JD33,InputS!19:19,InputS!20:20) -> 0.06666666667 | JE34: =LOOKUP(JE33,InputS!19:19,InputS!20:20) -> 0.06666666667 | JF34: =LOOKUP(JF33,InputS!19:19,InputS!20:20) -> 0.08 | JG34: =LOOKUP(JG33,InputS!19:19,InputS!20:20) -> 0.085 | JH34: =LOOKUP(JH33,InputS!19:19,InputS!20:20) -> 0.09 | JI34: =LOOKUP(JI33,InputS!19:19,InputS!20:20) -> 0.12 | JJ34: =LOOKUP(JJ33,InputS!19:19,InputS!20:20) -> 0.12 | JK34: =LOOKUP(JK33,InputS!19:19,InputS!20:20) -> 0.09 | JL34: =LOOKUP(JL33,InputS!19:19,InputS!20:20) -> 0.08 | JM34: =LOOKUP(JM33,InputS!19:19,InputS!20:20) -> 0.07 | JN34: =LOOKUP(JN33,InputS!19:19,InputS!20:20) -> 0.065 | JO34: =LOOKUP(JO33,InputS!19:19,InputS!20:20) -> 0.06666666667 | JP34: =LOOKUP(JP33,InputS!19:19,InputS!20:20) -> 0.06666666667 | JQ34: =LOOKUP(JQ33,InputS!19:19,InputS!20:20) -> 0.06666666667 | JR34: =LOOKUP(JR33,InputS!19:19,InputS!20:20) -> 0.08 | JS34: =LOOKUP(JS33,InputS!19:19,InputS!20:20) -> 0.085 | JT34: =LOOKUP(JT33,InputS!19:19,InputS!20:20) -> 0.09 | JU34: =LOOKUP(JU33,InputS!19:19,InputS!20:20) -> 0.12 | JV34: =LOOKUP(JV33,InputS!19:19,InputS!20:20) -> 0.12 | JW34: =LOOKUP(JW33,InputS!19:19,InputS!20:20) -> 0.09 | JX34: =LOOKUP(JX33,InputS!19:19,InputS!20:20) -> 0.08 | JY34: =LOOKUP(JY33,InputS!19:19,InputS!20:20) -> 0.07 | JZ34: =LOOKUP(JZ33,InputS!19:19,InputS!20:20) -> 0.065 | KA34: =LOOKUP(KA33,InputS!19:19,InputS!20:20) -> 0.06666666667 | KB34: =LOOKUP(KB33,InputS!19:19,InputS!20:20) -> 0.06666666667 | KC34: =LOOKUP(KC33,InputS!19:19,InputS!20:20) -> 0.06666666667 | KD34: =LOOKUP(KD33,InputS!19:19,InputS!20:20) -> 0.08 | KE34: =LOOKUP(KE33,InputS!19:19,InputS!20:20) -> 0.085 | KF34: =LOOKUP(KF33,InputS!19:19,InputS!20:20) -> 0.09 | KG34: =LOOKUP(KG33,InputS!19:19,InputS!20:20) -> 0.12 | KH34: =LOOKUP(KH33,InputS!19:19,InputS!20:20) -> 0.12 | KI34: =LOOKUP(KI33,InputS!19:19,InputS!20:20) -> 0.09 | KJ34: =LOOKUP(KJ33,InputS!19:19,InputS!20:20) -> 0.08 | KK34: =LOOKUP(KK33,InputS!19:19,InputS!20:20) -> 0.07 | KL34: =LOOKUP(KL33,InputS!19:19,InputS!20:20) -> 0.065 | KM34: =LOOKUP(KM33,InputS!19:19,InputS!20:20) -> 0.06666666667 | KN34: =LOOKUP(KN33,InputS!19:19,InputS!20:20) -> 0.06666666667 | KO34: =LOOKUP(KO33,InputS!19:19,InputS!20:20) -> 0.06666666667 | KP34: =LOOKUP(KP33,InputS!19:19,InputS!20:20) -> 0.08 | KQ34: =LOOKUP(KQ33,InputS!19:19,InputS!20:20) -> 0.085 | KR34: =LOOKUP(KR33,InputS!19:19,InputS!20:20) -> 0.09 | KS34: =LOOKUP(KS33,InputS!19:19,InputS!20:20) -> 0.12 | KT34: =LOOKUP(KT33,InputS!19:19,InputS!20:20) -> 0.12 | KU34: =LOOKUP(KU33,InputS!19:19,InputS!20:20) -> 0.09 | KV34: =LOOKUP(KV33,InputS!19:19,InputS!20:20) -> 0.08 | KW34: =LOOKUP(KW33,InputS!19:19,InputS!20:20) -> 0.07 | KX34: =LOOKUP(KX33,InputS!19:19,InputS!20:20) -> 0.065 | KY34: =LOOKUP(KY33,InputS!19:19,InputS!20:20) -> 0.06666666667 | KZ34: =LOOKUP(KZ33,InputS!19:19,InputS!20:20) -> 0.06666666667 | LA34: =LOOKUP(LA33,InputS!19:19,InputS!20:20) -> 0.06666666667 | LB34: =LOOKUP(LB33,InputS!19:19,InputS!20:20) -> 0.08 | LC34: =LOOKUP(LC33,InputS!19:19,InputS!20:20) -> 0.085 | LD34: =LOOKUP(LD33,InputS!19:19,InputS!20:20) -> 0.09 | LE34: =LOOKUP(LE33,InputS!19:19,InputS!20:20) -> 0.12 | LF34: =LOOKUP(LF33,InputS!19:19,InputS!20:20) -> 0.12 | LG34: =LOOKUP(LG33,InputS!19:19,InputS!20:20) -> 0.09 | LH34: =LOOKUP(LH33,InputS!19:19,InputS!20:20) -> 0.08 | LI34: =LOOKUP(LI33,InputS!19:19,InputS!20:20) -> 0.07 | LJ34: =LOOKUP(LJ33,InputS!19:19,InputS!20:20) -> 0.065 | LK34: =LOOKUP(LK33,InputS!19:19,InputS!20:20) -> 0.06666666667 | LL34: =LOOKUP(LL33,InputS!19:19,InputS!20:20) -> 0.06666666667 | LM34: =LOOKUP(LM33,InputS!19:19,InputS!20:20) -> 0.06666666667 | LN34: =LOOKUP(LN33,InputS!19:19,InputS!20:20) -> 0.08 | LO34: =LOOKUP(LO33,InputS!19:19,InputS!20:20) -> 0.085 | LP34: =LOOKUP(LP33,InputS!19:19,InputS!20:20) -> 0.09 | LQ34: =LOOKUP(LQ33,InputS!19:19,InputS!20:20) -> 0.12 | LR34: =LOOKUP(LR33,InputS!19:19,InputS!20:20) -> 0.12 | LS34: =LOOKUP(LS33,InputS!19:19,InputS!20:20) -> 0.09 | LT34: =LOOKUP(LT33,InputS!19:19,InputS!20:20) -> 0.08 | LU34: =LOOKUP(LU33,InputS!19:19,InputS!20:20) -> 0.07 | LV34: =LOOKUP(LV33,InputS!19:19,InputS!20:20) -> 0.065 | LW34: =LOOKUP(LW33,InputS!19:19,InputS!20:20) -> 0.06666666667 | LX34: =LOOKUP(LX33,InputS!19:19,InputS!20:20) -> 0.06666666667 | LY34: =LOOKUP(LY33,InputS!19:19,InputS!20:20) -> 0.06666666667 | LZ34: =LOOKUP(LZ33,InputS!19:19,InputS!20:20) -> 0.08 | MA34: =LOOKUP(MA33,InputS!19:19,InputS!20:20) -> 0.085 | MB34: =LOOKUP(MB33,InputS!19:19,InputS!20:20) -> 0.09 | MC34: =LOOKUP(MC33,InputS!19:19,InputS!20:20) -> 0.12 | MD34: =LOOKUP(MD33,InputS!19:19,InputS!20:20) -> 0.12 | ME34: =LOOKUP(ME33,InputS!19:19,InputS!20:20) -> 0.09 | MF34: =LOOKUP(MF33,InputS!19:19,InputS!20:20) -> 0.08 | MG34: =LOOKUP(MG33,InputS!19:19,InputS!20:20) -> 0.07 | MH34: =LOOKUP(MH33,InputS!19:19,InputS!20:20) -> 0.065 | MI34: =LOOKUP(MI33,InputS!19:19,InputS!20:20) -> 0.06666666667 | MJ34: =LOOKUP(MJ33,InputS!19:19,InputS!20:20) -> 0.06666666667 | MK34: =LOOKUP(MK33,InputS!19:19,InputS!20:20) -> 0.06666666667 | ML34: =LOOKUP(ML33,InputS!19:19,InputS!20:20) -> 0.08 | MM34: =LOOKUP(MM33,InputS!19:19,InputS!20:20) -> 0.085 | MN34: =LOOKUP(MN33,InputS!19:19,InputS!20:20) -> 0.09 | MO34: =LOOKUP(MO33,InputS!19:19,InputS!20:20) -> 0.12 | MP34: =LOOKUP(MP33,InputS!19:19,InputS!20:20) -> 0.12 | MQ34: =LOOKUP(MQ33,InputS!19:19,InputS!20:20) -> 0.09 | MR34: =LOOKUP(MR33,InputS!19:19,InputS!20:20) -> 0.08 | MS34: =LOOKUP(MS33,InputS!19:19,InputS!20:20) -> 0.07 | MT34: =LOOKUP(MT33,InputS!19:19,InputS!20:20) -> 0.065 | MU34: =LOOKUP(MU33,InputS!19:19,InputS!20:20) -> 0.06666666667 | MV34: =LOOKUP(MV33,InputS!19:19,InputS!20:20) -> 0.06666666667 | MW34: =LOOKUP(MW33,InputS!19:19,InputS!20:20) -> 0.06666666667 | MX34: =LOOKUP(MX33,InputS!19:19,InputS!20:20) -> 0.08 | MY34: =LOOKUP(MY33,InputS!19:19,InputS!20:20) -> 0.085 | MZ34: =LOOKUP(MZ33,InputS!19:19,InputS!20:20) -> 0.09 | NA34: =LOOKUP(NA33,InputS!19:19,InputS!20:20) -> 0.12 | NB34: =LOOKUP(NB33,InputS!19:19,InputS!20:20) -> 0.12 | NC34: =LOOKUP(NC33,InputS!19:19,InputS!20:20) -> 0.09 | ND34: =LOOKUP(ND33,InputS!19:19,InputS!20:20) -> 0.08 | NE34: =LOOKUP(NE33,InputS!19:19,InputS!20:20) -> 0.07 | NF34: =LOOKUP(NF33,InputS!19:19,InputS!20:20) -> 0.065 | NG34: =LOOKUP(NG33,InputS!19:19,InputS!20:20) -> 0.06666666667 | NH34: =LOOKUP(NH33,InputS!19:19,InputS!20:20) -> 0.06666666667 | NI34: =LOOKUP(NI33,InputS!19:19,InputS!20:20) -> 0.06666666667 | NJ34: =LOOKUP(NJ33,InputS!19:19,InputS!20:20) -> 0.08 | NK34: =LOOKUP(NK33,InputS!19:19,InputS!20:20) -> 0.085 | NL34: =LOOKUP(NL33,InputS!19:19,InputS!20:20) -> 0.09 | NM34: =LOOKUP(NM33,InputS!19:19,InputS!20:20) -> 0.12 | NN34: =LOOKUP(NN33,InputS!19:19,InputS!20:20) -> 0.12 | NO34: =LOOKUP(NO33,InputS!19:19,InputS!20:20) -> 0.09 | NP34: =LOOKUP(NP33,InputS!19:19,InputS!20:20) -> 0.08 | NQ34: =LOOKUP(NQ33,InputS!19:19,InputS!20:20) -> 0.07 | NR34: =LOOKUP(NR33,InputS!19:19,InputS!20:20) -> 0.065 | NS34: =LOOKUP(NS33,InputS!19:19,InputS!20:20) -> 0.06666666667 | NT34: =LOOKUP(NT33,InputS!19:19,InputS!20:20) -> 0.06666666667 | NU34: =LOOKUP(NU33,InputS!19:19,InputS!20:20) -> 0.06666666667 | NV34: =LOOKUP(NV33,InputS!19:19,InputS!20:20) -> 0.08 | NW34: =LOOKUP(NW33,InputS!19:19,InputS!20:20) -> 0.085 | NX34: =LOOKUP(NX33,InputS!19:19,InputS!20:20) -> 0.09 | NY34: =LOOKUP(NY33,InputS!19:19,InputS!20:20) -> 0.12 | NZ34: =LOOKUP(NZ33,InputS!19:19,InputS!20:20) -> 0.12 | OA34: =LOOKUP(OA33,InputS!19:19,InputS!20:20) -> 0.09 | OB34: =LOOKUP(OB33,InputS!19:19,InputS!20:20) -> 0.08 | OC34: =LOOKUP(OC33,InputS!19:19,InputS!20:20) -> 0.07 | OD34: =LOOKUP(OD33,InputS!19:19,InputS!20:20) -> 0.065 | OE34: =LOOKUP(OE33,InputS!19:19,InputS!20:20) -> 0.06666666667 | OF34: =LOOKUP(OF33,InputS!19:19,InputS!20:20) -> 0.06666666667 | OG34: =LOOKUP(OG33,InputS!19:19,InputS!20:20) -> 0.06666666667 | OH34: =LOOKUP(OH33,InputS!19:19,InputS!20:20) -> 0.08 | OI34: =LOOKUP(OI33,InputS!19:19,InputS!20:20) -> 0.085 | OJ34: =LOOKUP(OJ33,InputS!19:19,InputS!20:20) -> 0.09 | OK34: =LOOKUP(OK33,InputS!19:19,InputS!20:20) -> 0.12 | OL34: =LOOKUP(OL33,InputS!19:19,InputS!20:20) -> 0.12 | OM34: =LOOKUP(OM33,InputS!19:19,InputS!20:20) -> 0.09 | ON34: =LOOKUP(ON33,InputS!19:19,InputS!20:20) -> 0.08 | OO34: =LOOKUP(OO33,InputS!19:19,InputS!20:20) -> 0.07 | OP34: =LOOKUP(OP33,InputS!19:19,InputS!20:20) -> 0.065 | OQ34: =LOOKUP(OQ33,InputS!19:19,InputS!20:20) -> 0.06666666667 | OR34: =LOOKUP(OR33,InputS!19:19,InputS!20:20) -> 0.06666666667 | OS34: =LOOKUP(OS33,InputS!19:19,InputS!20:20) -> 0.06666666667 | OT34: =LOOKUP(OT33,InputS!19:19,InputS!20:20) -> 0.08 | OU34: =LOOKUP(OU33,InputS!19:19,InputS!20:20) -> 0.085 | OV34: =LOOKUP(OV33,InputS!19:19,InputS!20:20) -> 0.09 | OW34: =LOOKUP(OW33,InputS!19:19,InputS!20:20) -> 0.12 | OX34: =LOOKUP(OX33,InputS!19:19,InputS!20:20) -> 0.12 | OY34: =LOOKUP(OY33,InputS!19:19,InputS!20:20) -> 0.09 | OZ34: =LOOKUP(OZ33,InputS!19:19,InputS!20:20) -> 0.08 | PA34: =LOOKUP(PA33,InputS!19:19,InputS!20:20) -> 0.07 | PB34: =LOOKUP(PB33,InputS!19:19,InputS!20:20) -> 0.065 | PC34: =LOOKUP(PC33,InputS!19:19,InputS!20:20) -> 0.06666666667 | PD34: =LOOKUP(PD33,InputS!19:19,InputS!20:20) -> 0.06666666667 | PE34: =LOOKUP(PE33,InputS!19:19,InputS!20:20) -> 0.06666666667 | PF34: =LOOKUP(PF33,InputS!19:19,InputS!20:20) -> 0.08 | PG34: =LOOKUP(PG33,InputS!19:19,InputS!20:20) -> 0.085 | PH34: =LOOKUP(PH33,InputS!19:19,InputS!20:20) -> 0.09 | PI34: =LOOKUP(PI33,InputS!19:19,InputS!20:20) -> 0.12 | PJ34: =LOOKUP(PJ33,InputS!19:19,InputS!20:20) -> 0.12 | PK34: =LOOKUP(PK33,InputS!19:19,InputS!20:20) -> 0.09 | PL34: =LOOKUP(PL33,InputS!19:19,InputS!20:20) -> 0.08 | PM34: =LOOKUP(PM33,InputS!19:19,InputS!20:20) -> 0.07 | PN34: =LOOKUP(PN33,InputS!19:19,InputS!20:20) -> 0.065 | PO34: =LOOKUP(PO33,InputS!19:19,InputS!20:20) -> 0.06666666667 | PP34: =LOOKUP(PP33,InputS!19:19,InputS!20:20) -> 0.06666666667 | PQ34: =LOOKUP(PQ33,InputS!19:19,InputS!20:20) -> 0.06666666667 | PR34: =LOOKUP(PR33,InputS!19:19,InputS!20:20) -> 0.08 | PS34: =LOOKUP(PS33,InputS!19:19,InputS!20:20) -> 0.085 | PT34: =LOOKUP(PT33,InputS!19:19,InputS!20:20) -> 0.09 | PU34: =LOOKUP(PU33,InputS!19:19,InputS!20:20) -> 0.12 | PV34: =LOOKUP(PV33,InputS!19:19,InputS!20:20) -> 0.12 | PW34: =LOOKUP(PW33,InputS!19:19,InputS!20:20) -> 0.09 | PX34: =LOOKUP(PX33,InputS!19:19,InputS!20:20) -> 0.08 | PY34: =LOOKUP(PY33,InputS!19:19,InputS!20:20) -> 0.07 | PZ34: =LOOKUP(PZ33,InputS!19:19,InputS!20:20) -> 0.065 | QA34: =LOOKUP(QA33,InputS!19:19,InputS!20:20) -> 0.06666666667 | QB34: =LOOKUP(QB33,InputS!19:19,InputS!20:20) -> 0.06666666667 | QC34: =LOOKUP(QC33,InputS!19:19,InputS!20:20) -> 0.06666666667 | QD34: =LOOKUP(QD33,InputS!19:19,InputS!20:20) -> 0.08 | QE34: =LOOKUP(QE33,InputS!19:19,InputS!20:20) -> 0.085 | QF34: =LOOKUP(QF33,InputS!19:19,InputS!20:20) -> 0.09 | QG34: =LOOKUP(QG33,InputS!19:19,InputS!20:20) -> 0.12 | QH34: =LOOKUP(QH33,InputS!19:19,InputS!20:20) -> 0.12 | QI34: =LOOKUP(QI33,InputS!19:19,InputS!20:20) -> 0.09 | QJ34: =LOOKUP(QJ33,InputS!19:19,InputS!20:20) -> 0.08 | QK34: =LOOKUP(QK33,InputS!19:19,InputS!20:20) -> 0.07 | QL34: =LOOKUP(QL33,InputS!19:19,InputS!20:20) -> 0.065 | QM34: =LOOKUP(QM33,InputS!19:19,InputS!20:20) -> 0.06666666667 | QN34: =LOOKUP(QN33,InputS!19:19,InputS!20:20) -> 0.06666666667 | QO34: =LOOKUP(QO33,InputS!19:19,InputS!20:20) -> 0.06666666667 | QP34: =LOOKUP(QP33,InputS!19:19,InputS!20:20) -> 0.08 | QQ34: =LOOKUP(QQ33,InputS!19:19,InputS!20:20) -> 0.085 | QR34: =LOOKUP(QR33,InputS!19:19,InputS!20:20) -> 0.09 | QS34: =LOOKUP(QS33,InputS!19:19,InputS!20:20) -> 0.12 | QT34: =LOOKUP(QT33,InputS!19:19,InputS!20:20) -> 0.12 | QU34: =LOOKUP(QU33,InputS!19:19,InputS!20:20) -> 0.09 | QV34: =LOOKUP(QV33,InputS!19:19,InputS!20:20) -> 0.08 | QW34: =LOOKUP(QW33,InputS!19:19,InputS!20:20) -> 0.07 | QX34: =LOOKUP(QX33,InputS!19:19,InputS!20:20) -> 0.065 | QY34: =LOOKUP(QY33,InputS!19:19,InputS!20:20) -> 0.06666666667 | QZ34: =LOOKUP(QZ33,InputS!19:19,InputS!20:20) -> 0.06666666667 | RA34: =LOOKUP(RA33,InputS!19:19,InputS!20:20) -> 0.06666666667 | RB34: =LOOKUP(RB33,InputS!19:19,InputS!20:20) -> 0.08 | RC34: =LOOKUP(RC33,InputS!19:19,InputS!20:20) -> 0.085 | RD34: =LOOKUP(RD33,InputS!19:19,InputS!20:20) -> 0.09 | RE34: =LOOKUP(RE33,InputS!19:19,InputS!20:20) -> 0.12 | RF34: =LOOKUP(RF33,InputS!19:19,InputS!20:20) -> 0.12 | RG34: =LOOKUP(RG33,InputS!19:19,InputS!20:20) -> 0.09 | RH34: =LOOKUP(RH33,InputS!19:19,InputS!20:20) -> 0.08 | RI34: =LOOKUP(RI33,InputS!19:19,InputS!20:20) -> 0.07 | RJ34: =LOOKUP(RJ33,InputS!19:19,InputS!20:20) -> 0.065 | RK34: =LOOKUP(RK33,InputS!19:19,InputS!20:20) -> 0.06666666667 | RL34: =LOOKUP(RL33,InputS!19:19,InputS!20:20) -> 0.06666666667 | RM34: =LOOKUP(RM33,InputS!19:19,InputS!20:20) -> 0.06666666667 | RN34: =LOOKUP(RN33,InputS!19:19,InputS!20:20) -> 0.08 | RO34: =LOOKUP(RO33,InputS!19:19,InputS!20:20) -> 0.085 | RP34: =LOOKUP(RP33,InputS!19:19,InputS!20:20) -> 0.09 | RQ34: =LOOKUP(RQ33,InputS!19:19,InputS!20:20) -> 0.12 | RR34: =LOOKUP(RR33,InputS!19:19,InputS!20:20) -> 0.12 | RS34: =LOOKUP(RS33,InputS!19:19,InputS!20:20) -> 0.09 | RT34: =LOOKUP(RT33,InputS!19:19,InputS!20:20) -> 0.08 | RU34: =LOOKUP(RU33,InputS!19:19,InputS!20:20) -> 0.07 | RV34: =LOOKUP(RV33,InputS!19:19,InputS!20:20) -> 0.065 | RW34: =LOOKUP(RW33,InputS!19:19,InputS!20:20) -> 0.06666666667 | RX34: =LOOKUP(RX33,InputS!19:19,InputS!20:20) -> 0.06666666667 | RY34: =LOOKUP(RY33,InputS!19:19,InputS!20:20) -> 0.06666666667 | RZ34: =LOOKUP(RZ33,InputS!19:19,InputS!20:20) -> 0.08 | SA34: =LOOKUP(SA33,InputS!19:19,InputS!20:20) -> 0.085 | SB34: =LOOKUP(SB33,InputS!19:19,InputS!20:20) -> 0.09 | SC34: =LOOKUP(SC33,InputS!19:19,InputS!20:20) -> 0.12 | SD34: =LOOKUP(SD33,InputS!19:19,InputS!20:20) -> 0.12 | SE34: =LOOKUP(SE33,InputS!19:19,InputS!20:20) -> 0.09 | SF34: =LOOKUP(SF33,InputS!19:19,InputS!20:20) -> 0.08 | SG34: =LOOKUP(SG33,InputS!19:19,InputS!20:20) -> 0.07 | SH34: =LOOKUP(SH33,InputS!19:19,InputS!20:20) -> 0.065 | SI34: =LOOKUP(SI33,InputS!19:19,InputS!20:20) -> 0.06666666667 | SJ34: =LOOKUP(SJ33,InputS!19:19,InputS!20:20) -> 0.06666666667 | SK34: =LOOKUP(SK33,InputS!19:19,InputS!20:20) -> 0.06666666667 | SL34: =LOOKUP(SL33,InputS!19:19,InputS!20:20) -> 0.08 | SM34: =LOOKUP(SM33,InputS!19:19,InputS!20:20) -> 0.085 | SN34: =LOOKUP(SN33,InputS!19:19,InputS!20:20) -> 0.09 | SO34: =LOOKUP(SO33,InputS!19:19,InputS!20:20) -> 0.12 | SP34: =LOOKUP(SP33,InputS!19:19,InputS!20:20) -> 0.12 | SQ34: =LOOKUP(SQ33,InputS!19:19,InputS!20:20) -> 0.09
D35: Seasonal Generation | G35: MWH | J35: =SUM(K35:XFD35) -> 9027784.684 | L35: =L34*L31 -> 0 | M35: =M34*M31 -> 0 | N35: 0 | O35: 0 | P35: 0 | Q35: 0 | R35: 0 | S35: 0 | T35: 0 | U35: 0 | V35: 0 | W35: 15048.4816 | X35: 15057.85472 | Y35: 15067.23368 | Z35: 18091.94219 | AA35: 19234.66165 | AB35: 20378.79761 | AC35: 27188.65438 | AD35: 27205.58915 | AE35: 20416.90086 | AF35: 18159.66023 | AG35: 15899.59979 | AH35: 14773.10997 | AI35: 15161.34521 | AJ35: 15170.78863 | AK35: 15180.23794 | AL35: 18227.63175 | AM35: 19378.92161 | AN35: 20531.63859 | AO35: 27392.56929 | AP35: 27409.63107 | AQ35: 20570.02761 | AR35: 18295.85769 | AS35: 16018.84679 | AT35: 14883.9083 | AU35: 15275.0553 | AV35: 15284.56955 | AW35: 15294.08972 | AX35: 18364.33899 | AY35: 19524.26352 | AZ35: 20685.62588 | BA35: 27598.01356 | BB35: 27615.2033 | BC35: 20724.30282 | BD35: 18433.07662 | BE35: 16138.98814 | BF35: 14995.53761 | BG35: 15389.61821 | BH35: 15399.20382 | BI35: 15408.79539 | BJ35: 18502.07153 | BK35: 19670.6955 | BL35: 20840.76807 | BM35: 27804.99866 | BN35: 27822.31733 | BO35: 20879.73509 | BP35: 18571.32469 | BQ35: 16260.03055 | BR35: 15108.00414 | BS35: 15505.04035 | BT35: 15514.69785 | BU35: 15524.36136 | BV35: 18640.83707 | BW35: 19818.22572 | BX35: 20997.07384 | BY35: =BY34*BY31 -> 28013.53615 | BZ35: 28030.98471 | CA35: 21036.3331 | CB35: 18710.60963 | CC35: 16381.98078 | CD35: 15221.31417 | CE35: 15621.32815 | CF35: 15631.05808 | CG35: 15640.79407 | CH35: 18780.64335 | CI35: 19966.86241 | CJ35: 21154.55189 | CK35: 28223.63767 | CL35: 28241.21709 | CM35: 21194.1056 | CN35: 18850.9392 | CO35: 16504.84564 | CP35: 15335.47403 | CQ35: 15738.48811 | CR35: 15748.29102 | CS35: 15758.10002 | CT35: 18921.49817 | CU35: 20116.61388 | CV35: 21313.21103 | CW35: 28435.31495 | CX35: 28453.02622 | CY35: 21353.06139 | CZ35: 18992.32124 | DA35: 16628.63198 | DB35: 15450.49008 | DC35: 15856.52677 | DD35: 15866.4032 | DE35: 15876.28577 | DF35: 19063.40941 | DG35: 20267.48848 | DH35: 21473.06011 | DI35: 28648.57981 | DJ35: 28666.42392 | DK35: 21513.20935 | DL35: 19134.76365 | DM35: 16753.34672 | DN35: 15566.36876 | DO35: 15975.45072 | DP35: 15985.40122 | DQ35: 15995.35792 | DR35: 19206.38498 | DS35: 20419.49465 | DT35: 21634.10806 | DU35: 28863.44416 | DV35: 28881.4221 | DW35: 21674.55842 | DX35: 19278.27438 | DY35: 16878.99682 | DZ35: 15683.11653 | EA35: 16095.2666 | EB35: 16105.29173 | EC35: 16115.3231 | ED35: 19350.43287 | EE35: 20572.64086 | EF35: 21796.36387 | EG35: 29079.91999 | EH35: 29098.03276 | EI35: 21837.11761 | EJ35: 19422.86144 | EK35: =EK34*EK31 -> 17005.5893 | EL35: 15800.7399 | EM35: 16215.9811 | EN35: 16226.08142 | EO35: 16236.18803 | EP35: 19495.56111 | EQ35: 20726.93566 | ER35: 21959.8366 | ES35: 29298.01939 | ET35: 29316.26801 | EU35: 22000.89599 | EV35: 19568.5329 | EW35: 17133.13122 | EX35: 15919.24545 | EY35: 16337.60096 | EZ35: 16347.77703 | FA35: 16357.95944 | FB35: 19641.77782 | FC35: 20882.38768 | FD35: 22124.53538 | FE35: 29517.75454 | FF35: 29536.14002 | FG35: 22165.90271 | FH35: 19715.2969 | FI35: 17261.6297 | FJ35: 16038.63979 | FK35: 16460.13297 | FL35: 16470.38536 | FM35: 16480.64413 | FN35: 19789.09115 | FO35: 21039.00559 | FP35: 22290.46939 | FQ35: 29739.1377 | FR35: 29757.66107 | FS35: 22332.14699 | FT35: 19863.16162 | FU35: 17391.09192 | FV35: 16158.92959 | FW35: 16583.58397 | FX35: 16593.91325 | FY35: 16604.24896 | FZ35: 19937.50934 | GA35: 21196.79813 | GB35: 22457.64791 | GC35: 29962.18123 | GD35: 29980.84353 | GE35: 22499.63809 | GF35: 20012.13534 | GG35: 17521.52511 | GH35: 16280.12156 | GI35: 16707.96085 | GJ35: 16718.3676 | GK35: 16728.78083 | GL35: 20087.04066 | GM35: 21355.77412 | GN35: 22626.08027 | GO35: 30186.89759 | GP35: 30205.69985 | GQ35: 22668.38537 | GR35: 20162.22635 | GS35: 17652.93655 | GT35: 16402.22247 | GU35: 16833.27055 | GV35: 16843.75535 | GW35: =GW34*GW31 -> 16854.24669 | GX35: 20237.69346 | GY35: 21515.94242 | GZ35: 22795.77587 | HA35: 30413.29932 | HB35: 30432.2426 | HC35: 22838.39826 | HD35: 20313.44305 | HE35: 17785.33358 | HF35: 16525.23914 | HG35: 16959.52008 | HH35: 16970.08352 | HI35: 16980.65354 | HJ35: 20389.47616 | HK35: 21677.31199 | HL35: 22966.74419 | HM35: 30641.39907 | HN35: 30660.48442 | HO35: 23009.68625 | HP35: 20465.79387 | HQ35: 17918.72358 | HR35: 16649.17843 | HS35: 17086.71648 | HT35: 17097.35915 | HU35: 17108.00844 | HV35: 20542.39724 | HW35: 21839.89183 | HX35: 23138.99477 | HY35: 30871.20956 | HZ35: 30890.43806 | IA35: 23182.2589 | IB35: 20619.28733 | IC35: 18053.11401 | ID35: 16774.04727 | IE35: 17214.86686 | IF35: 17225.58934 | IG35: 17236.3185 | IH35: 20696.46521 | II35: 22003.69102 | IJ35: 23312.53723 | IK35: 31102.74363 | IL35: 31122.11634 | IM35: 23356.12584 | IN35: 20773.93198 | IO35: 18188.51236 | IP35: 16899.85263 | IQ35: 17343.97836 | IR35: 17354.78126 | IS35: 17365.59089 | IT35: 20851.6887 | IU35: 22168.7187 | IV35: 23487.38126 | IW35: 31336.01421 | IX35: 31355.53221 | IY35: 23531.29678 | IZ35: 20929.73647 | JA35: 18324.9262 | JB35: 17026.60152 | JC35: 17474.0582 | JD35: 17484.94212 | JE35: 17495.83282 | JF35: 21008.07637 | JG35: 22334.98409 | JH35: 23663.53662 | JI35: =JI34*JI31 -> 31571.03431 | JJ35: 31590.69871 | JK35: 23707.78151 | JL35: 21086.70949 | JM35: 18462.36315 | JN35: 17154.30103 | JO35: 17605.11363 | JP35: 17616.07918 | JQ35: 17627.05157 | JR35: 21165.63694 | JS35: 22502.49647 | JT35: 23841.01315 | JU35: 31807.81707 | JV35: 31827.62895 | JW35: 23885.58987 | JX35: 21244.85981 | JY35: 18600.83087 | JZ35: 17282.95829 | KA35: 17737.15198 | KB35: 17748.19978 | KC35: 17759.25445 | KD35: 21324.37922 | KE35: 22671.2652 | KF35: 24019.82075 | KG35: 32046.3757 | KH35: 32066.33616 | KI35: 24064.73179 | KJ35: 21404.19626 | KK35: 18740.3371 | KL35: 17412.58048 | KM35: 17870.18062 | KN35: 17881.31128 | KO35: 17892.44886 | KP35: 21484.31206 | KQ35: 22841.29968 | KR35: 24199.9694 | KS35: 32286.72352 | KT35: 32306.83368 | KU35: 24245.21728 | KV35: 21564.72774 | KW35: 18880.88963 | KX35: 17543.17483 | KY35: 18004.20698 | KZ35: 18015.42111 | LA35: 18026.64223 | LB35: 21645.4444 | LC35: 23012.60943 | LD35: 24381.46917 | LE35: 32528.87394 | LF35: 32549.13494 | LG35: 24427.05641 | LH35: 21726.46319 | LI35: 19022.49631 | LJ35: 17674.74864 | LK35: 18139.23853 | LL35: 18150.53677 | LM35: 18161.84205 | LN35: 21807.78524 | LO35: 23185.204 | LP35: 24564.33019 | LQ35: 32772.8405 | LR35: 32793.25345 | LS35: 24610.25934 | LT35: 21889.41167 | LU35: =LU34*LU31 -> 19165.16503 | LV35: 17807.30926 | LW35: 18275.28282 | LX35: 18286.6658 | LY35: 18298.05586 | LZ35: 21971.34363 | MA35: 23359.09303 | MB35: 24748.56267 | MC35: 33018.6368 | MD35: 33039.20285 | ME35: 24794.83628 | MF35: 22053.58225 | MG35: 19308.90377 | MH35: 17940.86408 | MI35: 18412.34744 | MJ35: 18423.81579 | MK35: 18435.29128 | ML35: 22136.1287 | MM35: 23534.28623 | MN35: 24934.17689 | MO35: 33266.27658 | MP35: 33286.99687 | MQ35: 24980.79755 | MR35: 22218.98412 | MS35: 19453.72054 | MT35: 18075.42056 | MU35: 18550.44005 | MV35: 18561.99441 | MW35: 18573.55596 | MX35: 22302.14967 | MY35: 23710.79338 | MZ35: 25121.18321 | NA35: 33515.77365 | NB35: 33536.64935 | NC35: 25168.15353 | ND35: 22385.6265 | NE35: 19599.62345 | NF35: 18210.98621 | NG35: 18689.56835 | NH35: 18701.20937 | NI35: 18712.85763 | NJ35: 22469.41579 | NK35: 23888.62433 | NL35: 25309.59209 | NM35: 33767.14195 | NN35: 33788.17422 | NO35: 25356.91469 | NP35: 22553.5187 | NQ35: 19746.62062 | NR35: 18347.56861 | NS35: 18829.74011 | NT35: 18841.46844 | NU35: 18853.20407 | NV35: 22637.93641 | NW35: 24067.78901 | NX35: 25499.41403 | NY35: 34020.39552 | NZ35: 34041.58552 | OA35: 25547.09155 | OB35: 22722.67009 | OC35: 19894.72028 | OD35: 18485.17537 | OE35: 18970.96316 | OF35: 18982.77945 | OG35: =OG34*OG31 -> 18994.6031 | OH35: 22807.72093 | OI35: 24248.29743 | OJ35: 25690.65963 | OK35: 34275.54849 | OL35: 34296.89742 | OM35: 25738.69473 | ON35: 22893.09012 | OO35: 20043.93068 | OP35: 18623.81419 | OQ35: 19113.24538 | OR35: 19125.1503 | OS35: 19137.06262 | OT35: 22978.77884 | OU35: 24430.15966 | OV35: 25883.33958 | OW35: 34532.6151 | OX35: 34554.12415 | OY35: 25931.73494 | OZ35: 23064.78829 | PA35: 20194.26016 | PB35: 18763.49279 | PC35: 19256.59473 | PD35: 19268.58892 | PE35: 19280.59059 | PF35: 23151.11968 | PG35: 24613.38586 | PH35: 26077.46463 | PI35: 34791.60971 | PJ35: 34813.28008 | PK35: 26126.22295 | PL35: 23237.77421 | PM35: 20345.71711 | PN35: 18904.21899 | PO35: 19401.01919 | PP35: 19413.10334 | PQ35: 19425.19502 | PR35: 23324.75308 | PS35: 24797.98625 | PT35: 26273.04561 | PU35: 35052.54679 | PV35: 35074.37968 | PW35: 26322.16963 | PX35: 23412.05751 | PY35: 20498.30999 | PZ35: 19046.00063 | QA35: 0 | QB35: 0 | QC35: 0 | QD35: 0 | QE35: 0 | QF35: 0 | QG35: 0 | QH35: 0 | QI35: 0 | QJ35: 0 | QK35: 0 | QL35: 0 | QM35: 0 | QN35: 0 | QO35: 0 | QP35: 0 | QQ35: 0 | QR35: 0 | QS35: =QS34*QS31 -> 0 | QT35: 0 | QU35: 0 | QV35: 0 | QW35: 0 | QX35: 0 | QY35: 0 | QZ35: 0 | RA35: 0 | RB35: 0 | RC35: 0 | RD35: 0 | RE35: 0 | RF35: 0 | RG35: 0 | RH35: 0 | RI35: 0 | RJ35: 0 | RK35: 0 | RL35: 0 | RM35: 0 | RN35: 0 | RO35: 0 | RP35: 0 | RQ35: 0 | RR35: 0 | RS35: 0 | RT35: 0 | RU35: 0 | RV35: 0 | RW35: 0 | RX35: 0 | RY35: 0 | RZ35: 0 | SA35: 0 | SB35: 0 | SC35: 0 | SD35: 0 | SE35: 0 | SF35: 0 | SG35: 0 | SH35: 0 | SI35: 0 | SJ35: 0 | SK35: 0 | SL35: 0 | SM35: 0 | SN35: 0 | SO35: 0 | SP35: 0 | SQ35: 0
B37: Cash Flow
C38: Inflation Index
D39: Year | G39: Year | L39: =YEAR(L4) -> 2023 | M39: =YEAR(M4) -> 2023 | N39: 2023 | O39: 2023 | P39: 2023 | Q39: 2023 | R39: 2023 | S39: 2023 | T39: 2023 | U39: 2023 | V39: 2023 | W39: 2023 | X39: 2024 | Y39: 2024 | Z39: 2024 | AA39: 2024 | AB39: 2024 | AC39: 2024 | AD39: 2024 | AE39: 2024 | AF39: 2024 | AG39: 2024 | AH39: 2024 | AI39: 2024 | AJ39: 2025 | AK39: 2025 | AL39: 2025 | AM39: 2025 | AN39: 2025 | AO39: 2025 | AP39: 2025 | AQ39: 2025 | AR39: 2025 | AS39: 2025 | AT39: 2025 | AU39: 2025 | AV39: 2026 | AW39: 2026 | AX39: 2026 | AY39: 2026 | AZ39: 2026 | BA39: 2026 | BB39: 2026 | BC39: 2026 | BD39: 2026 | BE39: 2026 | BF39: 2026 | BG39: 2026 | BH39: 2027 | BI39: 2027 | BJ39: 2027 | BK39: 2027 | BL39: 2027 | BM39: 2027 | BN39: 2027 | BO39: 2027 | BP39: 2027 | BQ39: 2027 | BR39: 2027 | BS39: 2027 | BT39: 2028 | BU39: 2028 | BV39: 2028 | BW39: 2028 | BX39: 2028 | BY39: =YEAR(BY4) -> 2028 | BZ39: 2028 | CA39: 2028 | CB39: 2028 | CC39: 2028 | CD39: 2028 | CE39: 2028 | CF39: 2029 | CG39: 2029 | CH39: 2029 | CI39: 2029 | CJ39: 2029 | CK39: 2029 | CL39: 2029 | CM39: 2029 | CN39: 2029 | CO39: 2029 | CP39: 2029 | CQ39: 2029 | CR39: 2030 | CS39: 2030 | CT39: 2030 | CU39: 2030 | CV39: 2030 | CW39: 2030 | CX39: 2030 | CY39: 2030 | CZ39: 2030 | DA39: 2030 | DB39: 2030 | DC39: 2030 | DD39: 2031 | DE39: 2031 | DF39: 2031 | DG39: 2031 | DH39: 2031 | DI39: 2031 | DJ39: 2031 | DK39: 2031 | DL39: 2031 | DM39: 2031 | DN39: 2031 | DO39: 2031 | DP39: 2032 | DQ39: 2032 | DR39: 2032 | DS39: 2032 | DT39: 2032 | DU39: 2032 | DV39: 2032 | DW39: 2032 | DX39: 2032 | DY39: 2032 | DZ39: 2032 | EA39: 2032 | EB39: 2033 | EC39: 2033 | ED39: 2033 | EE39: 2033 | EF39: 2033 | EG39: 2033 | EH39: 2033 | EI39: 2033 | EJ39: 2033 | EK39: =YEAR(EK4) -> 2033 | EL39: 2033 | EM39: 2033 | EN39: 2034 | EO39: 2034 | EP39: 2034 | EQ39: 2034 | ER39: 2034 | ES39: 2034 | ET39: 2034 | EU39: 2034 | EV39: 2034 | EW39: 2034 | EX39: 2034 | EY39: 2034 | EZ39: 2035 | FA39: 2035 | FB39: 2035 | FC39: 2035 | FD39: 2035 | FE39: 2035 | FF39: 2035 | FG39: 2035 | FH39: 2035 | FI39: 2035 | FJ39: 2035 | FK39: 2035 | FL39: 2036 | FM39: 2036 | FN39: 2036 | FO39: 2036 | FP39: 2036 | FQ39: 2036 | FR39: 2036 | FS39: 2036 | FT39: 2036 | FU39: 2036 | FV39: 2036 | FW39: 2036 | FX39: 2037 | FY39: 2037 | FZ39: 2037 | GA39: 2037 | GB39: 2037 | GC39: 2037 | GD39: 2037 | GE39: 2037 | GF39: 2037 | GG39: 2037 | GH39: 2037 | GI39: 2037 | GJ39: 2038 | GK39: 2038 | GL39: 2038 | GM39: 2038 | GN39: 2038 | GO39: 2038 | GP39: 2038 | GQ39: 2038 | GR39: 2038 | GS39: 2038 | GT39: 2038 | GU39: 2038 | GV39: 2039 | GW39: =YEAR(GW4) -> 2039 | GX39: 2039 | GY39: 2039 | GZ39: 2039 | HA39: 2039 | HB39: 2039 | HC39: 2039 | HD39: 2039 | HE39: 2039 | HF39: 2039 | HG39: 2039 | HH39: 2040 | HI39: 2040 | HJ39: 2040 | HK39: 2040 | HL39: 2040 | HM39: 2040 | HN39: 2040 | HO39: 2040 | HP39: 2040 | HQ39: 2040 | HR39: 2040 | HS39: 2040 | HT39: 2041 | HU39: 2041 | HV39: 2041 | HW39: 2041 | HX39: 2041 | HY39: 2041 | HZ39: 2041 | IA39: 2041 | IB39: 2041 | IC39: 2041 | ID39: 2041 | IE39: 2041 | IF39: 2042 | IG39: 2042 | IH39: 2042 | II39: 2042 | IJ39: 2042 | IK39: 2042 | IL39: 2042 | IM39: 2042 | IN39: 2042 | IO39: 2042 | IP39: 2042 | IQ39: 2042 | IR39: 2043 | IS39: 2043 | IT39: 2043 | IU39: 2043 | IV39: 2043 | IW39: 2043 | IX39: 2043 | IY39: 2043 | IZ39: 2043 | JA39: 2043 | JB39: 2043 | JC39: 2043 | JD39: 2044 | JE39: 2044 | JF39: 2044 | JG39: 2044 | JH39: 2044 | JI39: =YEAR(JI4) -> 2044 | JJ39: 2044 | JK39: 2044 | JL39: 2044 | JM39: 2044 | JN39: 2044 | JO39: 2044 | JP39: 2045 | JQ39: 2045 | JR39: 2045 | JS39: 2045 | JT39: 2045 | JU39: 2045 | JV39: 2045 | JW39: 2045 | JX39: 2045 | JY39: 2045 | JZ39: 2045 | KA39: 2045 | KB39: 2046 | KC39: 2046 | KD39: 2046 | KE39: 2046 | KF39: 2046 | KG39: 2046 | KH39: 2046 | KI39: 2046 | KJ39: 2046 | KK39: 2046 | KL39: 2046 | KM39: 2046 | KN39: 2047 | KO39: 2047 | KP39: 2047 | KQ39: 2047 | KR39: 2047 | KS39: 2047 | KT39: 2047 | KU39: 2047 | KV39: 2047 | KW39: 2047 | KX39: 2047 | KY39: 2047 | KZ39: 2048 | LA39: 2048 | LB39: 2048 | LC39: 2048 | LD39: 2048 | LE39: 2048 | LF39: 2048 | LG39: 2048 | LH39: 2048 | LI39: 2048 | LJ39: 2048 | LK39: 2048 | LL39: 2049 | LM39: 2049 | LN39: 2049 | LO39: 2049 | LP39: 2049 | LQ39: 2049 | LR39: 2049 | LS39: 2049 | LT39: 2049 | LU39: =YEAR(LU4) -> 2049 | LV39: 2049 | LW39: 2049 | LX39: 2050 | LY39: 2050 | LZ39: 2050 | MA39: 2050 | MB39: 2050 | MC39: 2050 | MD39: 2050 | ME39: 2050 | MF39: 2050 | MG39: 2050 | MH39: 2050 | MI39: 2050 | MJ39: 2051 | MK39: 2051 | ML39: 2051 | MM39: 2051 | MN39: 2051 | MO39: 2051 | MP39: 2051 | MQ39: 2051 | MR39: 2051 | MS39: 2051 | MT39: 2051 | MU39: 2051 | MV39: 2052 | MW39: 2052 | MX39: 2052 | MY39: 2052 | MZ39: 2052 | NA39: 2052 | NB39: 2052 | NC39: 2052 | ND39: 2052 | NE39: 2052 | NF39: 2052 | NG39: 2052 | NH39: 2053 | NI39: 2053 | NJ39: 2053 | NK39: 2053 | NL39: 2053 | NM39: 2053 | NN39: 2053 | NO39: 2053 | NP39: 2053 | NQ39: 2053 | NR39: 2053 | NS39: 2053 | NT39: 2054 | NU39: 2054 | NV39: 2054 | NW39: 2054 | NX39: 2054 | NY39: 2054 | NZ39: 2054 | OA39: 2054 | OB39: 2054 | OC39: 2054 | OD39: 2054 | OE39: 2054 | OF39: 2055 | OG39: =YEAR(OG4) -> 2055 | OH39: 2055 | OI39: 2055 | OJ39: 2055 | OK39: 2055 | OL39: 2055 | OM39: 2055 | ON39: 2055 | OO39: 2055 | OP39: 2055 | OQ39: 2055 | OR39: 2056 | OS39: 2056 | OT39: 2056 | OU39: 2056 | OV39: 2056 | OW39: 2056 | OX39: 2056 | OY39: 2056 | OZ39: 2056 | PA39: 2056 | PB39: 2056 | PC39: 2056 | PD39: 2057 | PE39: 2057 | PF39: 2057 | PG39: 2057 | PH39: 2057 | PI39: 2057 | PJ39: 2057 | PK39: 2057 | PL39: 2057 | PM39: 2057 | PN39: 2057 | PO39: 2057 | PP39: 2058 | PQ39: 2058 | PR39: 2058 | PS39: 2058 | PT39: 2058 | PU39: 2058 | PV39: 2058 | PW39: 2058 | PX39: 2058 | PY39: 2058 | PZ39: 2058 | QA39: 2058 | QB39: 2059 | QC39: 2059 | QD39: 2059 | QE39: 2059 | QF39: 2059 | QG39: 2059 | QH39: 2059 | QI39: 2059 | QJ39: 2059 | QK39: 2059 | QL39: 2059 | QM39: 2059 | QN39: 2060 | QO39: 2060 | QP39: 2060 | QQ39: 2060 | QR39: 2060 | QS39: =YEAR(QS4) -> 2060 | QT39: 2060 | QU39: 2060 | QV39: 2060 | QW39: 2060 | QX39: 2060 | QY39: 2060 | QZ39: 2061 | RA39: 2061 | RB39: 2061 | RC39: 2061 | RD39: 2061 | RE39: 2061 | RF39: 2061 | RG39: 2061 | RH39: 2061 | RI39: 2061 | RJ39: 2061 | RK39: 2061 | RL39: 2062 | RM39: 2062 | RN39: 2062 | RO39: 2062 | RP39: 2062 | RQ39: 2062 | RR39: 2062 | RS39: 2062 | RT39: 2062 | RU39: 2062 | RV39: 2062 | RW39: 2062 | RX39: 2063 | RY39: 2063 | RZ39: 2063 | SA39: 2063 | SB39: 2063 | SC39: 2063 | SD39: 2063 | SE39: 2063 | SF39: 2063 | SG39: 2063 | SH39: 2063 | SI39: 2063 | SJ39: 2064 | SK39: 2064 | SL39: 2064 | SM39: 2064 | SN39: 2064 | SO39: 2064 | SP39: 2064 | SQ39: 2064
D40: Annual Inflation Rate | E40: =InputS!D29 -> High Inflation | G40: % p.a. | L40: =LOOKUP(L39,InputS!24:24,InputS!29:29) -> 0.04 | M40: =LOOKUP(M39,InputS!24:24,InputS!29:29) -> 0.04 | N40: =LOOKUP(N39,InputS!24:24,InputS!29:29) -> 0.04 | O40: =LOOKUP(O39,InputS!24:24,InputS!29:29) -> 0.04 | P40: =LOOKUP(P39,InputS!24:24,InputS!29:29) -> 0.04 | Q40: =LOOKUP(Q39,InputS!24:24,InputS!29:29) -> 0.04 | R40: =LOOKUP(R39,InputS!24:24,InputS!29:29) -> 0.04 | S40: =LOOKUP(S39,InputS!24:24,InputS!29:29) -> 0.04 | T40: =LOOKUP(T39,InputS!24:24,InputS!29:29) -> 0.04 | U40: =LOOKUP(U39,InputS!24:24,InputS!29:29) -> 0.04 | V40: =LOOKUP(V39,InputS!24:24,InputS!29:29) -> 0.04 | W40: =LOOKUP(W39,InputS!24:24,InputS!29:29) -> 0.04 | X40: =LOOKUP(X39,InputS!24:24,InputS!29:29) -> 0.04 | Y40: =LOOKUP(Y39,InputS!24:24,InputS!29:29) -> 0.04 | Z40: =LOOKUP(Z39,InputS!24:24,InputS!29:29) -> 0.04 | AA40: =LOOKUP(AA39,InputS!24:24,InputS!29:29) -> 0.04 | AB40: =LOOKUP(AB39,InputS!24:24,InputS!29:29) -> 0.04 | AC40: =LOOKUP(AC39,InputS!24:24,InputS!29:29) -> 0.04 | AD40: =LOOKUP(AD39,InputS!24:24,InputS!29:29) -> 0.04 | AE40: =LOOKUP(AE39,InputS!24:24,InputS!29:29) -> 0.04 | AF40: =LOOKUP(AF39,InputS!24:24,InputS!29:29) -> 0.04 | AG40: =LOOKUP(AG39,InputS!24:24,InputS!29:29) -> 0.04 | AH40: =LOOKUP(AH39,InputS!24:24,InputS!29:29) -> 0.04 | AI40: =LOOKUP(AI39,InputS!24:24,InputS!29:29) -> 0.04 | AJ40: =LOOKUP(AJ39,InputS!24:24,InputS!29:29) -> 0.04 | AK40: =LOOKUP(AK39,InputS!24:24,InputS!29:29) -> 0.04 | AL40: =LOOKUP(AL39,InputS!24:24,InputS!29:29) -> 0.04 | AM40: =LOOKUP(AM39,InputS!24:24,InputS!29:29) -> 0.04 | AN40: =LOOKUP(AN39,InputS!24:24,InputS!29:29) -> 0.04 | AO40: =LOOKUP(AO39,InputS!24:24,InputS!29:29) -> 0.04 | AP40: =LOOKUP(AP39,InputS!24:24,InputS!29:29) -> 0.04 | AQ40: =LOOKUP(AQ39,InputS!24:24,InputS!29:29) -> 0.04 | AR40: =LOOKUP(AR39,InputS!24:24,InputS!29:29) -> 0.04 | AS40: =LOOKUP(AS39,InputS!24:24,InputS!29:29) -> 0.04 | AT40: =LOOKUP(AT39,InputS!24:24,InputS!29:29) -> 0.04 | AU40: =LOOKUP(AU39,InputS!24:24,InputS!29:29) -> 0.04 | AV40: =LOOKUP(AV39,InputS!24:24,InputS!29:29) -> 0.04 | AW40: =LOOKUP(AW39,InputS!24:24,InputS!29:29) -> 0.04 | AX40: =LOOKUP(AX39,InputS!24:24,InputS!29:29) -> 0.04 | AY40: =LOOKUP(AY39,InputS!24:24,InputS!29:29) -> 0.04 | AZ40: =LOOKUP(AZ39,InputS!24:24,InputS!29:29) -> 0.04 | BA40: =LOOKUP(BA39,InputS!24:24,InputS!29:29) -> 0.04 | BB40: =LOOKUP(BB39,InputS!24:24,InputS!29:29) -> 0.04 | BC40: =LOOKUP(BC39,InputS!24:24,InputS!29:29) -> 0.04 | BD40: =LOOKUP(BD39,InputS!24:24,InputS!29:29) -> 0.04 | BE40: =LOOKUP(BE39,InputS!24:24,InputS!29:29) -> 0.04 | BF40: =LOOKUP(BF39,InputS!24:24,InputS!29:29) -> 0.04 | BG40: =LOOKUP(BG39,InputS!24:24,InputS!29:29) -> 0.04 | BH40: =LOOKUP(BH39,InputS!24:24,InputS!29:29) -> 0.04 | BI40: =LOOKUP(BI39,InputS!24:24,InputS!29:29) -> 0.04 | BJ40: =LOOKUP(BJ39,InputS!24:24,InputS!29:29) -> 0.04 | BK40: =LOOKUP(BK39,InputS!24:24,InputS!29:29) -> 0.04 | BL40: =LOOKUP(BL39,InputS!24:24,InputS!29:29) -> 0.04 | BM40: =LOOKUP(BM39,InputS!24:24,InputS!29:29) -> 0.04 | BN40: =LOOKUP(BN39,InputS!24:24,InputS!29:29) -> 0.04 | BO40: =LOOKUP(BO39,InputS!24:24,InputS!29:29) -> 0.04 | BP40: =LOOKUP(BP39,InputS!24:24,InputS!29:29) -> 0.04 | BQ40: =LOOKUP(BQ39,InputS!24:24,InputS!29:29) -> 0.04 | BR40: =LOOKUP(BR39,InputS!24:24,InputS!29:29) -> 0.04 | BS40: =LOOKUP(BS39,InputS!24:24,InputS!29:29) -> 0.04 | BT40: =LOOKUP(BT39,InputS!24:24,InputS!29:29) -> 0.04 | BU40: =LOOKUP(BU39,InputS!24:24,InputS!29:29) -> 0.04 | BV40: =LOOKUP(BV39,InputS!24:24,InputS!29:29) -> 0.04 | BW40: =LOOKUP(BW39,InputS!24:24,InputS!29:29) -> 0.04 | BX40: =LOOKUP(BX39,InputS!24:24,InputS!29:29) -> 0.04 | BY40: =LOOKUP(BY39,InputS!24:24,InputS!29:29) -> 0.04 | BZ40: =LOOKUP(BZ39,InputS!24:24,InputS!29:29) -> 0.04 | CA40: =LOOKUP(CA39,InputS!24:24,InputS!29:29) -> 0.04 | CB40: =LOOKUP(CB39,InputS!24:24,InputS!29:29) -> 0.04 | CC40: =LOOKUP(CC39,InputS!24:24,InputS!29:29) -> 0.04 | CD40: =LOOKUP(CD39,InputS!24:24,InputS!29:29) -> 0.04 | CE40: =LOOKUP(CE39,InputS!24:24,InputS!29:29) -> 0.04 | CF40: =LOOKUP(CF39,InputS!24:24,InputS!29:29) -> 0.04 | CG40: =LOOKUP(CG39,InputS!24:24,InputS!29:29) -> 0.04 | CH40: =LOOKUP(CH39,InputS!24:24,InputS!29:29) -> 0.04 | CI40: =LOOKUP(CI39,InputS!24:24,InputS!29:29) -> 0.04 | CJ40: =LOOKUP(CJ39,InputS!24:24,InputS!29:29) -> 0.04 | CK40: =LOOKUP(CK39,InputS!24:24,InputS!29:29) -> 0.04 | CL40: =LOOKUP(CL39,InputS!24:24,InputS!29:29) -> 0.04 | CM40: =LOOKUP(CM39,InputS!24:24,InputS!29:29) -> 0.04 | CN40: =LOOKUP(CN39,InputS!24:24,InputS!29:29) -> 0.04 | CO40: =LOOKUP(CO39,InputS!24:24,InputS!29:29) -> 0.04 | CP40: =LOOKUP(CP39,InputS!24:24,InputS!29:29) -> 0.04 | CQ40: =LOOKUP(CQ39,InputS!24:24,InputS!29:29) -> 0.04 | CR40: =LOOKUP(CR39,InputS!24:24,InputS!29:29) -> 0.04 | CS40: =LOOKUP(CS39,InputS!24:24,InputS!29:29) -> 0.04 | CT40: =LOOKUP(CT39,InputS!24:24,InputS!29:29) -> 0.04 | CU40: =LOOKUP(CU39,InputS!24:24,InputS!29:29) -> 0.04 | CV40: =LOOKUP(CV39,InputS!24:24,InputS!29:29) -> 0.04 | CW40: =LOOKUP(CW39,InputS!24:24,InputS!29:29) -> 0.04 | CX40: =LOOKUP(CX39,InputS!24:24,InputS!29:29) -> 0.04 | CY40: =LOOKUP(CY39,InputS!24:24,InputS!29:29) -> 0.04 | CZ40: =LOOKUP(CZ39,InputS!24:24,InputS!29:29) -> 0.04 | DA40: =LOOKUP(DA39,InputS!24:24,InputS!29:29) -> 0.04 | DB40: =LOOKUP(DB39,InputS!24:24,InputS!29:29) -> 0.04 | DC40: =LOOKUP(DC39,InputS!24:24,InputS!29:29) -> 0.04 | DD40: =LOOKUP(DD39,InputS!24:24,InputS!29:29) -> 0.04 | DE40: =LOOKUP(DE39,InputS!24:24,InputS!29:29) -> 0.04 | DF40: =LOOKUP(DF39,InputS!24:24,InputS!29:29) -> 0.04 | DG40: =LOOKUP(DG39,InputS!24:24,InputS!29:29) -> 0.04 | DH40: =LOOKUP(DH39,InputS!24:24,InputS!29:29) -> 0.04 | DI40: =LOOKUP(DI39,InputS!24:24,InputS!29:29) -> 0.04 | DJ40: =LOOKUP(DJ39,InputS!24:24,InputS!29:29) -> 0.04 | DK40: =LOOKUP(DK39,InputS!24:24,InputS!29:29) -> 0.04 | DL40: =LOOKUP(DL39,InputS!24:24,InputS!29:29) -> 0.04 | DM40: =LOOKUP(DM39,InputS!24:24,InputS!29:29) -> 0.04 | DN40: =LOOKUP(DN39,InputS!24:24,InputS!29:29) -> 0.04 | DO40: =LOOKUP(DO39,InputS!24:24,InputS!29:29) -> 0.04 | DP40: =LOOKUP(DP39,InputS!24:24,InputS!29:29) -> 0.04 | DQ40: =LOOKUP(DQ39,InputS!24:24,InputS!29:29) -> 0.04 | DR40: =LOOKUP(DR39,InputS!24:24,InputS!29:29) -> 0.04 | DS40: =LOOKUP(DS39,InputS!24:24,InputS!29:29) -> 0.04 | DT40: =LOOKUP(DT39,InputS!24:24,InputS!29:29) -> 0.04 | DU40: =LOOKUP(DU39,InputS!24:24,InputS!29:29) -> 0.04 | DV40: =LOOKUP(DV39,InputS!24:24,InputS!29:29) -> 0.04 | DW40: =LOOKUP(DW39,InputS!24:24,InputS!29:29) -> 0.04 | DX40: =LOOKUP(DX39,InputS!24:24,InputS!29:29) -> 0.04 | DY40: =LOOKUP(DY39,InputS!24:24,InputS!29:29) -> 0.04 | DZ40: =LOOKUP(DZ39,InputS!24:24,InputS!29:29) -> 0.04 | EA40: =LOOKUP(EA39,InputS!24:24,InputS!29:29) -> 0.04 | EB40: =LOOKUP(EB39,InputS!24:24,InputS!29:29) -> 0.04 | EC40: =LOOKUP(EC39,InputS!24:24,InputS!29:29) -> 0.04 | ED40: =LOOKUP(ED39,InputS!24:24,InputS!29:29) -> 0.04 | EE40: =LOOKUP(EE39,InputS!24:24,InputS!29:29) -> 0.04 | EF40: =LOOKUP(EF39,InputS!24:24,InputS!29:29) -> 0.04 | EG40: =LOOKUP(EG39,InputS!24:24,InputS!29:29) -> 0.04 | EH40: =LOOKUP(EH39,InputS!24:24,InputS!29:29) -> 0.04 | EI40: =LOOKUP(EI39,InputS!24:24,InputS!29:29) -> 0.04 | EJ40: =LOOKUP(EJ39,InputS!24:24,InputS!29:29) -> 0.04 | EK40: =LOOKUP(EK39,InputS!24:24,InputS!29:29) -> 0.04 | EL40: =LOOKUP(EL39,InputS!24:24,InputS!29:29) -> 0.04 | EM40: =LOOKUP(EM39,InputS!24:24,InputS!29:29) -> 0.04 | EN40: =LOOKUP(EN39,InputS!24:24,InputS!29:29) -> 0.04 | EO40: =LOOKUP(EO39,InputS!24:24,InputS!29:29) -> 0.04 | EP40: =LOOKUP(EP39,InputS!24:24,InputS!29:29) -> 0.04 | EQ40: =LOOKUP(EQ39,InputS!24:24,InputS!29:29) -> 0.04 | ER40: =LOOKUP(ER39,InputS!24:24,InputS!29:29) -> 0.04 | ES40: =LOOKUP(ES39,InputS!24:24,InputS!29:29) -> 0.04 | ET40: =LOOKUP(ET39,InputS!24:24,InputS!29:29) -> 0.04 | EU40: =LOOKUP(EU39,InputS!24:24,InputS!29:29) -> 0.04 | EV40: =LOOKUP(EV39,InputS!24:24,InputS!29:29) -> 0.04 | EW40: =LOOKUP(EW39,InputS!24:24,InputS!29:29) -> 0.04 | EX40: =LOOKUP(EX39,InputS!24:24,InputS!29:29) -> 0.04 | EY40: =LOOKUP(EY39,InputS!24:24,InputS!29:29) -> 0.04 | EZ40: =LOOKUP(EZ39,InputS!24:24,InputS!29:29) -> 0.04 | FA40: =LOOKUP(FA39,InputS!24:24,InputS!29:29) -> 0.04 | FB40: =LOOKUP(FB39,InputS!24:24,InputS!29:29) -> 0.04 | FC40: =LOOKUP(FC39,InputS!24:24,InputS!29:29) -> 0.04 | FD40: =LOOKUP(FD39,InputS!24:24,InputS!29:29) -> 0.04 | FE40: =LOOKUP(FE39,InputS!24:24,InputS!29:29) -> 0.04 | FF40: =LOOKUP(FF39,InputS!24:24,InputS!29:29) -> 0.04 | FG40: =LOOKUP(FG39,InputS!24:24,InputS!29:29) -> 0.04 | FH40: =LOOKUP(FH39,InputS!24:24,InputS!29:29) -> 0.04 | FI40: =LOOKUP(FI39,InputS!24:24,InputS!29:29) -> 0.04 | FJ40: =LOOKUP(FJ39,InputS!24:24,InputS!29:29) -> 0.04 | FK40: =LOOKUP(FK39,InputS!24:24,InputS!29:29) -> 0.04 | FL40: =LOOKUP(FL39,InputS!24:24,InputS!29:29) -> 0.04 | FM40: =LOOKUP(FM39,InputS!24:24,InputS!29:29) -> 0.04 | FN40: =LOOKUP(FN39,InputS!24:24,InputS!29:29) -> 0.04 | FO40: =LOOKUP(FO39,InputS!24:24,InputS!29:29) -> 0.04 | FP40: =LOOKUP(FP39,InputS!24:24,InputS!29:29) -> 0.04 | FQ40: =LOOKUP(FQ39,InputS!24:24,InputS!29:29) -> 0.04 | FR40: =LOOKUP(FR39,InputS!24:24,InputS!29:29) -> 0.04 | FS40: =LOOKUP(FS39,InputS!24:24,InputS!29:29) -> 0.04 | FT40: =LOOKUP(FT39,InputS!24:24,InputS!29:29) -> 0.04 | FU40: =LOOKUP(FU39,InputS!24:24,InputS!29:29) -> 0.04 | FV40: =LOOKUP(FV39,InputS!24:24,InputS!29:29) -> 0.04 | FW40: =LOOKUP(FW39,InputS!24:24,InputS!29:29) -> 0.04 | FX40: =LOOKUP(FX39,InputS!24:24,InputS!29:29) -> 0.04 | FY40: =LOOKUP(FY39,InputS!24:24,InputS!29:29) -> 0.04 | FZ40: =LOOKUP(FZ39,InputS!24:24,InputS!29:29) -> 0.04 | GA40: =LOOKUP(GA39,InputS!24:24,InputS!29:29) -> 0.04 | GB40: =LOOKUP(GB39,InputS!24:24,InputS!29:29) -> 0.04 | GC40: =LOOKUP(GC39,InputS!24:24,InputS!29:29) -> 0.04 | GD40: =LOOKUP(GD39,InputS!24:24,InputS!29:29) -> 0.04 | GE40: =LOOKUP(GE39,InputS!24:24,InputS!29:29) -> 0.04 | GF40: =LOOKUP(GF39,InputS!24:24,InputS!29:29) -> 0.04 | GG40: =LOOKUP(GG39,InputS!24:24,InputS!29:29) -> 0.04 | GH40: =LOOKUP(GH39,InputS!24:24,InputS!29:29) -> 0.04 | GI40: =LOOKUP(GI39,InputS!24:24,InputS!29:29) -> 0.04 | GJ40: =LOOKUP(GJ39,InputS!24:24,InputS!29:29) -> 0.04 | GK40: =LOOKUP(GK39,InputS!24:24,InputS!29:29) -> 0.04 | GL40: =LOOKUP(GL39,InputS!24:24,InputS!29:29) -> 0.04 | GM40: =LOOKUP(GM39,InputS!24:24,InputS!29:29) -> 0.04 | GN40: =LOOKUP(GN39,InputS!24:24,InputS!29:29) -> 0.04 | GO40: =LOOKUP(GO39,InputS!24:24,InputS!29:29) -> 0.04 | GP40: =LOOKUP(GP39,InputS!24:24,InputS!29:29) -> 0.04 | GQ40: =LOOKUP(GQ39,InputS!24:24,InputS!29:29) -> 0.04 | GR40: =LOOKUP(GR39,InputS!24:24,InputS!29:29) -> 0.04 | GS40: =LOOKUP(GS39,InputS!24:24,InputS!29:29) -> 0.04 | GT40: =LOOKUP(GT39,InputS!24:24,InputS!29:29) -> 0.04 | GU40: =LOOKUP(GU39,InputS!24:24,InputS!29:29) -> 0.04 | GV40: =LOOKUP(GV39,InputS!24:24,InputS!29:29) -> 0.04 | GW40: =LOOKUP(GW39,InputS!24:24,InputS!29:29) -> 0.04 | GX40: =LOOKUP(GX39,InputS!24:24,InputS!29:29) -> 0.04 | GY40: =LOOKUP(GY39,InputS!24:24,InputS!29:29) -> 0.04 | GZ40: =LOOKUP(GZ39,InputS!24:24,InputS!29:29) -> 0.04 | HA40: =LOOKUP(HA39,InputS!24:24,InputS!29:29) -> 0.04 | HB40: =LOOKUP(HB39,InputS!24:24,InputS!29:29) -> 0.04 | HC40: =LOOKUP(HC39,InputS!24:24,InputS!29:29) -> 0.04 | HD40: =LOOKUP(HD39,InputS!24:24,InputS!29:29) -> 0.04 | HE40: =LOOKUP(HE39,InputS!24:24,InputS!29:29) -> 0.04 | HF40: =LOOKUP(HF39,InputS!24:24,InputS!29:29) -> 0.04 | HG40: =LOOKUP(HG39,InputS!24:24,InputS!29:29) -> 0.04 | HH40: =LOOKUP(HH39,InputS!24:24,InputS!29:29) -> 0.04 | HI40: =LOOKUP(HI39,InputS!24:24,InputS!29:29) -> 0.04 | HJ40: =LOOKUP(HJ39,InputS!24:24,InputS!29:29) -> 0.04 | HK40: =LOOKUP(HK39,InputS!24:24,InputS!29:29) -> 0.04 | HL40: =LOOKUP(HL39,InputS!24:24,InputS!29:29) -> 0.04 | HM40: =LOOKUP(HM39,InputS!24:24,InputS!29:29) -> 0.04 | HN40: =LOOKUP(HN39,InputS!24:24,InputS!29:29) -> 0.04 | HO40: =LOOKUP(HO39,InputS!24:24,InputS!29:29) -> 0.04 | HP40: =LOOKUP(HP39,InputS!24:24,InputS!29:29) -> 0.04 | HQ40: =LOOKUP(HQ39,InputS!24:24,InputS!29:29) -> 0.04 | HR40: =LOOKUP(HR39,InputS!24:24,InputS!29:29) -> 0.04 | HS40: =LOOKUP(HS39,InputS!24:24,InputS!29:29) -> 0.04 | HT40: =LOOKUP(HT39,InputS!24:24,InputS!29:29) -> 0.04 | HU40: =LOOKUP(HU39,InputS!24:24,InputS!29:29) -> 0.04 | HV40: =LOOKUP(HV39,InputS!24:24,InputS!29:29) -> 0.04 | HW40: =LOOKUP(HW39,InputS!24:24,InputS!29:29) -> 0.04 | HX40: =LOOKUP(HX39,InputS!24:24,InputS!29:29) -> 0.04 | HY40: =LOOKUP(HY39,InputS!24:24,InputS!29:29) -> 0.04 | HZ40: =LOOKUP(HZ39,InputS!24:24,InputS!29:29) -> 0.04 | IA40: =LOOKUP(IA39,InputS!24:24,InputS!29:29) -> 0.04 | IB40: =LOOKUP(IB39,InputS!24:24,InputS!29:29) -> 0.04 | IC40: =LOOKUP(IC39,InputS!24:24,InputS!29:29) -> 0.04 | ID40: =LOOKUP(ID39,InputS!24:24,InputS!29:29) -> 0.04 | IE40: =LOOKUP(IE39,InputS!24:24,InputS!29:29) -> 0.04 | IF40: =LOOKUP(IF39,InputS!24:24,InputS!29:29) -> 0.04 | IG40: =LOOKUP(IG39,InputS!24:24,InputS!29:29) -> 0.04 | IH40: =LOOKUP(IH39,InputS!24:24,InputS!29:29) -> 0.04 | II40: =LOOKUP(II39,InputS!24:24,InputS!29:29) -> 0.04 | IJ40: =LOOKUP(IJ39,InputS!24:24,InputS!29:29) -> 0.04 | IK40: =LOOKUP(IK39,InputS!24:24,InputS!29:29) -> 0.04 | IL40: =LOOKUP(IL39,InputS!24:24,InputS!29:29) -> 0.04 | IM40: =LOOKUP(IM39,InputS!24:24,InputS!29:29) -> 0.04 | IN40: =LOOKUP(IN39,InputS!24:24,InputS!29:29) -> 0.04 | IO40: =LOOKUP(IO39,InputS!24:24,InputS!29:29) -> 0.04 | IP40: =LOOKUP(IP39,InputS!24:24,InputS!29:29) -> 0.04 | IQ40: =LOOKUP(IQ39,InputS!24:24,InputS!29:29) -> 0.04 | IR40: =LOOKUP(IR39,InputS!24:24,InputS!29:29) -> 0.04 | IS40: =LOOKUP(IS39,InputS!24:24,InputS!29:29) -> 0.04 | IT40: =LOOKUP(IT39,InputS!24:24,InputS!29:29) -> 0.04 | IU40: =LOOKUP(IU39,InputS!24:24,InputS!29:29) -> 0.04 | IV40: =LOOKUP(IV39,InputS!24:24,InputS!29:29) -> 0.04 | IW40: =LOOKUP(IW39,InputS!24:24,InputS!29:29) -> 0.04 | IX40: =LOOKUP(IX39,InputS!24:24,InputS!29:29) -> 0.04 | IY40: =LOOKUP(IY39,InputS!24:24,InputS!29:29) -> 0.04 | IZ40: =LOOKUP(IZ39,InputS!24:24,InputS!29:29) -> 0.04 | JA40: =LOOKUP(JA39,InputS!24:24,InputS!29:29) -> 0.04 | JB40: =LOOKUP(JB39,InputS!24:24,InputS!29:29) -> 0.04 | JC40: =LOOKUP(JC39,InputS!24:24,InputS!29:29) -> 0.04 | JD40: =LOOKUP(JD39,InputS!24:24,InputS!29:29) -> 0.04 | JE40: =LOOKUP(JE39,InputS!24:24,InputS!29:29) -> 0.04 | JF40: =LOOKUP(JF39,InputS!24:24,InputS!29:29) -> 0.04 | JG40: =LOOKUP(JG39,InputS!24:24,InputS!29:29) -> 0.04 | JH40: =LOOKUP(JH39,InputS!24:24,InputS!29:29) -> 0.04 | JI40: =LOOKUP(JI39,InputS!24:24,InputS!29:29) -> 0.04 | JJ40: =LOOKUP(JJ39,InputS!24:24,InputS!29:29) -> 0.04 | JK40: =LOOKUP(JK39,InputS!24:24,InputS!29:29) -> 0.04 | JL40: =LOOKUP(JL39,InputS!24:24,InputS!29:29) -> 0.04 | JM40: =LOOKUP(JM39,InputS!24:24,InputS!29:29) -> 0.04 | JN40: =LOOKUP(JN39,InputS!24:24,InputS!29:29) -> 0.04 | JO40: =LOOKUP(JO39,InputS!24:24,InputS!29:29) -> 0.04 | JP40: =LOOKUP(JP39,InputS!24:24,InputS!29:29) -> 0.04 | JQ40: =LOOKUP(JQ39,InputS!24:24,InputS!29:29) -> 0.04 | JR40: =LOOKUP(JR39,InputS!24:24,InputS!29:29) -> 0.04 | JS40: =LOOKUP(JS39,InputS!24:24,InputS!29:29) -> 0.04 | JT40: =LOOKUP(JT39,InputS!24:24,InputS!29:29) -> 0.04 | JU40: =LOOKUP(JU39,InputS!24:24,InputS!29:29) -> 0.04 | JV40: =LOOKUP(JV39,InputS!24:24,InputS!29:29) -> 0.04 | JW40: =LOOKUP(JW39,InputS!24:24,InputS!29:29) -> 0.04 | JX40: =LOOKUP(JX39,InputS!24:24,InputS!29:29) -> 0.04 | JY40: =LOOKUP(JY39,InputS!24:24,InputS!29:29) -> 0.04 | JZ40: =LOOKUP(JZ39,InputS!24:24,InputS!29:29) -> 0.04 | KA40: =LOOKUP(KA39,InputS!24:24,InputS!29:29) -> 0.04 | KB40: =LOOKUP(KB39,InputS!24:24,InputS!29:29) -> 0.04 | KC40: =LOOKUP(KC39,InputS!24:24,InputS!29:29) -> 0.04 | KD40: =LOOKUP(KD39,InputS!24:24,InputS!29:29) -> 0.04 | KE40: =LOOKUP(KE39,InputS!24:24,InputS!29:29) -> 0.04 | KF40: =LOOKUP(KF39,InputS!24:24,InputS!29:29) -> 0.04 | KG40: =LOOKUP(KG39,InputS!24:24,InputS!29:29) -> 0.04 | KH40: =LOOKUP(KH39,InputS!24:24,InputS!29:29) -> 0.04 | KI40: =LOOKUP(KI39,InputS!24:24,InputS!29:29) -> 0.04 | KJ40: =LOOKUP(KJ39,InputS!24:24,InputS!29:29) -> 0.04 | KK40: =LOOKUP(KK39,InputS!24:24,InputS!29:29) -> 0.04 | KL40: =LOOKUP(KL39,InputS!24:24,InputS!29:29) -> 0.04 | KM40: =LOOKUP(KM39,InputS!24:24,InputS!29:29) -> 0.04 | KN40: =LOOKUP(KN39,InputS!24:24,InputS!29:29) -> 0.04 | KO40: =LOOKUP(KO39,InputS!24:24,InputS!29:29) -> 0.04 | KP40: =LOOKUP(KP39,InputS!24:24,InputS!29:29) -> 0.04 | KQ40: =LOOKUP(KQ39,InputS!24:24,InputS!29:29) -> 0.04 | KR40: =LOOKUP(KR39,InputS!24:24,InputS!29:29) -> 0.04 | KS40: =LOOKUP(KS39,InputS!24:24,InputS!29:29) -> 0.04 | KT40: =LOOKUP(KT39,InputS!24:24,InputS!29:29) -> 0.04 | KU40: =LOOKUP(KU39,InputS!24:24,InputS!29:29) -> 0.04 | KV40: =LOOKUP(KV39,InputS!24:24,InputS!29:29) -> 0.04 | KW40: =LOOKUP(KW39,InputS!24:24,InputS!29:29) -> 0.04 | KX40: =LOOKUP(KX39,InputS!24:24,InputS!29:29) -> 0.04 | KY40: =LOOKUP(KY39,InputS!24:24,InputS!29:29) -> 0.04 | KZ40: =LOOKUP(KZ39,InputS!24:24,InputS!29:29) -> 0.04 | LA40: =LOOKUP(LA39,InputS!24:24,InputS!29:29) -> 0.04 | LB40: =LOOKUP(LB39,InputS!24:24,InputS!29:29) -> 0.04 | LC40: =LOOKUP(LC39,InputS!24:24,InputS!29:29) -> 0.04 | LD40: =LOOKUP(LD39,InputS!24:24,InputS!29:29) -> 0.04 | LE40: =LOOKUP(LE39,InputS!24:24,InputS!29:29) -> 0.04 | LF40: =LOOKUP(LF39,InputS!24:24,InputS!29:29) -> 0.04 | LG40: =LOOKUP(LG39,InputS!24:24,InputS!29:29) -> 0.04 | LH40: =LOOKUP(LH39,InputS!24:24,InputS!29:29) -> 0.04 | LI40: =LOOKUP(LI39,InputS!24:24,InputS!29:29) -> 0.04 | LJ40: =LOOKUP(LJ39,InputS!24:24,InputS!29:29) -> 0.04 | LK40: =LOOKUP(LK39,InputS!24:24,InputS!29:29) -> 0.04 | LL40: =LOOKUP(LL39,InputS!24:24,InputS!29:29) -> 0.04 | LM40: =LOOKUP(LM39,InputS!24:24,InputS!29:29) -> 0.04 | LN40: =LOOKUP(LN39,InputS!24:24,InputS!29:29) -> 0.04 | LO40: =LOOKUP(LO39,InputS!24:24,InputS!29:29) -> 0.04 | LP40: =LOOKUP(LP39,InputS!24:24,InputS!29:29) -> 0.04 | LQ40: =LOOKUP(LQ39,InputS!24:24,InputS!29:29) -> 0.04 | LR40: =LOOKUP(LR39,InputS!24:24,InputS!29:29) -> 0.04 | LS40: =LOOKUP(LS39,InputS!24:24,InputS!29:29) -> 0.04 | LT40: =LOOKUP(LT39,InputS!24:24,InputS!29:29) -> 0.04 | LU40: =LOOKUP(LU39,InputS!24:24,InputS!29:29) -> 0.04 | LV40: =LOOKUP(LV39,InputS!24:24,InputS!29:29) -> 0.04 | LW40: =LOOKUP(LW39,InputS!24:24,InputS!29:29) -> 0.04 | LX40: =LOOKUP(LX39,InputS!24:24,InputS!29:29) -> 0.04 | LY40: =LOOKUP(LY39,InputS!24:24,InputS!29:29) -> 0.04 | LZ40: =LOOKUP(LZ39,InputS!24:24,InputS!29:29) -> 0.04 | MA40: =LOOKUP(MA39,InputS!24:24,InputS!29:29) -> 0.04 | MB40: =LOOKUP(MB39,InputS!24:24,InputS!29:29) -> 0.04 | MC40: =LOOKUP(MC39,InputS!24:24,InputS!29:29) -> 0.04 | MD40: =LOOKUP(MD39,InputS!24:24,InputS!29:29) -> 0.04 | ME40: =LOOKUP(ME39,InputS!24:24,InputS!29:29) -> 0.04 | MF40: =LOOKUP(MF39,InputS!24:24,InputS!29:29) -> 0.04 | MG40: =LOOKUP(MG39,InputS!24:24,InputS!29:29) -> 0.04 | MH40: =LOOKUP(MH39,InputS!24:24,InputS!29:29) -> 0.04 | MI40: =LOOKUP(MI39,InputS!24:24,InputS!29:29) -> 0.04 | MJ40: =LOOKUP(MJ39,InputS!24:24,InputS!29:29) -> 0.04 | MK40: =LOOKUP(MK39,InputS!24:24,InputS!29:29) -> 0.04 | ML40: =LOOKUP(ML39,InputS!24:24,InputS!29:29) -> 0.04 | MM40: =LOOKUP(MM39,InputS!24:24,InputS!29:29) -> 0.04 | MN40: =LOOKUP(MN39,InputS!24:24,InputS!29:29) -> 0.04 | MO40: =LOOKUP(MO39,InputS!24:24,InputS!29:29) -> 0.04 | MP40: =LOOKUP(MP39,InputS!24:24,InputS!29:29) -> 0.04 | MQ40: =LOOKUP(MQ39,InputS!24:24,InputS!29:29) -> 0.04 | MR40: =LOOKUP(MR39,InputS!24:24,InputS!29:29) -> 0.04 | MS40: =LOOKUP(MS39,InputS!24:24,InputS!29:29) -> 0.04 | MT40: =LOOKUP(MT39,InputS!24:24,InputS!29:29) -> 0.04 | MU40: =LOOKUP(MU39,InputS!24:24,InputS!29:29) -> 0.04 | MV40: =LOOKUP(MV39,InputS!24:24,InputS!29:29) -> 0.04 | MW40: =LOOKUP(MW39,InputS!24:24,InputS!29:29) -> 0.04 | MX40: =LOOKUP(MX39,InputS!24:24,InputS!29:29) -> 0.04 | MY40: =LOOKUP(MY39,InputS!24:24,InputS!29:29) -> 0.04 | MZ40: =LOOKUP(MZ39,InputS!24:24,InputS!29:29) -> 0.04 | NA40: =LOOKUP(NA39,InputS!24:24,InputS!29:29) -> 0.04 | NB40: =LOOKUP(NB39,InputS!24:24,InputS!29:29) -> 0.04 | NC40: =LOOKUP(NC39,InputS!24:24,InputS!29:29) -> 0.04 | ND40: =LOOKUP(ND39,InputS!24:24,InputS!29:29) -> 0.04 | NE40: =LOOKUP(NE39,InputS!24:24,InputS!29:29) -> 0.04 | NF40: =LOOKUP(NF39,InputS!24:24,InputS!29:29) -> 0.04 | NG40: =LOOKUP(NG39,InputS!24:24,InputS!29:29) -> 0.04 | NH40: =LOOKUP(NH39,InputS!24:24,InputS!29:29) -> 0.04 | NI40: =LOOKUP(NI39,InputS!24:24,InputS!29:29) -> 0.04 | NJ40: =LOOKUP(NJ39,InputS!24:24,InputS!29:29) -> 0.04 | NK40: =LOOKUP(NK39,InputS!24:24,InputS!29:29) -> 0.04 | NL40: =LOOKUP(NL39,InputS!24:24,InputS!29:29) -> 0.04 | NM40: =LOOKUP(NM39,InputS!24:24,InputS!29:29) -> 0.04 | NN40: =LOOKUP(NN39,InputS!24:24,InputS!29:29) -> 0.04 | NO40: =LOOKUP(NO39,InputS!24:24,InputS!29:29) -> 0.04 | NP40: =LOOKUP(NP39,InputS!24:24,InputS!29:29) -> 0.04 | NQ40: =LOOKUP(NQ39,InputS!24:24,InputS!29:29) -> 0.04 | NR40: =LOOKUP(NR39,InputS!24:24,InputS!29:29) -> 0.04 | NS40: =LOOKUP(NS39,InputS!24:24,InputS!29:29) -> 0.04 | NT40: =LOOKUP(NT39,InputS!24:24,InputS!29:29) -> 0.04 | NU40: =LOOKUP(NU39,InputS!24:24,InputS!29:29) -> 0.04 | NV40: =LOOKUP(NV39,InputS!24:24,InputS!29:29) -> 0.04 | NW40: =LOOKUP(NW39,InputS!24:24,InputS!29:29) -> 0.04 | NX40: =LOOKUP(NX39,InputS!24:24,InputS!29:29) -> 0.04 | NY40: =LOOKUP(NY39,InputS!24:24,InputS!29:29) -> 0.04 | NZ40: =LOOKUP(NZ39,InputS!24:24,InputS!29:29) -> 0.04 | OA40: =LOOKUP(OA39,InputS!24:24,InputS!29:29) -> 0.04 | OB40: =LOOKUP(OB39,InputS!24:24,InputS!29:29) -> 0.04 | OC40: =LOOKUP(OC39,InputS!24:24,InputS!29:29) -> 0.04 | OD40: =LOOKUP(OD39,InputS!24:24,InputS!29:29) -> 0.04 | OE40: =LOOKUP(OE39,InputS!24:24,InputS!29:29) -> 0.04 | OF40: =LOOKUP(OF39,InputS!24:24,InputS!29:29) -> 0.04 | OG40: =LOOKUP(OG39,InputS!24:24,InputS!29:29) -> 0.04 | OH40: =LOOKUP(OH39,InputS!24:24,InputS!29:29) -> 0.04 | OI40: =LOOKUP(OI39,InputS!24:24,InputS!29:29) -> 0.04 | OJ40: =LOOKUP(OJ39,InputS!24:24,InputS!29:29) -> 0.04 | OK40: =LOOKUP(OK39,InputS!24:24,InputS!29:29) -> 0.04 | OL40: =LOOKUP(OL39,InputS!24:24,InputS!29:29) -> 0.04 | OM40: =LOOKUP(OM39,InputS!24:24,InputS!29:29) -> 0.04 | ON40: =LOOKUP(ON39,InputS!24:24,InputS!29:29) -> 0.04 | OO40: =LOOKUP(OO39,InputS!24:24,InputS!29:29) -> 0.04 | OP40: =LOOKUP(OP39,InputS!24:24,InputS!29:29) -> 0.04 | OQ40: =LOOKUP(OQ39,InputS!24:24,InputS!29:29) -> 0.04 | OR40: =LOOKUP(OR39,InputS!24:24,InputS!29:29) -> 0.04 | OS40: =LOOKUP(OS39,InputS!24:24,InputS!29:29) -> 0.04 | OT40: =LOOKUP(OT39,InputS!24:24,InputS!29:29) -> 0.04 | OU40: =LOOKUP(OU39,InputS!24:24,InputS!29:29) -> 0.04 | OV40: =LOOKUP(OV39,InputS!24:24,InputS!29:29) -> 0.04 | OW40: =LOOKUP(OW39,InputS!24:24,InputS!29:29) -> 0.04 | OX40: =LOOKUP(OX39,InputS!24:24,InputS!29:29) -> 0.04 | OY40: =LOOKUP(OY39,InputS!24:24,InputS!29:29) -> 0.04 | OZ40: =LOOKUP(OZ39,InputS!24:24,InputS!29:29) -> 0.04 | PA40: =LOOKUP(PA39,InputS!24:24,InputS!29:29) -> 0.04 | PB40: =LOOKUP(PB39,InputS!24:24,InputS!29:29) -> 0.04 | PC40: =LOOKUP(PC39,InputS!24:24,InputS!29:29) -> 0.04 | PD40: =LOOKUP(PD39,InputS!24:24,InputS!29:29) -> 0.04 | PE40: =LOOKUP(PE39,InputS!24:24,InputS!29:29) -> 0.04 | PF40: =LOOKUP(PF39,InputS!24:24,InputS!29:29) -> 0.04 | PG40: =LOOKUP(PG39,InputS!24:24,InputS!29:29) -> 0.04 | PH40: =LOOKUP(PH39,InputS!24:24,InputS!29:29) -> 0.04 | PI40: =LOOKUP(PI39,InputS!24:24,InputS!29:29) -> 0.04 | PJ40: =LOOKUP(PJ39,InputS!24:24,InputS!29:29) -> 0.04 | PK40: =LOOKUP(PK39,InputS!24:24,InputS!29:29) -> 0.04 | PL40: =LOOKUP(PL39,InputS!24:24,InputS!29:29) -> 0.04 | PM40: =LOOKUP(PM39,InputS!24:24,InputS!29:29) -> 0.04 | PN40: =LOOKUP(PN39,InputS!24:24,InputS!29:29) -> 0.04 | PO40: =LOOKUP(PO39,InputS!24:24,InputS!29:29) -> 0.04 | PP40: =LOOKUP(PP39,InputS!24:24,InputS!29:29) -> 0.04 | PQ40: =LOOKUP(PQ39,InputS!24:24,InputS!29:29) -> 0.04 | PR40: =LOOKUP(PR39,InputS!24:24,InputS!29:29) -> 0.04 | PS40: =LOOKUP(PS39,InputS!24:24,InputS!29:29) -> 0.04 | PT40: =LOOKUP(PT39,InputS!24:24,InputS!29:29) -> 0.04 | PU40: =LOOKUP(PU39,InputS!24:24,InputS!29:29) -> 0.04 | PV40: =LOOKUP(PV39,InputS!24:24,InputS!29:29) -> 0.04 | PW40: =LOOKUP(PW39,InputS!24:24,InputS!29:29) -> 0.04 | PX40: =LOOKUP(PX39,InputS!24:24,InputS!29:29) -> 0.04 | PY40: =LOOKUP(PY39,InputS!24:24,InputS!29:29) -> 0.04 | PZ40: =LOOKUP(PZ39,InputS!24:24,InputS!29:29) -> 0.04 | QA40: =LOOKUP(QA39,InputS!24:24,InputS!29:29) -> 0.04 | QB40: =LOOKUP(QB39,InputS!24:24,InputS!29:29) -> 0.04 | QC40: =LOOKUP(QC39,InputS!24:24,InputS!29:29) -> 0.04 | QD40: =LOOKUP(QD39,InputS!24:24,InputS!29:29) -> 0.04 | QE40: =LOOKUP(QE39,InputS!24:24,InputS!29:29) -> 0.04 | QF40: =LOOKUP(QF39,InputS!24:24,InputS!29:29) -> 0.04 | QG40: =LOOKUP(QG39,InputS!24:24,InputS!29:29) -> 0.04 | QH40: =LOOKUP(QH39,InputS!24:24,InputS!29:29) -> 0.04 | QI40: =LOOKUP(QI39,InputS!24:24,InputS!29:29) -> 0.04 | QJ40: =LOOKUP(QJ39,InputS!24:24,InputS!29:29) -> 0.04 | QK40: =LOOKUP(QK39,InputS!24:24,InputS!29:29) -> 0.04 | QL40: =LOOKUP(QL39,InputS!24:24,InputS!29:29) -> 0.04 | QM40: =LOOKUP(QM39,InputS!24:24,InputS!29:29) -> 0.04 | QN40: =LOOKUP(QN39,InputS!24:24,InputS!29:29) -> 0.04 | QO40: =LOOKUP(QO39,InputS!24:24,InputS!29:29) -> 0.04 | QP40: =LOOKUP(QP39,InputS!24:24,InputS!29:29) -> 0.04 | QQ40: =LOOKUP(QQ39,InputS!24:24,InputS!29:29) -> 0.04 | QR40: =LOOKUP(QR39,InputS!24:24,InputS!29:29) -> 0.04 | QS40: =LOOKUP(QS39,InputS!24:24,InputS!29:29) -> 0.04 | QT40: =LOOKUP(QT39,InputS!24:24,InputS!29:29) -> 0.04 | QU40: =LOOKUP(QU39,InputS!24:24,InputS!29:29) -> 0.04 | QV40: =LOOKUP(QV39,InputS!24:24,InputS!29:29) -> 0.04 | QW40: =LOOKUP(QW39,InputS!24:24,InputS!29:29) -> 0.04 | QX40: =LOOKUP(QX39,InputS!24:24,InputS!29:29) -> 0.04 | QY40: =LOOKUP(QY39,InputS!24:24,InputS!29:29) -> 0.04 | QZ40: =LOOKUP(QZ39,InputS!24:24,InputS!29:29) -> 0.04 | RA40: =LOOKUP(RA39,InputS!24:24,InputS!29:29) -> 0.04 | RB40: =LOOKUP(RB39,InputS!24:24,InputS!29:29) -> 0.04 | RC40: =LOOKUP(RC39,InputS!24:24,InputS!29:29) -> 0.04 | RD40: =LOOKUP(RD39,InputS!24:24,InputS!29:29) -> 0.04 | RE40: =LOOKUP(RE39,InputS!24:24,InputS!29:29) -> 0.04 | RF40: =LOOKUP(RF39,InputS!24:24,InputS!29:29) -> 0.04 | RG40: =LOOKUP(RG39,InputS!24:24,InputS!29:29) -> 0.04 | RH40: =LOOKUP(RH39,InputS!24:24,InputS!29:29) -> 0.04 | RI40: =LOOKUP(RI39,InputS!24:24,InputS!29:29) -> 0.04 | RJ40: =LOOKUP(RJ39,InputS!24:24,InputS!29:29) -> 0.04 | RK40: =LOOKUP(RK39,InputS!24:24,InputS!29:29) -> 0.04 | RL40: =LOOKUP(RL39,InputS!24:24,InputS!29:29) -> 0.04 | RM40: =LOOKUP(RM39,InputS!24:24,InputS!29:29) -> 0.04 | RN40: =LOOKUP(RN39,InputS!24:24,InputS!29:29) -> 0.04 | RO40: =LOOKUP(RO39,InputS!24:24,InputS!29:29) -> 0.04 | RP40: =LOOKUP(RP39,InputS!24:24,InputS!29:29) -> 0.04 | RQ40: =LOOKUP(RQ39,InputS!24:24,InputS!29:29) -> 0.04 | RR40: =LOOKUP(RR39,InputS!24:24,InputS!29:29) -> 0.04 | RS40: =LOOKUP(RS39,InputS!24:24,InputS!29:29) -> 0.04 | RT40: =LOOKUP(RT39,InputS!24:24,InputS!29:29) -> 0.04 | RU40: =LOOKUP(RU39,InputS!24:24,InputS!29:29) -> 0.04 | RV40: =LOOKUP(RV39,InputS!24:24,InputS!29:29) -> 0.04 | RW40: =LOOKUP(RW39,InputS!24:24,InputS!29:29) -> 0.04 | RX40: =LOOKUP(RX39,InputS!24:24,InputS!29:29) -> 0.04 | RY40: =LOOKUP(RY39,InputS!24:24,InputS!29:29) -> 0.04 | RZ40: =LOOKUP(RZ39,InputS!24:24,InputS!29:29) -> 0.04 | SA40: =LOOKUP(SA39,InputS!24:24,InputS!29:29) -> 0.04 | SB40: =LOOKUP(SB39,InputS!24:24,InputS!29:29) -> 0.04 | SC40: =LOOKUP(SC39,InputS!24:24,InputS!29:29) -> 0.04 | SD40: =LOOKUP(SD39,InputS!24:24,InputS!29:29) -> 0.04 | SE40: =LOOKUP(SE39,InputS!24:24,InputS!29:29) -> 0.04 | SF40: =LOOKUP(SF39,InputS!24:24,InputS!29:29) -> 0.04 | SG40: =LOOKUP(SG39,InputS!24:24,InputS!29:29) -> 0.04 | SH40: =LOOKUP(SH39,InputS!24:24,InputS!29:29) -> 0.04 | SI40: =LOOKUP(SI39,InputS!24:24,InputS!29:29) -> 0.04 | SJ40: =LOOKUP(SJ39,InputS!24:24,InputS!29:29) -> 0.04 | SK40: =LOOKUP(SK39,InputS!24:24,InputS!29:29) -> 0.04 | SL40: =LOOKUP(SL39,InputS!24:24,InputS!29:29) -> 0.04 | SM40: =LOOKUP(SM39,InputS!24:24,InputS!29:29) -> 0.04 | SN40: =LOOKUP(SN39,InputS!24:24,InputS!29:29) -> 0.04 | SO40: =LOOKUP(SO39,InputS!24:24,InputS!29:29) -> 0.04 | SP40: =LOOKUP(SP39,InputS!24:24,InputS!29:29) -> 0.04 | SQ40: =LOOKUP(SQ39,InputS!24:24,InputS!29:29) -> 0.04
